{"text_format":"1","workbook":"xlsx","n_sheets":9,"sheets":["MENU","BASE","FICHES","OUTILS","BAREMES","PARAMETRES","TITRES","RES","TESTS"],"not_rendered":{"charts":1,"images":13,"macros":1,"external_links":0,"defined_names":113,"comments":1,"pivot_tables":0},"unopened":[],"bounds":{"document_bytes":16777216,"sheet_cells":100000,"rows_first":2000,"rows_last":500,"rows_between":2000,"halvings":0,"cell_chars":16384,"cell_head_chars":4096},"cells_cut":0,"cells_raw":0,"read":"whole","date_system":"1900"}

{"sheet":"MENU","index":0,"n_rows":102,"n_cols":10,"rows_kept":102,"cut":false,"hidden":false,"merged":[[13,2,13,3],[12,2,12,3],[12,4,12,7],[13,4,13,7],[1,1,1,10],[6,2,6,6],[23,2,23,3],[23,4,23,7],[24,2,24,3],[24,4,24,7],[17,2,17,6]]}
["version:"]
[2020,"Outil de gestion parcours SPORT SANTÉ"]
["2020-06-04"]
[]
[]
[]
[null,null,"RECHERCHE"]
[]
[]
[]
[]
[]
[null,null,null,null,null,null,null,null,null,"Contact Service UNSS 35"]
[null,null,null,null,null,null,null,null,null,"UNSS 35"]
[]
[]
[]
[null,null,"IMPRESSION"]
[]
[]
[]
[]
[]
[]
[]
[]
[]
[]
[]
[]
[]
[]
[]
[]
[]
[]
[]
[]
[]
[]
[]
[]
[]
[]
[]
[]
[]
[]
[]
[]
[]
[]
[]
[]
[]
[]
[]
[]
[]
[]
[]
[]
[]
[]
[]
[]
[]
[]
[]
[]
[]
[]
[]
[]
[]
[]
[]
[]
[]
[]
[]
[]
[]
[]
[]
[]
[]
[]
[]
[]
[]
[]
[]
[]
[]
[]
[]
[]
[]
[]
["pascal","pascal"]
["pascal","pascal"]

{"sheet":"BASE","index":1,"n_rows":980,"n_cols":36,"rows_kept":980,"cut":false,"hidden":false,"merged":[]}
[null,null,null,null,"F ou H","En année",null,"En KG","En CM",null,null,null,null,"En Mètre",null,"En Seconde",null,"En KG",null,"En CM",null,"En Seconde",null,"En Seconde",null,"Rèp",null,"En CM",29,null,"mrv code",null,"liste_NOM","liste_etab","liste_GR","liste_prenom"]
[null,null,{"$f":"TITRES!$E3","v":"Nom: "},{"$f":"TITRES!$E4","v":"Prénom: "},{"$f":"TITRES!$E5","v":"Sexe: "},{"$f":"TITRES!$E6","v":"Age: "},{"$f":"TITRES!$E7","v":"PT_Age"},{"$f":"TITRES!$E8","v":"Poids: "},{"$f":"TITRES!$E9","v":"Taille: "},{"$f":"TITRES!$E10","v":"Etab.:"},{"$f":"TITRES!$E11","v":"Groupe:"},{"$f":"TITRES!$E12","v":"IMC"},{"$f":"TITRES!$E13","v":"PT_IMC"},{"$f":"TITRES!$E14","v":"T1 1/2 cooper"},{"$f":"TITRES!$E15","v":"T1"},{"$f":"TITRES!$E16","v":"T2 Flamingo"},{"$f":"TITRES!$E17","v":"T2"},{"$f":"TITRES!$E18","v":"T3 Préhension dynamomètre"},{"$f":"TITRES!$E19","v":"T3"},{"$f":"TITRES!$E20","v":"T4 Souplesse Dorsale"},{"$f":"TITRES!$E21","v":"T4"},{"$f":"TITRES!$E22","v":"T5 Vitesse Plaques"},{"$f":"TITRES!$E23","v":"T5"},{"$f":"TITRES!$E24","v":"T6 Course Navette"},{"$f":"TITRES!$E25","v":"T6"},{"$f":"TITRES!$E26","v":"T7 Pompes Inclinées"},{"$f":"TITRES!$E27","v":"T7"},{"$f":"TITRES!$E28","v":"T8 Saut Horizontal"},{"$f":"TITRES!$E29","v":"T8"},{"$f":"TITRES!$E30","v":"Résultats"},"Code Barre",null,"TOUT","TOUT","TOUT","TOUT"]
[null,null,null,null,null,null,{"$f":"IF(C3=\"\",\"\",VLOOKUP(F3,REF_AGE,2))","v":""},null,null,null,null,{"$f":"IF(I3=\"\",\"\",(H3/(I3*I3))*10000)","v":""},{"$f":"IF(I3=\"\",\"\",VLOOKUP(L3,PT_IMC,2))","v":""},null,{"$f":"VLOOKUP(N3,INDIRECT(\"T1C\"&$E3&G3),2)","v":{"$error":"#REF!"}},null,{"$f":"VLOOKUP(P3,INDIRECT(Q$2&$E3&$G3),2)","v":{"$error":"#N/A"}},null,{"$f":"VLOOKUP(R3,INDIRECT(S$2&$E3&$G3),2)","v":{"$error":"#N/A"}},null,{"$f":"VLOOKUP(T3,INDIRECT(U$2&$E3&$G3),2)","v":{"$error":"#N/A"}},null,{"$f":"VLOOKUP(V3,INDIRECT(W$2&$E3&$G3),2)","v":{"$error":"#N/A"}},null,{"$f":"VLOOKUP(X3,INDIRECT(Y$2&$E3&$G3),2)","v":{"$error":"#N/A"}},null,{"$f":"VLOOKUP(Z3,INDIRECT(AA$2&$E3&$G3),2)","v":{"$error":"#N/A"}},null,{"$f":"VLOOKUP(AB3,INDIRECT(AC$2&$E3&$G3),2)","v":{"$error":"#N/A"}},{"$f":"M3+O3+Q3+S3+U3+W3+Y3+AA3+AC3","v":{"$error":"#VALUE!"}},{"$f":"K3&\" \"&C3&\" \"&D3","v":"  "}]
[null,null,null,null,null,null,"",null,null,null,null,"","",null,{"$error":"#REF!"},null,{"$error":"#N/A"},null,{"$error":"#N/A"},null,{"$error":"#N/A"},null,{"$error":"#N/A"},null,{"$error":"#N/A"},null,{"$error":"#N/A"},null,{"$error":"#N/A"},{"$error":"#VALUE!"},"  "]
[null,null,null,null,null,null,{"$f":"IF(C5=\"\",\"\",VLOOKUP(F5,REF_AGE,2))","v":""},null,null,null,null,{"$f":"IF(I5=\"\",\"\",(H5/(I5*I5))*10000)","v":""},{"$f":"IF(I5=\"\",\"\",VLOOKUP(L5,PT_IMC,2))","v":""},null,{"$f":"VLOOKUP(N5,INDIRECT(\"T1C\"&$E5&G5),2)","v":{"$error":"#REF!"}},null,{"$f":"VLOOKUP(P5,INDIRECT(Q$2&$E5&$G5),2)","v":{"$error":"#N/A"}},null,{"$f":"VLOOKUP(R5,INDIRECT(S$2&$E5&$G5),2)","v":{"$error":"#N/A"}},null,{"$f":"VLOOKUP(T5,INDIRECT(U$2&$E5&$G5),2)","v":{"$error":"#N/A"}},null,{"$f":"VLOOKUP(V5,INDIRECT(W$2&$E5&$G5),2)","v":{"$error":"#N/A"}},null,{"$f":"VLOOKUP(X5,INDIRECT(Y$2&$E5&$G5),2)","v":{"$error":"#N/A"}},null,{"$f":"VLOOKUP(Z5,INDIRECT(AA$2&$E5&$G5),2)","v":{"$error":"#N/A"}},null,{"$f":"VLOOKUP(AB5,INDIRECT(AC$2&$E5&$G5),2)","v":{"$error":"#N/A"}},{"$f":"M5+O5+Q5+S5+U5+W5+Y5+AA5+AC5","v":{"$error":"#VALUE!"}},{"$f":"K5&\" \"&C5&\" \"&D5","v":"  "}]
[null,null,null,null,null,null,"",null,null,null,null,"","",null,{"$error":"#REF!"},null,{"$error":"#N/A"},null,{"$error":"#N/A"},null,{"$error":"#N/A"},null,{"$error":"#N/A"},null,{"$error":"#N/A"},null,{"$error":"#N/A"},null,{"$error":"#N/A"},{"$error":"#VALUE!"},{"$f":"K6&\" \"&C6&\" \"&D6","v":"  "}]
[null,null,null,null,null,null,"",null,null,null,null,"","",null,{"$error":"#REF!"},null,{"$error":"#N/A"},null,{"$error":"#N/A"},null,{"$error":"#N/A"},null,{"$error":"#N/A"},null,{"$error":"#N/A"},null,{"$error":"#N/A"},null,{"$error":"#N/A"},{"$error":"#VALUE!"},"  "]
[null,null,null,null,null,null,"",null,null,null,null,"","",null,{"$error":"#REF!"},null,{"$error":"#N/A"},null,{"$error":"#N/A"},null,{"$error":"#N/A"},null,{"$error":"#N/A"},null,{"$error":"#N/A"},null,{"$error":"#N/A"},null,{"$error":"#N/A"},{"$error":"#VALUE!"},{"$f":"K8&\" \"&C8&\" \"&D8","v":"  "}]
[null,null,null,null,null,null,"",null,null,null,null,"","",null,{"$error":"#REF!"},null,{"$error":"#N/A"},null,{"$error":"#N/A"},null,{"$error":"#N/A"},null,{"$error":"#N/A"},null,{"$error":"#N/A"},null,{"$error":"#N/A"},null,{"$error":"#N/A"},{"$error":"#VALUE!"},"  "]
[null,null,null,null,null,null,"",null,null,null,null,"","",null,{"$error":"#REF!"},null,{"$error":"#N/A"},null,{"$error":"#N/A"},null,{"$error":"#N/A"},null,{"$error":"#N/A"},null,{"$error":"#N/A"},null,{"$error":"#N/A"},null,{"$error":"#N/A"},{"$error":"#VALUE!"},"  "]
[null,null,null,null,null,null,"",null,null,null,null,"","",null,{"$error":"#REF!"},null,{"$error":"#N/A"},null,{"$error":"#N/A"},null,{"$error":"#N/A"},null,{"$error":"#N/A"},null,{"$error":"#N/A"},null,{"$error":"#N/A"},null,{"$error":"#N/A"},{"$error":"#VALUE!"},"  "]
[null,null,null,null,null,null,"",null,null,null,null,"","",null,{"$error":"#REF!"},null,{"$error":"#N/A"},null,{"$error":"#N/A"},null,{"$error":"#N/A"},null,{"$error":"#N/A"},null,{"$error":"#N/A"},null,{"$error":"#N/A"},null,{"$error":"#N/A"},{"$error":"#VALUE!"},"  "]
[null,null,null,null,null,null,"",null,null,null,null,"","",null,{"$error":"#REF!"},null,{"$error":"#N/A"},null,{"$error":"#N/A"},null,{"$error":"#N/A"},null,{"$error":"#N/A"},null,{"$error":"#N/A"},null,{"$error":"#N/A"},null,{"$error":"#N/A"},{"$error":"#VALUE!"},"  "]
[null,null,null,null,null,null,"",null,null,null,null,"","",null,{"$error":"#REF!"},null,{"$error":"#N/A"},null,{"$error":"#N/A"},null,{"$error":"#N/A"},null,{"$error":"#N/A"},null,{"$error":"#N/A"},null,{"$error":"#N/A"},null,{"$error":"#N/A"},{"$error":"#VALUE!"},"  "]
[null,null,null,null,null,null,"",null,null,null,null,"","",null,{"$error":"#REF!"},null,{"$error":"#N/A"},null,{"$error":"#N/A"},null,{"$error":"#N/A"},null,{"$error":"#N/A"},null,{"$error":"#N/A"},null,{"$error":"#N/A"},null,{"$error":"#N/A"},{"$error":"#VALUE!"},"  "]
[null,null,null,null,null,null,"",null,null,null,null,"","",null,{"$error":"#REF!"},null,{"$error":"#N/A"},null,{"$error":"#N/A"},null,{"$error":"#N/A"},null,{"$error":"#N/A"},null,{"$error":"#N/A"},null,{"$error":"#N/A"},null,{"$error":"#N/A"},{"$error":"#VALUE!"},"  "]
[null,null,null,null,null,null,"",null,null,null,null,"","",null,{"$error":"#REF!"},null,{"$error":"#N/A"},null,{"$error":"#N/A"},null,{"$error":"#N/A"},null,{"$error":"#N/A"},null,{"$error":"#N/A"},null,{"$error":"#N/A"},null,{"$error":"#N/A"},{"$error":"#VALUE!"},"  "]
[null,null,null,null,null,null,"",null,null,null,null,"","",null,{"$error":"#REF!"},null,{"$error":"#N/A"},null,{"$error":"#N/A"},null,{"$error":"#N/A"},null,{"$error":"#N/A"},null,{"$error":"#N/A"},null,{"$error":"#N/A"},null,{"$error":"#N/A"},{"$error":"#VALUE!"},"  "]
[null,null,null,null,null,null,"",null,null,null,null,"","",null,{"$error":"#REF!"},null,{"$error":"#N/A"},null,{"$error":"#N/A"},null,{"$error":"#N/A"},null,{"$error":"#N/A"},null,{"$error":"#N/A"},null,{"$error":"#N/A"},null,{"$error":"#N/A"},{"$error":"#VALUE!"},"  "]
[null,null,null,null,null,null,"",null,null,null,null,"","",null,{"$error":"#REF!"},null,{"$error":"#N/A"},null,{"$error":"#N/A"},null,{"$error":"#N/A"},null,{"$error":"#N/A"},null,{"$error":"#N/A"},null,{"$error":"#N/A"},null,{"$error":"#N/A"},{"$error":"#VALUE!"},"  "]
[null,null,null,null,null,null,"",null,null,null,null,"","",null,{"$error":"#REF!"},null,{"$error":"#N/A"},null,{"$error":"#N/A"},null,{"$error":"#N/A"},null,{"$error":"#N/A"},null,{"$error":"#N/A"},null,{"$error":"#N/A"},null,{"$error":"#N/A"},{"$error":"#VALUE!"},"  "]
[null,null,null,null,null,null,"",null,null,null,null,"","",null,{"$error":"#REF!"},null,{"$error":"#N/A"},null,{"$error":"#N/A"},null,{"$error":"#N/A"},null,{"$error":"#N/A"},null,{"$error":"#N/A"},null,{"$error":"#N/A"},null,{"$error":"#N/A"},{"$error":"#VALUE!"},"  "]
[null,null,null,null,null,null,"",null,null,null,null,"","",null,{"$error":"#REF!"},null,{"$error":"#N/A"},null,{"$error":"#N/A"},null,{"$error":"#N/A"},null,{"$error":"#N/A"},null,{"$error":"#N/A"},null,{"$error":"#N/A"},null,{"$error":"#N/A"},{"$error":"#VALUE!"},"  "]
[null,null,null,null,null,null,"",null,null,null,null,"","",null,{"$error":"#REF!"},null,{"$error":"#N/A"},null,{"$error":"#N/A"},null,{"$error":"#N/A"},null,{"$error":"#N/A"},null,{"$error":"#N/A"},null,{"$error":"#N/A"},null,{"$error":"#N/A"},{"$error":"#VALUE!"},"  "]
[null,null,null,null,null,null,"",null,null,null,null,"","",null,{"$error":"#REF!"},null,{"$error":"#N/A"},null,{"$error":"#N/A"},null,{"$error":"#N/A"},null,{"$error":"#N/A"},null,{"$error":"#N/A"},null,{"$error":"#N/A"},null,{"$error":"#N/A"},{"$error":"#VALUE!"},"  "]
[null,null,null,null,null,null,"",null,null,null,null,"","",null,{"$error":"#REF!"},null,{"$error":"#N/A"},null,{"$error":"#N/A"},null,{"$error":"#N/A"},null,{"$error":"#N/A"},null,{"$error":"#N/A"},null,{"$error":"#N/A"},null,{"$error":"#N/A"},{"$error":"#VALUE!"},"  "]
[null,null,null,null,null,null,"",null,null,null,null,"","",null,{"$error":"#REF!"},null,{"$error":"#N/A"},null,{"$error":"#N/A"},null,{"$error":"#N/A"},null,{"$error":"#N/A"},null,{"$error":"#N/A"},null,{"$error":"#N/A"},null,{"$error":"#N/A"},{"$error":"#VALUE!"},"  "]
[null,null,null,null,null,null,"",null,null,null,null,"","",null,{"$error":"#REF!"},null,{"$error":"#N/A"},null,{"$error":"#N/A"},null,{"$error":"#N/A"},null,{"$error":"#N/A"},null,{"$error":"#N/A"},null,{"$error":"#N/A"},null,{"$error":"#N/A"},{"$error":"#VALUE!"},"  "]
[null,null,null,null,null,null,"",null,null,null,null,"","",null,{"$error":"#REF!"},null,{"$error":"#N/A"},null,{"$error":"#N/A"},null,{"$error":"#N/A"},null,{"$error":"#N/A"},null,{"$error":"#N/A"},null,{"$error":"#N/A"},null,{"$error":"#N/A"},{"$error":"#VALUE!"},"  "]
[null,null,null,null,null,null,"",null,null,null,null,"","",null,{"$error":"#REF!"},null,{"$error":"#N/A"},null,{"$error":"#N/A"},null,{"$error":"#N/A"},null,{"$error":"#N/A"},null,{"$error":"#N/A"},null,{"$error":"#N/A"},null,{"$error":"#N/A"},{"$error":"#VALUE!"},"  "]
[null,null,null,null,null,null,"",null,null,null,null,"","",null,{"$error":"#REF!"},null,{"$error":"#N/A"},null,{"$error":"#N/A"},null,{"$error":"#N/A"},null,{"$error":"#N/A"},null,{"$error":"#N/A"},null,{"$error":"#N/A"},null,{"$error":"#N/A"},{"$error":"#VALUE!"},"  "]
[null,null,null,null,null,null,"",null,null,null,null,"","",null,{"$error":"#REF!"},null,{"$error":"#N/A"},null,{"$error":"#N/A"},null,{"$error":"#N/A"},null,{"$error":"#N/A"},null,{"$error":"#N/A"},null,{"$error":"#N/A"},null,{"$error":"#N/A"},{"$error":"#VALUE!"},"  "]
[null,null,null,null,null,null,"",null,null,null,null,"","",null,{"$error":"#REF!"},null,{"$error":"#N/A"},null,{"$error":"#N/A"},null,{"$error":"#N/A"},null,{"$error":"#N/A"},null,{"$error":"#N/A"},null,{"$error":"#N/A"},null,{"$error":"#N/A"},{"$error":"#VALUE!"},"  "]
[null,null,null,null,null,null,"",null,null,null,null,"","",null,{"$error":"#REF!"},null,{"$error":"#N/A"},null,{"$error":"#N/A"},null,{"$error":"#N/A"},null,{"$error":"#N/A"},null,{"$error":"#N/A"},null,{"$error":"#N/A"},null,{"$error":"#N/A"},{"$error":"#VALUE!"},"  "]
[null,null,null,null,null,null,"",null,null,null,null,"","",null,{"$error":"#REF!"},null,{"$error":"#N/A"},null,{"$error":"#N/A"},null,{"$error":"#N/A"},null,{"$error":"#N/A"},null,{"$error":"#N/A"},null,{"$error":"#N/A"},null,{"$error":"#N/A"},{"$error":"#VALUE!"},"  "]
[null,null,null,null,null,null,"",null,null,null,null,"","",null,{"$error":"#REF!"},null,{"$error":"#N/A"},null,{"$error":"#N/A"},null,{"$error":"#N/A"},null,{"$error":"#N/A"},null,{"$error":"#N/A"},null,{"$error":"#N/A"},null,{"$error":"#N/A"},{"$error":"#VALUE!"},"  "]
[null,null,null,null,null,null,"",null,null,null,null,"","",null,{"$error":"#REF!"},null,{"$error":"#N/A"},null,{"$error":"#N/A"},null,{"$error":"#N/A"},null,{"$error":"#N/A"},null,{"$error":"#N/A"},null,{"$error":"#N/A"},null,{"$error":"#N/A"},{"$error":"#VALUE!"},"  "]
[null,null,null,null,null,null,"",null,null,null,null,"","",null,{"$error":"#REF!"},null,{"$error":"#N/A"},null,{"$error":"#N/A"},null,{"$error":"#N/A"},null,{"$error":"#N/A"},null,{"$error":"#N/A"},null,{"$error":"#N/A"},null,{"$error":"#N/A"},{"$error":"#VALUE!"},"  "]
[null,null,null,null,null,null,"",null,null,null,null,"","",null,{"$error":"#REF!"},null,{"$error":"#N/A"},null,{"$error":"#N/A"},null,{"$error":"#N/A"},null,{"$error":"#N/A"},null,{"$error":"#N/A"},null,{"$error":"#N/A"},null,{"$error":"#N/A"},{"$error":"#VALUE!"},"  "]
[null,null,null,null,null,null,"",null,null,null,null,"","",null,{"$error":"#REF!"},null,{"$error":"#N/A"},null,{"$error":"#N/A"},null,{"$error":"#N/A"},null,{"$error":"#N/A"},null,{"$error":"#N/A"},null,{"$error":"#N/A"},null,{"$error":"#N/A"},{"$error":"#VALUE!"},"  "]
[null,null,null,null,null,null,"",null,null,null,null,"","",null,{"$error":"#REF!"},null,{"$error":"#N/A"},null,{"$error":"#N/A"},null,{"$error":"#N/A"},null,{"$error":"#N/A"},null,{"$error":"#N/A"},null,{"$error":"#N/A"},null,{"$error":"#N/A"},{"$error":"#VALUE!"},"  "]
[null,null,null,null,null,null,"",null,null,null,null,"","",null,{"$error":"#REF!"},null,{"$error":"#N/A"},null,{"$error":"#N/A"},null,{"$error":"#N/A"},null,{"$error":"#N/A"},null,{"$error":"#N/A"},null,{"$error":"#N/A"},null,{"$error":"#N/A"},{"$error":"#VALUE!"},"  "]
[null,null,null,null,null,null,"",null,null,null,null,"","",null,{"$error":"#REF!"},null,{"$error":"#N/A"},null,{"$error":"#N/A"},null,{"$error":"#N/A"},null,{"$error":"#N/A"},null,{"$error":"#N/A"},null,{"$error":"#N/A"},null,{"$error":"#N/A"},{"$error":"#VALUE!"},"  "]
[null,null,null,null,null,null,"",null,null,null,null,"","",null,{"$error":"#REF!"},null,{"$error":"#N/A"},null,{"$error":"#N/A"},null,{"$error":"#N/A"},null,{"$error":"#N/A"},null,{"$error":"#N/A"},null,{"$error":"#N/A"},null,{"$error":"#N/A"},{"$error":"#VALUE!"},"  "]
[null,null,null,null,null,null,"",null,null,null,null,"","",null,{"$error":"#REF!"},null,{"$error":"#N/A"},null,{"$error":"#N/A"},null,{"$error":"#N/A"},null,{"$error":"#N/A"},null,{"$error":"#N/A"},null,{"$error":"#N/A"},null,{"$error":"#N/A"},{"$error":"#VALUE!"},"  "]
[null,null,null,null,null,null,"",null,null,null,null,"","",null,{"$error":"#REF!"},null,{"$error":"#N/A"},null,{"$error":"#N/A"},null,{"$error":"#N/A"},null,{"$error":"#N/A"},null,{"$error":"#N/A"},null,{"$error":"#N/A"},null,{"$error":"#N/A"},{"$error":"#VALUE!"},"  "]
[null,null,null,null,null,null,"",null,null,null,null,"","",null,{"$error":"#REF!"},null,{"$error":"#N/A"},null,{"$error":"#N/A"},null,{"$error":"#N/A"},null,{"$error":"#N/A"},null,{"$error":"#N/A"},null,{"$error":"#N/A"},null,{"$error":"#N/A"},{"$error":"#VALUE!"},"  "]
[null,null,null,null,null,null,"",null,null,null,null,"","",null,{"$error":"#REF!"},null,{"$error":"#N/A"},null,{"$error":"#N/A"},null,{"$error":"#N/A"},null,{"$error":"#N/A"},null,{"$error":"#N/A"},null,{"$error":"#N/A"},null,{"$error":"#N/A"},{"$error":"#VALUE!"},"  "]
[null,null,null,null,null,null,"",null,null,null,null,"","",null,{"$error":"#REF!"},null,{"$error":"#N/A"},null,{"$error":"#N/A"},null,{"$error":"#N/A"},null,{"$error":"#N/A"},null,{"$error":"#N/A"},null,{"$error":"#N/A"},null,{"$error":"#N/A"},{"$error":"#VALUE!"},"  "]
[null,null,null,null,null,null,"",null,null,null,null,"","",null,{"$error":"#REF!"},null,{"$error":"#N/A"},null,{"$error":"#N/A"},null,{"$error":"#N/A"},null,{"$error":"#N/A"},null,{"$error":"#N/A"},null,{"$error":"#N/A"},null,{"$error":"#N/A"},{"$error":"#VALUE!"},"  "]
[null,null,null,null,null,null,"",null,null,null,null,"","",null,{"$error":"#REF!"},null,{"$error":"#N/A"},null,{"$error":"#N/A"},null,{"$error":"#N/A"},null,{"$error":"#N/A"},null,{"$error":"#N/A"},null,{"$error":"#N/A"},null,{"$error":"#N/A"},{"$error":"#VALUE!"},"  "]
[null,null,null,null,null,null,"",null,null,null,null,"","",null,{"$error":"#REF!"},null,{"$error":"#N/A"},null,{"$error":"#N/A"},null,{"$error":"#N/A"},null,{"$error":"#N/A"},null,{"$error":"#N/A"},null,{"$error":"#N/A"},null,{"$error":"#N/A"},{"$error":"#VALUE!"},"  "]
[null,null,null,null,null,null,"",null,null,null,null,"","",null,{"$error":"#REF!"},null,{"$error":"#N/A"},null,{"$error":"#N/A"},null,{"$error":"#N/A"},null,{"$error":"#N/A"},null,{"$error":"#N/A"},null,{"$error":"#N/A"},null,{"$error":"#N/A"},{"$error":"#VALUE!"},"  "]
[null,null,null,null,null,null,"",null,null,null,null,"","",null,{"$error":"#REF!"},null,{"$error":"#N/A"},null,{"$error":"#N/A"},null,{"$error":"#N/A"},null,{"$error":"#N/A"},null,{"$error":"#N/A"},null,{"$error":"#N/A"},null,{"$error":"#N/A"},{"$error":"#VALUE!"},"  "]
[null,null,null,null,null,null,"",null,null,null,null,"","",null,{"$error":"#REF!"},null,{"$error":"#N/A"},null,{"$error":"#N/A"},null,{"$error":"#N/A"},null,{"$error":"#N/A"},null,{"$error":"#N/A"},null,{"$error":"#N/A"},null,{"$error":"#N/A"},{"$error":"#VALUE!"},"  "]
[null,null,null,null,null,null,"",null,null,null,null,"","",null,{"$error":"#REF!"},null,{"$error":"#N/A"},null,{"$error":"#N/A"},null,{"$error":"#N/A"},null,{"$error":"#N/A"},null,{"$error":"#N/A"},null,{"$error":"#N/A"},null,{"$error":"#N/A"},{"$error":"#VALUE!"},"  "]
[null,null,null,null,null,null,"",null,null,null,null,"","",null,{"$error":"#REF!"},null,{"$error":"#N/A"},null,{"$error":"#N/A"},null,{"$error":"#N/A"},null,{"$error":"#N/A"},null,{"$error":"#N/A"},null,{"$error":"#N/A"},null,{"$error":"#N/A"},{"$error":"#VALUE!"},"  "]
[null,null,null,null,null,null,"",null,null,null,null,"","",null,{"$error":"#REF!"},null,{"$error":"#N/A"},null,{"$error":"#N/A"},null,{"$error":"#N/A"},null,{"$error":"#N/A"},null,{"$error":"#N/A"},null,{"$error":"#N/A"},null,{"$error":"#N/A"},{"$error":"#VALUE!"},"  "]
[null,null,null,null,null,null,"",null,null,null,null,"","",null,{"$error":"#REF!"},null,{"$error":"#N/A"},null,{"$error":"#N/A"},null,{"$error":"#N/A"},null,{"$error":"#N/A"},null,{"$error":"#N/A"},null,{"$error":"#N/A"},null,{"$error":"#N/A"},{"$error":"#VALUE!"},"  "]
[null,null,null,null,null,null,{"$f":"IF(C60=\"\",\"\",VLOOKUP(F60,REF_AGE,2))","v":""},null,null,null,null,{"$f":"IF(I60=\"\",\"\",(H60/(I60*I60))*10000)","v":""},{"$f":"IF(I60=\"\",\"\",VLOOKUP(L60,PT_IMC,2))","v":""},null,{"$f":"VLOOKUP(N60,INDIRECT(\"T1C\"&$E60&G60),2)","v":{"$error":"#REF!"}},null,{"$f":"VLOOKUP(P60,INDIRECT(Q$2&$E60&$G60),2)","v":{"$error":"#N/A"}},null,{"$f":"VLOOKUP(R60,INDIRECT(S$2&$E60&$G60),2)","v":{"$error":"#N/A"}},null,{"$f":"VLOOKUP(T60,INDIRECT(U$2&$E60&$G60),2)","v":{"$error":"#N/A"}},null,{"$f":"VLOOKUP(V60,INDIRECT(W$2&$E60&$G60),2)","v":{"$error":"#N/A"}},null,{"$f":"VLOOKUP(X60,INDIRECT(Y$2&$E60&$G60),2)","v":{"$error":"#N/A"}},null,{"$f":"VLOOKUP(Z60,INDIRECT(AA$2&$E60&$G60),2)","v":{"$error":"#N/A"}},null,{"$f":"VLOOKUP(AB60,INDIRECT(AC$2&$E60&$G60),2)","v":{"$error":"#N/A"}},{"$f":"M60+O60+Q60+S60+U60+W60+Y60+AA60+AC60","v":{"$error":"#VALUE!"}},{"$f":"K60&\" \"&C60&\" \"&D60","v":"  "}]
[null,null,null,null,null,null,"",null,null,null,null,"","",null,{"$error":"#REF!"},null,{"$error":"#N/A"},null,{"$error":"#N/A"},null,{"$error":"#N/A"},null,{"$error":"#N/A"},null,{"$error":"#N/A"},null,{"$error":"#N/A"},null,{"$error":"#N/A"},{"$error":"#VALUE!"},"  "]
[null,null,null,null,null,null,"",null,null,null,null,"","",null,{"$error":"#REF!"},null,{"$error":"#N/A"},null,{"$error":"#N/A"},null,{"$error":"#N/A"},null,{"$error":"#N/A"},null,{"$error":"#N/A"},null,{"$error":"#N/A"},null,{"$error":"#N/A"},{"$error":"#VALUE!"},"  "]
[null,null,null,null,null,null,"",null,null,null,null,"","",null,{"$error":"#REF!"},null,{"$error":"#N/A"},null,{"$error":"#N/A"},null,{"$error":"#N/A"},null,{"$error":"#N/A"},null,{"$error":"#N/A"},null,{"$error":"#N/A"},null,{"$error":"#N/A"},{"$error":"#VALUE!"},"  "]
[null,null,null,null,null,null,"",null,null,null,null,"","",null,{"$error":"#REF!"},null,{"$error":"#N/A"},null,{"$error":"#N/A"},null,{"$error":"#N/A"},null,{"$error":"#N/A"},null,{"$error":"#N/A"},null,{"$error":"#N/A"},null,{"$error":"#N/A"},{"$error":"#VALUE!"},"  "]
[null,null,null,null,null,null,"",null,null,null,null,"","",null,{"$error":"#REF!"},null,{"$error":"#N/A"},null,{"$error":"#N/A"},null,{"$error":"#N/A"},null,{"$error":"#N/A"},null,{"$error":"#N/A"},null,{"$error":"#N/A"},null,{"$error":"#N/A"},{"$error":"#VALUE!"},"  "]
[null,null,null,null,null,null,"",null,null,null,null,"","",null,{"$error":"#REF!"},null,{"$error":"#N/A"},null,{"$error":"#N/A"},null,{"$error":"#N/A"},null,{"$error":"#N/A"},null,{"$error":"#N/A"},null,{"$error":"#N/A"},null,{"$error":"#N/A"},{"$error":"#VALUE!"},"  "]
[null,null,null,null,null,null,"",null,null,null,null,"","",null,{"$error":"#REF!"},null,{"$error":"#N/A"},null,{"$error":"#N/A"},null,{"$error":"#N/A"},null,{"$error":"#N/A"},null,{"$error":"#N/A"},null,{"$error":"#N/A"},null,{"$error":"#N/A"},{"$error":"#VALUE!"},"  "]
[null,null,null,null,null,null,"",null,null,null,null,"","",null,{"$error":"#REF!"},null,{"$error":"#N/A"},null,{"$error":"#N/A"},null,{"$error":"#N/A"},null,{"$error":"#N/A"},null,{"$error":"#N/A"},null,{"$error":"#N/A"},null,{"$error":"#N/A"},{"$error":"#VALUE!"},"  "]
[null,null,null,null,null,null,"",null,null,null,null,"","",null,{"$error":"#REF!"},null,{"$error":"#N/A"},null,{"$error":"#N/A"},null,{"$error":"#N/A"},null,{"$error":"#N/A"},null,{"$error":"#N/A"},null,{"$error":"#N/A"},null,{"$error":"#N/A"},{"$error":"#VALUE!"},"  "]
[null,null,null,null,null,null,"",null,null,null,null,"","",null,{"$error":"#REF!"},null,{"$error":"#N/A"},null,{"$error":"#N/A"},null,{"$error":"#N/A"},null,{"$error":"#N/A"},null,{"$error":"#N/A"},null,{"$error":"#N/A"},null,{"$error":"#N/A"},{"$error":"#VALUE!"},"  "]
[null,null,null,null,null,null,"",null,null,null,null,"","",null,{"$error":"#REF!"},null,{"$error":"#N/A"},null,{"$error":"#N/A"},null,{"$error":"#N/A"},null,{"$error":"#N/A"},null,{"$error":"#N/A"},null,{"$error":"#N/A"},null,{"$error":"#N/A"},{"$error":"#VALUE!"},"  "]
[null,null,null,null,null,null,"",null,null,null,null,"","",null,{"$error":"#REF!"},null,{"$error":"#N/A"},null,{"$error":"#N/A"},null,{"$error":"#N/A"},null,{"$error":"#N/A"},null,{"$error":"#N/A"},null,{"$error":"#N/A"},null,{"$error":"#N/A"},{"$error":"#VALUE!"},"  "]
[null,null,null,null,null,null,"",null,null,null,null,"","",null,{"$error":"#REF!"},null,{"$error":"#N/A"},null,{"$error":"#N/A"},null,{"$error":"#N/A"},null,{"$error":"#N/A"},null,{"$error":"#N/A"},null,{"$error":"#N/A"},null,{"$error":"#N/A"},{"$error":"#VALUE!"},"  "]
[null,null,null,null,null,null,"",null,null,null,null,"","",null,{"$error":"#REF!"},null,{"$error":"#N/A"},null,{"$error":"#N/A"},null,{"$error":"#N/A"},null,{"$error":"#N/A"},null,{"$error":"#N/A"},null,{"$error":"#N/A"},null,{"$error":"#N/A"},{"$error":"#VALUE!"},"  "]
[null,null,null,null,null,null,"",null,null,null,null,"","",null,{"$error":"#REF!"},null,{"$error":"#N/A"},null,{"$error":"#N/A"},null,{"$error":"#N/A"},null,{"$error":"#N/A"},null,{"$error":"#N/A"},null,{"$error":"#N/A"},null,{"$error":"#N/A"},{"$error":"#VALUE!"},"  "]
[null,null,null,null,null,null,"",null,null,null,null,"","",null,{"$error":"#REF!"},null,{"$error":"#N/A"},null,{"$error":"#N/A"},null,{"$error":"#N/A"},null,{"$error":"#N/A"},null,{"$error":"#N/A"},null,{"$error":"#N/A"},null,{"$error":"#N/A"},{"$error":"#VALUE!"},"  "]
[null,null,null,null,null,null,"",null,null,null,null,"","",null,{"$error":"#REF!"},null,{"$error":"#N/A"},null,{"$error":"#N/A"},null,{"$error":"#N/A"},null,{"$error":"#N/A"},null,{"$error":"#N/A"},null,{"$error":"#N/A"},null,{"$error":"#N/A"},{"$error":"#VALUE!"},"  "]
[null,null,null,null,null,null,"",null,null,null,null,"","",null,{"$error":"#REF!"},null,{"$error":"#N/A"},null,{"$error":"#N/A"},null,{"$error":"#N/A"},null,{"$error":"#N/A"},null,{"$error":"#N/A"},null,{"$error":"#N/A"},null,{"$error":"#N/A"},{"$error":"#VALUE!"},"  "]
[null,null,null,null,null,null,"",null,null,null,null,"","",null,{"$error":"#REF!"},null,{"$error":"#N/A"},null,{"$error":"#N/A"},null,{"$error":"#N/A"},null,{"$error":"#N/A"},null,{"$error":"#N/A"},null,{"$error":"#N/A"},null,{"$error":"#N/A"},{"$error":"#VALUE!"},"  "]
[null,null,null,null,null,null,"",null,null,null,null,"","",null,{"$error":"#REF!"},null,{"$error":"#N/A"},null,{"$error":"#N/A"},null,{"$error":"#N/A"},null,{"$error":"#N/A"},null,{"$error":"#N/A"},null,{"$error":"#N/A"},null,{"$error":"#N/A"},{"$error":"#VALUE!"},"  "]
[null,null,null,null,null,null,"",null,null,null,null,"","",null,{"$error":"#REF!"},null,{"$error":"#N/A"},null,{"$error":"#N/A"},null,{"$error":"#N/A"},null,{"$error":"#N/A"},null,{"$error":"#N/A"},null,{"$error":"#N/A"},null,{"$error":"#N/A"},{"$error":"#VALUE!"},"  "]
[null,null,null,null,null,null,"",null,null,null,null,"","",null,{"$error":"#REF!"},null,{"$error":"#N/A"},null,{"$error":"#N/A"},null,{"$error":"#N/A"},null,{"$error":"#N/A"},null,{"$error":"#N/A"},null,{"$error":"#N/A"},null,{"$error":"#N/A"},{"$error":"#VALUE!"},"  "]
[null,null,null,null,null,null,"",null,null,null,null,"","",null,{"$error":"#REF!"},null,{"$error":"#N/A"},null,{"$error":"#N/A"},null,{"$error":"#N/A"},null,{"$error":"#N/A"},null,{"$error":"#N/A"},null,{"$error":"#N/A"},null,{"$error":"#N/A"},{"$error":"#VALUE!"},"  "]
[null,null,null,null,null,null,"",null,null,null,null,"","",null,{"$error":"#REF!"},null,{"$error":"#N/A"},null,{"$error":"#N/A"},null,{"$error":"#N/A"},null,{"$error":"#N/A"},null,{"$error":"#N/A"},null,{"$error":"#N/A"},null,{"$error":"#N/A"},{"$error":"#VALUE!"},"  "]
[null,null,null,null,null,null,"",null,null,null,null,"","",null,{"$error":"#REF!"},null,{"$error":"#N/A"},null,{"$error":"#N/A"},null,{"$error":"#N/A"},null,{"$error":"#N/A"},null,{"$error":"#N/A"},null,{"$error":"#N/A"},null,{"$error":"#N/A"},{"$error":"#VALUE!"},"  "]
[null,null,null,null,null,null,"",null,null,null,null,"","",null,{"$error":"#REF!"},null,{"$error":"#N/A"},null,{"$error":"#N/A"},null,{"$error":"#N/A"},null,{"$error":"#N/A"},null,{"$error":"#N/A"},null,{"$error":"#N/A"},null,{"$error":"#N/A"},{"$error":"#VALUE!"},"  "]
[null,null,null,null,null,null,"",null,null,null,null,"","",null,{"$error":"#REF!"},null,{"$error":"#N/A"},null,{"$error":"#N/A"},null,{"$error":"#N/A"},null,{"$error":"#N/A"},null,{"$error":"#N/A"},null,{"$error":"#N/A"},null,{"$error":"#N/A"},{"$error":"#VALUE!"},"  "]
[null,null,null,null,null,null,"",null,null,null,null,"","",null,{"$error":"#REF!"},null,{"$error":"#N/A"},null,{"$error":"#N/A"},null,{"$error":"#N/A"},null,{"$error":"#N/A"},null,{"$error":"#N/A"},null,{"$error":"#N/A"},null,{"$error":"#N/A"},{"$error":"#VALUE!"},"  "]
[null,null,null,null,null,null,"",null,null,null,null,"","",null,{"$error":"#REF!"},null,{"$error":"#N/A"},null,{"$error":"#N/A"},null,{"$error":"#N/A"},null,{"$error":"#N/A"},null,{"$error":"#N/A"},null,{"$error":"#N/A"},null,{"$error":"#N/A"},{"$error":"#VALUE!"},"  "]
[null,null,null,null,null,null,"",null,null,null,null,"","",null,{"$error":"#REF!"},null,{"$error":"#N/A"},null,{"$error":"#N/A"},null,{"$error":"#N/A"},null,{"$error":"#N/A"},null,{"$error":"#N/A"},null,{"$error":"#N/A"},null,{"$error":"#N/A"},{"$error":"#VALUE!"},"  "]
[null,null,null,null,null,null,"",null,null,null,null,"","",null,{"$error":"#REF!"},null,{"$error":"#N/A"},null,{"$error":"#N/A"},null,{"$error":"#N/A"},null,{"$error":"#N/A"},null,{"$error":"#N/A"},null,{"$error":"#N/A"},null,{"$error":"#N/A"},{"$error":"#VALUE!"},"  "]
[null,null,null,null,null,null,"",null,null,null,null,"","",null,{"$error":"#REF!"},null,{"$error":"#N/A"},null,{"$error":"#N/A"},null,{"$error":"#N/A"},null,{"$error":"#N/A"},null,{"$error":"#N/A"},null,{"$error":"#N/A"},null,{"$error":"#N/A"},{"$error":"#VALUE!"},"  "]
[null,null,null,null,null,null,"",null,null,null,null,"","",null,{"$error":"#REF!"},null,{"$error":"#N/A"},null,{"$error":"#N/A"},null,{"$error":"#N/A"},null,{"$error":"#N/A"},null,{"$error":"#N/A"},null,{"$error":"#N/A"},null,{"$error":"#N/A"},{"$error":"#VALUE!"},"  "]
[null,null,null,null,null,null,"",null,null,null,null,"","",null,{"$error":"#REF!"},null,{"$error":"#N/A"},null,{"$error":"#N/A"},null,{"$error":"#N/A"},null,{"$error":"#N/A"},null,{"$error":"#N/A"},null,{"$error":"#N/A"},null,{"$error":"#N/A"},{"$error":"#VALUE!"},"  "]
[null,null,null,null,null,null,"",null,null,null,null,"","",null,{"$error":"#REF!"},null,{"$error":"#N/A"},null,{"$error":"#N/A"},null,{"$error":"#N/A"},null,{"$error":"#N/A"},null,{"$error":"#N/A"},null,{"$error":"#N/A"},null,{"$error":"#N/A"},{"$error":"#VALUE!"},"  "]
[null,null,null,null,null,null,"",null,null,null,null,"","",null,{"$error":"#REF!"},null,{"$error":"#N/A"},null,{"$error":"#N/A"},null,{"$error":"#N/A"},null,{"$error":"#N/A"},null,{"$error":"#N/A"},null,{"$error":"#N/A"},null,{"$error":"#N/A"},{"$error":"#VALUE!"},"  "]
[null,null,null,null,null,null,"",null,null,null,null,"","",null,{"$error":"#REF!"},null,{"$error":"#N/A"},null,{"$error":"#N/A"},null,{"$error":"#N/A"},null,{"$error":"#N/A"},null,{"$error":"#N/A"},null,{"$error":"#N/A"},null,{"$error":"#N/A"},{"$error":"#VALUE!"},"  "]
[null,null,null,null,null,null,"",null,null,null,null,"","",null,{"$error":"#REF!"},null,{"$error":"#N/A"},null,{"$error":"#N/A"},null,{"$error":"#N/A"},null,{"$error":"#N/A"},null,{"$error":"#N/A"},null,{"$error":"#N/A"},null,{"$error":"#N/A"},{"$error":"#VALUE!"},"  "]
[null,null,null,null,null,null,"",null,null,null,null,"","",null,{"$error":"#REF!"},null,{"$error":"#N/A"},null,{"$error":"#N/A"},null,{"$error":"#N/A"},null,{"$error":"#N/A"},null,{"$error":"#N/A"},null,{"$error":"#N/A"},null,{"$error":"#N/A"},{"$error":"#VALUE!"},"  "]
[null,null,null,null,null,null,"",null,null,null,null,"","",null,{"$error":"#REF!"},null,{"$error":"#N/A"},null,{"$error":"#N/A"},null,{"$error":"#N/A"},null,{"$error":"#N/A"},null,{"$error":"#N/A"},null,{"$error":"#N/A"},null,{"$error":"#N/A"},{"$error":"#VALUE!"},"  "]
[null,null,null,null,null,null,"",null,null,null,null,"","",null,{"$error":"#REF!"},null,{"$error":"#N/A"},null,{"$error":"#N/A"},null,{"$error":"#N/A"},null,{"$error":"#N/A"},null,{"$error":"#N/A"},null,{"$error":"#N/A"},null,{"$error":"#N/A"},{"$error":"#VALUE!"},"  "]
[null,null,null,null,null,null,"",null,null,null,null,"","",null,{"$error":"#REF!"},null,{"$error":"#N/A"},null,{"$error":"#N/A"},null,{"$error":"#N/A"},null,{"$error":"#N/A"},null,{"$error":"#N/A"},null,{"$error":"#N/A"},null,{"$error":"#N/A"},{"$error":"#VALUE!"},"  "]
[null,null,null,null,null,null,"",null,null,null,null,"","",null,{"$error":"#REF!"},null,{"$error":"#N/A"},null,{"$error":"#N/A"},null,{"$error":"#N/A"},null,{"$error":"#N/A"},null,{"$error":"#N/A"},null,{"$error":"#N/A"},null,{"$error":"#N/A"},{"$error":"#VALUE!"},"  "]
[null,null,null,null,null,null,"",null,null,null,null,"","",null,{"$error":"#REF!"},null,{"$error":"#N/A"},null,{"$error":"#N/A"},null,{"$error":"#N/A"},null,{"$error":"#N/A"},null,{"$error":"#N/A"},null,{"$error":"#N/A"},null,{"$error":"#N/A"},{"$error":"#VALUE!"},"  "]
[null,null,null,null,null,null,"",null,null,null,null,"","",null,{"$error":"#REF!"},null,{"$error":"#N/A"},null,{"$error":"#N/A"},null,{"$error":"#N/A"},null,{"$error":"#N/A"},null,{"$error":"#N/A"},null,{"$error":"#N/A"},null,{"$error":"#N/A"},{"$error":"#VALUE!"},"  "]
[null,null,null,null,null,null,"",null,null,null,null,"","",null,{"$error":"#REF!"},null,{"$error":"#N/A"},null,{"$error":"#N/A"},null,{"$error":"#N/A"},null,{"$error":"#N/A"},null,{"$error":"#N/A"},null,{"$error":"#N/A"},null,{"$error":"#N/A"},{"$error":"#VALUE!"},"  "]
[null,null,null,null,null,null,"",null,null,null,null,"","",null,{"$error":"#REF!"},null,{"$error":"#N/A"},null,{"$error":"#N/A"},null,{"$error":"#N/A"},null,{"$error":"#N/A"},null,{"$error":"#N/A"},null,{"$error":"#N/A"},null,{"$error":"#N/A"},{"$error":"#VALUE!"},"  "]
[null,null,null,null,null,null,"",null,null,null,null,"","",null,{"$error":"#REF!"},null,{"$error":"#N/A"},null,{"$error":"#N/A"},null,{"$error":"#N/A"},null,{"$error":"#N/A"},null,{"$error":"#N/A"},null,{"$error":"#N/A"},null,{"$error":"#N/A"},{"$error":"#VALUE!"},"  "]
[null,null,null,null,null,null,"",null,null,null,null,"","",null,{"$error":"#REF!"},null,{"$error":"#N/A"},null,{"$error":"#N/A"},null,{"$error":"#N/A"},null,{"$error":"#N/A"},null,{"$error":"#N/A"},null,{"$error":"#N/A"},null,{"$error":"#N/A"},{"$error":"#VALUE!"},"  "]
[null,null,null,null,null,null,"",null,null,null,null,"","",null,{"$error":"#REF!"},null,{"$error":"#N/A"},null,{"$error":"#N/A"},null,{"$error":"#N/A"},null,{"$error":"#N/A"},null,{"$error":"#N/A"},null,{"$error":"#N/A"},null,{"$error":"#N/A"},{"$error":"#VALUE!"},"  "]
[null,null,null,null,null,null,"",null,null,null,null,"","",null,{"$error":"#REF!"},null,{"$error":"#N/A"},null,{"$error":"#N/A"},null,{"$error":"#N/A"},null,{"$error":"#N/A"},null,{"$error":"#N/A"},null,{"$error":"#N/A"},null,{"$error":"#N/A"},{"$error":"#VALUE!"},"  "]
[null,null,null,null,null,null,"",null,null,null,null,"","",null,{"$error":"#REF!"},null,{"$error":"#N/A"},null,{"$error":"#N/A"},null,{"$error":"#N/A"},null,{"$error":"#N/A"},null,{"$error":"#N/A"},null,{"$error":"#N/A"},null,{"$error":"#N/A"},{"$error":"#VALUE!"},"  "]
[null,null,null,null,null,null,"",null,null,null,null,"","",null,{"$error":"#REF!"},null,{"$error":"#N/A"},null,{"$error":"#N/A"},null,{"$error":"#N/A"},null,{"$error":"#N/A"},null,{"$error":"#N/A"},null,{"$error":"#N/A"},null,{"$error":"#N/A"},{"$error":"#VALUE!"},"  "]
[null,null,null,null,null,null,"",null,null,null,null,"","",null,{"$error":"#REF!"},null,{"$error":"#N/A"},null,{"$error":"#N/A"},null,{"$error":"#N/A"},null,{"$error":"#N/A"},null,{"$error":"#N/A"},null,{"$error":"#N/A"},null,{"$error":"#N/A"},{"$error":"#VALUE!"},"  "]
[null,null,null,null,null,null,"",null,null,null,null,"","",null,{"$error":"#REF!"},null,{"$error":"#N/A"},null,{"$error":"#N/A"},null,{"$error":"#N/A"},null,{"$error":"#N/A"},null,{"$error":"#N/A"},null,{"$error":"#N/A"},null,{"$error":"#N/A"},{"$error":"#VALUE!"},"  "]
[null,null,null,null,null,null,"",null,null,null,null,"","",null,{"$error":"#REF!"},null,{"$error":"#N/A"},null,{"$error":"#N/A"},null,{"$error":"#N/A"},null,{"$error":"#N/A"},null,{"$error":"#N/A"},null,{"$error":"#N/A"},null,{"$error":"#N/A"},{"$error":"#VALUE!"},"  "]
[null,null,null,null,null,null,"",null,null,null,null,"","",null,{"$error":"#REF!"},null,{"$error":"#N/A"},null,{"$error":"#N/A"},null,{"$error":"#N/A"},null,{"$error":"#N/A"},null,{"$error":"#N/A"},null,{"$error":"#N/A"},null,{"$error":"#N/A"},{"$error":"#VALUE!"},"  "]
[null,null,null,null,null,null,"",null,null,null,null,"","",null,{"$error":"#REF!"},null,{"$error":"#N/A"},null,{"$error":"#N/A"},null,{"$error":"#N/A"},null,{"$error":"#N/A"},null,{"$error":"#N/A"},null,{"$error":"#N/A"},null,{"$error":"#N/A"},{"$error":"#VALUE!"},"  "]
[null,null,null,null,null,null,"",null,null,null,null,"","",null,{"$error":"#REF!"},null,{"$error":"#N/A"},null,{"$error":"#N/A"},null,{"$error":"#N/A"},null,{"$error":"#N/A"},null,{"$error":"#N/A"},null,{"$error":"#N/A"},null,{"$error":"#N/A"},{"$error":"#VALUE!"},"  "]
[null,null,null,null,null,null,"",null,null,null,null,"","",null,{"$error":"#REF!"},null,{"$error":"#N/A"},null,{"$error":"#N/A"},null,{"$error":"#N/A"},null,{"$error":"#N/A"},null,{"$error":"#N/A"},null,{"$error":"#N/A"},null,{"$error":"#N/A"},{"$error":"#VALUE!"},"  "]
[null,null,null,null,null,null,"",null,null,null,null,"","",null,{"$error":"#REF!"},null,{"$error":"#N/A"},null,{"$error":"#N/A"},null,{"$error":"#N/A"},null,{"$error":"#N/A"},null,{"$error":"#N/A"},null,{"$error":"#N/A"},null,{"$error":"#N/A"},{"$error":"#VALUE!"},"  "]
[null,null,null,null,null,null,"",null,null,null,null,"","",null,{"$error":"#REF!"},null,{"$error":"#N/A"},null,{"$error":"#N/A"},null,{"$error":"#N/A"},null,{"$error":"#N/A"},null,{"$error":"#N/A"},null,{"$error":"#N/A"},null,{"$error":"#N/A"},{"$error":"#VALUE!"},"  "]
[null,null,null,null,null,null,"",null,null,null,null,"","",null,{"$error":"#REF!"},null,{"$error":"#N/A"},null,{"$error":"#N/A"},null,{"$error":"#N/A"},null,{"$error":"#N/A"},null,{"$error":"#N/A"},null,{"$error":"#N/A"},null,{"$error":"#N/A"},{"$error":"#VALUE!"},"  "]
[null,null,null,null,null,null,{"$f":"IF(C124=\"\",\"\",VLOOKUP(F124,REF_AGE,2))","v":""},null,null,null,null,{"$f":"IF(I124=\"\",\"\",(H124/(I124*I124))*10000)","v":""},{"$f":"IF(I124=\"\",\"\",VLOOKUP(L124,PT_IMC,2))","v":""},null,{"$f":"VLOOKUP(N124,INDIRECT(\"T1C\"&$E124&G124),2)","v":{"$error":"#REF!"}},null,{"$f":"VLOOKUP(P124,INDIRECT(Q$2&$E124&$G124),2)","v":{"$error":"#N/A"}},null,{"$f":"VLOOKUP(R124,INDIRECT(S$2&$E124&$G124),2)","v":{"$error":"#N/A"}},null,{"$f":"VLOOKUP(T124,INDIRECT(U$2&$E124&$G124),2)","v":{"$error":"#N/A"}},null,{"$f":"VLOOKUP(V124,INDIRECT(W$2&$E124&$G124),2)","v":{"$error":"#N/A"}},null,{"$f":"VLOOKUP(X124,INDIRECT(Y$2&$E124&$G124),2)","v":{"$error":"#N/A"}},null,{"$f":"VLOOKUP(Z124,INDIRECT(AA$2&$E124&$G124),2)","v":{"$error":"#N/A"}},null,{"$f":"VLOOKUP(AB124,INDIRECT(AC$2&$E124&$G124),2)","v":{"$error":"#N/A"}},{"$f":"M124+O124+Q124+S124+U124+W124+Y124+AA124+AC124","v":{"$error":"#VALUE!"}},{"$f":"K124&\" \"&C124&\" \"&D124","v":"  "}]
[null,null,null,null,null,null,"",null,null,null,null,"","",null,{"$error":"#REF!"},null,{"$error":"#N/A"},null,{"$error":"#N/A"},null,{"$error":"#N/A"},null,{"$error":"#N/A"},null,{"$error":"#N/A"},null,{"$error":"#N/A"},null,{"$error":"#N/A"},{"$error":"#VALUE!"},"  "]
[null,null,null,null,null,null,"",null,null,null,null,"","",null,{"$error":"#REF!"},null,{"$error":"#N/A"},null,{"$error":"#N/A"},null,{"$error":"#N/A"},null,{"$error":"#N/A"},null,{"$error":"#N/A"},null,{"$error":"#N/A"},null,{"$error":"#N/A"},{"$error":"#VALUE!"},"  "]
[null,null,null,null,null,null,"",null,null,null,null,"","",null,{"$error":"#REF!"},null,{"$error":"#N/A"},null,{"$error":"#N/A"},null,{"$error":"#N/A"},null,{"$error":"#N/A"},null,{"$error":"#N/A"},null,{"$error":"#N/A"},null,{"$error":"#N/A"},{"$error":"#VALUE!"},"  "]
[null,null,null,null,null,null,"",null,null,null,null,"","",null,{"$error":"#REF!"},null,{"$error":"#N/A"},null,{"$error":"#N/A"},null,{"$error":"#N/A"},null,{"$error":"#N/A"},null,{"$error":"#N/A"},null,{"$error":"#N/A"},null,{"$error":"#N/A"},{"$error":"#VALUE!"},"  "]
[null,null,null,null,null,null,"",null,null,null,null,"","",null,{"$error":"#REF!"},null,{"$error":"#N/A"},null,{"$error":"#N/A"},null,{"$error":"#N/A"},null,{"$error":"#N/A"},null,{"$error":"#N/A"},null,{"$error":"#N/A"},null,{"$error":"#N/A"},{"$error":"#VALUE!"},"  "]
[null,null,null,null,null,null,"",null,null,null,null,"","",null,{"$error":"#REF!"},null,{"$error":"#N/A"},null,{"$error":"#N/A"},null,{"$error":"#N/A"},null,{"$error":"#N/A"},null,{"$error":"#N/A"},null,{"$error":"#N/A"},null,{"$error":"#N/A"},{"$error":"#VALUE!"},"  "]
[null,null,null,null,null,null,"",null,null,null,null,"","",null,{"$error":"#REF!"},null,{"$error":"#N/A"},null,{"$error":"#N/A"},null,{"$error":"#N/A"},null,{"$error":"#N/A"},null,{"$error":"#N/A"},null,{"$error":"#N/A"},null,{"$error":"#N/A"},{"$error":"#VALUE!"},"  "]
[null,null,null,null,null,null,"",null,null,null,null,"","",null,{"$error":"#REF!"},null,{"$error":"#N/A"},null,{"$error":"#N/A"},null,{"$error":"#N/A"},null,{"$error":"#N/A"},null,{"$error":"#N/A"},null,{"$error":"#N/A"},null,{"$error":"#N/A"},{"$error":"#VALUE!"},"  "]
[null,null,null,null,null,null,"",null,null,null,null,"","",null,{"$error":"#REF!"},null,{"$error":"#N/A"},null,{"$error":"#N/A"},null,{"$error":"#N/A"},null,{"$error":"#N/A"},null,{"$error":"#N/A"},null,{"$error":"#N/A"},null,{"$error":"#N/A"},{"$error":"#VALUE!"},"  "]
[null,null,null,null,null,null,"",null,null,null,null,"","",null,{"$error":"#REF!"},null,{"$error":"#N/A"},null,{"$error":"#N/A"},null,{"$error":"#N/A"},null,{"$error":"#N/A"},null,{"$error":"#N/A"},null,{"$error":"#N/A"},null,{"$error":"#N/A"},{"$error":"#VALUE!"},"  "]
[null,null,null,null,null,null,"",null,null,null,null,"","",null,{"$error":"#REF!"},null,{"$error":"#N/A"},null,{"$error":"#N/A"},null,{"$error":"#N/A"},null,{"$error":"#N/A"},null,{"$error":"#N/A"},null,{"$error":"#N/A"},null,{"$error":"#N/A"},{"$error":"#VALUE!"},"  "]
[null,null,null,null,null,null,"",null,null,null,null,"","",null,{"$error":"#REF!"},null,{"$error":"#N/A"},null,{"$error":"#N/A"},null,{"$error":"#N/A"},null,{"$error":"#N/A"},null,{"$error":"#N/A"},null,{"$error":"#N/A"},null,{"$error":"#N/A"},{"$error":"#VALUE!"},"  "]
[null,null,null,null,null,null,"",null,null,null,null,"","",null,{"$error":"#REF!"},null,{"$error":"#N/A"},null,{"$error":"#N/A"},null,{"$error":"#N/A"},null,{"$error":"#N/A"},null,{"$error":"#N/A"},null,{"$error":"#N/A"},null,{"$error":"#N/A"},{"$error":"#VALUE!"},"  "]
[null,null,null,null,null,null,"",null,null,null,null,"","",null,{"$error":"#REF!"},null,{"$error":"#N/A"},null,{"$error":"#N/A"},null,{"$error":"#N/A"},null,{"$error":"#N/A"},null,{"$error":"#N/A"},null,{"$error":"#N/A"},null,{"$error":"#N/A"},{"$error":"#VALUE!"},"  "]
[null,null,null,null,null,null,"",null,null,null,null,"","",null,{"$error":"#REF!"},null,{"$error":"#N/A"},null,{"$error":"#N/A"},null,{"$error":"#N/A"},null,{"$error":"#N/A"},null,{"$error":"#N/A"},null,{"$error":"#N/A"},null,{"$error":"#N/A"},{"$error":"#VALUE!"},"  "]
[null,null,null,null,null,null,"",null,null,null,null,"","",null,{"$error":"#REF!"},null,{"$error":"#N/A"},null,{"$error":"#N/A"},null,{"$error":"#N/A"},null,{"$error":"#N/A"},null,{"$error":"#N/A"},null,{"$error":"#N/A"},null,{"$error":"#N/A"},{"$error":"#VALUE!"},"  "]
[null,null,null,null,null,null,"",null,null,null,null,"","",null,{"$error":"#REF!"},null,{"$error":"#N/A"},null,{"$error":"#N/A"},null,{"$error":"#N/A"},null,{"$error":"#N/A"},null,{"$error":"#N/A"},null,{"$error":"#N/A"},null,{"$error":"#N/A"},{"$error":"#VALUE!"},"  "]
[null,null,null,null,null,null,"",null,null,null,null,"","",null,{"$error":"#REF!"},null,{"$error":"#N/A"},null,{"$error":"#N/A"},null,{"$error":"#N/A"},null,{"$error":"#N/A"},null,{"$error":"#N/A"},null,{"$error":"#N/A"},null,{"$error":"#N/A"},{"$error":"#VALUE!"},"  "]
[null,null,null,null,null,null,"",null,null,null,null,"","",null,{"$error":"#REF!"},null,{"$error":"#N/A"},null,{"$error":"#N/A"},null,{"$error":"#N/A"},null,{"$error":"#N/A"},null,{"$error":"#N/A"},null,{"$error":"#N/A"},null,{"$error":"#N/A"},{"$error":"#VALUE!"},"  "]
[null,null,null,null,null,null,"",null,null,null,null,"","",null,{"$error":"#REF!"},null,{"$error":"#N/A"},null,{"$error":"#N/A"},null,{"$error":"#N/A"},null,{"$error":"#N/A"},null,{"$error":"#N/A"},null,{"$error":"#N/A"},null,{"$error":"#N/A"},{"$error":"#VALUE!"},"  "]
[null,null,null,null,null,null,"",null,null,null,null,"","",null,{"$error":"#REF!"},null,{"$error":"#N/A"},null,{"$error":"#N/A"},null,{"$error":"#N/A"},null,{"$error":"#N/A"},null,{"$error":"#N/A"},null,{"$error":"#N/A"},null,{"$error":"#N/A"},{"$error":"#VALUE!"},"  "]
[null,null,null,null,null,null,"",null,null,null,null,"","",null,{"$error":"#REF!"},null,{"$error":"#N/A"},null,{"$error":"#N/A"},null,{"$error":"#N/A"},null,{"$error":"#N/A"},null,{"$error":"#N/A"},null,{"$error":"#N/A"},null,{"$error":"#N/A"},{"$error":"#VALUE!"},"  "]
[null,null,null,null,null,null,"",null,null,null,null,"","",null,{"$error":"#REF!"},null,{"$error":"#N/A"},null,{"$error":"#N/A"},null,{"$error":"#N/A"},null,{"$error":"#N/A"},null,{"$error":"#N/A"},null,{"$error":"#N/A"},null,{"$error":"#N/A"},{"$error":"#VALUE!"},"  "]
[null,null,null,null,null,null,"",null,null,null,null,"","",null,{"$error":"#REF!"},null,{"$error":"#N/A"},null,{"$error":"#N/A"},null,{"$error":"#N/A"},null,{"$error":"#N/A"},null,{"$error":"#N/A"},null,{"$error":"#N/A"},null,{"$error":"#N/A"},{"$error":"#VALUE!"},"  "]
[null,null,null,null,null,null,"",null,null,null,null,"","",null,{"$error":"#REF!"},null,{"$error":"#N/A"},null,{"$error":"#N/A"},null,{"$error":"#N/A"},null,{"$error":"#N/A"},null,{"$error":"#N/A"},null,{"$error":"#N/A"},null,{"$error":"#N/A"},{"$error":"#VALUE!"},"  "]
[null,null,null,null,null,null,"",null,null,null,null,"","",null,{"$error":"#REF!"},null,{"$error":"#N/A"},null,{"$error":"#N/A"},null,{"$error":"#N/A"},null,{"$error":"#N/A"},null,{"$error":"#N/A"},null,{"$error":"#N/A"},null,{"$error":"#N/A"},{"$error":"#VALUE!"},"  "]
[null,null,null,null,null,null,"",null,null,null,null,"","",null,{"$error":"#REF!"},null,{"$error":"#N/A"},null,{"$error":"#N/A"},null,{"$error":"#N/A"},null,{"$error":"#N/A"},null,{"$error":"#N/A"},null,{"$error":"#N/A"},null,{"$error":"#N/A"},{"$error":"#VALUE!"},"  "]
[null,null,null,null,null,null,"",null,null,null,null,"","",null,{"$error":"#REF!"},null,{"$error":"#N/A"},null,{"$error":"#N/A"},null,{"$error":"#N/A"},null,{"$error":"#N/A"},null,{"$error":"#N/A"},null,{"$error":"#N/A"},null,{"$error":"#N/A"},{"$error":"#VALUE!"},"  "]
[null,null,null,null,null,null,"",null,null,null,null,"","",null,{"$error":"#REF!"},null,{"$error":"#N/A"},null,{"$error":"#N/A"},null,{"$error":"#N/A"},null,{"$error":"#N/A"},null,{"$error":"#N/A"},null,{"$error":"#N/A"},null,{"$error":"#N/A"},{"$error":"#VALUE!"},"  "]
[null,null,null,null,null,null,"",null,null,null,null,"","",null,{"$error":"#REF!"},null,{"$error":"#N/A"},null,{"$error":"#N/A"},null,{"$error":"#N/A"},null,{"$error":"#N/A"},null,{"$error":"#N/A"},null,{"$error":"#N/A"},null,{"$error":"#N/A"},{"$error":"#VALUE!"},"  "]
[null,null,null,null,null,null,"",null,null,null,null,"","",null,{"$error":"#REF!"},null,{"$error":"#N/A"},null,{"$error":"#N/A"},null,{"$error":"#N/A"},null,{"$error":"#N/A"},null,{"$error":"#N/A"},null,{"$error":"#N/A"},null,{"$error":"#N/A"},{"$error":"#VALUE!"},"  "]
[null,null,null,null,null,null,"",null,null,null,null,"","",null,{"$error":"#REF!"},null,{"$error":"#N/A"},null,{"$error":"#N/A"},null,{"$error":"#N/A"},null,{"$error":"#N/A"},null,{"$error":"#N/A"},null,{"$error":"#N/A"},null,{"$error":"#N/A"},{"$error":"#VALUE!"},"  "]
[null,null,null,null,null,null,"",null,null,null,null,"","",null,{"$error":"#REF!"},null,{"$error":"#N/A"},null,{"$error":"#N/A"},null,{"$error":"#N/A"},null,{"$error":"#N/A"},null,{"$error":"#N/A"},null,{"$error":"#N/A"},null,{"$error":"#N/A"},{"$error":"#VALUE!"},"  "]
[null,null,null,null,null,null,"",null,null,null,null,"","",null,{"$error":"#REF!"},null,{"$error":"#N/A"},null,{"$error":"#N/A"},null,{"$error":"#N/A"},null,{"$error":"#N/A"},null,{"$error":"#N/A"},null,{"$error":"#N/A"},null,{"$error":"#N/A"},{"$error":"#VALUE!"},"  "]
[null,null,null,null,null,null,"",null,null,null,null,"","",null,{"$error":"#REF!"},null,{"$error":"#N/A"},null,{"$error":"#N/A"},null,{"$error":"#N/A"},null,{"$error":"#N/A"},null,{"$error":"#N/A"},null,{"$error":"#N/A"},null,{"$error":"#N/A"},{"$error":"#VALUE!"},"  "]
[null,null,null,null,null,null,"",null,null,null,null,"","",null,{"$error":"#REF!"},null,{"$error":"#N/A"},null,{"$error":"#N/A"},null,{"$error":"#N/A"},null,{"$error":"#N/A"},null,{"$error":"#N/A"},null,{"$error":"#N/A"},null,{"$error":"#N/A"},{"$error":"#VALUE!"},"  "]
[null,null,null,null,null,null,"",null,null,null,null,"","",null,{"$error":"#REF!"},null,{"$error":"#N/A"},null,{"$error":"#N/A"},null,{"$error":"#N/A"},null,{"$error":"#N/A"},null,{"$error":"#N/A"},null,{"$error":"#N/A"},null,{"$error":"#N/A"},{"$error":"#VALUE!"},"  "]
[null,null,null,null,null,null,"",null,null,null,null,"","",null,{"$error":"#REF!"},null,{"$error":"#N/A"},null,{"$error":"#N/A"},null,{"$error":"#N/A"},null,{"$error":"#N/A"},null,{"$error":"#N/A"},null,{"$error":"#N/A"},null,{"$error":"#N/A"},{"$error":"#VALUE!"},"  "]
[null,null,null,null,null,null,"",null,null,null,null,"","",null,{"$error":"#REF!"},null,{"$error":"#N/A"},null,{"$error":"#N/A"},null,{"$error":"#N/A"},null,{"$error":"#N/A"},null,{"$error":"#N/A"},null,{"$error":"#N/A"},null,{"$error":"#N/A"},{"$error":"#VALUE!"},"  "]
[null,null,null,null,null,null,"",null,null,null,null,"","",null,{"$error":"#REF!"},null,{"$error":"#N/A"},null,{"$error":"#N/A"},null,{"$error":"#N/A"},null,{"$error":"#N/A"},null,{"$error":"#N/A"},null,{"$error":"#N/A"},null,{"$error":"#N/A"},{"$error":"#VALUE!"},"  "]
[null,null,null,null,null,null,"",null,null,null,null,"","",null,{"$error":"#REF!"},null,{"$error":"#N/A"},null,{"$error":"#N/A"},null,{"$error":"#N/A"},null,{"$error":"#N/A"},null,{"$error":"#N/A"},null,{"$error":"#N/A"},null,{"$error":"#N/A"},{"$error":"#VALUE!"},"  "]
[null,null,null,null,null,null,"",null,null,null,null,"","",null,{"$error":"#REF!"},null,{"$error":"#N/A"},null,{"$error":"#N/A"},null,{"$error":"#N/A"},null,{"$error":"#N/A"},null,{"$error":"#N/A"},null,{"$error":"#N/A"},null,{"$error":"#N/A"},{"$error":"#VALUE!"},"  "]
[null,null,null,null,null,null,"",null,null,null,null,"","",null,{"$error":"#REF!"},null,{"$error":"#N/A"},null,{"$error":"#N/A"},null,{"$error":"#N/A"},null,{"$error":"#N/A"},null,{"$error":"#N/A"},null,{"$error":"#N/A"},null,{"$error":"#N/A"},{"$error":"#VALUE!"},"  "]
[null,null,null,null,null,null,"",null,null,null,null,"","",null,{"$error":"#REF!"},null,{"$error":"#N/A"},null,{"$error":"#N/A"},null,{"$error":"#N/A"},null,{"$error":"#N/A"},null,{"$error":"#N/A"},null,{"$error":"#N/A"},null,{"$error":"#N/A"},{"$error":"#VALUE!"},"  "]
[null,null,null,null,null,null,"",null,null,null,null,"","",null,{"$error":"#REF!"},null,{"$error":"#N/A"},null,{"$error":"#N/A"},null,{"$error":"#N/A"},null,{"$error":"#N/A"},null,{"$error":"#N/A"},null,{"$error":"#N/A"},null,{"$error":"#N/A"},{"$error":"#VALUE!"},"  "]
[null,null,null,null,null,null,"",null,null,null,null,"","",null,{"$error":"#REF!"},null,{"$error":"#N/A"},null,{"$error":"#N/A"},null,{"$error":"#N/A"},null,{"$error":"#N/A"},null,{"$error":"#N/A"},null,{"$error":"#N/A"},null,{"$error":"#N/A"},{"$error":"#VALUE!"},"  "]
[null,null,null,null,null,null,"",null,null,null,null,"","",null,{"$error":"#REF!"},null,{"$error":"#N/A"},null,{"$error":"#N/A"},null,{"$error":"#N/A"},null,{"$error":"#N/A"},null,{"$error":"#N/A"},null,{"$error":"#N/A"},null,{"$error":"#N/A"},{"$error":"#VALUE!"},"  "]
[null,null,null,null,null,null,"",null,null,null,null,"","",null,{"$error":"#REF!"},null,{"$error":"#N/A"},null,{"$error":"#N/A"},null,{"$error":"#N/A"},null,{"$error":"#N/A"},null,{"$error":"#N/A"},null,{"$error":"#N/A"},null,{"$error":"#N/A"},{"$error":"#VALUE!"},"  "]
[null,null,null,null,null,null,"",null,null,null,null,"","",null,{"$error":"#REF!"},null,{"$error":"#N/A"},null,{"$error":"#N/A"},null,{"$error":"#N/A"},null,{"$error":"#N/A"},null,{"$error":"#N/A"},null,{"$error":"#N/A"},null,{"$error":"#N/A"},{"$error":"#VALUE!"},"  "]
[null,null,null,null,null,null,"",null,null,null,null,"","",null,{"$error":"#REF!"},null,{"$error":"#N/A"},null,{"$error":"#N/A"},null,{"$error":"#N/A"},null,{"$error":"#N/A"},null,{"$error":"#N/A"},null,{"$error":"#N/A"},null,{"$error":"#N/A"},{"$error":"#VALUE!"},"  "]
[null,null,null,null,null,null,"",null,null,null,null,"","",null,{"$error":"#REF!"},null,{"$error":"#N/A"},null,{"$error":"#N/A"},null,{"$error":"#N/A"},null,{"$error":"#N/A"},null,{"$error":"#N/A"},null,{"$error":"#N/A"},null,{"$error":"#N/A"},{"$error":"#VALUE!"},"  "]
[null,null,null,null,null,null,"",null,null,null,null,"","",null,{"$error":"#REF!"},null,{"$error":"#N/A"},null,{"$error":"#N/A"},null,{"$error":"#N/A"},null,{"$error":"#N/A"},null,{"$error":"#N/A"},null,{"$error":"#N/A"},null,{"$error":"#N/A"},{"$error":"#VALUE!"},"  "]
[null,null,null,null,null,null,"",null,null,null,null,"","",null,{"$error":"#REF!"},null,{"$error":"#N/A"},null,{"$error":"#N/A"},null,{"$error":"#N/A"},null,{"$error":"#N/A"},null,{"$error":"#N/A"},null,{"$error":"#N/A"},null,{"$error":"#N/A"},{"$error":"#VALUE!"},"  "]
[null,null,null,null,null,null,"",null,null,null,null,"","",null,{"$error":"#REF!"},null,{"$error":"#N/A"},null,{"$error":"#N/A"},null,{"$error":"#N/A"},null,{"$error":"#N/A"},null,{"$error":"#N/A"},null,{"$error":"#N/A"},null,{"$error":"#N/A"},{"$error":"#VALUE!"},"  "]
[null,null,null,null,null,null,"",null,null,null,null,"","",null,{"$error":"#REF!"},null,{"$error":"#N/A"},null,{"$error":"#N/A"},null,{"$error":"#N/A"},null,{"$error":"#N/A"},null,{"$error":"#N/A"},null,{"$error":"#N/A"},null,{"$error":"#N/A"},{"$error":"#VALUE!"},"  "]
[null,null,null,null,null,null,"",null,null,null,null,"","",null,{"$error":"#REF!"},null,{"$error":"#N/A"},null,{"$error":"#N/A"},null,{"$error":"#N/A"},null,{"$error":"#N/A"},null,{"$error":"#N/A"},null,{"$error":"#N/A"},null,{"$error":"#N/A"},{"$error":"#VALUE!"},"  "]
[null,null,null,null,null,null,"",null,null,null,null,"","",null,{"$error":"#REF!"},null,{"$error":"#N/A"},null,{"$error":"#N/A"},null,{"$error":"#N/A"},null,{"$error":"#N/A"},null,{"$error":"#N/A"},null,{"$error":"#N/A"},null,{"$error":"#N/A"},{"$error":"#VALUE!"},"  "]
[null,null,null,null,null,null,"",null,null,null,null,"","",null,{"$error":"#REF!"},null,{"$error":"#N/A"},null,{"$error":"#N/A"},null,{"$error":"#N/A"},null,{"$error":"#N/A"},null,{"$error":"#N/A"},null,{"$error":"#N/A"},null,{"$error":"#N/A"},{"$error":"#VALUE!"},"  "]
[null,null,null,null,null,null,"",null,null,null,null,"","",null,{"$error":"#REF!"},null,{"$error":"#N/A"},null,{"$error":"#N/A"},null,{"$error":"#N/A"},null,{"$error":"#N/A"},null,{"$error":"#N/A"},null,{"$error":"#N/A"},null,{"$error":"#N/A"},{"$error":"#VALUE!"},"  "]
[null,null,null,null,null,null,"",null,null,null,null,"","",null,{"$error":"#REF!"},null,{"$error":"#N/A"},null,{"$error":"#N/A"},null,{"$error":"#N/A"},null,{"$error":"#N/A"},null,{"$error":"#N/A"},null,{"$error":"#N/A"},null,{"$error":"#N/A"},{"$error":"#VALUE!"},"  "]
[null,null,null,null,null,null,"",null,null,null,null,"","",null,{"$error":"#REF!"},null,{"$error":"#N/A"},null,{"$error":"#N/A"},null,{"$error":"#N/A"},null,{"$error":"#N/A"},null,{"$error":"#N/A"},null,{"$error":"#N/A"},null,{"$error":"#N/A"},{"$error":"#VALUE!"},"  "]
[null,null,null,null,null,null,"",null,null,null,null,"","",null,{"$error":"#REF!"},null,{"$error":"#N/A"},null,{"$error":"#N/A"},null,{"$error":"#N/A"},null,{"$error":"#N/A"},null,{"$error":"#N/A"},null,{"$error":"#N/A"},null,{"$error":"#N/A"},{"$error":"#VALUE!"},"  "]
[null,null,null,null,null,null,"",null,null,null,null,"","",null,{"$error":"#REF!"},null,{"$error":"#N/A"},null,{"$error":"#N/A"},null,{"$error":"#N/A"},null,{"$error":"#N/A"},null,{"$error":"#N/A"},null,{"$error":"#N/A"},null,{"$error":"#N/A"},{"$error":"#VALUE!"},"  "]
[null,null,null,null,null,null,{"$f":"IF(C188=\"\",\"\",VLOOKUP(F188,REF_AGE,2))","v":""},null,null,null,null,{"$f":"IF(I188=\"\",\"\",(H188/(I188*I188))*10000)","v":""},{"$f":"IF(I188=\"\",\"\",VLOOKUP(L188,PT_IMC,2))","v":""},null,{"$f":"VLOOKUP(N188,INDIRECT(\"T1C\"&$E188&G188),2)","v":{"$error":"#REF!"}},null,{"$f":"VLOOKUP(P188,INDIRECT(Q$2&$E188&$G188),2)","v":{"$error":"#N/A"}},null,{"$f":"VLOOKUP(R188,INDIRECT(S$2&$E188&$G188),2)","v":{"$error":"#N/A"}},null,{"$f":"VLOOKUP(T188,INDIRECT(U$2&$E188&$G188),2)","v":{"$error":"#N/A"}},null,{"$f":"VLOOKUP(V188,INDIRECT(W$2&$E188&$G188),2)","v":{"$error":"#N/A"}},null,{"$f":"VLOOKUP(X188,INDIRECT(Y$2&$E188&$G188),2)","v":{"$error":"#N/A"}},null,{"$f":"VLOOKUP(Z188,INDIRECT(AA$2&$E188&$G188),2)","v":{"$error":"#N/A"}},null,{"$f":"VLOOKUP(AB188,INDIRECT(AC$2&$E188&$G188),2)","v":{"$error":"#N/A"}},{"$f":"M188+O188+Q188+S188+U188+W188+Y188+AA188+AC188","v":{"$error":"#VALUE!"}},{"$f":"K188&\" \"&C188&\" \"&D188","v":"  "}]
[null,null,null,null,null,null,"",null,null,null,null,"","",null,{"$error":"#REF!"},null,{"$error":"#N/A"},null,{"$error":"#N/A"},null,{"$error":"#N/A"},null,{"$error":"#N/A"},null,{"$error":"#N/A"},null,{"$error":"#N/A"},null,{"$error":"#N/A"},{"$error":"#VALUE!"},"  "]
[null,null,null,null,null,null,"",null,null,null,null,"","",null,{"$error":"#REF!"},null,{"$error":"#N/A"},null,{"$error":"#N/A"},null,{"$error":"#N/A"},null,{"$error":"#N/A"},null,{"$error":"#N/A"},null,{"$error":"#N/A"},null,{"$error":"#N/A"},{"$error":"#VALUE!"},"  "]
[null,null,null,null,null,null,"",null,null,null,null,"","",null,{"$error":"#REF!"},null,{"$error":"#N/A"},null,{"$error":"#N/A"},null,{"$error":"#N/A"},null,{"$error":"#N/A"},null,{"$error":"#N/A"},null,{"$error":"#N/A"},null,{"$error":"#N/A"},{"$error":"#VALUE!"},"  "]
[null,null,null,null,null,null,"",null,null,null,null,"","",null,{"$error":"#REF!"},null,{"$error":"#N/A"},null,{"$error":"#N/A"},null,{"$error":"#N/A"},null,{"$error":"#N/A"},null,{"$error":"#N/A"},null,{"$error":"#N/A"},null,{"$error":"#N/A"},{"$error":"#VALUE!"},"  "]
[null,null,null,null,null,null,"",null,null,null,null,"","",null,{"$error":"#REF!"},null,{"$error":"#N/A"},null,{"$error":"#N/A"},null,{"$error":"#N/A"},null,{"$error":"#N/A"},null,{"$error":"#N/A"},null,{"$error":"#N/A"},null,{"$error":"#N/A"},{"$error":"#VALUE!"},"  "]
[null,null,null,null,null,null,"",null,null,null,null,"","",null,{"$error":"#REF!"},null,{"$error":"#N/A"},null,{"$error":"#N/A"},null,{"$error":"#N/A"},null,{"$error":"#N/A"},null,{"$error":"#N/A"},null,{"$error":"#N/A"},null,{"$error":"#N/A"},{"$error":"#VALUE!"},"  "]
[null,null,null,null,null,null,"",null,null,null,null,"","",null,{"$error":"#REF!"},null,{"$error":"#N/A"},null,{"$error":"#N/A"},null,{"$error":"#N/A"},null,{"$error":"#N/A"},null,{"$error":"#N/A"},null,{"$error":"#N/A"},null,{"$error":"#N/A"},{"$error":"#VALUE!"},"  "]
[null,null,null,null,null,null,"",null,null,null,null,"","",null,{"$error":"#REF!"},null,{"$error":"#N/A"},null,{"$error":"#N/A"},null,{"$error":"#N/A"},null,{"$error":"#N/A"},null,{"$error":"#N/A"},null,{"$error":"#N/A"},null,{"$error":"#N/A"},{"$error":"#VALUE!"},"  "]
[null,null,null,null,null,null,"",null,null,null,null,"","",null,{"$error":"#REF!"},null,{"$error":"#N/A"},null,{"$error":"#N/A"},null,{"$error":"#N/A"},null,{"$error":"#N/A"},null,{"$error":"#N/A"},null,{"$error":"#N/A"},null,{"$error":"#N/A"},{"$error":"#VALUE!"},"  "]
[null,null,null,null,null,null,"",null,null,null,null,"","",null,{"$error":"#REF!"},null,{"$error":"#N/A"},null,{"$error":"#N/A"},null,{"$error":"#N/A"},null,{"$error":"#N/A"},null,{"$error":"#N/A"},null,{"$error":"#N/A"},null,{"$error":"#N/A"},{"$error":"#VALUE!"},"  "]
[null,null,null,null,null,null,"",null,null,null,null,"","",null,{"$error":"#REF!"},null,{"$error":"#N/A"},null,{"$error":"#N/A"},null,{"$error":"#N/A"},null,{"$error":"#N/A"},null,{"$error":"#N/A"},null,{"$error":"#N/A"},null,{"$error":"#N/A"},{"$error":"#VALUE!"},"  "]
[null,null,null,null,null,null,"",null,null,null,null,"","",null,{"$error":"#REF!"},null,{"$error":"#N/A"},null,{"$error":"#N/A"},null,{"$error":"#N/A"},null,{"$error":"#N/A"},null,{"$error":"#N/A"},null,{"$error":"#N/A"},null,{"$error":"#N/A"},{"$error":"#VALUE!"},"  "]
[null,null,null,null,null,null,"",null,null,null,null,"","",null,{"$error":"#REF!"},null,{"$error":"#N/A"},null,{"$error":"#N/A"},null,{"$error":"#N/A"},null,{"$error":"#N/A"},null,{"$error":"#N/A"},null,{"$error":"#N/A"},null,{"$error":"#N/A"},{"$error":"#VALUE!"},"  "]
[null,null,null,null,null,null,"",null,null,null,null,"","",null,{"$error":"#REF!"},null,{"$error":"#N/A"},null,{"$error":"#N/A"},null,{"$error":"#N/A"},null,{"$error":"#N/A"},null,{"$error":"#N/A"},null,{"$error":"#N/A"},null,{"$error":"#N/A"},{"$error":"#VALUE!"},"  "]
[null,null,null,null,null,null,"",null,null,null,null,"","",null,{"$error":"#REF!"},null,{"$error":"#N/A"},null,{"$error":"#N/A"},null,{"$error":"#N/A"},null,{"$error":"#N/A"},null,{"$error":"#N/A"},null,{"$error":"#N/A"},null,{"$error":"#N/A"},{"$error":"#VALUE!"},"  "]
[null,null,null,null,null,null,"",null,null,null,null,"","",null,{"$error":"#REF!"},null,{"$error":"#N/A"},null,{"$error":"#N/A"},null,{"$error":"#N/A"},null,{"$error":"#N/A"},null,{"$error":"#N/A"},null,{"$error":"#N/A"},null,{"$error":"#N/A"},{"$error":"#VALUE!"},"  "]
[null,null,null,null,null,null,"",null,null,null,null,"","",null,{"$error":"#REF!"},null,{"$error":"#N/A"},null,{"$error":"#N/A"},null,{"$error":"#N/A"},null,{"$error":"#N/A"},null,{"$error":"#N/A"},null,{"$error":"#N/A"},null,{"$error":"#N/A"},{"$error":"#VALUE!"},"  "]
[null,null,null,null,null,null,"",null,null,null,null,"","",null,{"$error":"#REF!"},null,{"$error":"#N/A"},null,{"$error":"#N/A"},null,{"$error":"#N/A"},null,{"$error":"#N/A"},null,{"$error":"#N/A"},null,{"$error":"#N/A"},null,{"$error":"#N/A"},{"$error":"#VALUE!"},"  "]
[null,null,null,null,null,null,"",null,null,null,null,"","",null,{"$error":"#REF!"},null,{"$error":"#N/A"},null,{"$error":"#N/A"},null,{"$error":"#N/A"},null,{"$error":"#N/A"},null,{"$error":"#N/A"},null,{"$error":"#N/A"},null,{"$error":"#N/A"},{"$error":"#VALUE!"},"  "]
[null,null,null,null,null,null,"",null,null,null,null,"","",null,{"$error":"#REF!"},null,{"$error":"#N/A"},null,{"$error":"#N/A"},null,{"$error":"#N/A"},null,{"$error":"#N/A"},null,{"$error":"#N/A"},null,{"$error":"#N/A"},null,{"$error":"#N/A"},{"$error":"#VALUE!"},"  "]
[null,null,null,null,null,null,"",null,null,null,null,"","",null,{"$error":"#REF!"},null,{"$error":"#N/A"},null,{"$error":"#N/A"},null,{"$error":"#N/A"},null,{"$error":"#N/A"},null,{"$error":"#N/A"},null,{"$error":"#N/A"},null,{"$error":"#N/A"},{"$error":"#VALUE!"},"  "]
[null,null,null,null,null,null,"",null,null,null,null,"","",null,{"$error":"#REF!"},null,{"$error":"#N/A"},null,{"$error":"#N/A"},null,{"$error":"#N/A"},null,{"$error":"#N/A"},null,{"$error":"#N/A"},null,{"$error":"#N/A"},null,{"$error":"#N/A"},{"$error":"#VALUE!"},"  "]
[null,null,null,null,null,null,"",null,null,null,null,"","",null,{"$error":"#REF!"},null,{"$error":"#N/A"},null,{"$error":"#N/A"},null,{"$error":"#N/A"},null,{"$error":"#N/A"},null,{"$error":"#N/A"},null,{"$error":"#N/A"},null,{"$error":"#N/A"},{"$error":"#VALUE!"},"  "]
[null,null,null,null,null,null,"",null,null,null,null,"","",null,{"$error":"#REF!"},null,{"$error":"#N/A"},null,{"$error":"#N/A"},null,{"$error":"#N/A"},null,{"$error":"#N/A"},null,{"$error":"#N/A"},null,{"$error":"#N/A"},null,{"$error":"#N/A"},{"$error":"#VALUE!"},"  "]
[null,null,null,null,null,null,"",null,null,null,null,"","",null,{"$error":"#REF!"},null,{"$error":"#N/A"},null,{"$error":"#N/A"},null,{"$error":"#N/A"},null,{"$error":"#N/A"},null,{"$error":"#N/A"},null,{"$error":"#N/A"},null,{"$error":"#N/A"},{"$error":"#VALUE!"},"  "]
[null,null,null,null,null,null,"",null,null,null,null,"","",null,{"$error":"#REF!"},null,{"$error":"#N/A"},null,{"$error":"#N/A"},null,{"$error":"#N/A"},null,{"$error":"#N/A"},null,{"$error":"#N/A"},null,{"$error":"#N/A"},null,{"$error":"#N/A"},{"$error":"#VALUE!"},"  "]
[null,null,null,null,null,null,"",null,null,null,null,"","",null,{"$error":"#REF!"},null,{"$error":"#N/A"},null,{"$error":"#N/A"},null,{"$error":"#N/A"},null,{"$error":"#N/A"},null,{"$error":"#N/A"},null,{"$error":"#N/A"},null,{"$error":"#N/A"},{"$error":"#VALUE!"},"  "]
[null,null,null,null,null,null,"",null,null,null,null,"","",null,{"$error":"#REF!"},null,{"$error":"#N/A"},null,{"$error":"#N/A"},null,{"$error":"#N/A"},null,{"$error":"#N/A"},null,{"$error":"#N/A"},null,{"$error":"#N/A"},null,{"$error":"#N/A"},{"$error":"#VALUE!"},"  "]
[null,null,null,null,null,null,"",null,null,null,null,"","",null,{"$error":"#REF!"},null,{"$error":"#N/A"},null,{"$error":"#N/A"},null,{"$error":"#N/A"},null,{"$error":"#N/A"},null,{"$error":"#N/A"},null,{"$error":"#N/A"},null,{"$error":"#N/A"},{"$error":"#VALUE!"},"  "]
[null,null,null,null,null,null,"",null,null,null,null,"","",null,{"$error":"#REF!"},null,{"$error":"#N/A"},null,{"$error":"#N/A"},null,{"$error":"#N/A"},null,{"$error":"#N/A"},null,{"$error":"#N/A"},null,{"$error":"#N/A"},null,{"$error":"#N/A"},{"$error":"#VALUE!"},"  "]
[null,null,null,null,null,null,"",null,null,null,null,"","",null,{"$error":"#REF!"},null,{"$error":"#N/A"},null,{"$error":"#N/A"},null,{"$error":"#N/A"},null,{"$error":"#N/A"},null,{"$error":"#N/A"},null,{"$error":"#N/A"},null,{"$error":"#N/A"},{"$error":"#VALUE!"},"  "]
[null,null,null,null,null,null,"",null,null,null,null,"","",null,{"$error":"#REF!"},null,{"$error":"#N/A"},null,{"$error":"#N/A"},null,{"$error":"#N/A"},null,{"$error":"#N/A"},null,{"$error":"#N/A"},null,{"$error":"#N/A"},null,{"$error":"#N/A"},{"$error":"#VALUE!"},"  "]
[null,null,null,null,null,null,"",null,null,null,null,"","",null,{"$error":"#REF!"},null,{"$error":"#N/A"},null,{"$error":"#N/A"},null,{"$error":"#N/A"},null,{"$error":"#N/A"},null,{"$error":"#N/A"},null,{"$error":"#N/A"},null,{"$error":"#N/A"},{"$error":"#VALUE!"},"  "]
[null,null,null,null,null,null,"",null,null,null,null,"","",null,{"$error":"#REF!"},null,{"$error":"#N/A"},null,{"$error":"#N/A"},null,{"$error":"#N/A"},null,{"$error":"#N/A"},null,{"$error":"#N/A"},null,{"$error":"#N/A"},null,{"$error":"#N/A"},{"$error":"#VALUE!"},"  "]
[null,null,null,null,null,null,"",null,null,null,null,"","",null,{"$error":"#REF!"},null,{"$error":"#N/A"},null,{"$error":"#N/A"},null,{"$error":"#N/A"},null,{"$error":"#N/A"},null,{"$error":"#N/A"},null,{"$error":"#N/A"},null,{"$error":"#N/A"},{"$error":"#VALUE!"},"  "]
[null,null,null,null,null,null,"",null,null,null,null,"","",null,{"$error":"#REF!"},null,{"$error":"#N/A"},null,{"$error":"#N/A"},null,{"$error":"#N/A"},null,{"$error":"#N/A"},null,{"$error":"#N/A"},null,{"$error":"#N/A"},null,{"$error":"#N/A"},{"$error":"#VALUE!"},"  "]
[null,null,null,null,null,null,"",null,null,null,null,"","",null,{"$error":"#REF!"},null,{"$error":"#N/A"},null,{"$error":"#N/A"},null,{"$error":"#N/A"},null,{"$error":"#N/A"},null,{"$error":"#N/A"},null,{"$error":"#N/A"},null,{"$error":"#N/A"},{"$error":"#VALUE!"},"  "]
[null,null,null,null,null,null,"",null,null,null,null,"","",null,{"$error":"#REF!"},null,{"$error":"#N/A"},null,{"$error":"#N/A"},null,{"$error":"#N/A"},null,{"$error":"#N/A"},null,{"$error":"#N/A"},null,{"$error":"#N/A"},null,{"$error":"#N/A"},{"$error":"#VALUE!"},"  "]
[null,null,null,null,null,null,"",null,null,null,null,"","",null,{"$error":"#REF!"},null,{"$error":"#N/A"},null,{"$error":"#N/A"},null,{"$error":"#N/A"},null,{"$error":"#N/A"},null,{"$error":"#N/A"},null,{"$error":"#N/A"},null,{"$error":"#N/A"},{"$error":"#VALUE!"},"  "]
[null,null,null,null,null,null,"",null,null,null,null,"","",null,{"$error":"#REF!"},null,{"$error":"#N/A"},null,{"$error":"#N/A"},null,{"$error":"#N/A"},null,{"$error":"#N/A"},null,{"$error":"#N/A"},null,{"$error":"#N/A"},null,{"$error":"#N/A"},{"$error":"#VALUE!"},"  "]
[null,null,null,null,null,null,"",null,null,null,null,"","",null,{"$error":"#REF!"},null,{"$error":"#N/A"},null,{"$error":"#N/A"},null,{"$error":"#N/A"},null,{"$error":"#N/A"},null,{"$error":"#N/A"},null,{"$error":"#N/A"},null,{"$error":"#N/A"},{"$error":"#VALUE!"},"  "]
[null,null,null,null,null,null,"",null,null,null,null,"","",null,{"$error":"#REF!"},null,{"$error":"#N/A"},null,{"$error":"#N/A"},null,{"$error":"#N/A"},null,{"$error":"#N/A"},null,{"$error":"#N/A"},null,{"$error":"#N/A"},null,{"$error":"#N/A"},{"$error":"#VALUE!"},"  "]
[null,null,null,null,null,null,"",null,null,null,null,"","",null,{"$error":"#REF!"},null,{"$error":"#N/A"},null,{"$error":"#N/A"},null,{"$error":"#N/A"},null,{"$error":"#N/A"},null,{"$error":"#N/A"},null,{"$error":"#N/A"},null,{"$error":"#N/A"},{"$error":"#VALUE!"},"  "]
[null,null,null,null,null,null,"",null,null,null,null,"","",null,{"$error":"#REF!"},null,{"$error":"#N/A"},null,{"$error":"#N/A"},null,{"$error":"#N/A"},null,{"$error":"#N/A"},null,{"$error":"#N/A"},null,{"$error":"#N/A"},null,{"$error":"#N/A"},{"$error":"#VALUE!"},"  "]
[null,null,null,null,null,null,"",null,null,null,null,"","",null,{"$error":"#REF!"},null,{"$error":"#N/A"},null,{"$error":"#N/A"},null,{"$error":"#N/A"},null,{"$error":"#N/A"},null,{"$error":"#N/A"},null,{"$error":"#N/A"},null,{"$error":"#N/A"},{"$error":"#VALUE!"},"  "]
[null,null,null,null,null,null,"",null,null,null,null,"","",null,{"$error":"#REF!"},null,{"$error":"#N/A"},null,{"$error":"#N/A"},null,{"$error":"#N/A"},null,{"$error":"#N/A"},null,{"$error":"#N/A"},null,{"$error":"#N/A"},null,{"$error":"#N/A"},{"$error":"#VALUE!"},"  "]
[null,null,null,null,null,null,"",null,null,null,null,"","",null,{"$error":"#REF!"},null,{"$error":"#N/A"},null,{"$error":"#N/A"},null,{"$error":"#N/A"},null,{"$error":"#N/A"},null,{"$error":"#N/A"},null,{"$error":"#N/A"},null,{"$error":"#N/A"},{"$error":"#VALUE!"},"  "]
[null,null,null,null,null,null,"",null,null,null,null,"","",null,{"$error":"#REF!"},null,{"$error":"#N/A"},null,{"$error":"#N/A"},null,{"$error":"#N/A"},null,{"$error":"#N/A"},null,{"$error":"#N/A"},null,{"$error":"#N/A"},null,{"$error":"#N/A"},{"$error":"#VALUE!"},"  "]
[null,null,null,null,null,null,"",null,null,null,null,"","",null,{"$error":"#REF!"},null,{"$error":"#N/A"},null,{"$error":"#N/A"},null,{"$error":"#N/A"},null,{"$error":"#N/A"},null,{"$error":"#N/A"},null,{"$error":"#N/A"},null,{"$error":"#N/A"},{"$error":"#VALUE!"},"  "]
[null,null,null,null,null,null,"",null,null,null,null,"","",null,{"$error":"#REF!"},null,{"$error":"#N/A"},null,{"$error":"#N/A"},null,{"$error":"#N/A"},null,{"$error":"#N/A"},null,{"$error":"#N/A"},null,{"$error":"#N/A"},null,{"$error":"#N/A"},{"$error":"#VALUE!"},"  "]
[null,null,null,null,null,null,"",null,null,null,null,"","",null,{"$error":"#REF!"},null,{"$error":"#N/A"},null,{"$error":"#N/A"},null,{"$error":"#N/A"},null,{"$error":"#N/A"},null,{"$error":"#N/A"},null,{"$error":"#N/A"},null,{"$error":"#N/A"},{"$error":"#VALUE!"},"  "]
[null,null,null,null,null,null,"",null,null,null,null,"","",null,{"$error":"#REF!"},null,{"$error":"#N/A"},null,{"$error":"#N/A"},null,{"$error":"#N/A"},null,{"$error":"#N/A"},null,{"$error":"#N/A"},null,{"$error":"#N/A"},null,{"$error":"#N/A"},{"$error":"#VALUE!"},"  "]
[null,null,null,null,null,null,"",null,null,null,null,"","",null,{"$error":"#REF!"},null,{"$error":"#N/A"},null,{"$error":"#N/A"},null,{"$error":"#N/A"},null,{"$error":"#N/A"},null,{"$error":"#N/A"},null,{"$error":"#N/A"},null,{"$error":"#N/A"},{"$error":"#VALUE!"},"  "]
[null,null,null,null,null,null,"",null,null,null,null,"","",null,{"$error":"#REF!"},null,{"$error":"#N/A"},null,{"$error":"#N/A"},null,{"$error":"#N/A"},null,{"$error":"#N/A"},null,{"$error":"#N/A"},null,{"$error":"#N/A"},null,{"$error":"#N/A"},{"$error":"#VALUE!"},"  "]
[null,null,null,null,null,null,"",null,null,null,null,"","",null,{"$error":"#REF!"},null,{"$error":"#N/A"},null,{"$error":"#N/A"},null,{"$error":"#N/A"},null,{"$error":"#N/A"},null,{"$error":"#N/A"},null,{"$error":"#N/A"},null,{"$error":"#N/A"},{"$error":"#VALUE!"},"  "]
[null,null,null,null,null,null,"",null,null,null,null,"","",null,{"$error":"#REF!"},null,{"$error":"#N/A"},null,{"$error":"#N/A"},null,{"$error":"#N/A"},null,{"$error":"#N/A"},null,{"$error":"#N/A"},null,{"$error":"#N/A"},null,{"$error":"#N/A"},{"$error":"#VALUE!"},"  "]
[null,null,null,null,null,null,"",null,null,null,null,"","",null,{"$error":"#REF!"},null,{"$error":"#N/A"},null,{"$error":"#N/A"},null,{"$error":"#N/A"},null,{"$error":"#N/A"},null,{"$error":"#N/A"},null,{"$error":"#N/A"},null,{"$error":"#N/A"},{"$error":"#VALUE!"},"  "]
[null,null,null,null,null,null,"",null,null,null,null,"","",null,{"$error":"#REF!"},null,{"$error":"#N/A"},null,{"$error":"#N/A"},null,{"$error":"#N/A"},null,{"$error":"#N/A"},null,{"$error":"#N/A"},null,{"$error":"#N/A"},null,{"$error":"#N/A"},{"$error":"#VALUE!"},"  "]
[null,null,null,null,null,null,"",null,null,null,null,"","",null,{"$error":"#REF!"},null,{"$error":"#N/A"},null,{"$error":"#N/A"},null,{"$error":"#N/A"},null,{"$error":"#N/A"},null,{"$error":"#N/A"},null,{"$error":"#N/A"},null,{"$error":"#N/A"},{"$error":"#VALUE!"},"  "]
[null,null,null,null,null,null,"",null,null,null,null,"","",null,{"$error":"#REF!"},null,{"$error":"#N/A"},null,{"$error":"#N/A"},null,{"$error":"#N/A"},null,{"$error":"#N/A"},null,{"$error":"#N/A"},null,{"$error":"#N/A"},null,{"$error":"#N/A"},{"$error":"#VALUE!"},"  "]
[null,null,null,null,null,null,"",null,null,null,null,"","",null,{"$error":"#REF!"},null,{"$error":"#N/A"},null,{"$error":"#N/A"},null,{"$error":"#N/A"},null,{"$error":"#N/A"},null,{"$error":"#N/A"},null,{"$error":"#N/A"},null,{"$error":"#N/A"},{"$error":"#VALUE!"},"  "]
[null,null,null,null,null,null,"",null,null,null,null,"","",null,{"$error":"#REF!"},null,{"$error":"#N/A"},null,{"$error":"#N/A"},null,{"$error":"#N/A"},null,{"$error":"#N/A"},null,{"$error":"#N/A"},null,{"$error":"#N/A"},null,{"$error":"#N/A"},{"$error":"#VALUE!"},"  "]
[null,null,null,null,null,null,"",null,null,null,null,"","",null,{"$error":"#REF!"},null,{"$error":"#N/A"},null,{"$error":"#N/A"},null,{"$error":"#N/A"},null,{"$error":"#N/A"},null,{"$error":"#N/A"},null,{"$error":"#N/A"},null,{"$error":"#N/A"},{"$error":"#VALUE!"},"  "]
[null,null,null,null,null,null,{"$f":"IF(C252=\"\",\"\",VLOOKUP(F252,REF_AGE,2))","v":""},null,null,null,null,{"$f":"IF(I252=\"\",\"\",(H252/(I252*I252))*10000)","v":""},{"$f":"IF(I252=\"\",\"\",VLOOKUP(L252,PT_IMC,2))","v":""},null,{"$f":"VLOOKUP(N252,INDIRECT(\"T1C\"&$E252&G252),2)","v":{"$error":"#REF!"}},null,{"$f":"VLOOKUP(P252,INDIRECT(Q$2&$E252&$G252),2)","v":{"$error":"#N/A"}},null,{"$f":"VLOOKUP(R252,INDIRECT(S$2&$E252&$G252),2)","v":{"$error":"#N/A"}},null,{"$f":"VLOOKUP(T252,INDIRECT(U$2&$E252&$G252),2)","v":{"$error":"#N/A"}},null,{"$f":"VLOOKUP(V252,INDIRECT(W$2&$E252&$G252),2)","v":{"$error":"#N/A"}},null,{"$f":"VLOOKUP(X252,INDIRECT(Y$2&$E252&$G252),2)","v":{"$error":"#N/A"}},null,{"$f":"VLOOKUP(Z252,INDIRECT(AA$2&$E252&$G252),2)","v":{"$error":"#N/A"}},null,{"$f":"VLOOKUP(AB252,INDIRECT(AC$2&$E252&$G252),2)","v":{"$error":"#N/A"}},{"$f":"M252+O252+Q252+S252+U252+W252+Y252+AA252+AC252","v":{"$error":"#VALUE!"}},{"$f":"K252&\" \"&C252&\" \"&D252","v":"  "}]
[null,null,null,null,null,null,"",null,null,null,null,"","",null,{"$error":"#REF!"},null,{"$error":"#N/A"},null,{"$error":"#N/A"},null,{"$error":"#N/A"},null,{"$error":"#N/A"},null,{"$error":"#N/A"},null,{"$error":"#N/A"},null,{"$error":"#N/A"},{"$error":"#VALUE!"},"  "]
[null,null,null,null,null,null,"",null,null,null,null,"","",null,{"$error":"#REF!"},null,{"$error":"#N/A"},null,{"$error":"#N/A"},null,{"$error":"#N/A"},null,{"$error":"#N/A"},null,{"$error":"#N/A"},null,{"$error":"#N/A"},null,{"$error":"#N/A"},{"$error":"#VALUE!"},"  "]
[null,null,null,null,null,null,"",null,null,null,null,"","",null,{"$error":"#REF!"},null,{"$error":"#N/A"},null,{"$error":"#N/A"},null,{"$error":"#N/A"},null,{"$error":"#N/A"},null,{"$error":"#N/A"},null,{"$error":"#N/A"},null,{"$error":"#N/A"},{"$error":"#VALUE!"},"  "]
[null,null,null,null,null,null,"",null,null,null,null,"","",null,{"$error":"#REF!"},null,{"$error":"#N/A"},null,{"$error":"#N/A"},null,{"$error":"#N/A"},null,{"$error":"#N/A"},null,{"$error":"#N/A"},null,{"$error":"#N/A"},null,{"$error":"#N/A"},{"$error":"#VALUE!"},"  "]
[null,null,null,null,null,null,"",null,null,null,null,"","",null,{"$error":"#REF!"},null,{"$error":"#N/A"},null,{"$error":"#N/A"},null,{"$error":"#N/A"},null,{"$error":"#N/A"},null,{"$error":"#N/A"},null,{"$error":"#N/A"},null,{"$error":"#N/A"},{"$error":"#VALUE!"},"  "]
[null,null,null,null,null,null,"",null,null,null,null,"","",null,{"$error":"#REF!"},null,{"$error":"#N/A"},null,{"$error":"#N/A"},null,{"$error":"#N/A"},null,{"$error":"#N/A"},null,{"$error":"#N/A"},null,{"$error":"#N/A"},null,{"$error":"#N/A"},{"$error":"#VALUE!"},"  "]
[null,null,null,null,null,null,"",null,null,null,null,"","",null,{"$error":"#REF!"},null,{"$error":"#N/A"},null,{"$error":"#N/A"},null,{"$error":"#N/A"},null,{"$error":"#N/A"},null,{"$error":"#N/A"},null,{"$error":"#N/A"},null,{"$error":"#N/A"},{"$error":"#VALUE!"},"  "]
[null,null,null,null,null,null,"",null,null,null,null,"","",null,{"$error":"#REF!"},null,{"$error":"#N/A"},null,{"$error":"#N/A"},null,{"$error":"#N/A"},null,{"$error":"#N/A"},null,{"$error":"#N/A"},null,{"$error":"#N/A"},null,{"$error":"#N/A"},{"$error":"#VALUE!"},"  "]
[null,null,null,null,null,null,"",null,null,null,null,"","",null,{"$error":"#REF!"},null,{"$error":"#N/A"},null,{"$error":"#N/A"},null,{"$error":"#N/A"},null,{"$error":"#N/A"},null,{"$error":"#N/A"},null,{"$error":"#N/A"},null,{"$error":"#N/A"},{"$error":"#VALUE!"},"  "]
[null,null,null,null,null,null,"",null,null,null,null,"","",null,{"$error":"#REF!"},null,{"$error":"#N/A"},null,{"$error":"#N/A"},null,{"$error":"#N/A"},null,{"$error":"#N/A"},null,{"$error":"#N/A"},null,{"$error":"#N/A"},null,{"$error":"#N/A"},{"$error":"#VALUE!"},"  "]
[null,null,null,null,null,null,"",null,null,null,null,"","",null,{"$error":"#REF!"},null,{"$error":"#N/A"},null,{"$error":"#N/A"},null,{"$error":"#N/A"},null,{"$error":"#N/A"},null,{"$error":"#N/A"},null,{"$error":"#N/A"},null,{"$error":"#N/A"},{"$error":"#VALUE!"},"  "]
[null,null,null,null,null,null,"",null,null,null,null,"","",null,{"$error":"#REF!"},null,{"$error":"#N/A"},null,{"$error":"#N/A"},null,{"$error":"#N/A"},null,{"$error":"#N/A"},null,{"$error":"#N/A"},null,{"$error":"#N/A"},null,{"$error":"#N/A"},{"$error":"#VALUE!"},"  "]
[null,null,null,null,null,null,"",null,null,null,null,"","",null,{"$error":"#REF!"},null,{"$error":"#N/A"},null,{"$error":"#N/A"},null,{"$error":"#N/A"},null,{"$error":"#N/A"},null,{"$error":"#N/A"},null,{"$error":"#N/A"},null,{"$error":"#N/A"},{"$error":"#VALUE!"},"  "]
[null,null,null,null,null,null,"",null,null,null,null,"","",null,{"$error":"#REF!"},null,{"$error":"#N/A"},null,{"$error":"#N/A"},null,{"$error":"#N/A"},null,{"$error":"#N/A"},null,{"$error":"#N/A"},null,{"$error":"#N/A"},null,{"$error":"#N/A"},{"$error":"#VALUE!"},"  "]
[null,null,null,null,null,null,"",null,null,null,null,"","",null,{"$error":"#REF!"},null,{"$error":"#N/A"},null,{"$error":"#N/A"},null,{"$error":"#N/A"},null,{"$error":"#N/A"},null,{"$error":"#N/A"},null,{"$error":"#N/A"},null,{"$error":"#N/A"},{"$error":"#VALUE!"},"  "]
[null,null,null,null,null,null,"",null,null,null,null,"","",null,{"$error":"#REF!"},null,{"$error":"#N/A"},null,{"$error":"#N/A"},null,{"$error":"#N/A"},null,{"$error":"#N/A"},null,{"$error":"#N/A"},null,{"$error":"#N/A"},null,{"$error":"#N/A"},{"$error":"#VALUE!"},"  "]
[null,null,null,null,null,null,"",null,null,null,null,"","",null,{"$error":"#REF!"},null,{"$error":"#N/A"},null,{"$error":"#N/A"},null,{"$error":"#N/A"},null,{"$error":"#N/A"},null,{"$error":"#N/A"},null,{"$error":"#N/A"},null,{"$error":"#N/A"},{"$error":"#VALUE!"},"  "]
[null,null,null,null,null,null,"",null,null,null,null,"","",null,{"$error":"#REF!"},null,{"$error":"#N/A"},null,{"$error":"#N/A"},null,{"$error":"#N/A"},null,{"$error":"#N/A"},null,{"$error":"#N/A"},null,{"$error":"#N/A"},null,{"$error":"#N/A"},{"$error":"#VALUE!"},"  "]
[null,null,null,null,null,null,"",null,null,null,null,"","",null,{"$error":"#REF!"},null,{"$error":"#N/A"},null,{"$error":"#N/A"},null,{"$error":"#N/A"},null,{"$error":"#N/A"},null,{"$error":"#N/A"},null,{"$error":"#N/A"},null,{"$error":"#N/A"},{"$error":"#VALUE!"},"  "]
[null,null,null,null,null,null,"",null,null,null,null,"","",null,{"$error":"#REF!"},null,{"$error":"#N/A"},null,{"$error":"#N/A"},null,{"$error":"#N/A"},null,{"$error":"#N/A"},null,{"$error":"#N/A"},null,{"$error":"#N/A"},null,{"$error":"#N/A"},{"$error":"#VALUE!"},"  "]
[null,null,null,null,null,null,"",null,null,null,null,"","",null,{"$error":"#REF!"},null,{"$error":"#N/A"},null,{"$error":"#N/A"},null,{"$error":"#N/A"},null,{"$error":"#N/A"},null,{"$error":"#N/A"},null,{"$error":"#N/A"},null,{"$error":"#N/A"},{"$error":"#VALUE!"},"  "]
[null,null,null,null,null,null,"",null,null,null,null,"","",null,{"$error":"#REF!"},null,{"$error":"#N/A"},null,{"$error":"#N/A"},null,{"$error":"#N/A"},null,{"$error":"#N/A"},null,{"$error":"#N/A"},null,{"$error":"#N/A"},null,{"$error":"#N/A"},{"$error":"#VALUE!"},"  "]
[null,null,null,null,null,null,"",null,null,null,null,"","",null,{"$error":"#REF!"},null,{"$error":"#N/A"},null,{"$error":"#N/A"},null,{"$error":"#N/A"},null,{"$error":"#N/A"},null,{"$error":"#N/A"},null,{"$error":"#N/A"},null,{"$error":"#N/A"},{"$error":"#VALUE!"},"  "]
[null,null,null,null,null,null,"",null,null,null,null,"","",null,{"$error":"#REF!"},null,{"$error":"#N/A"},null,{"$error":"#N/A"},null,{"$error":"#N/A"},null,{"$error":"#N/A"},null,{"$error":"#N/A"},null,{"$error":"#N/A"},null,{"$error":"#N/A"},{"$error":"#VALUE!"},"  "]
[null,null,null,null,null,null,"",null,null,null,null,"","",null,{"$error":"#REF!"},null,{"$error":"#N/A"},null,{"$error":"#N/A"},null,{"$error":"#N/A"},null,{"$error":"#N/A"},null,{"$error":"#N/A"},null,{"$error":"#N/A"},null,{"$error":"#N/A"},{"$error":"#VALUE!"},"  "]
[null,null,null,null,null,null,"",null,null,null,null,"","",null,{"$error":"#REF!"},null,{"$error":"#N/A"},null,{"$error":"#N/A"},null,{"$error":"#N/A"},null,{"$error":"#N/A"},null,{"$error":"#N/A"},null,{"$error":"#N/A"},null,{"$error":"#N/A"},{"$error":"#VALUE!"},"  "]
[null,null,null,null,null,null,"",null,null,null,null,"","",null,{"$error":"#REF!"},null,{"$error":"#N/A"},null,{"$error":"#N/A"},null,{"$error":"#N/A"},null,{"$error":"#N/A"},null,{"$error":"#N/A"},null,{"$error":"#N/A"},null,{"$error":"#N/A"},{"$error":"#VALUE!"},"  "]
[null,null,null,null,null,null,"",null,null,null,null,"","",null,{"$error":"#REF!"},null,{"$error":"#N/A"},null,{"$error":"#N/A"},null,{"$error":"#N/A"},null,{"$error":"#N/A"},null,{"$error":"#N/A"},null,{"$error":"#N/A"},null,{"$error":"#N/A"},{"$error":"#VALUE!"},"  "]
[null,null,null,null,null,null,"",null,null,null,null,"","",null,{"$error":"#REF!"},null,{"$error":"#N/A"},null,{"$error":"#N/A"},null,{"$error":"#N/A"},null,{"$error":"#N/A"},null,{"$error":"#N/A"},null,{"$error":"#N/A"},null,{"$error":"#N/A"},{"$error":"#VALUE!"},"  "]
[null,null,null,null,null,null,"",null,null,null,null,"","",null,{"$error":"#REF!"},null,{"$error":"#N/A"},null,{"$error":"#N/A"},null,{"$error":"#N/A"},null,{"$error":"#N/A"},null,{"$error":"#N/A"},null,{"$error":"#N/A"},null,{"$error":"#N/A"},{"$error":"#VALUE!"},"  "]
[null,null,null,null,null,null,"",null,null,null,null,"","",null,{"$error":"#REF!"},null,{"$error":"#N/A"},null,{"$error":"#N/A"},null,{"$error":"#N/A"},null,{"$error":"#N/A"},null,{"$error":"#N/A"},null,{"$error":"#N/A"},null,{"$error":"#N/A"},{"$error":"#VALUE!"},"  "]
[null,null,null,null,null,null,"",null,null,null,null,"","",null,{"$error":"#REF!"},null,{"$error":"#N/A"},null,{"$error":"#N/A"},null,{"$error":"#N/A"},null,{"$error":"#N/A"},null,{"$error":"#N/A"},null,{"$error":"#N/A"},null,{"$error":"#N/A"},{"$error":"#VALUE!"},"  "]
[null,null,null,null,null,null,"",null,null,null,null,"","",null,{"$error":"#REF!"},null,{"$error":"#N/A"},null,{"$error":"#N/A"},null,{"$error":"#N/A"},null,{"$error":"#N/A"},null,{"$error":"#N/A"},null,{"$error":"#N/A"},null,{"$error":"#N/A"},{"$error":"#VALUE!"},"  "]
[null,null,null,null,null,null,"",null,null,null,null,"","",null,{"$error":"#REF!"},null,{"$error":"#N/A"},null,{"$error":"#N/A"},null,{"$error":"#N/A"},null,{"$error":"#N/A"},null,{"$error":"#N/A"},null,{"$error":"#N/A"},null,{"$error":"#N/A"},{"$error":"#VALUE!"},"  "]
[null,null,null,null,null,null,"",null,null,null,null,"","",null,{"$error":"#REF!"},null,{"$error":"#N/A"},null,{"$error":"#N/A"},null,{"$error":"#N/A"},null,{"$error":"#N/A"},null,{"$error":"#N/A"},null,{"$error":"#N/A"},null,{"$error":"#N/A"},{"$error":"#VALUE!"},"  "]
[null,null,null,null,null,null,"",null,null,null,null,"","",null,{"$error":"#REF!"},null,{"$error":"#N/A"},null,{"$error":"#N/A"},null,{"$error":"#N/A"},null,{"$error":"#N/A"},null,{"$error":"#N/A"},null,{"$error":"#N/A"},null,{"$error":"#N/A"},{"$error":"#VALUE!"},"  "]
[null,null,null,null,null,null,"",null,null,null,null,"","",null,{"$error":"#REF!"},null,{"$error":"#N/A"},null,{"$error":"#N/A"},null,{"$error":"#N/A"},null,{"$error":"#N/A"},null,{"$error":"#N/A"},null,{"$error":"#N/A"},null,{"$error":"#N/A"},{"$error":"#VALUE!"},"  "]
[null,null,null,null,null,null,"",null,null,null,null,"","",null,{"$error":"#REF!"},null,{"$error":"#N/A"},null,{"$error":"#N/A"},null,{"$error":"#N/A"},null,{"$error":"#N/A"},null,{"$error":"#N/A"},null,{"$error":"#N/A"},null,{"$error":"#N/A"},{"$error":"#VALUE!"},"  "]
[null,null,null,null,null,null,"",null,null,null,null,"","",null,{"$error":"#REF!"},null,{"$error":"#N/A"},null,{"$error":"#N/A"},null,{"$error":"#N/A"},null,{"$error":"#N/A"},null,{"$error":"#N/A"},null,{"$error":"#N/A"},null,{"$error":"#N/A"},{"$error":"#VALUE!"},"  "]
[null,null,null,null,null,null,"",null,null,null,null,"","",null,{"$error":"#REF!"},null,{"$error":"#N/A"},null,{"$error":"#N/A"},null,{"$error":"#N/A"},null,{"$error":"#N/A"},null,{"$error":"#N/A"},null,{"$error":"#N/A"},null,{"$error":"#N/A"},{"$error":"#VALUE!"},"  "]
[null,null,null,null,null,null,"",null,null,null,null,"","",null,{"$error":"#REF!"},null,{"$error":"#N/A"},null,{"$error":"#N/A"},null,{"$error":"#N/A"},null,{"$error":"#N/A"},null,{"$error":"#N/A"},null,{"$error":"#N/A"},null,{"$error":"#N/A"},{"$error":"#VALUE!"},"  "]
[null,null,null,null,null,null,"",null,null,null,null,"","",null,{"$error":"#REF!"},null,{"$error":"#N/A"},null,{"$error":"#N/A"},null,{"$error":"#N/A"},null,{"$error":"#N/A"},null,{"$error":"#N/A"},null,{"$error":"#N/A"},null,{"$error":"#N/A"},{"$error":"#VALUE!"},"  "]
[null,null,null,null,null,null,"",null,null,null,null,"","",null,{"$error":"#REF!"},null,{"$error":"#N/A"},null,{"$error":"#N/A"},null,{"$error":"#N/A"},null,{"$error":"#N/A"},null,{"$error":"#N/A"},null,{"$error":"#N/A"},null,{"$error":"#N/A"},{"$error":"#VALUE!"},"  "]
[null,null,null,null,null,null,"",null,null,null,null,"","",null,{"$error":"#REF!"},null,{"$error":"#N/A"},null,{"$error":"#N/A"},null,{"$error":"#N/A"},null,{"$error":"#N/A"},null,{"$error":"#N/A"},null,{"$error":"#N/A"},null,{"$error":"#N/A"},{"$error":"#VALUE!"},"  "]
[null,null,null,null,null,null,"",null,null,null,null,"","",null,{"$error":"#REF!"},null,{"$error":"#N/A"},null,{"$error":"#N/A"},null,{"$error":"#N/A"},null,{"$error":"#N/A"},null,{"$error":"#N/A"},null,{"$error":"#N/A"},null,{"$error":"#N/A"},{"$error":"#VALUE!"},"  "]
[null,null,null,null,null,null,"",null,null,null,null,"","",null,{"$error":"#REF!"},null,{"$error":"#N/A"},null,{"$error":"#N/A"},null,{"$error":"#N/A"},null,{"$error":"#N/A"},null,{"$error":"#N/A"},null,{"$error":"#N/A"},null,{"$error":"#N/A"},{"$error":"#VALUE!"},"  "]
[null,null,null,null,null,null,"",null,null,null,null,"","",null,{"$error":"#REF!"},null,{"$error":"#N/A"},null,{"$error":"#N/A"},null,{"$error":"#N/A"},null,{"$error":"#N/A"},null,{"$error":"#N/A"},null,{"$error":"#N/A"},null,{"$error":"#N/A"},{"$error":"#VALUE!"},"  "]
[null,null,null,null,null,null,"",null,null,null,null,"","",null,{"$error":"#REF!"},null,{"$error":"#N/A"},null,{"$error":"#N/A"},null,{"$error":"#N/A"},null,{"$error":"#N/A"},null,{"$error":"#N/A"},null,{"$error":"#N/A"},null,{"$error":"#N/A"},{"$error":"#VALUE!"},"  "]
[null,null,null,null,null,null,"",null,null,null,null,"","",null,{"$error":"#REF!"},null,{"$error":"#N/A"},null,{"$error":"#N/A"},null,{"$error":"#N/A"},null,{"$error":"#N/A"},null,{"$error":"#N/A"},null,{"$error":"#N/A"},null,{"$error":"#N/A"},{"$error":"#VALUE!"},"  "]
[null,null,null,null,null,null,"",null,null,null,null,"","",null,{"$error":"#REF!"},null,{"$error":"#N/A"},null,{"$error":"#N/A"},null,{"$error":"#N/A"},null,{"$error":"#N/A"},null,{"$error":"#N/A"},null,{"$error":"#N/A"},null,{"$error":"#N/A"},{"$error":"#VALUE!"},"  "]
[null,null,null,null,null,null,"",null,null,null,null,"","",null,{"$error":"#REF!"},null,{"$error":"#N/A"},null,{"$error":"#N/A"},null,{"$error":"#N/A"},null,{"$error":"#N/A"},null,{"$error":"#N/A"},null,{"$error":"#N/A"},null,{"$error":"#N/A"},{"$error":"#VALUE!"},"  "]
[null,null,null,null,null,null,"",null,null,null,null,"","",null,{"$error":"#REF!"},null,{"$error":"#N/A"},null,{"$error":"#N/A"},null,{"$error":"#N/A"},null,{"$error":"#N/A"},null,{"$error":"#N/A"},null,{"$error":"#N/A"},null,{"$error":"#N/A"},{"$error":"#VALUE!"},"  "]
[null,null,null,null,null,null,"",null,null,null,null,"","",null,{"$error":"#REF!"},null,{"$error":"#N/A"},null,{"$error":"#N/A"},null,{"$error":"#N/A"},null,{"$error":"#N/A"},null,{"$error":"#N/A"},null,{"$error":"#N/A"},null,{"$error":"#N/A"},{"$error":"#VALUE!"},"  "]
[null,null,null,null,null,null,"",null,null,null,null,"","",null,{"$error":"#REF!"},null,{"$error":"#N/A"},null,{"$error":"#N/A"},null,{"$error":"#N/A"},null,{"$error":"#N/A"},null,{"$error":"#N/A"},null,{"$error":"#N/A"},null,{"$error":"#N/A"},{"$error":"#VALUE!"},"  "]
[null,null,null,null,null,null,"",null,null,null,null,"","",null,{"$error":"#REF!"},null,{"$error":"#N/A"},null,{"$error":"#N/A"},null,{"$error":"#N/A"},null,{"$error":"#N/A"},null,{"$error":"#N/A"},null,{"$error":"#N/A"},null,{"$error":"#N/A"},{"$error":"#VALUE!"},"  "]
[null,null,null,null,null,null,"",null,null,null,null,"","",null,{"$error":"#REF!"},null,{"$error":"#N/A"},null,{"$error":"#N/A"},null,{"$error":"#N/A"},null,{"$error":"#N/A"},null,{"$error":"#N/A"},null,{"$error":"#N/A"},null,{"$error":"#N/A"},{"$error":"#VALUE!"},"  "]
[null,null,null,null,null,null,"",null,null,null,null,"","",null,{"$error":"#REF!"},null,{"$error":"#N/A"},null,{"$error":"#N/A"},null,{"$error":"#N/A"},null,{"$error":"#N/A"},null,{"$error":"#N/A"},null,{"$error":"#N/A"},null,{"$error":"#N/A"},{"$error":"#VALUE!"},"  "]
[null,null,null,null,null,null,"",null,null,null,null,"","",null,{"$error":"#REF!"},null,{"$error":"#N/A"},null,{"$error":"#N/A"},null,{"$error":"#N/A"},null,{"$error":"#N/A"},null,{"$error":"#N/A"},null,{"$error":"#N/A"},null,{"$error":"#N/A"},{"$error":"#VALUE!"},"  "]
[null,null,null,null,null,null,"",null,null,null,null,"","",null,{"$error":"#REF!"},null,{"$error":"#N/A"},null,{"$error":"#N/A"},null,{"$error":"#N/A"},null,{"$error":"#N/A"},null,{"$error":"#N/A"},null,{"$error":"#N/A"},null,{"$error":"#N/A"},{"$error":"#VALUE!"},"  "]
[null,null,null,null,null,null,"",null,null,null,null,"","",null,{"$error":"#REF!"},null,{"$error":"#N/A"},null,{"$error":"#N/A"},null,{"$error":"#N/A"},null,{"$error":"#N/A"},null,{"$error":"#N/A"},null,{"$error":"#N/A"},null,{"$error":"#N/A"},{"$error":"#VALUE!"},"  "]
[null,null,null,null,null,null,"",null,null,null,null,"","",null,{"$error":"#REF!"},null,{"$error":"#N/A"},null,{"$error":"#N/A"},null,{"$error":"#N/A"},null,{"$error":"#N/A"},null,{"$error":"#N/A"},null,{"$error":"#N/A"},null,{"$error":"#N/A"},{"$error":"#VALUE!"},"  "]
[null,null,null,null,null,null,"",null,null,null,null,"","",null,{"$error":"#REF!"},null,{"$error":"#N/A"},null,{"$error":"#N/A"},null,{"$error":"#N/A"},null,{"$error":"#N/A"},null,{"$error":"#N/A"},null,{"$error":"#N/A"},null,{"$error":"#N/A"},{"$error":"#VALUE!"},"  "]
[null,null,null,null,null,null,"",null,null,null,null,"","",null,{"$error":"#REF!"},null,{"$error":"#N/A"},null,{"$error":"#N/A"},null,{"$error":"#N/A"},null,{"$error":"#N/A"},null,{"$error":"#N/A"},null,{"$error":"#N/A"},null,{"$error":"#N/A"},{"$error":"#VALUE!"},"  "]
[null,null,null,null,null,null,{"$f":"IF(C316=\"\",\"\",VLOOKUP(F316,REF_AGE,2))","v":""},null,null,null,null,{"$f":"IF(I316=\"\",\"\",(H316/(I316*I316))*10000)","v":""},{"$f":"IF(I316=\"\",\"\",VLOOKUP(L316,PT_IMC,2))","v":""},null,{"$f":"VLOOKUP(N316,INDIRECT(\"T1C\"&$E316&G316),2)","v":{"$error":"#REF!"}},null,{"$f":"VLOOKUP(P316,INDIRECT(Q$2&$E316&$G316),2)","v":{"$error":"#N/A"}},null,{"$f":"VLOOKUP(R316,INDIRECT(S$2&$E316&$G316),2)","v":{"$error":"#N/A"}},null,{"$f":"VLOOKUP(T316,INDIRECT(U$2&$E316&$G316),2)","v":{"$error":"#N/A"}},null,{"$f":"VLOOKUP(V316,INDIRECT(W$2&$E316&$G316),2)","v":{"$error":"#N/A"}},null,{"$f":"VLOOKUP(X316,INDIRECT(Y$2&$E316&$G316),2)","v":{"$error":"#N/A"}},null,{"$f":"VLOOKUP(Z316,INDIRECT(AA$2&$E316&$G316),2)","v":{"$error":"#N/A"}},null,{"$f":"VLOOKUP(AB316,INDIRECT(AC$2&$E316&$G316),2)","v":{"$error":"#N/A"}},{"$f":"M316+O316+Q316+S316+U316+W316+Y316+AA316+AC316","v":{"$error":"#VALUE!"}},{"$f":"K316&\" \"&C316&\" \"&D316","v":"  "}]
[null,null,null,null,null,null,"",null,null,null,null,"","",null,{"$error":"#REF!"},null,{"$error":"#N/A"},null,{"$error":"#N/A"},null,{"$error":"#N/A"},null,{"$error":"#N/A"},null,{"$error":"#N/A"},null,{"$error":"#N/A"},null,{"$error":"#N/A"},{"$error":"#VALUE!"},"  "]
[null,null,null,null,null,null,"",null,null,null,null,"","",null,{"$error":"#REF!"},null,{"$error":"#N/A"},null,{"$error":"#N/A"},null,{"$error":"#N/A"},null,{"$error":"#N/A"},null,{"$error":"#N/A"},null,{"$error":"#N/A"},null,{"$error":"#N/A"},{"$error":"#VALUE!"},"  "]
[null,null,null,null,null,null,"",null,null,null,null,"","",null,{"$error":"#REF!"},null,{"$error":"#N/A"},null,{"$error":"#N/A"},null,{"$error":"#N/A"},null,{"$error":"#N/A"},null,{"$error":"#N/A"},null,{"$error":"#N/A"},null,{"$error":"#N/A"},{"$error":"#VALUE!"},"  "]
[null,null,null,null,null,null,"",null,null,null,null,"","",null,{"$error":"#REF!"},null,{"$error":"#N/A"},null,{"$error":"#N/A"},null,{"$error":"#N/A"},null,{"$error":"#N/A"},null,{"$error":"#N/A"},null,{"$error":"#N/A"},null,{"$error":"#N/A"},{"$error":"#VALUE!"},"  "]
[null,null,null,null,null,null,"",null,null,null,null,"","",null,{"$error":"#REF!"},null,{"$error":"#N/A"},null,{"$error":"#N/A"},null,{"$error":"#N/A"},null,{"$error":"#N/A"},null,{"$error":"#N/A"},null,{"$error":"#N/A"},null,{"$error":"#N/A"},{"$error":"#VALUE!"},"  "]
[null,null,null,null,null,null,"",null,null,null,null,"","",null,{"$error":"#REF!"},null,{"$error":"#N/A"},null,{"$error":"#N/A"},null,{"$error":"#N/A"},null,{"$error":"#N/A"},null,{"$error":"#N/A"},null,{"$error":"#N/A"},null,{"$error":"#N/A"},{"$error":"#VALUE!"},"  "]
[null,null,null,null,null,null,"",null,null,null,null,"","",null,{"$error":"#REF!"},null,{"$error":"#N/A"},null,{"$error":"#N/A"},null,{"$error":"#N/A"},null,{"$error":"#N/A"},null,{"$error":"#N/A"},null,{"$error":"#N/A"},null,{"$error":"#N/A"},{"$error":"#VALUE!"},"  "]
[null,null,null,null,null,null,"",null,null,null,null,"","",null,{"$error":"#REF!"},null,{"$error":"#N/A"},null,{"$error":"#N/A"},null,{"$error":"#N/A"},null,{"$error":"#N/A"},null,{"$error":"#N/A"},null,{"$error":"#N/A"},null,{"$error":"#N/A"},{"$error":"#VALUE!"},"  "]
[null,null,null,null,null,null,"",null,null,null,null,"","",null,{"$error":"#REF!"},null,{"$error":"#N/A"},null,{"$error":"#N/A"},null,{"$error":"#N/A"},null,{"$error":"#N/A"},null,{"$error":"#N/A"},null,{"$error":"#N/A"},null,{"$error":"#N/A"},{"$error":"#VALUE!"},"  "]
[null,null,null,null,null,null,"",null,null,null,null,"","",null,{"$error":"#REF!"},null,{"$error":"#N/A"},null,{"$error":"#N/A"},null,{"$error":"#N/A"},null,{"$error":"#N/A"},null,{"$error":"#N/A"},null,{"$error":"#N/A"},null,{"$error":"#N/A"},{"$error":"#VALUE!"},"  "]
[null,null,null,null,null,null,"",null,null,null,null,"","",null,{"$error":"#REF!"},null,{"$error":"#N/A"},null,{"$error":"#N/A"},null,{"$error":"#N/A"},null,{"$error":"#N/A"},null,{"$error":"#N/A"},null,{"$error":"#N/A"},null,{"$error":"#N/A"},{"$error":"#VALUE!"},"  "]
[null,null,null,null,null,null,"",null,null,null,null,"","",null,{"$error":"#REF!"},null,{"$error":"#N/A"},null,{"$error":"#N/A"},null,{"$error":"#N/A"},null,{"$error":"#N/A"},null,{"$error":"#N/A"},null,{"$error":"#N/A"},null,{"$error":"#N/A"},{"$error":"#VALUE!"},"  "]
[null,null,null,null,null,null,"",null,null,null,null,"","",null,{"$error":"#REF!"},null,{"$error":"#N/A"},null,{"$error":"#N/A"},null,{"$error":"#N/A"},null,{"$error":"#N/A"},null,{"$error":"#N/A"},null,{"$error":"#N/A"},null,{"$error":"#N/A"},{"$error":"#VALUE!"},"  "]
[null,null,null,null,null,null,"",null,null,null,null,"","",null,{"$error":"#REF!"},null,{"$error":"#N/A"},null,{"$error":"#N/A"},null,{"$error":"#N/A"},null,{"$error":"#N/A"},null,{"$error":"#N/A"},null,{"$error":"#N/A"},null,{"$error":"#N/A"},{"$error":"#VALUE!"},"  "]
[null,null,null,null,null,null,"",null,null,null,null,"","",null,{"$error":"#REF!"},null,{"$error":"#N/A"},null,{"$error":"#N/A"},null,{"$error":"#N/A"},null,{"$error":"#N/A"},null,{"$error":"#N/A"},null,{"$error":"#N/A"},null,{"$error":"#N/A"},{"$error":"#VALUE!"},"  "]
[null,null,null,null,null,null,"",null,null,null,null,"","",null,{"$error":"#REF!"},null,{"$error":"#N/A"},null,{"$error":"#N/A"},null,{"$error":"#N/A"},null,{"$error":"#N/A"},null,{"$error":"#N/A"},null,{"$error":"#N/A"},null,{"$error":"#N/A"},{"$error":"#VALUE!"},"  "]
[null,null,null,null,null,null,"",null,null,null,null,"","",null,{"$error":"#REF!"},null,{"$error":"#N/A"},null,{"$error":"#N/A"},null,{"$error":"#N/A"},null,{"$error":"#N/A"},null,{"$error":"#N/A"},null,{"$error":"#N/A"},null,{"$error":"#N/A"},{"$error":"#VALUE!"},"  "]
[null,null,null,null,null,null,"",null,null,null,null,"","",null,{"$error":"#REF!"},null,{"$error":"#N/A"},null,{"$error":"#N/A"},null,{"$error":"#N/A"},null,{"$error":"#N/A"},null,{"$error":"#N/A"},null,{"$error":"#N/A"},null,{"$error":"#N/A"},{"$error":"#VALUE!"},"  "]
[null,null,null,null,null,null,"",null,null,null,null,"","",null,{"$error":"#REF!"},null,{"$error":"#N/A"},null,{"$error":"#N/A"},null,{"$error":"#N/A"},null,{"$error":"#N/A"},null,{"$error":"#N/A"},null,{"$error":"#N/A"},null,{"$error":"#N/A"},{"$error":"#VALUE!"},"  "]
[null,null,null,null,null,null,"",null,null,null,null,"","",null,{"$error":"#REF!"},null,{"$error":"#N/A"},null,{"$error":"#N/A"},null,{"$error":"#N/A"},null,{"$error":"#N/A"},null,{"$error":"#N/A"},null,{"$error":"#N/A"},null,{"$error":"#N/A"},{"$error":"#VALUE!"},"  "]
[null,null,null,null,null,null,"",null,null,null,null,"","",null,{"$error":"#REF!"},null,{"$error":"#N/A"},null,{"$error":"#N/A"},null,{"$error":"#N/A"},null,{"$error":"#N/A"},null,{"$error":"#N/A"},null,{"$error":"#N/A"},null,{"$error":"#N/A"},{"$error":"#VALUE!"},"  "]
[null,null,null,null,null,null,"",null,null,null,null,"","",null,{"$error":"#REF!"},null,{"$error":"#N/A"},null,{"$error":"#N/A"},null,{"$error":"#N/A"},null,{"$error":"#N/A"},null,{"$error":"#N/A"},null,{"$error":"#N/A"},null,{"$error":"#N/A"},{"$error":"#VALUE!"},"  "]
[null,null,null,null,null,null,"",null,null,null,null,"","",null,{"$error":"#REF!"},null,{"$error":"#N/A"},null,{"$error":"#N/A"},null,{"$error":"#N/A"},null,{"$error":"#N/A"},null,{"$error":"#N/A"},null,{"$error":"#N/A"},null,{"$error":"#N/A"},{"$error":"#VALUE!"},"  "]
[null,null,null,null,null,null,"",null,null,null,null,"","",null,{"$error":"#REF!"},null,{"$error":"#N/A"},null,{"$error":"#N/A"},null,{"$error":"#N/A"},null,{"$error":"#N/A"},null,{"$error":"#N/A"},null,{"$error":"#N/A"},null,{"$error":"#N/A"},{"$error":"#VALUE!"},"  "]
[null,null,null,null,null,null,"",null,null,null,null,"","",null,{"$error":"#REF!"},null,{"$error":"#N/A"},null,{"$error":"#N/A"},null,{"$error":"#N/A"},null,{"$error":"#N/A"},null,{"$error":"#N/A"},null,{"$error":"#N/A"},null,{"$error":"#N/A"},{"$error":"#VALUE!"},"  "]
[null,null,null,null,null,null,"",null,null,null,null,"","",null,{"$error":"#REF!"},null,{"$error":"#N/A"},null,{"$error":"#N/A"},null,{"$error":"#N/A"},null,{"$error":"#N/A"},null,{"$error":"#N/A"},null,{"$error":"#N/A"},null,{"$error":"#N/A"},{"$error":"#VALUE!"},"  "]
[null,null,null,null,null,null,"",null,null,null,null,"","",null,{"$error":"#REF!"},null,{"$error":"#N/A"},null,{"$error":"#N/A"},null,{"$error":"#N/A"},null,{"$error":"#N/A"},null,{"$error":"#N/A"},null,{"$error":"#N/A"},null,{"$error":"#N/A"},{"$error":"#VALUE!"},"  "]
[null,null,null,null,null,null,"",null,null,null,null,"","",null,{"$error":"#REF!"},null,{"$error":"#N/A"},null,{"$error":"#N/A"},null,{"$error":"#N/A"},null,{"$error":"#N/A"},null,{"$error":"#N/A"},null,{"$error":"#N/A"},null,{"$error":"#N/A"},{"$error":"#VALUE!"},"  "]
[null,null,null,null,null,null,"",null,null,null,null,"","",null,{"$error":"#REF!"},null,{"$error":"#N/A"},null,{"$error":"#N/A"},null,{"$error":"#N/A"},null,{"$error":"#N/A"},null,{"$error":"#N/A"},null,{"$error":"#N/A"},null,{"$error":"#N/A"},{"$error":"#VALUE!"},"  "]
[null,null,null,null,null,null,"",null,null,null,null,"","",null,{"$error":"#REF!"},null,{"$error":"#N/A"},null,{"$error":"#N/A"},null,{"$error":"#N/A"},null,{"$error":"#N/A"},null,{"$error":"#N/A"},null,{"$error":"#N/A"},null,{"$error":"#N/A"},{"$error":"#VALUE!"},"  "]
[null,null,null,null,null,null,"",null,null,null,null,"","",null,{"$error":"#REF!"},null,{"$error":"#N/A"},null,{"$error":"#N/A"},null,{"$error":"#N/A"},null,{"$error":"#N/A"},null,{"$error":"#N/A"},null,{"$error":"#N/A"},null,{"$error":"#N/A"},{"$error":"#VALUE!"},"  "]
[null,null,null,null,null,null,"",null,null,null,null,"","",null,{"$error":"#REF!"},null,{"$error":"#N/A"},null,{"$error":"#N/A"},null,{"$error":"#N/A"},null,{"$error":"#N/A"},null,{"$error":"#N/A"},null,{"$error":"#N/A"},null,{"$error":"#N/A"},{"$error":"#VALUE!"},"  "]
[null,null,null,null,null,null,"",null,null,null,null,"","",null,{"$error":"#REF!"},null,{"$error":"#N/A"},null,{"$error":"#N/A"},null,{"$error":"#N/A"},null,{"$error":"#N/A"},null,{"$error":"#N/A"},null,{"$error":"#N/A"},null,{"$error":"#N/A"},{"$error":"#VALUE!"},"  "]
[null,null,null,null,null,null,"",null,null,null,null,"","",null,{"$error":"#REF!"},null,{"$error":"#N/A"},null,{"$error":"#N/A"},null,{"$error":"#N/A"},null,{"$error":"#N/A"},null,{"$error":"#N/A"},null,{"$error":"#N/A"},null,{"$error":"#N/A"},{"$error":"#VALUE!"},"  "]
[null,null,null,null,null,null,"",null,null,null,null,"","",null,{"$error":"#REF!"},null,{"$error":"#N/A"},null,{"$error":"#N/A"},null,{"$error":"#N/A"},null,{"$error":"#N/A"},null,{"$error":"#N/A"},null,{"$error":"#N/A"},null,{"$error":"#N/A"},{"$error":"#VALUE!"},"  "]
[null,null,null,null,null,null,"",null,null,null,null,"","",null,{"$error":"#REF!"},null,{"$error":"#N/A"},null,{"$error":"#N/A"},null,{"$error":"#N/A"},null,{"$error":"#N/A"},null,{"$error":"#N/A"},null,{"$error":"#N/A"},null,{"$error":"#N/A"},{"$error":"#VALUE!"},"  "]
[null,null,null,null,null,null,"",null,null,null,null,"","",null,{"$error":"#REF!"},null,{"$error":"#N/A"},null,{"$error":"#N/A"},null,{"$error":"#N/A"},null,{"$error":"#N/A"},null,{"$error":"#N/A"},null,{"$error":"#N/A"},null,{"$error":"#N/A"},{"$error":"#VALUE!"},"  "]
[null,null,null,null,null,null,"",null,null,null,null,"","",null,{"$error":"#REF!"},null,{"$error":"#N/A"},null,{"$error":"#N/A"},null,{"$error":"#N/A"},null,{"$error":"#N/A"},null,{"$error":"#N/A"},null,{"$error":"#N/A"},null,{"$error":"#N/A"},{"$error":"#VALUE!"},"  "]
[null,null,null,null,null,null,"",null,null,null,null,"","",null,{"$error":"#REF!"},null,{"$error":"#N/A"},null,{"$error":"#N/A"},null,{"$error":"#N/A"},null,{"$error":"#N/A"},null,{"$error":"#N/A"},null,{"$error":"#N/A"},null,{"$error":"#N/A"},{"$error":"#VALUE!"},"  "]
[null,null,null,null,null,null,"",null,null,null,null,"","",null,{"$error":"#REF!"},null,{"$error":"#N/A"},null,{"$error":"#N/A"},null,{"$error":"#N/A"},null,{"$error":"#N/A"},null,{"$error":"#N/A"},null,{"$error":"#N/A"},null,{"$error":"#N/A"},{"$error":"#VALUE!"},"  "]
[null,null,null,null,null,null,"",null,null,null,null,"","",null,{"$error":"#REF!"},null,{"$error":"#N/A"},null,{"$error":"#N/A"},null,{"$error":"#N/A"},null,{"$error":"#N/A"},null,{"$error":"#N/A"},null,{"$error":"#N/A"},null,{"$error":"#N/A"},{"$error":"#VALUE!"},"  "]
[null,null,null,null,null,null,"",null,null,null,null,"","",null,{"$error":"#REF!"},null,{"$error":"#N/A"},null,{"$error":"#N/A"},null,{"$error":"#N/A"},null,{"$error":"#N/A"},null,{"$error":"#N/A"},null,{"$error":"#N/A"},null,{"$error":"#N/A"},{"$error":"#VALUE!"},"  "]
[null,null,null,null,null,null,"",null,null,null,null,"","",null,{"$error":"#REF!"},null,{"$error":"#N/A"},null,{"$error":"#N/A"},null,{"$error":"#N/A"},null,{"$error":"#N/A"},null,{"$error":"#N/A"},null,{"$error":"#N/A"},null,{"$error":"#N/A"},{"$error":"#VALUE!"},"  "]
[null,null,null,null,null,null,"",null,null,null,null,"","",null,{"$error":"#REF!"},null,{"$error":"#N/A"},null,{"$error":"#N/A"},null,{"$error":"#N/A"},null,{"$error":"#N/A"},null,{"$error":"#N/A"},null,{"$error":"#N/A"},null,{"$error":"#N/A"},{"$error":"#VALUE!"},"  "]
[null,null,null,null,null,null,"",null,null,null,null,"","",null,{"$error":"#REF!"},null,{"$error":"#N/A"},null,{"$error":"#N/A"},null,{"$error":"#N/A"},null,{"$error":"#N/A"},null,{"$error":"#N/A"},null,{"$error":"#N/A"},null,{"$error":"#N/A"},{"$error":"#VALUE!"},"  "]
[null,null,null,null,null,null,"",null,null,null,null,"","",null,{"$error":"#REF!"},null,{"$error":"#N/A"},null,{"$error":"#N/A"},null,{"$error":"#N/A"},null,{"$error":"#N/A"},null,{"$error":"#N/A"},null,{"$error":"#N/A"},null,{"$error":"#N/A"},{"$error":"#VALUE!"},"  "]
[null,null,null,null,null,null,"",null,null,null,null,"","",null,{"$error":"#REF!"},null,{"$error":"#N/A"},null,{"$error":"#N/A"},null,{"$error":"#N/A"},null,{"$error":"#N/A"},null,{"$error":"#N/A"},null,{"$error":"#N/A"},null,{"$error":"#N/A"},{"$error":"#VALUE!"},"  "]
[null,null,null,null,null,null,"",null,null,null,null,"","",null,{"$error":"#REF!"},null,{"$error":"#N/A"},null,{"$error":"#N/A"},null,{"$error":"#N/A"},null,{"$error":"#N/A"},null,{"$error":"#N/A"},null,{"$error":"#N/A"},null,{"$error":"#N/A"},{"$error":"#VALUE!"},"  "]
[null,null,null,null,null,null,"",null,null,null,null,"","",null,{"$error":"#REF!"},null,{"$error":"#N/A"},null,{"$error":"#N/A"},null,{"$error":"#N/A"},null,{"$error":"#N/A"},null,{"$error":"#N/A"},null,{"$error":"#N/A"},null,{"$error":"#N/A"},{"$error":"#VALUE!"},"  "]
[null,null,null,null,null,null,"",null,null,null,null,"","",null,{"$error":"#REF!"},null,{"$error":"#N/A"},null,{"$error":"#N/A"},null,{"$error":"#N/A"},null,{"$error":"#N/A"},null,{"$error":"#N/A"},null,{"$error":"#N/A"},null,{"$error":"#N/A"},{"$error":"#VALUE!"},"  "]
[null,null,null,null,null,null,"",null,null,null,null,"","",null,{"$error":"#REF!"},null,{"$error":"#N/A"},null,{"$error":"#N/A"},null,{"$error":"#N/A"},null,{"$error":"#N/A"},null,{"$error":"#N/A"},null,{"$error":"#N/A"},null,{"$error":"#N/A"},{"$error":"#VALUE!"},"  "]
[null,null,null,null,null,null,"",null,null,null,null,"","",null,{"$error":"#REF!"},null,{"$error":"#N/A"},null,{"$error":"#N/A"},null,{"$error":"#N/A"},null,{"$error":"#N/A"},null,{"$error":"#N/A"},null,{"$error":"#N/A"},null,{"$error":"#N/A"},{"$error":"#VALUE!"},"  "]
[null,null,null,null,null,null,"",null,null,null,null,"","",null,{"$error":"#REF!"},null,{"$error":"#N/A"},null,{"$error":"#N/A"},null,{"$error":"#N/A"},null,{"$error":"#N/A"},null,{"$error":"#N/A"},null,{"$error":"#N/A"},null,{"$error":"#N/A"},{"$error":"#VALUE!"},"  "]
[null,null,null,null,null,null,"",null,null,null,null,"","",null,{"$error":"#REF!"},null,{"$error":"#N/A"},null,{"$error":"#N/A"},null,{"$error":"#N/A"},null,{"$error":"#N/A"},null,{"$error":"#N/A"},null,{"$error":"#N/A"},null,{"$error":"#N/A"},{"$error":"#VALUE!"},"  "]
[null,null,null,null,null,null,"",null,null,null,null,"","",null,{"$error":"#REF!"},null,{"$error":"#N/A"},null,{"$error":"#N/A"},null,{"$error":"#N/A"},null,{"$error":"#N/A"},null,{"$error":"#N/A"},null,{"$error":"#N/A"},null,{"$error":"#N/A"},{"$error":"#VALUE!"},"  "]
[null,null,null,null,null,null,"",null,null,null,null,"","",null,{"$error":"#REF!"},null,{"$error":"#N/A"},null,{"$error":"#N/A"},null,{"$error":"#N/A"},null,{"$error":"#N/A"},null,{"$error":"#N/A"},null,{"$error":"#N/A"},null,{"$error":"#N/A"},{"$error":"#VALUE!"},"  "]
[null,null,null,null,null,null,"",null,null,null,null,"","",null,{"$error":"#REF!"},null,{"$error":"#N/A"},null,{"$error":"#N/A"},null,{"$error":"#N/A"},null,{"$error":"#N/A"},null,{"$error":"#N/A"},null,{"$error":"#N/A"},null,{"$error":"#N/A"},{"$error":"#VALUE!"},"  "]
[null,null,null,null,null,null,"",null,null,null,null,"","",null,{"$error":"#REF!"},null,{"$error":"#N/A"},null,{"$error":"#N/A"},null,{"$error":"#N/A"},null,{"$error":"#N/A"},null,{"$error":"#N/A"},null,{"$error":"#N/A"},null,{"$error":"#N/A"},{"$error":"#VALUE!"},"  "]
[null,null,null,null,null,null,"",null,null,null,null,"","",null,{"$error":"#REF!"},null,{"$error":"#N/A"},null,{"$error":"#N/A"},null,{"$error":"#N/A"},null,{"$error":"#N/A"},null,{"$error":"#N/A"},null,{"$error":"#N/A"},null,{"$error":"#N/A"},{"$error":"#VALUE!"},"  "]
[null,null,null,null,null,null,"",null,null,null,null,"","",null,{"$error":"#REF!"},null,{"$error":"#N/A"},null,{"$error":"#N/A"},null,{"$error":"#N/A"},null,{"$error":"#N/A"},null,{"$error":"#N/A"},null,{"$error":"#N/A"},null,{"$error":"#N/A"},{"$error":"#VALUE!"},"  "]
[null,null,null,null,null,null,"",null,null,null,null,"","",null,{"$error":"#REF!"},null,{"$error":"#N/A"},null,{"$error":"#N/A"},null,{"$error":"#N/A"},null,{"$error":"#N/A"},null,{"$error":"#N/A"},null,{"$error":"#N/A"},null,{"$error":"#N/A"},{"$error":"#VALUE!"},"  "]
[null,null,null,null,null,null,"",null,null,null,null,"","",null,{"$error":"#REF!"},null,{"$error":"#N/A"},null,{"$error":"#N/A"},null,{"$error":"#N/A"},null,{"$error":"#N/A"},null,{"$error":"#N/A"},null,{"$error":"#N/A"},null,{"$error":"#N/A"},{"$error":"#VALUE!"},"  "]
[null,null,null,null,null,null,"",null,null,null,null,"","",null,{"$error":"#REF!"},null,{"$error":"#N/A"},null,{"$error":"#N/A"},null,{"$error":"#N/A"},null,{"$error":"#N/A"},null,{"$error":"#N/A"},null,{"$error":"#N/A"},null,{"$error":"#N/A"},{"$error":"#VALUE!"},"  "]
[null,null,null,null,null,null,{"$f":"IF(C380=\"\",\"\",VLOOKUP(F380,REF_AGE,2))","v":""},null,null,null,null,{"$f":"IF(I380=\"\",\"\",(H380/(I380*I380))*10000)","v":""},{"$f":"IF(I380=\"\",\"\",VLOOKUP(L380,PT_IMC,2))","v":""},null,{"$f":"VLOOKUP(N380,INDIRECT(\"T1C\"&$E380&G380),2)","v":{"$error":"#REF!"}},null,{"$f":"VLOOKUP(P380,INDIRECT(Q$2&$E380&$G380),2)","v":{"$error":"#N/A"}},null,{"$f":"VLOOKUP(R380,INDIRECT(S$2&$E380&$G380),2)","v":{"$error":"#N/A"}},null,{"$f":"VLOOKUP(T380,INDIRECT(U$2&$E380&$G380),2)","v":{"$error":"#N/A"}},null,{"$f":"VLOOKUP(V380,INDIRECT(W$2&$E380&$G380),2)","v":{"$error":"#N/A"}},null,{"$f":"VLOOKUP(X380,INDIRECT(Y$2&$E380&$G380),2)","v":{"$error":"#N/A"}},null,{"$f":"VLOOKUP(Z380,INDIRECT(AA$2&$E380&$G380),2)","v":{"$error":"#N/A"}},null,{"$f":"VLOOKUP(AB380,INDIRECT(AC$2&$E380&$G380),2)","v":{"$error":"#N/A"}},{"$f":"M380+O380+Q380+S380+U380+W380+Y380+AA380+AC380","v":{"$error":"#VALUE!"}},{"$f":"K380&\" \"&C380&\" \"&D380","v":"  "}]
[null,null,null,null,null,null,"",null,null,null,null,"","",null,{"$error":"#REF!"},null,{"$error":"#N/A"},null,{"$error":"#N/A"},null,{"$error":"#N/A"},null,{"$error":"#N/A"},null,{"$error":"#N/A"},null,{"$error":"#N/A"},null,{"$error":"#N/A"},{"$error":"#VALUE!"},"  "]
[null,null,null,null,null,null,"",null,null,null,null,"","",null,{"$error":"#REF!"},null,{"$error":"#N/A"},null,{"$error":"#N/A"},null,{"$error":"#N/A"},null,{"$error":"#N/A"},null,{"$error":"#N/A"},null,{"$error":"#N/A"},null,{"$error":"#N/A"},{"$error":"#VALUE!"},"  "]
[null,null,null,null,null,null,"",null,null,null,null,"","",null,{"$error":"#REF!"},null,{"$error":"#N/A"},null,{"$error":"#N/A"},null,{"$error":"#N/A"},null,{"$error":"#N/A"},null,{"$error":"#N/A"},null,{"$error":"#N/A"},null,{"$error":"#N/A"},{"$error":"#VALUE!"},"  "]
[null,null,null,null,null,null,"",null,null,null,null,"","",null,{"$error":"#REF!"},null,{"$error":"#N/A"},null,{"$error":"#N/A"},null,{"$error":"#N/A"},null,{"$error":"#N/A"},null,{"$error":"#N/A"},null,{"$error":"#N/A"},null,{"$error":"#N/A"},{"$error":"#VALUE!"},"  "]
[null,null,null,null,null,null,"",null,null,null,null,"","",null,{"$error":"#REF!"},null,{"$error":"#N/A"},null,{"$error":"#N/A"},null,{"$error":"#N/A"},null,{"$error":"#N/A"},null,{"$error":"#N/A"},null,{"$error":"#N/A"},null,{"$error":"#N/A"},{"$error":"#VALUE!"},"  "]
[null,null,null,null,null,null,"",null,null,null,null,"","",null,{"$error":"#REF!"},null,{"$error":"#N/A"},null,{"$error":"#N/A"},null,{"$error":"#N/A"},null,{"$error":"#N/A"},null,{"$error":"#N/A"},null,{"$error":"#N/A"},null,{"$error":"#N/A"},{"$error":"#VALUE!"},"  "]
[null,null,null,null,null,null,"",null,null,null,null,"","",null,{"$error":"#REF!"},null,{"$error":"#N/A"},null,{"$error":"#N/A"},null,{"$error":"#N/A"},null,{"$error":"#N/A"},null,{"$error":"#N/A"},null,{"$error":"#N/A"},null,{"$error":"#N/A"},{"$error":"#VALUE!"},"  "]
[null,null,null,null,null,null,"",null,null,null,null,"","",null,{"$error":"#REF!"},null,{"$error":"#N/A"},null,{"$error":"#N/A"},null,{"$error":"#N/A"},null,{"$error":"#N/A"},null,{"$error":"#N/A"},null,{"$error":"#N/A"},null,{"$error":"#N/A"},{"$error":"#VALUE!"},"  "]
[null,null,null,null,null,null,"",null,null,null,null,"","",null,{"$error":"#REF!"},null,{"$error":"#N/A"},null,{"$error":"#N/A"},null,{"$error":"#N/A"},null,{"$error":"#N/A"},null,{"$error":"#N/A"},null,{"$error":"#N/A"},null,{"$error":"#N/A"},{"$error":"#VALUE!"},"  "]
[null,null,null,null,null,null,"",null,null,null,null,"","",null,{"$error":"#REF!"},null,{"$error":"#N/A"},null,{"$error":"#N/A"},null,{"$error":"#N/A"},null,{"$error":"#N/A"},null,{"$error":"#N/A"},null,{"$error":"#N/A"},null,{"$error":"#N/A"},{"$error":"#VALUE!"},"  "]
[null,null,null,null,null,null,"",null,null,null,null,"","",null,{"$error":"#REF!"},null,{"$error":"#N/A"},null,{"$error":"#N/A"},null,{"$error":"#N/A"},null,{"$error":"#N/A"},null,{"$error":"#N/A"},null,{"$error":"#N/A"},null,{"$error":"#N/A"},{"$error":"#VALUE!"},"  "]
[null,null,null,null,null,null,"",null,null,null,null,"","",null,{"$error":"#REF!"},null,{"$error":"#N/A"},null,{"$error":"#N/A"},null,{"$error":"#N/A"},null,{"$error":"#N/A"},null,{"$error":"#N/A"},null,{"$error":"#N/A"},null,{"$error":"#N/A"},{"$error":"#VALUE!"},"  "]
[null,null,null,null,null,null,"",null,null,null,null,"","",null,{"$error":"#REF!"},null,{"$error":"#N/A"},null,{"$error":"#N/A"},null,{"$error":"#N/A"},null,{"$error":"#N/A"},null,{"$error":"#N/A"},null,{"$error":"#N/A"},null,{"$error":"#N/A"},{"$error":"#VALUE!"},"  "]
[null,null,null,null,null,null,"",null,null,null,null,"","",null,{"$error":"#REF!"},null,{"$error":"#N/A"},null,{"$error":"#N/A"},null,{"$error":"#N/A"},null,{"$error":"#N/A"},null,{"$error":"#N/A"},null,{"$error":"#N/A"},null,{"$error":"#N/A"},{"$error":"#VALUE!"},"  "]
[null,null,null,null,null,null,"",null,null,null,null,"","",null,{"$error":"#REF!"},null,{"$error":"#N/A"},null,{"$error":"#N/A"},null,{"$error":"#N/A"},null,{"$error":"#N/A"},null,{"$error":"#N/A"},null,{"$error":"#N/A"},null,{"$error":"#N/A"},{"$error":"#VALUE!"},"  "]
[null,null,null,null,null,null,"",null,null,null,null,"","",null,{"$error":"#REF!"},null,{"$error":"#N/A"},null,{"$error":"#N/A"},null,{"$error":"#N/A"},null,{"$error":"#N/A"},null,{"$error":"#N/A"},null,{"$error":"#N/A"},null,{"$error":"#N/A"},{"$error":"#VALUE!"},"  "]
[null,null,null,null,null,null,"",null,null,null,null,"","",null,{"$error":"#REF!"},null,{"$error":"#N/A"},null,{"$error":"#N/A"},null,{"$error":"#N/A"},null,{"$error":"#N/A"},null,{"$error":"#N/A"},null,{"$error":"#N/A"},null,{"$error":"#N/A"},{"$error":"#VALUE!"},"  "]
[null,null,null,null,null,null,"",null,null,null,null,"","",null,{"$error":"#REF!"},null,{"$error":"#N/A"},null,{"$error":"#N/A"},null,{"$error":"#N/A"},null,{"$error":"#N/A"},null,{"$error":"#N/A"},null,{"$error":"#N/A"},null,{"$error":"#N/A"},{"$error":"#VALUE!"},"  "]
[null,null,null,null,null,null,"",null,null,null,null,"","",null,{"$error":"#REF!"},null,{"$error":"#N/A"},null,{"$error":"#N/A"},null,{"$error":"#N/A"},null,{"$error":"#N/A"},null,{"$error":"#N/A"},null,{"$error":"#N/A"},null,{"$error":"#N/A"},{"$error":"#VALUE!"},"  "]
[null,null,null,null,null,null,"",null,null,null,null,"","",null,{"$error":"#REF!"},null,{"$error":"#N/A"},null,{"$error":"#N/A"},null,{"$error":"#N/A"},null,{"$error":"#N/A"},null,{"$error":"#N/A"},null,{"$error":"#N/A"},null,{"$error":"#N/A"},{"$error":"#VALUE!"},"  "]
[null,null,null,null,null,null,"",null,null,null,null,"","",null,{"$error":"#REF!"},null,{"$error":"#N/A"},null,{"$error":"#N/A"},null,{"$error":"#N/A"},null,{"$error":"#N/A"},null,{"$error":"#N/A"},null,{"$error":"#N/A"},null,{"$error":"#N/A"},{"$error":"#VALUE!"},"  "]
[null,null,null,null,null,null,"",null,null,null,null,"","",null,{"$error":"#REF!"},null,{"$error":"#N/A"},null,{"$error":"#N/A"},null,{"$error":"#N/A"},null,{"$error":"#N/A"},null,{"$error":"#N/A"},null,{"$error":"#N/A"},null,{"$error":"#N/A"},{"$error":"#VALUE!"},"  "]
[null,null,null,null,null,null,"",null,null,null,null,"","",null,{"$error":"#REF!"},null,{"$error":"#N/A"},null,{"$error":"#N/A"},null,{"$error":"#N/A"},null,{"$error":"#N/A"},null,{"$error":"#N/A"},null,{"$error":"#N/A"},null,{"$error":"#N/A"},{"$error":"#VALUE!"},"  "]
[null,null,null,null,null,null,"",null,null,null,null,"","",null,{"$error":"#REF!"},null,{"$error":"#N/A"},null,{"$error":"#N/A"},null,{"$error":"#N/A"},null,{"$error":"#N/A"},null,{"$error":"#N/A"},null,{"$error":"#N/A"},null,{"$error":"#N/A"},{"$error":"#VALUE!"},"  "]
[null,null,null,null,null,null,"",null,null,null,null,"","",null,{"$error":"#REF!"},null,{"$error":"#N/A"},null,{"$error":"#N/A"},null,{"$error":"#N/A"},null,{"$error":"#N/A"},null,{"$error":"#N/A"},null,{"$error":"#N/A"},null,{"$error":"#N/A"},{"$error":"#VALUE!"},"  "]
[null,null,null,null,null,null,"",null,null,null,null,"","",null,{"$error":"#REF!"},null,{"$error":"#N/A"},null,{"$error":"#N/A"},null,{"$error":"#N/A"},null,{"$error":"#N/A"},null,{"$error":"#N/A"},null,{"$error":"#N/A"},null,{"$error":"#N/A"},{"$error":"#VALUE!"},"  "]
[null,null,null,null,null,null,"",null,null,null,null,"","",null,{"$error":"#REF!"},null,{"$error":"#N/A"},null,{"$error":"#N/A"},null,{"$error":"#N/A"},null,{"$error":"#N/A"},null,{"$error":"#N/A"},null,{"$error":"#N/A"},null,{"$error":"#N/A"},{"$error":"#VALUE!"},"  "]
[null,null,null,null,null,null,"",null,null,null,null,"","",null,{"$error":"#REF!"},null,{"$error":"#N/A"},null,{"$error":"#N/A"},null,{"$error":"#N/A"},null,{"$error":"#N/A"},null,{"$error":"#N/A"},null,{"$error":"#N/A"},null,{"$error":"#N/A"},{"$error":"#VALUE!"},"  "]
[null,null,null,null,null,null,"",null,null,null,null,"","",null,{"$error":"#REF!"},null,{"$error":"#N/A"},null,{"$error":"#N/A"},null,{"$error":"#N/A"},null,{"$error":"#N/A"},null,{"$error":"#N/A"},null,{"$error":"#N/A"},null,{"$error":"#N/A"},{"$error":"#VALUE!"},"  "]
[null,null,null,null,null,null,"",null,null,null,null,"","",null,{"$error":"#REF!"},null,{"$error":"#N/A"},null,{"$error":"#N/A"},null,{"$error":"#N/A"},null,{"$error":"#N/A"},null,{"$error":"#N/A"},null,{"$error":"#N/A"},null,{"$error":"#N/A"},{"$error":"#VALUE!"},"  "]
[null,null,null,null,null,null,"",null,null,null,null,"","",null,{"$error":"#REF!"},null,{"$error":"#N/A"},null,{"$error":"#N/A"},null,{"$error":"#N/A"},null,{"$error":"#N/A"},null,{"$error":"#N/A"},null,{"$error":"#N/A"},null,{"$error":"#N/A"},{"$error":"#VALUE!"},"  "]
[null,null,null,null,null,null,"",null,null,null,null,"","",null,{"$error":"#REF!"},null,{"$error":"#N/A"},null,{"$error":"#N/A"},null,{"$error":"#N/A"},null,{"$error":"#N/A"},null,{"$error":"#N/A"},null,{"$error":"#N/A"},null,{"$error":"#N/A"},{"$error":"#VALUE!"},"  "]
[null,null,null,null,null,null,"",null,null,null,null,"","",null,{"$error":"#REF!"},null,{"$error":"#N/A"},null,{"$error":"#N/A"},null,{"$error":"#N/A"},null,{"$error":"#N/A"},null,{"$error":"#N/A"},null,{"$error":"#N/A"},null,{"$error":"#N/A"},{"$error":"#VALUE!"},"  "]
[null,null,null,null,null,null,"",null,null,null,null,"","",null,{"$error":"#REF!"},null,{"$error":"#N/A"},null,{"$error":"#N/A"},null,{"$error":"#N/A"},null,{"$error":"#N/A"},null,{"$error":"#N/A"},null,{"$error":"#N/A"},null,{"$error":"#N/A"},{"$error":"#VALUE!"},"  "]
[null,null,null,null,null,null,"",null,null,null,null,"","",null,{"$error":"#REF!"},null,{"$error":"#N/A"},null,{"$error":"#N/A"},null,{"$error":"#N/A"},null,{"$error":"#N/A"},null,{"$error":"#N/A"},null,{"$error":"#N/A"},null,{"$error":"#N/A"},{"$error":"#VALUE!"},"  "]
[null,null,null,null,null,null,"",null,null,null,null,"","",null,{"$error":"#REF!"},null,{"$error":"#N/A"},null,{"$error":"#N/A"},null,{"$error":"#N/A"},null,{"$error":"#N/A"},null,{"$error":"#N/A"},null,{"$error":"#N/A"},null,{"$error":"#N/A"},{"$error":"#VALUE!"},"  "]
[null,null,null,null,null,null,"",null,null,null,null,"","",null,{"$error":"#REF!"},null,{"$error":"#N/A"},null,{"$error":"#N/A"},null,{"$error":"#N/A"},null,{"$error":"#N/A"},null,{"$error":"#N/A"},null,{"$error":"#N/A"},null,{"$error":"#N/A"},{"$error":"#VALUE!"},"  "]
[null,null,null,null,null,null,"",null,null,null,null,"","",null,{"$error":"#REF!"},null,{"$error":"#N/A"},null,{"$error":"#N/A"},null,{"$error":"#N/A"},null,{"$error":"#N/A"},null,{"$error":"#N/A"},null,{"$error":"#N/A"},null,{"$error":"#N/A"},{"$error":"#VALUE!"},"  "]
[null,null,null,null,null,null,"",null,null,null,null,"","",null,{"$error":"#REF!"},null,{"$error":"#N/A"},null,{"$error":"#N/A"},null,{"$error":"#N/A"},null,{"$error":"#N/A"},null,{"$error":"#N/A"},null,{"$error":"#N/A"},null,{"$error":"#N/A"},{"$error":"#VALUE!"},"  "]
[null,null,null,null,null,null,"",null,null,null,null,"","",null,{"$error":"#REF!"},null,{"$error":"#N/A"},null,{"$error":"#N/A"},null,{"$error":"#N/A"},null,{"$error":"#N/A"},null,{"$error":"#N/A"},null,{"$error":"#N/A"},null,{"$error":"#N/A"},{"$error":"#VALUE!"},"  "]
[null,null,null,null,null,null,"",null,null,null,null,"","",null,{"$error":"#REF!"},null,{"$error":"#N/A"},null,{"$error":"#N/A"},null,{"$error":"#N/A"},null,{"$error":"#N/A"},null,{"$error":"#N/A"},null,{"$error":"#N/A"},null,{"$error":"#N/A"},{"$error":"#VALUE!"},"  "]
[null,null,null,null,null,null,"",null,null,null,null,"","",null,{"$error":"#REF!"},null,{"$error":"#N/A"},null,{"$error":"#N/A"},null,{"$error":"#N/A"},null,{"$error":"#N/A"},null,{"$error":"#N/A"},null,{"$error":"#N/A"},null,{"$error":"#N/A"},{"$error":"#VALUE!"},"  "]
[null,null,null,null,null,null,"",null,null,null,null,"","",null,{"$error":"#REF!"},null,{"$error":"#N/A"},null,{"$error":"#N/A"},null,{"$error":"#N/A"},null,{"$error":"#N/A"},null,{"$error":"#N/A"},null,{"$error":"#N/A"},null,{"$error":"#N/A"},{"$error":"#VALUE!"},"  "]
[null,null,null,null,null,null,"",null,null,null,null,"","",null,{"$error":"#REF!"},null,{"$error":"#N/A"},null,{"$error":"#N/A"},null,{"$error":"#N/A"},null,{"$error":"#N/A"},null,{"$error":"#N/A"},null,{"$error":"#N/A"},null,{"$error":"#N/A"},{"$error":"#VALUE!"},"  "]
[null,null,null,null,null,null,"",null,null,null,null,"","",null,{"$error":"#REF!"},null,{"$error":"#N/A"},null,{"$error":"#N/A"},null,{"$error":"#N/A"},null,{"$error":"#N/A"},null,{"$error":"#N/A"},null,{"$error":"#N/A"},null,{"$error":"#N/A"},{"$error":"#VALUE!"},"  "]
[null,null,null,null,null,null,"",null,null,null,null,"","",null,{"$error":"#REF!"},null,{"$error":"#N/A"},null,{"$error":"#N/A"},null,{"$error":"#N/A"},null,{"$error":"#N/A"},null,{"$error":"#N/A"},null,{"$error":"#N/A"},null,{"$error":"#N/A"},{"$error":"#VALUE!"},"  "]
[null,null,null,null,null,null,"",null,null,null,null,"","",null,{"$error":"#REF!"},null,{"$error":"#N/A"},null,{"$error":"#N/A"},null,{"$error":"#N/A"},null,{"$error":"#N/A"},null,{"$error":"#N/A"},null,{"$error":"#N/A"},null,{"$error":"#N/A"},{"$error":"#VALUE!"},"  "]
[null,null,null,null,null,null,"",null,null,null,null,"","",null,{"$error":"#REF!"},null,{"$error":"#N/A"},null,{"$error":"#N/A"},null,{"$error":"#N/A"},null,{"$error":"#N/A"},null,{"$error":"#N/A"},null,{"$error":"#N/A"},null,{"$error":"#N/A"},{"$error":"#VALUE!"},"  "]
[null,null,null,null,null,null,"",null,null,null,null,"","",null,{"$error":"#REF!"},null,{"$error":"#N/A"},null,{"$error":"#N/A"},null,{"$error":"#N/A"},null,{"$error":"#N/A"},null,{"$error":"#N/A"},null,{"$error":"#N/A"},null,{"$error":"#N/A"},{"$error":"#VALUE!"},"  "]
[null,null,null,null,null,null,"",null,null,null,null,"","",null,{"$error":"#REF!"},null,{"$error":"#N/A"},null,{"$error":"#N/A"},null,{"$error":"#N/A"},null,{"$error":"#N/A"},null,{"$error":"#N/A"},null,{"$error":"#N/A"},null,{"$error":"#N/A"},{"$error":"#VALUE!"},"  "]
[null,null,null,null,null,null,"",null,null,null,null,"","",null,{"$error":"#REF!"},null,{"$error":"#N/A"},null,{"$error":"#N/A"},null,{"$error":"#N/A"},null,{"$error":"#N/A"},null,{"$error":"#N/A"},null,{"$error":"#N/A"},null,{"$error":"#N/A"},{"$error":"#VALUE!"},"  "]
[null,null,null,null,null,null,"",null,null,null,null,"","",null,{"$error":"#REF!"},null,{"$error":"#N/A"},null,{"$error":"#N/A"},null,{"$error":"#N/A"},null,{"$error":"#N/A"},null,{"$error":"#N/A"},null,{"$error":"#N/A"},null,{"$error":"#N/A"},{"$error":"#VALUE!"},"  "]
[null,null,null,null,null,null,"",null,null,null,null,"","",null,{"$error":"#REF!"},null,{"$error":"#N/A"},null,{"$error":"#N/A"},null,{"$error":"#N/A"},null,{"$error":"#N/A"},null,{"$error":"#N/A"},null,{"$error":"#N/A"},null,{"$error":"#N/A"},{"$error":"#VALUE!"},"  "]
[null,null,null,null,null,null,"",null,null,null,null,"","",null,{"$error":"#REF!"},null,{"$error":"#N/A"},null,{"$error":"#N/A"},null,{"$error":"#N/A"},null,{"$error":"#N/A"},null,{"$error":"#N/A"},null,{"$error":"#N/A"},null,{"$error":"#N/A"},{"$error":"#VALUE!"},"  "]
[null,null,null,null,null,null,"",null,null,null,null,"","",null,{"$error":"#REF!"},null,{"$error":"#N/A"},null,{"$error":"#N/A"},null,{"$error":"#N/A"},null,{"$error":"#N/A"},null,{"$error":"#N/A"},null,{"$error":"#N/A"},null,{"$error":"#N/A"},{"$error":"#VALUE!"},"  "]
[null,null,null,null,null,null,"",null,null,null,null,"","",null,{"$error":"#REF!"},null,{"$error":"#N/A"},null,{"$error":"#N/A"},null,{"$error":"#N/A"},null,{"$error":"#N/A"},null,{"$error":"#N/A"},null,{"$error":"#N/A"},null,{"$error":"#N/A"},{"$error":"#VALUE!"},"  "]
[null,null,null,null,null,null,"",null,null,null,null,"","",null,{"$error":"#REF!"},null,{"$error":"#N/A"},null,{"$error":"#N/A"},null,{"$error":"#N/A"},null,{"$error":"#N/A"},null,{"$error":"#N/A"},null,{"$error":"#N/A"},null,{"$error":"#N/A"},{"$error":"#VALUE!"},"  "]
[null,null,null,null,null,null,"",null,null,null,null,"","",null,{"$error":"#REF!"},null,{"$error":"#N/A"},null,{"$error":"#N/A"},null,{"$error":"#N/A"},null,{"$error":"#N/A"},null,{"$error":"#N/A"},null,{"$error":"#N/A"},null,{"$error":"#N/A"},{"$error":"#VALUE!"},"  "]
[null,null,null,null,null,null,"",null,null,null,null,"","",null,{"$error":"#REF!"},null,{"$error":"#N/A"},null,{"$error":"#N/A"},null,{"$error":"#N/A"},null,{"$error":"#N/A"},null,{"$error":"#N/A"},null,{"$error":"#N/A"},null,{"$error":"#N/A"},{"$error":"#VALUE!"},"  "]
[null,null,null,null,null,null,"",null,null,null,null,"","",null,{"$error":"#REF!"},null,{"$error":"#N/A"},null,{"$error":"#N/A"},null,{"$error":"#N/A"},null,{"$error":"#N/A"},null,{"$error":"#N/A"},null,{"$error":"#N/A"},null,{"$error":"#N/A"},{"$error":"#VALUE!"},"  "]
[null,null,null,null,null,null,"",null,null,null,null,"","",null,{"$error":"#REF!"},null,{"$error":"#N/A"},null,{"$error":"#N/A"},null,{"$error":"#N/A"},null,{"$error":"#N/A"},null,{"$error":"#N/A"},null,{"$error":"#N/A"},null,{"$error":"#N/A"},{"$error":"#VALUE!"},"  "]
[null,null,null,null,null,null,"",null,null,null,null,"","",null,{"$error":"#REF!"},null,{"$error":"#N/A"},null,{"$error":"#N/A"},null,{"$error":"#N/A"},null,{"$error":"#N/A"},null,{"$error":"#N/A"},null,{"$error":"#N/A"},null,{"$error":"#N/A"},{"$error":"#VALUE!"},"  "]
[null,null,null,null,null,null,"",null,null,null,null,"","",null,{"$error":"#REF!"},null,{"$error":"#N/A"},null,{"$error":"#N/A"},null,{"$error":"#N/A"},null,{"$error":"#N/A"},null,{"$error":"#N/A"},null,{"$error":"#N/A"},null,{"$error":"#N/A"},{"$error":"#VALUE!"},"  "]
[null,null,null,null,null,null,{"$f":"IF(C444=\"\",\"\",VLOOKUP(F444,REF_AGE,2))","v":""},null,null,null,null,{"$f":"IF(I444=\"\",\"\",(H444/(I444*I444))*10000)","v":""},{"$f":"IF(I444=\"\",\"\",VLOOKUP(L444,PT_IMC,2))","v":""},null,{"$f":"VLOOKUP(N444,INDIRECT(\"T1C\"&$E444&G444),2)","v":{"$error":"#REF!"}},null,{"$f":"VLOOKUP(P444,INDIRECT(Q$2&$E444&$G444),2)","v":{"$error":"#N/A"}},null,{"$f":"VLOOKUP(R444,INDIRECT(S$2&$E444&$G444),2)","v":{"$error":"#N/A"}},null,{"$f":"VLOOKUP(T444,INDIRECT(U$2&$E444&$G444),2)","v":{"$error":"#N/A"}},null,{"$f":"VLOOKUP(V444,INDIRECT(W$2&$E444&$G444),2)","v":{"$error":"#N/A"}},null,{"$f":"VLOOKUP(X444,INDIRECT(Y$2&$E444&$G444),2)","v":{"$error":"#N/A"}},null,{"$f":"VLOOKUP(Z444,INDIRECT(AA$2&$E444&$G444),2)","v":{"$error":"#N/A"}},null,{"$f":"VLOOKUP(AB444,INDIRECT(AC$2&$E444&$G444),2)","v":{"$error":"#N/A"}},{"$f":"M444+O444+Q444+S444+U444+W444+Y444+AA444+AC444","v":{"$error":"#VALUE!"}},{"$f":"K444&\" \"&C444&\" \"&D444","v":"  "}]
[null,null,null,null,null,null,"",null,null,null,null,"","",null,{"$error":"#REF!"},null,{"$error":"#N/A"},null,{"$error":"#N/A"},null,{"$error":"#N/A"},null,{"$error":"#N/A"},null,{"$error":"#N/A"},null,{"$error":"#N/A"},null,{"$error":"#N/A"},{"$error":"#VALUE!"},"  "]
[null,null,null,null,null,null,"",null,null,null,null,"","",null,{"$error":"#REF!"},null,{"$error":"#N/A"},null,{"$error":"#N/A"},null,{"$error":"#N/A"},null,{"$error":"#N/A"},null,{"$error":"#N/A"},null,{"$error":"#N/A"},null,{"$error":"#N/A"},{"$error":"#VALUE!"},"  "]
[null,null,null,null,null,null,"",null,null,null,null,"","",null,{"$error":"#REF!"},null,{"$error":"#N/A"},null,{"$error":"#N/A"},null,{"$error":"#N/A"},null,{"$error":"#N/A"},null,{"$error":"#N/A"},null,{"$error":"#N/A"},null,{"$error":"#N/A"},{"$error":"#VALUE!"},"  "]
[null,null,null,null,null,null,"",null,null,null,null,"","",null,{"$error":"#REF!"},null,{"$error":"#N/A"},null,{"$error":"#N/A"},null,{"$error":"#N/A"},null,{"$error":"#N/A"},null,{"$error":"#N/A"},null,{"$error":"#N/A"},null,{"$error":"#N/A"},{"$error":"#VALUE!"},"  "]
[null,null,null,null,null,null,"",null,null,null,null,"","",null,{"$error":"#REF!"},null,{"$error":"#N/A"},null,{"$error":"#N/A"},null,{"$error":"#N/A"},null,{"$error":"#N/A"},null,{"$error":"#N/A"},null,{"$error":"#N/A"},null,{"$error":"#N/A"},{"$error":"#VALUE!"},"  "]
[null,null,null,null,null,null,"",null,null,null,null,"","",null,{"$error":"#REF!"},null,{"$error":"#N/A"},null,{"$error":"#N/A"},null,{"$error":"#N/A"},null,{"$error":"#N/A"},null,{"$error":"#N/A"},null,{"$error":"#N/A"},null,{"$error":"#N/A"},{"$error":"#VALUE!"},"  "]
[null,null,null,null,null,null,"",null,null,null,null,"","",null,{"$error":"#REF!"},null,{"$error":"#N/A"},null,{"$error":"#N/A"},null,{"$error":"#N/A"},null,{"$error":"#N/A"},null,{"$error":"#N/A"},null,{"$error":"#N/A"},null,{"$error":"#N/A"},{"$error":"#VALUE!"},"  "]
[null,null,null,null,null,null,"",null,null,null,null,"","",null,{"$error":"#REF!"},null,{"$error":"#N/A"},null,{"$error":"#N/A"},null,{"$error":"#N/A"},null,{"$error":"#N/A"},null,{"$error":"#N/A"},null,{"$error":"#N/A"},null,{"$error":"#N/A"},{"$error":"#VALUE!"},"  "]
[null,null,null,null,null,null,"",null,null,null,null,"","",null,{"$error":"#REF!"},null,{"$error":"#N/A"},null,{"$error":"#N/A"},null,{"$error":"#N/A"},null,{"$error":"#N/A"},null,{"$error":"#N/A"},null,{"$error":"#N/A"},null,{"$error":"#N/A"},{"$error":"#VALUE!"},"  "]
[null,null,null,null,null,null,"",null,null,null,null,"","",null,{"$error":"#REF!"},null,{"$error":"#N/A"},null,{"$error":"#N/A"},null,{"$error":"#N/A"},null,{"$error":"#N/A"},null,{"$error":"#N/A"},null,{"$error":"#N/A"},null,{"$error":"#N/A"},{"$error":"#VALUE!"},"  "]
[null,null,null,null,null,null,"",null,null,null,null,"","",null,{"$error":"#REF!"},null,{"$error":"#N/A"},null,{"$error":"#N/A"},null,{"$error":"#N/A"},null,{"$error":"#N/A"},null,{"$error":"#N/A"},null,{"$error":"#N/A"},null,{"$error":"#N/A"},{"$error":"#VALUE!"},"  "]
[null,null,null,null,null,null,"",null,null,null,null,"","",null,{"$error":"#REF!"},null,{"$error":"#N/A"},null,{"$error":"#N/A"},null,{"$error":"#N/A"},null,{"$error":"#N/A"},null,{"$error":"#N/A"},null,{"$error":"#N/A"},null,{"$error":"#N/A"},{"$error":"#VALUE!"},"  "]
[null,null,null,null,null,null,"",null,null,null,null,"","",null,{"$error":"#REF!"},null,{"$error":"#N/A"},null,{"$error":"#N/A"},null,{"$error":"#N/A"},null,{"$error":"#N/A"},null,{"$error":"#N/A"},null,{"$error":"#N/A"},null,{"$error":"#N/A"},{"$error":"#VALUE!"},"  "]
[null,null,null,null,null,null,"",null,null,null,null,"","",null,{"$error":"#REF!"},null,{"$error":"#N/A"},null,{"$error":"#N/A"},null,{"$error":"#N/A"},null,{"$error":"#N/A"},null,{"$error":"#N/A"},null,{"$error":"#N/A"},null,{"$error":"#N/A"},{"$error":"#VALUE!"},"  "]
[null,null,null,null,null,null,"",null,null,null,null,"","",null,{"$error":"#REF!"},null,{"$error":"#N/A"},null,{"$error":"#N/A"},null,{"$error":"#N/A"},null,{"$error":"#N/A"},null,{"$error":"#N/A"},null,{"$error":"#N/A"},null,{"$error":"#N/A"},{"$error":"#VALUE!"},"  "]
[null,null,null,null,null,null,"",null,null,null,null,"","",null,{"$error":"#REF!"},null,{"$error":"#N/A"},null,{"$error":"#N/A"},null,{"$error":"#N/A"},null,{"$error":"#N/A"},null,{"$error":"#N/A"},null,{"$error":"#N/A"},null,{"$error":"#N/A"},{"$error":"#VALUE!"},"  "]
[null,null,null,null,null,null,"",null,null,null,null,"","",null,{"$error":"#REF!"},null,{"$error":"#N/A"},null,{"$error":"#N/A"},null,{"$error":"#N/A"},null,{"$error":"#N/A"},null,{"$error":"#N/A"},null,{"$error":"#N/A"},null,{"$error":"#N/A"},{"$error":"#VALUE!"},"  "]
[null,null,null,null,null,null,"",null,null,null,null,"","",null,{"$error":"#REF!"},null,{"$error":"#N/A"},null,{"$error":"#N/A"},null,{"$error":"#N/A"},null,{"$error":"#N/A"},null,{"$error":"#N/A"},null,{"$error":"#N/A"},null,{"$error":"#N/A"},{"$error":"#VALUE!"},"  "]
[null,null,null,null,null,null,"",null,null,null,null,"","",null,{"$error":"#REF!"},null,{"$error":"#N/A"},null,{"$error":"#N/A"},null,{"$error":"#N/A"},null,{"$error":"#N/A"},null,{"$error":"#N/A"},null,{"$error":"#N/A"},null,{"$error":"#N/A"},{"$error":"#VALUE!"},"  "]
[null,null,null,null,null,null,"",null,null,null,null,"","",null,{"$error":"#REF!"},null,{"$error":"#N/A"},null,{"$error":"#N/A"},null,{"$error":"#N/A"},null,{"$error":"#N/A"},null,{"$error":"#N/A"},null,{"$error":"#N/A"},null,{"$error":"#N/A"},{"$error":"#VALUE!"},"  "]
[null,null,null,null,null,null,"",null,null,null,null,"","",null,{"$error":"#REF!"},null,{"$error":"#N/A"},null,{"$error":"#N/A"},null,{"$error":"#N/A"},null,{"$error":"#N/A"},null,{"$error":"#N/A"},null,{"$error":"#N/A"},null,{"$error":"#N/A"},{"$error":"#VALUE!"},"  "]
[null,null,null,null,null,null,"",null,null,null,null,"","",null,{"$error":"#REF!"},null,{"$error":"#N/A"},null,{"$error":"#N/A"},null,{"$error":"#N/A"},null,{"$error":"#N/A"},null,{"$error":"#N/A"},null,{"$error":"#N/A"},null,{"$error":"#N/A"},{"$error":"#VALUE!"},"  "]
[null,null,null,null,null,null,"",null,null,null,null,"","",null,{"$error":"#REF!"},null,{"$error":"#N/A"},null,{"$error":"#N/A"},null,{"$error":"#N/A"},null,{"$error":"#N/A"},null,{"$error":"#N/A"},null,{"$error":"#N/A"},null,{"$error":"#N/A"},{"$error":"#VALUE!"},"  "]
[null,null,null,null,null,null,"",null,null,null,null,"","",null,{"$error":"#REF!"},null,{"$error":"#N/A"},null,{"$error":"#N/A"},null,{"$error":"#N/A"},null,{"$error":"#N/A"},null,{"$error":"#N/A"},null,{"$error":"#N/A"},null,{"$error":"#N/A"},{"$error":"#VALUE!"},"  "]
[null,null,null,null,null,null,"",null,null,null,null,"","",null,{"$error":"#REF!"},null,{"$error":"#N/A"},null,{"$error":"#N/A"},null,{"$error":"#N/A"},null,{"$error":"#N/A"},null,{"$error":"#N/A"},null,{"$error":"#N/A"},null,{"$error":"#N/A"},{"$error":"#VALUE!"},"  "]
[null,null,null,null,null,null,"",null,null,null,null,"","",null,{"$error":"#REF!"},null,{"$error":"#N/A"},null,{"$error":"#N/A"},null,{"$error":"#N/A"},null,{"$error":"#N/A"},null,{"$error":"#N/A"},null,{"$error":"#N/A"},null,{"$error":"#N/A"},{"$error":"#VALUE!"},"  "]
[null,null,null,null,null,null,"",null,null,null,null,"","",null,{"$error":"#REF!"},null,{"$error":"#N/A"},null,{"$error":"#N/A"},null,{"$error":"#N/A"},null,{"$error":"#N/A"},null,{"$error":"#N/A"},null,{"$error":"#N/A"},null,{"$error":"#N/A"},{"$error":"#VALUE!"},"  "]
[null,null,null,null,null,null,"",null,null,null,null,"","",null,{"$error":"#REF!"},null,{"$error":"#N/A"},null,{"$error":"#N/A"},null,{"$error":"#N/A"},null,{"$error":"#N/A"},null,{"$error":"#N/A"},null,{"$error":"#N/A"},null,{"$error":"#N/A"},{"$error":"#VALUE!"},"  "]
[null,null,null,null,null,null,"",null,null,null,null,"","",null,{"$error":"#REF!"},null,{"$error":"#N/A"},null,{"$error":"#N/A"},null,{"$error":"#N/A"},null,{"$error":"#N/A"},null,{"$error":"#N/A"},null,{"$error":"#N/A"},null,{"$error":"#N/A"},{"$error":"#VALUE!"},"  "]
[null,null,null,null,null,null,"",null,null,null,null,"","",null,{"$error":"#REF!"},null,{"$error":"#N/A"},null,{"$error":"#N/A"},null,{"$error":"#N/A"},null,{"$error":"#N/A"},null,{"$error":"#N/A"},null,{"$error":"#N/A"},null,{"$error":"#N/A"},{"$error":"#VALUE!"},"  "]
[null,null,null,null,null,null,"",null,null,null,null,"","",null,{"$error":"#REF!"},null,{"$error":"#N/A"},null,{"$error":"#N/A"},null,{"$error":"#N/A"},null,{"$error":"#N/A"},null,{"$error":"#N/A"},null,{"$error":"#N/A"},null,{"$error":"#N/A"},{"$error":"#VALUE!"},"  "]
[null,null,null,null,null,null,"",null,null,null,null,"","",null,{"$error":"#REF!"},null,{"$error":"#N/A"},null,{"$error":"#N/A"},null,{"$error":"#N/A"},null,{"$error":"#N/A"},null,{"$error":"#N/A"},null,{"$error":"#N/A"},null,{"$error":"#N/A"},{"$error":"#VALUE!"},"  "]
[null,null,null,null,null,null,"",null,null,null,null,"","",null,{"$error":"#REF!"},null,{"$error":"#N/A"},null,{"$error":"#N/A"},null,{"$error":"#N/A"},null,{"$error":"#N/A"},null,{"$error":"#N/A"},null,{"$error":"#N/A"},null,{"$error":"#N/A"},{"$error":"#VALUE!"},"  "]
[null,null,null,null,null,null,"",null,null,null,null,"","",null,{"$error":"#REF!"},null,{"$error":"#N/A"},null,{"$error":"#N/A"},null,{"$error":"#N/A"},null,{"$error":"#N/A"},null,{"$error":"#N/A"},null,{"$error":"#N/A"},null,{"$error":"#N/A"},{"$error":"#VALUE!"},"  "]
[null,null,null,null,null,null,"",null,null,null,null,"","",null,{"$error":"#REF!"},null,{"$error":"#N/A"},null,{"$error":"#N/A"},null,{"$error":"#N/A"},null,{"$error":"#N/A"},null,{"$error":"#N/A"},null,{"$error":"#N/A"},null,{"$error":"#N/A"},{"$error":"#VALUE!"},"  "]
[null,null,null,null,null,null,"",null,null,null,null,"","",null,{"$error":"#REF!"},null,{"$error":"#N/A"},null,{"$error":"#N/A"},null,{"$error":"#N/A"},null,{"$error":"#N/A"},null,{"$error":"#N/A"},null,{"$error":"#N/A"},null,{"$error":"#N/A"},{"$error":"#VALUE!"},"  "]
[null,null,null,null,null,null,"",null,null,null,null,"","",null,{"$error":"#REF!"},null,{"$error":"#N/A"},null,{"$error":"#N/A"},null,{"$error":"#N/A"},null,{"$error":"#N/A"},null,{"$error":"#N/A"},null,{"$error":"#N/A"},null,{"$error":"#N/A"},{"$error":"#VALUE!"},"  "]
[null,null,null,null,null,null,"",null,null,null,null,"","",null,{"$error":"#REF!"},null,{"$error":"#N/A"},null,{"$error":"#N/A"},null,{"$error":"#N/A"},null,{"$error":"#N/A"},null,{"$error":"#N/A"},null,{"$error":"#N/A"},null,{"$error":"#N/A"},{"$error":"#VALUE!"},"  "]
[null,null,null,null,null,null,"",null,null,null,null,"","",null,{"$error":"#REF!"},null,{"$error":"#N/A"},null,{"$error":"#N/A"},null,{"$error":"#N/A"},null,{"$error":"#N/A"},null,{"$error":"#N/A"},null,{"$error":"#N/A"},null,{"$error":"#N/A"},{"$error":"#VALUE!"},"  "]
[null,null,null,null,null,null,"",null,null,null,null,"","",null,{"$error":"#REF!"},null,{"$error":"#N/A"},null,{"$error":"#N/A"},null,{"$error":"#N/A"},null,{"$error":"#N/A"},null,{"$error":"#N/A"},null,{"$error":"#N/A"},null,{"$error":"#N/A"},{"$error":"#VALUE!"},"  "]
[null,null,null,null,null,null,"",null,null,null,null,"","",null,{"$error":"#REF!"},null,{"$error":"#N/A"},null,{"$error":"#N/A"},null,{"$error":"#N/A"},null,{"$error":"#N/A"},null,{"$error":"#N/A"},null,{"$error":"#N/A"},null,{"$error":"#N/A"},{"$error":"#VALUE!"},"  "]
[null,null,null,null,null,null,"",null,null,null,null,"","",null,{"$error":"#REF!"},null,{"$error":"#N/A"},null,{"$error":"#N/A"},null,{"$error":"#N/A"},null,{"$error":"#N/A"},null,{"$error":"#N/A"},null,{"$error":"#N/A"},null,{"$error":"#N/A"},{"$error":"#VALUE!"},"  "]
[null,null,null,null,null,null,"",null,null,null,null,"","",null,{"$error":"#REF!"},null,{"$error":"#N/A"},null,{"$error":"#N/A"},null,{"$error":"#N/A"},null,{"$error":"#N/A"},null,{"$error":"#N/A"},null,{"$error":"#N/A"},null,{"$error":"#N/A"},{"$error":"#VALUE!"},"  "]
[null,null,null,null,null,null,"",null,null,null,null,"","",null,{"$error":"#REF!"},null,{"$error":"#N/A"},null,{"$error":"#N/A"},null,{"$error":"#N/A"},null,{"$error":"#N/A"},null,{"$error":"#N/A"},null,{"$error":"#N/A"},null,{"$error":"#N/A"},{"$error":"#VALUE!"},"  "]
[null,null,null,null,null,null,"",null,null,null,null,"","",null,{"$error":"#REF!"},null,{"$error":"#N/A"},null,{"$error":"#N/A"},null,{"$error":"#N/A"},null,{"$error":"#N/A"},null,{"$error":"#N/A"},null,{"$error":"#N/A"},null,{"$error":"#N/A"},{"$error":"#VALUE!"},"  "]
[null,null,null,null,null,null,"",null,null,null,null,"","",null,{"$error":"#REF!"},null,{"$error":"#N/A"},null,{"$error":"#N/A"},null,{"$error":"#N/A"},null,{"$error":"#N/A"},null,{"$error":"#N/A"},null,{"$error":"#N/A"},null,{"$error":"#N/A"},{"$error":"#VALUE!"},"  "]
[null,null,null,null,null,null,"",null,null,null,null,"","",null,{"$error":"#REF!"},null,{"$error":"#N/A"},null,{"$error":"#N/A"},null,{"$error":"#N/A"},null,{"$error":"#N/A"},null,{"$error":"#N/A"},null,{"$error":"#N/A"},null,{"$error":"#N/A"},{"$error":"#VALUE!"},"  "]
[null,null,null,null,null,null,"",null,null,null,null,"","",null,{"$error":"#REF!"},null,{"$error":"#N/A"},null,{"$error":"#N/A"},null,{"$error":"#N/A"},null,{"$error":"#N/A"},null,{"$error":"#N/A"},null,{"$error":"#N/A"},null,{"$error":"#N/A"},{"$error":"#VALUE!"},"  "]
[null,null,null,null,null,null,"",null,null,null,null,"","",null,{"$error":"#REF!"},null,{"$error":"#N/A"},null,{"$error":"#N/A"},null,{"$error":"#N/A"},null,{"$error":"#N/A"},null,{"$error":"#N/A"},null,{"$error":"#N/A"},null,{"$error":"#N/A"},{"$error":"#VALUE!"},"  "]
[null,null,null,null,null,null,"",null,null,null,null,"","",null,{"$error":"#REF!"},null,{"$error":"#N/A"},null,{"$error":"#N/A"},null,{"$error":"#N/A"},null,{"$error":"#N/A"},null,{"$error":"#N/A"},null,{"$error":"#N/A"},null,{"$error":"#N/A"},{"$error":"#VALUE!"},"  "]
[null,null,null,null,null,null,"",null,null,null,null,"","",null,{"$error":"#REF!"},null,{"$error":"#N/A"},null,{"$error":"#N/A"},null,{"$error":"#N/A"},null,{"$error":"#N/A"},null,{"$error":"#N/A"},null,{"$error":"#N/A"},null,{"$error":"#N/A"},{"$error":"#VALUE!"},"  "]
[null,null,null,null,null,null,"",null,null,null,null,"","",null,{"$error":"#REF!"},null,{"$error":"#N/A"},null,{"$error":"#N/A"},null,{"$error":"#N/A"},null,{"$error":"#N/A"},null,{"$error":"#N/A"},null,{"$error":"#N/A"},null,{"$error":"#N/A"},{"$error":"#VALUE!"},"  "]
[null,null,null,null,null,null,"",null,null,null,null,"","",null,{"$error":"#REF!"},null,{"$error":"#N/A"},null,{"$error":"#N/A"},null,{"$error":"#N/A"},null,{"$error":"#N/A"},null,{"$error":"#N/A"},null,{"$error":"#N/A"},null,{"$error":"#N/A"},{"$error":"#VALUE!"},"  "]
[null,null,null,null,null,null,"",null,null,null,null,"","",null,{"$error":"#REF!"},null,{"$error":"#N/A"},null,{"$error":"#N/A"},null,{"$error":"#N/A"},null,{"$error":"#N/A"},null,{"$error":"#N/A"},null,{"$error":"#N/A"},null,{"$error":"#N/A"},{"$error":"#VALUE!"},"  "]
[null,null,null,null,null,null,"",null,null,null,null,"","",null,{"$error":"#REF!"},null,{"$error":"#N/A"},null,{"$error":"#N/A"},null,{"$error":"#N/A"},null,{"$error":"#N/A"},null,{"$error":"#N/A"},null,{"$error":"#N/A"},null,{"$error":"#N/A"},{"$error":"#VALUE!"},"  "]
[null,null,null,null,null,null,"",null,null,null,null,"","",null,{"$error":"#REF!"},null,{"$error":"#N/A"},null,{"$error":"#N/A"},null,{"$error":"#N/A"},null,{"$error":"#N/A"},null,{"$error":"#N/A"},null,{"$error":"#N/A"},null,{"$error":"#N/A"},{"$error":"#VALUE!"},"  "]
[null,null,null,null,null,null,"",null,null,null,null,"","",null,{"$error":"#REF!"},null,{"$error":"#N/A"},null,{"$error":"#N/A"},null,{"$error":"#N/A"},null,{"$error":"#N/A"},null,{"$error":"#N/A"},null,{"$error":"#N/A"},null,{"$error":"#N/A"},{"$error":"#VALUE!"},"  "]
[null,null,null,null,null,null,"",null,null,null,null,"","",null,{"$error":"#REF!"},null,{"$error":"#N/A"},null,{"$error":"#N/A"},null,{"$error":"#N/A"},null,{"$error":"#N/A"},null,{"$error":"#N/A"},null,{"$error":"#N/A"},null,{"$error":"#N/A"},{"$error":"#VALUE!"},"  "]
[null,null,null,null,null,null,"",null,null,null,null,"","",null,{"$error":"#REF!"},null,{"$error":"#N/A"},null,{"$error":"#N/A"},null,{"$error":"#N/A"},null,{"$error":"#N/A"},null,{"$error":"#N/A"},null,{"$error":"#N/A"},null,{"$error":"#N/A"},{"$error":"#VALUE!"},"  "]
[null,null,null,null,null,null,"",null,null,null,null,"","",null,{"$error":"#REF!"},null,{"$error":"#N/A"},null,{"$error":"#N/A"},null,{"$error":"#N/A"},null,{"$error":"#N/A"},null,{"$error":"#N/A"},null,{"$error":"#N/A"},null,{"$error":"#N/A"},{"$error":"#VALUE!"},"  "]
[null,null,null,null,null,null,"",null,null,null,null,"","",null,{"$error":"#REF!"},null,{"$error":"#N/A"},null,{"$error":"#N/A"},null,{"$error":"#N/A"},null,{"$error":"#N/A"},null,{"$error":"#N/A"},null,{"$error":"#N/A"},null,{"$error":"#N/A"},{"$error":"#VALUE!"},"  "]
[null,null,null,null,null,null,"",null,null,null,null,"","",null,{"$error":"#REF!"},null,{"$error":"#N/A"},null,{"$error":"#N/A"},null,{"$error":"#N/A"},null,{"$error":"#N/A"},null,{"$error":"#N/A"},null,{"$error":"#N/A"},null,{"$error":"#N/A"},{"$error":"#VALUE!"},"  "]
[null,null,null,null,null,null,"",null,null,null,null,"","",null,{"$error":"#REF!"},null,{"$error":"#N/A"},null,{"$error":"#N/A"},null,{"$error":"#N/A"},null,{"$error":"#N/A"},null,{"$error":"#N/A"},null,{"$error":"#N/A"},null,{"$error":"#N/A"},{"$error":"#VALUE!"},"  "]
[null,null,null,null,null,null,{"$f":"IF(C508=\"\",\"\",VLOOKUP(F508,REF_AGE,2))","v":""},null,null,null,null,{"$f":"IF(I508=\"\",\"\",(H508/(I508*I508))*10000)","v":""},{"$f":"IF(I508=\"\",\"\",VLOOKUP(L508,PT_IMC,2))","v":""},null,{"$f":"VLOOKUP(N508,INDIRECT(\"T1C\"&$E508&G508),2)","v":{"$error":"#REF!"}},null,{"$f":"VLOOKUP(P508,INDIRECT(Q$2&$E508&$G508),2)","v":{"$error":"#N/A"}},null,{"$f":"VLOOKUP(R508,INDIRECT(S$2&$E508&$G508),2)","v":{"$error":"#N/A"}},null,{"$f":"VLOOKUP(T508,INDIRECT(U$2&$E508&$G508),2)","v":{"$error":"#N/A"}},null,{"$f":"VLOOKUP(V508,INDIRECT(W$2&$E508&$G508),2)","v":{"$error":"#N/A"}},null,{"$f":"VLOOKUP(X508,INDIRECT(Y$2&$E508&$G508),2)","v":{"$error":"#N/A"}},null,{"$f":"VLOOKUP(Z508,INDIRECT(AA$2&$E508&$G508),2)","v":{"$error":"#N/A"}},null,{"$f":"VLOOKUP(AB508,INDIRECT(AC$2&$E508&$G508),2)","v":{"$error":"#N/A"}},{"$f":"M508+O508+Q508+S508+U508+W508+Y508+AA508+AC508","v":{"$error":"#VALUE!"}},{"$f":"K508&\" \"&C508&\" \"&D508","v":"  "}]
[null,null,null,null,null,null,"",null,null,null,null,"","",null,{"$error":"#REF!"},null,{"$error":"#N/A"},null,{"$error":"#N/A"},null,{"$error":"#N/A"},null,{"$error":"#N/A"},null,{"$error":"#N/A"},null,{"$error":"#N/A"},null,{"$error":"#N/A"},{"$error":"#VALUE!"},"  "]
[null,null,null,null,null,null,"",null,null,null,null,"","",null,{"$error":"#REF!"},null,{"$error":"#N/A"},null,{"$error":"#N/A"},null,{"$error":"#N/A"},null,{"$error":"#N/A"},null,{"$error":"#N/A"},null,{"$error":"#N/A"},null,{"$error":"#N/A"},{"$error":"#VALUE!"},"  "]
[null,null,null,null,null,null,"",null,null,null,null,"","",null,{"$error":"#REF!"},null,{"$error":"#N/A"},null,{"$error":"#N/A"},null,{"$error":"#N/A"},null,{"$error":"#N/A"},null,{"$error":"#N/A"},null,{"$error":"#N/A"},null,{"$error":"#N/A"},{"$error":"#VALUE!"},"  "]
[null,null,null,null,null,null,"",null,null,null,null,"","",null,{"$error":"#REF!"},null,{"$error":"#N/A"},null,{"$error":"#N/A"},null,{"$error":"#N/A"},null,{"$error":"#N/A"},null,{"$error":"#N/A"},null,{"$error":"#N/A"},null,{"$error":"#N/A"},{"$error":"#VALUE!"},"  "]
[null,null,null,null,null,null,"",null,null,null,null,"","",null,{"$error":"#REF!"},null,{"$error":"#N/A"},null,{"$error":"#N/A"},null,{"$error":"#N/A"},null,{"$error":"#N/A"},null,{"$error":"#N/A"},null,{"$error":"#N/A"},null,{"$error":"#N/A"},{"$error":"#VALUE!"},"  "]
[null,null,null,null,null,null,"",null,null,null,null,"","",null,{"$error":"#REF!"},null,{"$error":"#N/A"},null,{"$error":"#N/A"},null,{"$error":"#N/A"},null,{"$error":"#N/A"},null,{"$error":"#N/A"},null,{"$error":"#N/A"},null,{"$error":"#N/A"},{"$error":"#VALUE!"},"  "]
[null,null,null,null,null,null,"",null,null,null,null,"","",null,{"$error":"#REF!"},null,{"$error":"#N/A"},null,{"$error":"#N/A"},null,{"$error":"#N/A"},null,{"$error":"#N/A"},null,{"$error":"#N/A"},null,{"$error":"#N/A"},null,{"$error":"#N/A"},{"$error":"#VALUE!"},"  "]
[null,null,null,null,null,null,"",null,null,null,null,"","",null,{"$error":"#REF!"},null,{"$error":"#N/A"},null,{"$error":"#N/A"},null,{"$error":"#N/A"},null,{"$error":"#N/A"},null,{"$error":"#N/A"},null,{"$error":"#N/A"},null,{"$error":"#N/A"},{"$error":"#VALUE!"},"  "]
[null,null,null,null,null,null,"",null,null,null,null,"","",null,{"$error":"#REF!"},null,{"$error":"#N/A"},null,{"$error":"#N/A"},null,{"$error":"#N/A"},null,{"$error":"#N/A"},null,{"$error":"#N/A"},null,{"$error":"#N/A"},null,{"$error":"#N/A"},{"$error":"#VALUE!"},"  "]
[null,null,null,null,null,null,"",null,null,null,null,"","",null,{"$error":"#REF!"},null,{"$error":"#N/A"},null,{"$error":"#N/A"},null,{"$error":"#N/A"},null,{"$error":"#N/A"},null,{"$error":"#N/A"},null,{"$error":"#N/A"},null,{"$error":"#N/A"},{"$error":"#VALUE!"},"  "]
[null,null,null,null,null,null,"",null,null,null,null,"","",null,{"$error":"#REF!"},null,{"$error":"#N/A"},null,{"$error":"#N/A"},null,{"$error":"#N/A"},null,{"$error":"#N/A"},null,{"$error":"#N/A"},null,{"$error":"#N/A"},null,{"$error":"#N/A"},{"$error":"#VALUE!"},"  "]
[null,null,null,null,null,null,"",null,null,null,null,"","",null,{"$error":"#REF!"},null,{"$error":"#N/A"},null,{"$error":"#N/A"},null,{"$error":"#N/A"},null,{"$error":"#N/A"},null,{"$error":"#N/A"},null,{"$error":"#N/A"},null,{"$error":"#N/A"},{"$error":"#VALUE!"},"  "]
[null,null,null,null,null,null,"",null,null,null,null,"","",null,{"$error":"#REF!"},null,{"$error":"#N/A"},null,{"$error":"#N/A"},null,{"$error":"#N/A"},null,{"$error":"#N/A"},null,{"$error":"#N/A"},null,{"$error":"#N/A"},null,{"$error":"#N/A"},{"$error":"#VALUE!"},"  "]
[null,null,null,null,null,null,"",null,null,null,null,"","",null,{"$error":"#REF!"},null,{"$error":"#N/A"},null,{"$error":"#N/A"},null,{"$error":"#N/A"},null,{"$error":"#N/A"},null,{"$error":"#N/A"},null,{"$error":"#N/A"},null,{"$error":"#N/A"},{"$error":"#VALUE!"},"  "]
[null,null,null,null,null,null,"",null,null,null,null,"","",null,{"$error":"#REF!"},null,{"$error":"#N/A"},null,{"$error":"#N/A"},null,{"$error":"#N/A"},null,{"$error":"#N/A"},null,{"$error":"#N/A"},null,{"$error":"#N/A"},null,{"$error":"#N/A"},{"$error":"#VALUE!"},"  "]
[null,null,null,null,null,null,"",null,null,null,null,"","",null,{"$error":"#REF!"},null,{"$error":"#N/A"},null,{"$error":"#N/A"},null,{"$error":"#N/A"},null,{"$error":"#N/A"},null,{"$error":"#N/A"},null,{"$error":"#N/A"},null,{"$error":"#N/A"},{"$error":"#VALUE!"},"  "]
[null,null,null,null,null,null,"",null,null,null,null,"","",null,{"$error":"#REF!"},null,{"$error":"#N/A"},null,{"$error":"#N/A"},null,{"$error":"#N/A"},null,{"$error":"#N/A"},null,{"$error":"#N/A"},null,{"$error":"#N/A"},null,{"$error":"#N/A"},{"$error":"#VALUE!"},"  "]
[null,null,null,null,null,null,"",null,null,null,null,"","",null,{"$error":"#REF!"},null,{"$error":"#N/A"},null,{"$error":"#N/A"},null,{"$error":"#N/A"},null,{"$error":"#N/A"},null,{"$error":"#N/A"},null,{"$error":"#N/A"},null,{"$error":"#N/A"},{"$error":"#VALUE!"},"  "]
[null,null,null,null,null,null,"",null,null,null,null,"","",null,{"$error":"#REF!"},null,{"$error":"#N/A"},null,{"$error":"#N/A"},null,{"$error":"#N/A"},null,{"$error":"#N/A"},null,{"$error":"#N/A"},null,{"$error":"#N/A"},null,{"$error":"#N/A"},{"$error":"#VALUE!"},"  "]
[null,null,null,null,null,null,"",null,null,null,null,"","",null,{"$error":"#REF!"},null,{"$error":"#N/A"},null,{"$error":"#N/A"},null,{"$error":"#N/A"},null,{"$error":"#N/A"},null,{"$error":"#N/A"},null,{"$error":"#N/A"},null,{"$error":"#N/A"},{"$error":"#VALUE!"},"  "]
[null,null,null,null,null,null,"",null,null,null,null,"","",null,{"$error":"#REF!"},null,{"$error":"#N/A"},null,{"$error":"#N/A"},null,{"$error":"#N/A"},null,{"$error":"#N/A"},null,{"$error":"#N/A"},null,{"$error":"#N/A"},null,{"$error":"#N/A"},{"$error":"#VALUE!"},"  "]
[null,null,null,null,null,null,"",null,null,null,null,"","",null,{"$error":"#REF!"},null,{"$error":"#N/A"},null,{"$error":"#N/A"},null,{"$error":"#N/A"},null,{"$error":"#N/A"},null,{"$error":"#N/A"},null,{"$error":"#N/A"},null,{"$error":"#N/A"},{"$error":"#VALUE!"},"  "]
[null,null,null,null,null,null,"",null,null,null,null,"","",null,{"$error":"#REF!"},null,{"$error":"#N/A"},null,{"$error":"#N/A"},null,{"$error":"#N/A"},null,{"$error":"#N/A"},null,{"$error":"#N/A"},null,{"$error":"#N/A"},null,{"$error":"#N/A"},{"$error":"#VALUE!"},"  "]
[null,null,null,null,null,null,"",null,null,null,null,"","",null,{"$error":"#REF!"},null,{"$error":"#N/A"},null,{"$error":"#N/A"},null,{"$error":"#N/A"},null,{"$error":"#N/A"},null,{"$error":"#N/A"},null,{"$error":"#N/A"},null,{"$error":"#N/A"},{"$error":"#VALUE!"},"  "]
[null,null,null,null,null,null,"",null,null,null,null,"","",null,{"$error":"#REF!"},null,{"$error":"#N/A"},null,{"$error":"#N/A"},null,{"$error":"#N/A"},null,{"$error":"#N/A"},null,{"$error":"#N/A"},null,{"$error":"#N/A"},null,{"$error":"#N/A"},{"$error":"#VALUE!"},"  "]
[null,null,null,null,null,null,"",null,null,null,null,"","",null,{"$error":"#REF!"},null,{"$error":"#N/A"},null,{"$error":"#N/A"},null,{"$error":"#N/A"},null,{"$error":"#N/A"},null,{"$error":"#N/A"},null,{"$error":"#N/A"},null,{"$error":"#N/A"},{"$error":"#VALUE!"},"  "]
[null,null,null,null,null,null,"",null,null,null,null,"","",null,{"$error":"#REF!"},null,{"$error":"#N/A"},null,{"$error":"#N/A"},null,{"$error":"#N/A"},null,{"$error":"#N/A"},null,{"$error":"#N/A"},null,{"$error":"#N/A"},null,{"$error":"#N/A"},{"$error":"#VALUE!"},"  "]
[null,null,null,null,null,null,"",null,null,null,null,"","",null,{"$error":"#REF!"},null,{"$error":"#N/A"},null,{"$error":"#N/A"},null,{"$error":"#N/A"},null,{"$error":"#N/A"},null,{"$error":"#N/A"},null,{"$error":"#N/A"},null,{"$error":"#N/A"},{"$error":"#VALUE!"},"  "]
[null,null,null,null,null,null,"",null,null,null,null,"","",null,{"$error":"#REF!"},null,{"$error":"#N/A"},null,{"$error":"#N/A"},null,{"$error":"#N/A"},null,{"$error":"#N/A"},null,{"$error":"#N/A"},null,{"$error":"#N/A"},null,{"$error":"#N/A"},{"$error":"#VALUE!"},"  "]
[null,null,null,null,null,null,"",null,null,null,null,"","",null,{"$error":"#REF!"},null,{"$error":"#N/A"},null,{"$error":"#N/A"},null,{"$error":"#N/A"},null,{"$error":"#N/A"},null,{"$error":"#N/A"},null,{"$error":"#N/A"},null,{"$error":"#N/A"},{"$error":"#VALUE!"},"  "]
[null,null,null,null,null,null,"",null,null,null,null,"","",null,{"$error":"#REF!"},null,{"$error":"#N/A"},null,{"$error":"#N/A"},null,{"$error":"#N/A"},null,{"$error":"#N/A"},null,{"$error":"#N/A"},null,{"$error":"#N/A"},null,{"$error":"#N/A"},{"$error":"#VALUE!"},"  "]
[null,null,null,null,null,null,"",null,null,null,null,"","",null,{"$error":"#REF!"},null,{"$error":"#N/A"},null,{"$error":"#N/A"},null,{"$error":"#N/A"},null,{"$error":"#N/A"},null,{"$error":"#N/A"},null,{"$error":"#N/A"},null,{"$error":"#N/A"},{"$error":"#VALUE!"},"  "]
[null,null,null,null,null,null,"",null,null,null,null,"","",null,{"$error":"#REF!"},null,{"$error":"#N/A"},null,{"$error":"#N/A"},null,{"$error":"#N/A"},null,{"$error":"#N/A"},null,{"$error":"#N/A"},null,{"$error":"#N/A"},null,{"$error":"#N/A"},{"$error":"#VALUE!"},"  "]
[null,null,null,null,null,null,"",null,null,null,null,"","",null,{"$error":"#REF!"},null,{"$error":"#N/A"},null,{"$error":"#N/A"},null,{"$error":"#N/A"},null,{"$error":"#N/A"},null,{"$error":"#N/A"},null,{"$error":"#N/A"},null,{"$error":"#N/A"},{"$error":"#VALUE!"},"  "]
[null,null,null,null,null,null,"",null,null,null,null,"","",null,{"$error":"#REF!"},null,{"$error":"#N/A"},null,{"$error":"#N/A"},null,{"$error":"#N/A"},null,{"$error":"#N/A"},null,{"$error":"#N/A"},null,{"$error":"#N/A"},null,{"$error":"#N/A"},{"$error":"#VALUE!"},"  "]
[null,null,null,null,null,null,"",null,null,null,null,"","",null,{"$error":"#REF!"},null,{"$error":"#N/A"},null,{"$error":"#N/A"},null,{"$error":"#N/A"},null,{"$error":"#N/A"},null,{"$error":"#N/A"},null,{"$error":"#N/A"},null,{"$error":"#N/A"},{"$error":"#VALUE!"},"  "]
[null,null,null,null,null,null,"",null,null,null,null,"","",null,{"$error":"#REF!"},null,{"$error":"#N/A"},null,{"$error":"#N/A"},null,{"$error":"#N/A"},null,{"$error":"#N/A"},null,{"$error":"#N/A"},null,{"$error":"#N/A"},null,{"$error":"#N/A"},{"$error":"#VALUE!"},"  "]
[null,null,null,null,null,null,"",null,null,null,null,"","",null,{"$error":"#REF!"},null,{"$error":"#N/A"},null,{"$error":"#N/A"},null,{"$error":"#N/A"},null,{"$error":"#N/A"},null,{"$error":"#N/A"},null,{"$error":"#N/A"},null,{"$error":"#N/A"},{"$error":"#VALUE!"},"  "]
[null,null,null,null,null,null,"",null,null,null,null,"","",null,{"$error":"#REF!"},null,{"$error":"#N/A"},null,{"$error":"#N/A"},null,{"$error":"#N/A"},null,{"$error":"#N/A"},null,{"$error":"#N/A"},null,{"$error":"#N/A"},null,{"$error":"#N/A"},{"$error":"#VALUE!"},"  "]
[null,null,null,null,null,null,"",null,null,null,null,"","",null,{"$error":"#REF!"},null,{"$error":"#N/A"},null,{"$error":"#N/A"},null,{"$error":"#N/A"},null,{"$error":"#N/A"},null,{"$error":"#N/A"},null,{"$error":"#N/A"},null,{"$error":"#N/A"},{"$error":"#VALUE!"},"  "]
[null,null,null,null,null,null,"",null,null,null,null,"","",null,{"$error":"#REF!"},null,{"$error":"#N/A"},null,{"$error":"#N/A"},null,{"$error":"#N/A"},null,{"$error":"#N/A"},null,{"$error":"#N/A"},null,{"$error":"#N/A"},null,{"$error":"#N/A"},{"$error":"#VALUE!"},"  "]
[null,null,null,null,null,null,"",null,null,null,null,"","",null,{"$error":"#REF!"},null,{"$error":"#N/A"},null,{"$error":"#N/A"},null,{"$error":"#N/A"},null,{"$error":"#N/A"},null,{"$error":"#N/A"},null,{"$error":"#N/A"},null,{"$error":"#N/A"},{"$error":"#VALUE!"},"  "]
[null,null,null,null,null,null,"",null,null,null,null,"","",null,{"$error":"#REF!"},null,{"$error":"#N/A"},null,{"$error":"#N/A"},null,{"$error":"#N/A"},null,{"$error":"#N/A"},null,{"$error":"#N/A"},null,{"$error":"#N/A"},null,{"$error":"#N/A"},{"$error":"#VALUE!"},"  "]
[null,null,null,null,null,null,"",null,null,null,null,"","",null,{"$error":"#REF!"},null,{"$error":"#N/A"},null,{"$error":"#N/A"},null,{"$error":"#N/A"},null,{"$error":"#N/A"},null,{"$error":"#N/A"},null,{"$error":"#N/A"},null,{"$error":"#N/A"},{"$error":"#VALUE!"},"  "]
[null,null,null,null,null,null,"",null,null,null,null,"","",null,{"$error":"#REF!"},null,{"$error":"#N/A"},null,{"$error":"#N/A"},null,{"$error":"#N/A"},null,{"$error":"#N/A"},null,{"$error":"#N/A"},null,{"$error":"#N/A"},null,{"$error":"#N/A"},{"$error":"#VALUE!"},"  "]
[null,null,null,null,null,null,"",null,null,null,null,"","",null,{"$error":"#REF!"},null,{"$error":"#N/A"},null,{"$error":"#N/A"},null,{"$error":"#N/A"},null,{"$error":"#N/A"},null,{"$error":"#N/A"},null,{"$error":"#N/A"},null,{"$error":"#N/A"},{"$error":"#VALUE!"},"  "]
[null,null,null,null,null,null,"",null,null,null,null,"","",null,{"$error":"#REF!"},null,{"$error":"#N/A"},null,{"$error":"#N/A"},null,{"$error":"#N/A"},null,{"$error":"#N/A"},null,{"$error":"#N/A"},null,{"$error":"#N/A"},null,{"$error":"#N/A"},{"$error":"#VALUE!"},"  "]
[null,null,null,null,null,null,"",null,null,null,null,"","",null,{"$error":"#REF!"},null,{"$error":"#N/A"},null,{"$error":"#N/A"},null,{"$error":"#N/A"},null,{"$error":"#N/A"},null,{"$error":"#N/A"},null,{"$error":"#N/A"},null,{"$error":"#N/A"},{"$error":"#VALUE!"},"  "]
[null,null,null,null,null,null,"",null,null,null,null,"","",null,{"$error":"#REF!"},null,{"$error":"#N/A"},null,{"$error":"#N/A"},null,{"$error":"#N/A"},null,{"$error":"#N/A"},null,{"$error":"#N/A"},null,{"$error":"#N/A"},null,{"$error":"#N/A"},{"$error":"#VALUE!"},"  "]
[null,null,null,null,null,null,"",null,null,null,null,"","",null,{"$error":"#REF!"},null,{"$error":"#N/A"},null,{"$error":"#N/A"},null,{"$error":"#N/A"},null,{"$error":"#N/A"},null,{"$error":"#N/A"},null,{"$error":"#N/A"},null,{"$error":"#N/A"},{"$error":"#VALUE!"},"  "]
[null,null,null,null,null,null,"",null,null,null,null,"","",null,{"$error":"#REF!"},null,{"$error":"#N/A"},null,{"$error":"#N/A"},null,{"$error":"#N/A"},null,{"$error":"#N/A"},null,{"$error":"#N/A"},null,{"$error":"#N/A"},null,{"$error":"#N/A"},{"$error":"#VALUE!"},"  "]
[null,null,null,null,null,null,"",null,null,null,null,"","",null,{"$error":"#REF!"},null,{"$error":"#N/A"},null,{"$error":"#N/A"},null,{"$error":"#N/A"},null,{"$error":"#N/A"},null,{"$error":"#N/A"},null,{"$error":"#N/A"},null,{"$error":"#N/A"},{"$error":"#VALUE!"},"  "]
[null,null,null,null,null,null,"",null,null,null,null,"","",null,{"$error":"#REF!"},null,{"$error":"#N/A"},null,{"$error":"#N/A"},null,{"$error":"#N/A"},null,{"$error":"#N/A"},null,{"$error":"#N/A"},null,{"$error":"#N/A"},null,{"$error":"#N/A"},{"$error":"#VALUE!"},"  "]
[null,null,null,null,null,null,"",null,null,null,null,"","",null,{"$error":"#REF!"},null,{"$error":"#N/A"},null,{"$error":"#N/A"},null,{"$error":"#N/A"},null,{"$error":"#N/A"},null,{"$error":"#N/A"},null,{"$error":"#N/A"},null,{"$error":"#N/A"},{"$error":"#VALUE!"},"  "]
[null,null,null,null,null,null,"",null,null,null,null,"","",null,{"$error":"#REF!"},null,{"$error":"#N/A"},null,{"$error":"#N/A"},null,{"$error":"#N/A"},null,{"$error":"#N/A"},null,{"$error":"#N/A"},null,{"$error":"#N/A"},null,{"$error":"#N/A"},{"$error":"#VALUE!"},"  "]
[null,null,null,null,null,null,"",null,null,null,null,"","",null,{"$error":"#REF!"},null,{"$error":"#N/A"},null,{"$error":"#N/A"},null,{"$error":"#N/A"},null,{"$error":"#N/A"},null,{"$error":"#N/A"},null,{"$error":"#N/A"},null,{"$error":"#N/A"},{"$error":"#VALUE!"},"  "]
[null,null,null,null,null,null,"",null,null,null,null,"","",null,{"$error":"#REF!"},null,{"$error":"#N/A"},null,{"$error":"#N/A"},null,{"$error":"#N/A"},null,{"$error":"#N/A"},null,{"$error":"#N/A"},null,{"$error":"#N/A"},null,{"$error":"#N/A"},{"$error":"#VALUE!"},"  "]
[null,null,null,null,null,null,"",null,null,null,null,"","",null,{"$error":"#REF!"},null,{"$error":"#N/A"},null,{"$error":"#N/A"},null,{"$error":"#N/A"},null,{"$error":"#N/A"},null,{"$error":"#N/A"},null,{"$error":"#N/A"},null,{"$error":"#N/A"},{"$error":"#VALUE!"},"  "]
[null,null,null,null,null,null,"",null,null,null,null,"","",null,{"$error":"#REF!"},null,{"$error":"#N/A"},null,{"$error":"#N/A"},null,{"$error":"#N/A"},null,{"$error":"#N/A"},null,{"$error":"#N/A"},null,{"$error":"#N/A"},null,{"$error":"#N/A"},{"$error":"#VALUE!"},"  "]
[null,null,null,null,null,null,"",null,null,null,null,"","",null,{"$error":"#REF!"},null,{"$error":"#N/A"},null,{"$error":"#N/A"},null,{"$error":"#N/A"},null,{"$error":"#N/A"},null,{"$error":"#N/A"},null,{"$error":"#N/A"},null,{"$error":"#N/A"},{"$error":"#VALUE!"},"  "]
[null,null,null,null,null,null,"",null,null,null,null,"","",null,{"$error":"#REF!"},null,{"$error":"#N/A"},null,{"$error":"#N/A"},null,{"$error":"#N/A"},null,{"$error":"#N/A"},null,{"$error":"#N/A"},null,{"$error":"#N/A"},null,{"$error":"#N/A"},{"$error":"#VALUE!"},"  "]
[null,null,null,null,null,null,"",null,null,null,null,"","",null,{"$error":"#REF!"},null,{"$error":"#N/A"},null,{"$error":"#N/A"},null,{"$error":"#N/A"},null,{"$error":"#N/A"},null,{"$error":"#N/A"},null,{"$error":"#N/A"},null,{"$error":"#N/A"},{"$error":"#VALUE!"},"  "]
[null,null,null,null,null,null,"",null,null,null,null,"","",null,{"$error":"#REF!"},null,{"$error":"#N/A"},null,{"$error":"#N/A"},null,{"$error":"#N/A"},null,{"$error":"#N/A"},null,{"$error":"#N/A"},null,{"$error":"#N/A"},null,{"$error":"#N/A"},{"$error":"#VALUE!"},"  "]
[null,null,null,null,null,null,{"$f":"IF(C572=\"\",\"\",VLOOKUP(F572,REF_AGE,2))","v":""},null,null,null,null,{"$f":"IF(I572=\"\",\"\",(H572/(I572*I572))*10000)","v":""},{"$f":"IF(I572=\"\",\"\",VLOOKUP(L572,PT_IMC,2))","v":""},null,{"$f":"VLOOKUP(N572,INDIRECT(\"T1C\"&$E572&G572),2)","v":{"$error":"#REF!"}},null,{"$f":"VLOOKUP(P572,INDIRECT(Q$2&$E572&$G572),2)","v":{"$error":"#N/A"}},null,{"$f":"VLOOKUP(R572,INDIRECT(S$2&$E572&$G572),2)","v":{"$error":"#N/A"}},null,{"$f":"VLOOKUP(T572,INDIRECT(U$2&$E572&$G572),2)","v":{"$error":"#N/A"}},null,{"$f":"VLOOKUP(V572,INDIRECT(W$2&$E572&$G572),2)","v":{"$error":"#N/A"}},null,{"$f":"VLOOKUP(X572,INDIRECT(Y$2&$E572&$G572),2)","v":{"$error":"#N/A"}},null,{"$f":"VLOOKUP(Z572,INDIRECT(AA$2&$E572&$G572),2)","v":{"$error":"#N/A"}},null,{"$f":"VLOOKUP(AB572,INDIRECT(AC$2&$E572&$G572),2)","v":{"$error":"#N/A"}},{"$f":"M572+O572+Q572+S572+U572+W572+Y572+AA572+AC572","v":{"$error":"#VALUE!"}},{"$f":"K572&\" \"&C572&\" \"&D572","v":"  "}]
[null,null,null,null,null,null,"",null,null,null,null,"","",null,{"$error":"#REF!"},null,{"$error":"#N/A"},null,{"$error":"#N/A"},null,{"$error":"#N/A"},null,{"$error":"#N/A"},null,{"$error":"#N/A"},null,{"$error":"#N/A"},null,{"$error":"#N/A"},{"$error":"#VALUE!"},"  "]
[null,null,null,null,null,null,"",null,null,null,null,"","",null,{"$error":"#REF!"},null,{"$error":"#N/A"},null,{"$error":"#N/A"},null,{"$error":"#N/A"},null,{"$error":"#N/A"},null,{"$error":"#N/A"},null,{"$error":"#N/A"},null,{"$error":"#N/A"},{"$error":"#VALUE!"},"  "]
[null,null,null,null,null,null,"",null,null,null,null,"","",null,{"$error":"#REF!"},null,{"$error":"#N/A"},null,{"$error":"#N/A"},null,{"$error":"#N/A"},null,{"$error":"#N/A"},null,{"$error":"#N/A"},null,{"$error":"#N/A"},null,{"$error":"#N/A"},{"$error":"#VALUE!"},"  "]
[null,null,null,null,null,null,"",null,null,null,null,"","",null,{"$error":"#REF!"},null,{"$error":"#N/A"},null,{"$error":"#N/A"},null,{"$error":"#N/A"},null,{"$error":"#N/A"},null,{"$error":"#N/A"},null,{"$error":"#N/A"},null,{"$error":"#N/A"},{"$error":"#VALUE!"},"  "]
[null,null,null,null,null,null,"",null,null,null,null,"","",null,{"$error":"#REF!"},null,{"$error":"#N/A"},null,{"$error":"#N/A"},null,{"$error":"#N/A"},null,{"$error":"#N/A"},null,{"$error":"#N/A"},null,{"$error":"#N/A"},null,{"$error":"#N/A"},{"$error":"#VALUE!"},"  "]
[null,null,null,null,null,null,"",null,null,null,null,"","",null,{"$error":"#REF!"},null,{"$error":"#N/A"},null,{"$error":"#N/A"},null,{"$error":"#N/A"},null,{"$error":"#N/A"},null,{"$error":"#N/A"},null,{"$error":"#N/A"},null,{"$error":"#N/A"},{"$error":"#VALUE!"},"  "]
[null,null,null,null,null,null,"",null,null,null,null,"","",null,{"$error":"#REF!"},null,{"$error":"#N/A"},null,{"$error":"#N/A"},null,{"$error":"#N/A"},null,{"$error":"#N/A"},null,{"$error":"#N/A"},null,{"$error":"#N/A"},null,{"$error":"#N/A"},{"$error":"#VALUE!"},"  "]
[null,null,null,null,null,null,"",null,null,null,null,"","",null,{"$error":"#REF!"},null,{"$error":"#N/A"},null,{"$error":"#N/A"},null,{"$error":"#N/A"},null,{"$error":"#N/A"},null,{"$error":"#N/A"},null,{"$error":"#N/A"},null,{"$error":"#N/A"},{"$error":"#VALUE!"},"  "]
[null,null,null,null,null,null,"",null,null,null,null,"","",null,{"$error":"#REF!"},null,{"$error":"#N/A"},null,{"$error":"#N/A"},null,{"$error":"#N/A"},null,{"$error":"#N/A"},null,{"$error":"#N/A"},null,{"$error":"#N/A"},null,{"$error":"#N/A"},{"$error":"#VALUE!"},"  "]
[null,null,null,null,null,null,"",null,null,null,null,"","",null,{"$error":"#REF!"},null,{"$error":"#N/A"},null,{"$error":"#N/A"},null,{"$error":"#N/A"},null,{"$error":"#N/A"},null,{"$error":"#N/A"},null,{"$error":"#N/A"},null,{"$error":"#N/A"},{"$error":"#VALUE!"},"  "]
[null,null,null,null,null,null,"",null,null,null,null,"","",null,{"$error":"#REF!"},null,{"$error":"#N/A"},null,{"$error":"#N/A"},null,{"$error":"#N/A"},null,{"$error":"#N/A"},null,{"$error":"#N/A"},null,{"$error":"#N/A"},null,{"$error":"#N/A"},{"$error":"#VALUE!"},"  "]
[null,null,null,null,null,null,"",null,null,null,null,"","",null,{"$error":"#REF!"},null,{"$error":"#N/A"},null,{"$error":"#N/A"},null,{"$error":"#N/A"},null,{"$error":"#N/A"},null,{"$error":"#N/A"},null,{"$error":"#N/A"},null,{"$error":"#N/A"},{"$error":"#VALUE!"},"  "]
[null,null,null,null,null,null,"",null,null,null,null,"","",null,{"$error":"#REF!"},null,{"$error":"#N/A"},null,{"$error":"#N/A"},null,{"$error":"#N/A"},null,{"$error":"#N/A"},null,{"$error":"#N/A"},null,{"$error":"#N/A"},null,{"$error":"#N/A"},{"$error":"#VALUE!"},"  "]
[null,null,null,null,null,null,"",null,null,null,null,"","",null,{"$error":"#REF!"},null,{"$error":"#N/A"},null,{"$error":"#N/A"},null,{"$error":"#N/A"},null,{"$error":"#N/A"},null,{"$error":"#N/A"},null,{"$error":"#N/A"},null,{"$error":"#N/A"},{"$error":"#VALUE!"},"  "]
[null,null,null,null,null,null,"",null,null,null,null,"","",null,{"$error":"#REF!"},null,{"$error":"#N/A"},null,{"$error":"#N/A"},null,{"$error":"#N/A"},null,{"$error":"#N/A"},null,{"$error":"#N/A"},null,{"$error":"#N/A"},null,{"$error":"#N/A"},{"$error":"#VALUE!"},"  "]
[null,null,null,null,null,null,"",null,null,null,null,"","",null,{"$error":"#REF!"},null,{"$error":"#N/A"},null,{"$error":"#N/A"},null,{"$error":"#N/A"},null,{"$error":"#N/A"},null,{"$error":"#N/A"},null,{"$error":"#N/A"},null,{"$error":"#N/A"},{"$error":"#VALUE!"},"  "]
[null,null,null,null,null,null,"",null,null,null,null,"","",null,{"$error":"#REF!"},null,{"$error":"#N/A"},null,{"$error":"#N/A"},null,{"$error":"#N/A"},null,{"$error":"#N/A"},null,{"$error":"#N/A"},null,{"$error":"#N/A"},null,{"$error":"#N/A"},{"$error":"#VALUE!"},"  "]
[null,null,null,null,null,null,"",null,null,null,null,"","",null,{"$error":"#REF!"},null,{"$error":"#N/A"},null,{"$error":"#N/A"},null,{"$error":"#N/A"},null,{"$error":"#N/A"},null,{"$error":"#N/A"},null,{"$error":"#N/A"},null,{"$error":"#N/A"},{"$error":"#VALUE!"},"  "]
[null,null,null,null,null,null,"",null,null,null,null,"","",null,{"$error":"#REF!"},null,{"$error":"#N/A"},null,{"$error":"#N/A"},null,{"$error":"#N/A"},null,{"$error":"#N/A"},null,{"$error":"#N/A"},null,{"$error":"#N/A"},null,{"$error":"#N/A"},{"$error":"#VALUE!"},"  "]
[null,null,null,null,null,null,"",null,null,null,null,"","",null,{"$error":"#REF!"},null,{"$error":"#N/A"},null,{"$error":"#N/A"},null,{"$error":"#N/A"},null,{"$error":"#N/A"},null,{"$error":"#N/A"},null,{"$error":"#N/A"},null,{"$error":"#N/A"},{"$error":"#VALUE!"},"  "]
[null,null,null,null,null,null,"",null,null,null,null,"","",null,{"$error":"#REF!"},null,{"$error":"#N/A"},null,{"$error":"#N/A"},null,{"$error":"#N/A"},null,{"$error":"#N/A"},null,{"$error":"#N/A"},null,{"$error":"#N/A"},null,{"$error":"#N/A"},{"$error":"#VALUE!"},"  "]
[null,null,null,null,null,null,"",null,null,null,null,"","",null,{"$error":"#REF!"},null,{"$error":"#N/A"},null,{"$error":"#N/A"},null,{"$error":"#N/A"},null,{"$error":"#N/A"},null,{"$error":"#N/A"},null,{"$error":"#N/A"},null,{"$error":"#N/A"},{"$error":"#VALUE!"},"  "]
[null,null,null,null,null,null,"",null,null,null,null,"","",null,{"$error":"#REF!"},null,{"$error":"#N/A"},null,{"$error":"#N/A"},null,{"$error":"#N/A"},null,{"$error":"#N/A"},null,{"$error":"#N/A"},null,{"$error":"#N/A"},null,{"$error":"#N/A"},{"$error":"#VALUE!"},"  "]
[null,null,null,null,null,null,"",null,null,null,null,"","",null,{"$error":"#REF!"},null,{"$error":"#N/A"},null,{"$error":"#N/A"},null,{"$error":"#N/A"},null,{"$error":"#N/A"},null,{"$error":"#N/A"},null,{"$error":"#N/A"},null,{"$error":"#N/A"},{"$error":"#VALUE!"},"  "]
[null,null,null,null,null,null,"",null,null,null,null,"","",null,{"$error":"#REF!"},null,{"$error":"#N/A"},null,{"$error":"#N/A"},null,{"$error":"#N/A"},null,{"$error":"#N/A"},null,{"$error":"#N/A"},null,{"$error":"#N/A"},null,{"$error":"#N/A"},{"$error":"#VALUE!"},"  "]
[null,null,null,null,null,null,"",null,null,null,null,"","",null,{"$error":"#REF!"},null,{"$error":"#N/A"},null,{"$error":"#N/A"},null,{"$error":"#N/A"},null,{"$error":"#N/A"},null,{"$error":"#N/A"},null,{"$error":"#N/A"},null,{"$error":"#N/A"},{"$error":"#VALUE!"},"  "]
[null,null,null,null,null,null,"",null,null,null,null,"","",null,{"$error":"#REF!"},null,{"$error":"#N/A"},null,{"$error":"#N/A"},null,{"$error":"#N/A"},null,{"$error":"#N/A"},null,{"$error":"#N/A"},null,{"$error":"#N/A"},null,{"$error":"#N/A"},{"$error":"#VALUE!"},"  "]
[null,null,null,null,null,null,"",null,null,null,null,"","",null,{"$error":"#REF!"},null,{"$error":"#N/A"},null,{"$error":"#N/A"},null,{"$error":"#N/A"},null,{"$error":"#N/A"},null,{"$error":"#N/A"},null,{"$error":"#N/A"},null,{"$error":"#N/A"},{"$error":"#VALUE!"},"  "]
[null,null,null,null,null,null,"",null,null,null,null,"","",null,{"$error":"#REF!"},null,{"$error":"#N/A"},null,{"$error":"#N/A"},null,{"$error":"#N/A"},null,{"$error":"#N/A"},null,{"$error":"#N/A"},null,{"$error":"#N/A"},null,{"$error":"#N/A"},{"$error":"#VALUE!"},"  "]
[null,null,null,null,null,null,"",null,null,null,null,"","",null,{"$error":"#REF!"},null,{"$error":"#N/A"},null,{"$error":"#N/A"},null,{"$error":"#N/A"},null,{"$error":"#N/A"},null,{"$error":"#N/A"},null,{"$error":"#N/A"},null,{"$error":"#N/A"},{"$error":"#VALUE!"},"  "]
[null,null,null,null,null,null,"",null,null,null,null,"","",null,{"$error":"#REF!"},null,{"$error":"#N/A"},null,{"$error":"#N/A"},null,{"$error":"#N/A"},null,{"$error":"#N/A"},null,{"$error":"#N/A"},null,{"$error":"#N/A"},null,{"$error":"#N/A"},{"$error":"#VALUE!"},"  "]
[null,null,null,null,null,null,"",null,null,null,null,"","",null,{"$error":"#REF!"},null,{"$error":"#N/A"},null,{"$error":"#N/A"},null,{"$error":"#N/A"},null,{"$error":"#N/A"},null,{"$error":"#N/A"},null,{"$error":"#N/A"},null,{"$error":"#N/A"},{"$error":"#VALUE!"},"  "]
[null,null,null,null,null,null,"",null,null,null,null,"","",null,{"$error":"#REF!"},null,{"$error":"#N/A"},null,{"$error":"#N/A"},null,{"$error":"#N/A"},null,{"$error":"#N/A"},null,{"$error":"#N/A"},null,{"$error":"#N/A"},null,{"$error":"#N/A"},{"$error":"#VALUE!"},"  "]
[null,null,null,null,null,null,"",null,null,null,null,"","",null,{"$error":"#REF!"},null,{"$error":"#N/A"},null,{"$error":"#N/A"},null,{"$error":"#N/A"},null,{"$error":"#N/A"},null,{"$error":"#N/A"},null,{"$error":"#N/A"},null,{"$error":"#N/A"},{"$error":"#VALUE!"},"  "]
[null,null,null,null,null,null,"",null,null,null,null,"","",null,{"$error":"#REF!"},null,{"$error":"#N/A"},null,{"$error":"#N/A"},null,{"$error":"#N/A"},null,{"$error":"#N/A"},null,{"$error":"#N/A"},null,{"$error":"#N/A"},null,{"$error":"#N/A"},{"$error":"#VALUE!"},"  "]
[null,null,null,null,null,null,"",null,null,null,null,"","",null,{"$error":"#REF!"},null,{"$error":"#N/A"},null,{"$error":"#N/A"},null,{"$error":"#N/A"},null,{"$error":"#N/A"},null,{"$error":"#N/A"},null,{"$error":"#N/A"},null,{"$error":"#N/A"},{"$error":"#VALUE!"},"  "]
[null,null,null,null,null,null,"",null,null,null,null,"","",null,{"$error":"#REF!"},null,{"$error":"#N/A"},null,{"$error":"#N/A"},null,{"$error":"#N/A"},null,{"$error":"#N/A"},null,{"$error":"#N/A"},null,{"$error":"#N/A"},null,{"$error":"#N/A"},{"$error":"#VALUE!"},"  "]
[null,null,null,null,null,null,"",null,null,null,null,"","",null,{"$error":"#REF!"},null,{"$error":"#N/A"},null,{"$error":"#N/A"},null,{"$error":"#N/A"},null,{"$error":"#N/A"},null,{"$error":"#N/A"},null,{"$error":"#N/A"},null,{"$error":"#N/A"},{"$error":"#VALUE!"},"  "]
[null,null,null,null,null,null,"",null,null,null,null,"","",null,{"$error":"#REF!"},null,{"$error":"#N/A"},null,{"$error":"#N/A"},null,{"$error":"#N/A"},null,{"$error":"#N/A"},null,{"$error":"#N/A"},null,{"$error":"#N/A"},null,{"$error":"#N/A"},{"$error":"#VALUE!"},"  "]
[null,null,null,null,null,null,"",null,null,null,null,"","",null,{"$error":"#REF!"},null,{"$error":"#N/A"},null,{"$error":"#N/A"},null,{"$error":"#N/A"},null,{"$error":"#N/A"},null,{"$error":"#N/A"},null,{"$error":"#N/A"},null,{"$error":"#N/A"},{"$error":"#VALUE!"},"  "]
[null,null,null,null,null,null,"",null,null,null,null,"","",null,{"$error":"#REF!"},null,{"$error":"#N/A"},null,{"$error":"#N/A"},null,{"$error":"#N/A"},null,{"$error":"#N/A"},null,{"$error":"#N/A"},null,{"$error":"#N/A"},null,{"$error":"#N/A"},{"$error":"#VALUE!"},"  "]
[null,null,null,null,null,null,"",null,null,null,null,"","",null,{"$error":"#REF!"},null,{"$error":"#N/A"},null,{"$error":"#N/A"},null,{"$error":"#N/A"},null,{"$error":"#N/A"},null,{"$error":"#N/A"},null,{"$error":"#N/A"},null,{"$error":"#N/A"},{"$error":"#VALUE!"},"  "]
[null,null,null,null,null,null,"",null,null,null,null,"","",null,{"$error":"#REF!"},null,{"$error":"#N/A"},null,{"$error":"#N/A"},null,{"$error":"#N/A"},null,{"$error":"#N/A"},null,{"$error":"#N/A"},null,{"$error":"#N/A"},null,{"$error":"#N/A"},{"$error":"#VALUE!"},"  "]
[null,null,null,null,null,null,"",null,null,null,null,"","",null,{"$error":"#REF!"},null,{"$error":"#N/A"},null,{"$error":"#N/A"},null,{"$error":"#N/A"},null,{"$error":"#N/A"},null,{"$error":"#N/A"},null,{"$error":"#N/A"},null,{"$error":"#N/A"},{"$error":"#VALUE!"},"  "]
[null,null,null,null,null,null,"",null,null,null,null,"","",null,{"$error":"#REF!"},null,{"$error":"#N/A"},null,{"$error":"#N/A"},null,{"$error":"#N/A"},null,{"$error":"#N/A"},null,{"$error":"#N/A"},null,{"$error":"#N/A"},null,{"$error":"#N/A"},{"$error":"#VALUE!"},"  "]
[null,null,null,null,null,null,"",null,null,null,null,"","",null,{"$error":"#REF!"},null,{"$error":"#N/A"},null,{"$error":"#N/A"},null,{"$error":"#N/A"},null,{"$error":"#N/A"},null,{"$error":"#N/A"},null,{"$error":"#N/A"},null,{"$error":"#N/A"},{"$error":"#VALUE!"},"  "]
[null,null,null,null,null,null,"",null,null,null,null,"","",null,{"$error":"#REF!"},null,{"$error":"#N/A"},null,{"$error":"#N/A"},null,{"$error":"#N/A"},null,{"$error":"#N/A"},null,{"$error":"#N/A"},null,{"$error":"#N/A"},null,{"$error":"#N/A"},{"$error":"#VALUE!"},"  "]
[null,null,null,null,null,null,"",null,null,null,null,"","",null,{"$error":"#REF!"},null,{"$error":"#N/A"},null,{"$error":"#N/A"},null,{"$error":"#N/A"},null,{"$error":"#N/A"},null,{"$error":"#N/A"},null,{"$error":"#N/A"},null,{"$error":"#N/A"},{"$error":"#VALUE!"},"  "]
[null,null,null,null,null,null,"",null,null,null,null,"","",null,{"$error":"#REF!"},null,{"$error":"#N/A"},null,{"$error":"#N/A"},null,{"$error":"#N/A"},null,{"$error":"#N/A"},null,{"$error":"#N/A"},null,{"$error":"#N/A"},null,{"$error":"#N/A"},{"$error":"#VALUE!"},"  "]
[null,null,null,null,null,null,"",null,null,null,null,"","",null,{"$error":"#REF!"},null,{"$error":"#N/A"},null,{"$error":"#N/A"},null,{"$error":"#N/A"},null,{"$error":"#N/A"},null,{"$error":"#N/A"},null,{"$error":"#N/A"},null,{"$error":"#N/A"},{"$error":"#VALUE!"},"  "]
[null,null,null,null,null,null,"",null,null,null,null,"","",null,{"$error":"#REF!"},null,{"$error":"#N/A"},null,{"$error":"#N/A"},null,{"$error":"#N/A"},null,{"$error":"#N/A"},null,{"$error":"#N/A"},null,{"$error":"#N/A"},null,{"$error":"#N/A"},{"$error":"#VALUE!"},"  "]
[null,null,null,null,null,null,"",null,null,null,null,"","",null,{"$error":"#REF!"},null,{"$error":"#N/A"},null,{"$error":"#N/A"},null,{"$error":"#N/A"},null,{"$error":"#N/A"},null,{"$error":"#N/A"},null,{"$error":"#N/A"},null,{"$error":"#N/A"},{"$error":"#VALUE!"},"  "]
[null,null,null,null,null,null,"",null,null,null,null,"","",null,{"$error":"#REF!"},null,{"$error":"#N/A"},null,{"$error":"#N/A"},null,{"$error":"#N/A"},null,{"$error":"#N/A"},null,{"$error":"#N/A"},null,{"$error":"#N/A"},null,{"$error":"#N/A"},{"$error":"#VALUE!"},"  "]
[null,null,null,null,null,null,"",null,null,null,null,"","",null,{"$error":"#REF!"},null,{"$error":"#N/A"},null,{"$error":"#N/A"},null,{"$error":"#N/A"},null,{"$error":"#N/A"},null,{"$error":"#N/A"},null,{"$error":"#N/A"},null,{"$error":"#N/A"},{"$error":"#VALUE!"},"  "]
[null,null,null,null,null,null,"",null,null,null,null,"","",null,{"$error":"#REF!"},null,{"$error":"#N/A"},null,{"$error":"#N/A"},null,{"$error":"#N/A"},null,{"$error":"#N/A"},null,{"$error":"#N/A"},null,{"$error":"#N/A"},null,{"$error":"#N/A"},{"$error":"#VALUE!"},"  "]
[null,null,null,null,null,null,"",null,null,null,null,"","",null,{"$error":"#REF!"},null,{"$error":"#N/A"},null,{"$error":"#N/A"},null,{"$error":"#N/A"},null,{"$error":"#N/A"},null,{"$error":"#N/A"},null,{"$error":"#N/A"},null,{"$error":"#N/A"},{"$error":"#VALUE!"},"  "]
[null,null,null,null,null,null,"",null,null,null,null,"","",null,{"$error":"#REF!"},null,{"$error":"#N/A"},null,{"$error":"#N/A"},null,{"$error":"#N/A"},null,{"$error":"#N/A"},null,{"$error":"#N/A"},null,{"$error":"#N/A"},null,{"$error":"#N/A"},{"$error":"#VALUE!"},"  "]
[null,null,null,null,null,null,"",null,null,null,null,"","",null,{"$error":"#REF!"},null,{"$error":"#N/A"},null,{"$error":"#N/A"},null,{"$error":"#N/A"},null,{"$error":"#N/A"},null,{"$error":"#N/A"},null,{"$error":"#N/A"},null,{"$error":"#N/A"},{"$error":"#VALUE!"},"  "]
[null,null,null,null,null,null,"",null,null,null,null,"","",null,{"$error":"#REF!"},null,{"$error":"#N/A"},null,{"$error":"#N/A"},null,{"$error":"#N/A"},null,{"$error":"#N/A"},null,{"$error":"#N/A"},null,{"$error":"#N/A"},null,{"$error":"#N/A"},{"$error":"#VALUE!"},"  "]
[null,null,null,null,null,null,"",null,null,null,null,"","",null,{"$error":"#REF!"},null,{"$error":"#N/A"},null,{"$error":"#N/A"},null,{"$error":"#N/A"},null,{"$error":"#N/A"},null,{"$error":"#N/A"},null,{"$error":"#N/A"},null,{"$error":"#N/A"},{"$error":"#VALUE!"},"  "]
[null,null,null,null,null,null,"",null,null,null,null,"","",null,{"$error":"#REF!"},null,{"$error":"#N/A"},null,{"$error":"#N/A"},null,{"$error":"#N/A"},null,{"$error":"#N/A"},null,{"$error":"#N/A"},null,{"$error":"#N/A"},null,{"$error":"#N/A"},{"$error":"#VALUE!"},"  "]
[null,null,null,null,null,null,"",null,null,null,null,"","",null,{"$error":"#REF!"},null,{"$error":"#N/A"},null,{"$error":"#N/A"},null,{"$error":"#N/A"},null,{"$error":"#N/A"},null,{"$error":"#N/A"},null,{"$error":"#N/A"},null,{"$error":"#N/A"},{"$error":"#VALUE!"},"  "]
[null,null,null,null,null,null,"",null,null,null,null,"","",null,{"$error":"#REF!"},null,{"$error":"#N/A"},null,{"$error":"#N/A"},null,{"$error":"#N/A"},null,{"$error":"#N/A"},null,{"$error":"#N/A"},null,{"$error":"#N/A"},null,{"$error":"#N/A"},{"$error":"#VALUE!"},"  "]
[null,null,null,null,null,null,{"$f":"IF(C636=\"\",\"\",VLOOKUP(F636,REF_AGE,2))","v":""},null,null,null,null,{"$f":"IF(I636=\"\",\"\",(H636/(I636*I636))*10000)","v":""},{"$f":"IF(I636=\"\",\"\",VLOOKUP(L636,PT_IMC,2))","v":""},null,{"$f":"VLOOKUP(N636,INDIRECT(\"T1C\"&$E636&G636),2)","v":{"$error":"#REF!"}},null,{"$f":"VLOOKUP(P636,INDIRECT(Q$2&$E636&$G636),2)","v":{"$error":"#N/A"}},null,{"$f":"VLOOKUP(R636,INDIRECT(S$2&$E636&$G636),2)","v":{"$error":"#N/A"}},null,{"$f":"VLOOKUP(T636,INDIRECT(U$2&$E636&$G636),2)","v":{"$error":"#N/A"}},null,{"$f":"VLOOKUP(V636,INDIRECT(W$2&$E636&$G636),2)","v":{"$error":"#N/A"}},null,{"$f":"VLOOKUP(X636,INDIRECT(Y$2&$E636&$G636),2)","v":{"$error":"#N/A"}},null,{"$f":"VLOOKUP(Z636,INDIRECT(AA$2&$E636&$G636),2)","v":{"$error":"#N/A"}},null,{"$f":"VLOOKUP(AB636,INDIRECT(AC$2&$E636&$G636),2)","v":{"$error":"#N/A"}},{"$f":"M636+O636+Q636+S636+U636+W636+Y636+AA636+AC636","v":{"$error":"#VALUE!"}},{"$f":"K636&\" \"&C636&\" \"&D636","v":"  "}]
[null,null,null,null,null,null,"",null,null,null,null,"","",null,{"$error":"#REF!"},null,{"$error":"#N/A"},null,{"$error":"#N/A"},null,{"$error":"#N/A"},null,{"$error":"#N/A"},null,{"$error":"#N/A"},null,{"$error":"#N/A"},null,{"$error":"#N/A"},{"$error":"#VALUE!"},"  "]
[null,null,null,null,null,null,"",null,null,null,null,"","",null,{"$error":"#REF!"},null,{"$error":"#N/A"},null,{"$error":"#N/A"},null,{"$error":"#N/A"},null,{"$error":"#N/A"},null,{"$error":"#N/A"},null,{"$error":"#N/A"},null,{"$error":"#N/A"},{"$error":"#VALUE!"},"  "]
[null,null,null,null,null,null,"",null,null,null,null,"","",null,{"$error":"#REF!"},null,{"$error":"#N/A"},null,{"$error":"#N/A"},null,{"$error":"#N/A"},null,{"$error":"#N/A"},null,{"$error":"#N/A"},null,{"$error":"#N/A"},null,{"$error":"#N/A"},{"$error":"#VALUE!"},"  "]
[null,null,null,null,null,null,"",null,null,null,null,"","",null,{"$error":"#REF!"},null,{"$error":"#N/A"},null,{"$error":"#N/A"},null,{"$error":"#N/A"},null,{"$error":"#N/A"},null,{"$error":"#N/A"},null,{"$error":"#N/A"},null,{"$error":"#N/A"},{"$error":"#VALUE!"},"  "]
[null,null,null,null,null,null,"",null,null,null,null,"","",null,{"$error":"#REF!"},null,{"$error":"#N/A"},null,{"$error":"#N/A"},null,{"$error":"#N/A"},null,{"$error":"#N/A"},null,{"$error":"#N/A"},null,{"$error":"#N/A"},null,{"$error":"#N/A"},{"$error":"#VALUE!"},"  "]
[null,null,null,null,null,null,"",null,null,null,null,"","",null,{"$error":"#REF!"},null,{"$error":"#N/A"},null,{"$error":"#N/A"},null,{"$error":"#N/A"},null,{"$error":"#N/A"},null,{"$error":"#N/A"},null,{"$error":"#N/A"},null,{"$error":"#N/A"},{"$error":"#VALUE!"},"  "]
[null,null,null,null,null,null,"",null,null,null,null,"","",null,{"$error":"#REF!"},null,{"$error":"#N/A"},null,{"$error":"#N/A"},null,{"$error":"#N/A"},null,{"$error":"#N/A"},null,{"$error":"#N/A"},null,{"$error":"#N/A"},null,{"$error":"#N/A"},{"$error":"#VALUE!"},"  "]
[null,null,null,null,null,null,"",null,null,null,null,"","",null,{"$error":"#REF!"},null,{"$error":"#N/A"},null,{"$error":"#N/A"},null,{"$error":"#N/A"},null,{"$error":"#N/A"},null,{"$error":"#N/A"},null,{"$error":"#N/A"},null,{"$error":"#N/A"},{"$error":"#VALUE!"},"  "]
[null,null,null,null,null,null,"",null,null,null,null,"","",null,{"$error":"#REF!"},null,{"$error":"#N/A"},null,{"$error":"#N/A"},null,{"$error":"#N/A"},null,{"$error":"#N/A"},null,{"$error":"#N/A"},null,{"$error":"#N/A"},null,{"$error":"#N/A"},{"$error":"#VALUE!"},"  "]
[null,null,null,null,null,null,"",null,null,null,null,"","",null,{"$error":"#REF!"},null,{"$error":"#N/A"},null,{"$error":"#N/A"},null,{"$error":"#N/A"},null,{"$error":"#N/A"},null,{"$error":"#N/A"},null,{"$error":"#N/A"},null,{"$error":"#N/A"},{"$error":"#VALUE!"},"  "]
[null,null,null,null,null,null,"",null,null,null,null,"","",null,{"$error":"#REF!"},null,{"$error":"#N/A"},null,{"$error":"#N/A"},null,{"$error":"#N/A"},null,{"$error":"#N/A"},null,{"$error":"#N/A"},null,{"$error":"#N/A"},null,{"$error":"#N/A"},{"$error":"#VALUE!"},"  "]
[null,null,null,null,null,null,"",null,null,null,null,"","",null,{"$error":"#REF!"},null,{"$error":"#N/A"},null,{"$error":"#N/A"},null,{"$error":"#N/A"},null,{"$error":"#N/A"},null,{"$error":"#N/A"},null,{"$error":"#N/A"},null,{"$error":"#N/A"},{"$error":"#VALUE!"},"  "]
[null,null,null,null,null,null,"",null,null,null,null,"","",null,{"$error":"#REF!"},null,{"$error":"#N/A"},null,{"$error":"#N/A"},null,{"$error":"#N/A"},null,{"$error":"#N/A"},null,{"$error":"#N/A"},null,{"$error":"#N/A"},null,{"$error":"#N/A"},{"$error":"#VALUE!"},"  "]
[null,null,null,null,null,null,"",null,null,null,null,"","",null,{"$error":"#REF!"},null,{"$error":"#N/A"},null,{"$error":"#N/A"},null,{"$error":"#N/A"},null,{"$error":"#N/A"},null,{"$error":"#N/A"},null,{"$error":"#N/A"},null,{"$error":"#N/A"},{"$error":"#VALUE!"},"  "]
[null,null,null,null,null,null,"",null,null,null,null,"","",null,{"$error":"#REF!"},null,{"$error":"#N/A"},null,{"$error":"#N/A"},null,{"$error":"#N/A"},null,{"$error":"#N/A"},null,{"$error":"#N/A"},null,{"$error":"#N/A"},null,{"$error":"#N/A"},{"$error":"#VALUE!"},"  "]
[null,null,null,null,null,null,"",null,null,null,null,"","",null,{"$error":"#REF!"},null,{"$error":"#N/A"},null,{"$error":"#N/A"},null,{"$error":"#N/A"},null,{"$error":"#N/A"},null,{"$error":"#N/A"},null,{"$error":"#N/A"},null,{"$error":"#N/A"},{"$error":"#VALUE!"},"  "]
[null,null,null,null,null,null,"",null,null,null,null,"","",null,{"$error":"#REF!"},null,{"$error":"#N/A"},null,{"$error":"#N/A"},null,{"$error":"#N/A"},null,{"$error":"#N/A"},null,{"$error":"#N/A"},null,{"$error":"#N/A"},null,{"$error":"#N/A"},{"$error":"#VALUE!"},"  "]
[null,null,null,null,null,null,"",null,null,null,null,"","",null,{"$error":"#REF!"},null,{"$error":"#N/A"},null,{"$error":"#N/A"},null,{"$error":"#N/A"},null,{"$error":"#N/A"},null,{"$error":"#N/A"},null,{"$error":"#N/A"},null,{"$error":"#N/A"},{"$error":"#VALUE!"},"  "]
[null,null,null,null,null,null,"",null,null,null,null,"","",null,{"$error":"#REF!"},null,{"$error":"#N/A"},null,{"$error":"#N/A"},null,{"$error":"#N/A"},null,{"$error":"#N/A"},null,{"$error":"#N/A"},null,{"$error":"#N/A"},null,{"$error":"#N/A"},{"$error":"#VALUE!"},"  "]
[null,null,null,null,null,null,"",null,null,null,null,"","",null,{"$error":"#REF!"},null,{"$error":"#N/A"},null,{"$error":"#N/A"},null,{"$error":"#N/A"},null,{"$error":"#N/A"},null,{"$error":"#N/A"},null,{"$error":"#N/A"},null,{"$error":"#N/A"},{"$error":"#VALUE!"},"  "]
[null,null,null,null,null,null,"",null,null,null,null,"","",null,{"$error":"#REF!"},null,{"$error":"#N/A"},null,{"$error":"#N/A"},null,{"$error":"#N/A"},null,{"$error":"#N/A"},null,{"$error":"#N/A"},null,{"$error":"#N/A"},null,{"$error":"#N/A"},{"$error":"#VALUE!"},"  "]
[null,null,null,null,null,null,"",null,null,null,null,"","",null,{"$error":"#REF!"},null,{"$error":"#N/A"},null,{"$error":"#N/A"},null,{"$error":"#N/A"},null,{"$error":"#N/A"},null,{"$error":"#N/A"},null,{"$error":"#N/A"},null,{"$error":"#N/A"},{"$error":"#VALUE!"},"  "]
[null,null,null,null,null,null,"",null,null,null,null,"","",null,{"$error":"#REF!"},null,{"$error":"#N/A"},null,{"$error":"#N/A"},null,{"$error":"#N/A"},null,{"$error":"#N/A"},null,{"$error":"#N/A"},null,{"$error":"#N/A"},null,{"$error":"#N/A"},{"$error":"#VALUE!"},"  "]
[null,null,null,null,null,null,"",null,null,null,null,"","",null,{"$error":"#REF!"},null,{"$error":"#N/A"},null,{"$error":"#N/A"},null,{"$error":"#N/A"},null,{"$error":"#N/A"},null,{"$error":"#N/A"},null,{"$error":"#N/A"},null,{"$error":"#N/A"},{"$error":"#VALUE!"},"  "]
[null,null,null,null,null,null,"",null,null,null,null,"","",null,{"$error":"#REF!"},null,{"$error":"#N/A"},null,{"$error":"#N/A"},null,{"$error":"#N/A"},null,{"$error":"#N/A"},null,{"$error":"#N/A"},null,{"$error":"#N/A"},null,{"$error":"#N/A"},{"$error":"#VALUE!"},"  "]
[null,null,null,null,null,null,"",null,null,null,null,"","",null,{"$error":"#REF!"},null,{"$error":"#N/A"},null,{"$error":"#N/A"},null,{"$error":"#N/A"},null,{"$error":"#N/A"},null,{"$error":"#N/A"},null,{"$error":"#N/A"},null,{"$error":"#N/A"},{"$error":"#VALUE!"},"  "]
[null,null,null,null,null,null,"",null,null,null,null,"","",null,{"$error":"#REF!"},null,{"$error":"#N/A"},null,{"$error":"#N/A"},null,{"$error":"#N/A"},null,{"$error":"#N/A"},null,{"$error":"#N/A"},null,{"$error":"#N/A"},null,{"$error":"#N/A"},{"$error":"#VALUE!"},"  "]
[null,null,null,null,null,null,"",null,null,null,null,"","",null,{"$error":"#REF!"},null,{"$error":"#N/A"},null,{"$error":"#N/A"},null,{"$error":"#N/A"},null,{"$error":"#N/A"},null,{"$error":"#N/A"},null,{"$error":"#N/A"},null,{"$error":"#N/A"},{"$error":"#VALUE!"},"  "]
[null,null,null,null,null,null,"",null,null,null,null,"","",null,{"$error":"#REF!"},null,{"$error":"#N/A"},null,{"$error":"#N/A"},null,{"$error":"#N/A"},null,{"$error":"#N/A"},null,{"$error":"#N/A"},null,{"$error":"#N/A"},null,{"$error":"#N/A"},{"$error":"#VALUE!"},"  "]
[null,null,null,null,null,null,"",null,null,null,null,"","",null,{"$error":"#REF!"},null,{"$error":"#N/A"},null,{"$error":"#N/A"},null,{"$error":"#N/A"},null,{"$error":"#N/A"},null,{"$error":"#N/A"},null,{"$error":"#N/A"},null,{"$error":"#N/A"},{"$error":"#VALUE!"},"  "]
[null,null,null,null,null,null,"",null,null,null,null,"","",null,{"$error":"#REF!"},null,{"$error":"#N/A"},null,{"$error":"#N/A"},null,{"$error":"#N/A"},null,{"$error":"#N/A"},null,{"$error":"#N/A"},null,{"$error":"#N/A"},null,{"$error":"#N/A"},{"$error":"#VALUE!"},"  "]
[null,null,null,null,null,null,"",null,null,null,null,"","",null,{"$error":"#REF!"},null,{"$error":"#N/A"},null,{"$error":"#N/A"},null,{"$error":"#N/A"},null,{"$error":"#N/A"},null,{"$error":"#N/A"},null,{"$error":"#N/A"},null,{"$error":"#N/A"},{"$error":"#VALUE!"},"  "]
[null,null,null,null,null,null,"",null,null,null,null,"","",null,{"$error":"#REF!"},null,{"$error":"#N/A"},null,{"$error":"#N/A"},null,{"$error":"#N/A"},null,{"$error":"#N/A"},null,{"$error":"#N/A"},null,{"$error":"#N/A"},null,{"$error":"#N/A"},{"$error":"#VALUE!"},"  "]
[null,null,null,null,null,null,"",null,null,null,null,"","",null,{"$error":"#REF!"},null,{"$error":"#N/A"},null,{"$error":"#N/A"},null,{"$error":"#N/A"},null,{"$error":"#N/A"},null,{"$error":"#N/A"},null,{"$error":"#N/A"},null,{"$error":"#N/A"},{"$error":"#VALUE!"},"  "]
[null,null,null,null,null,null,"",null,null,null,null,"","",null,{"$error":"#REF!"},null,{"$error":"#N/A"},null,{"$error":"#N/A"},null,{"$error":"#N/A"},null,{"$error":"#N/A"},null,{"$error":"#N/A"},null,{"$error":"#N/A"},null,{"$error":"#N/A"},{"$error":"#VALUE!"},"  "]
[null,null,null,null,null,null,"",null,null,null,null,"","",null,{"$error":"#REF!"},null,{"$error":"#N/A"},null,{"$error":"#N/A"},null,{"$error":"#N/A"},null,{"$error":"#N/A"},null,{"$error":"#N/A"},null,{"$error":"#N/A"},null,{"$error":"#N/A"},{"$error":"#VALUE!"},"  "]
[null,null,null,null,null,null,"",null,null,null,null,"","",null,{"$error":"#REF!"},null,{"$error":"#N/A"},null,{"$error":"#N/A"},null,{"$error":"#N/A"},null,{"$error":"#N/A"},null,{"$error":"#N/A"},null,{"$error":"#N/A"},null,{"$error":"#N/A"},{"$error":"#VALUE!"},"  "]
[null,null,null,null,null,null,"",null,null,null,null,"","",null,{"$error":"#REF!"},null,{"$error":"#N/A"},null,{"$error":"#N/A"},null,{"$error":"#N/A"},null,{"$error":"#N/A"},null,{"$error":"#N/A"},null,{"$error":"#N/A"},null,{"$error":"#N/A"},{"$error":"#VALUE!"},"  "]
[null,null,null,null,null,null,"",null,null,null,null,"","",null,{"$error":"#REF!"},null,{"$error":"#N/A"},null,{"$error":"#N/A"},null,{"$error":"#N/A"},null,{"$error":"#N/A"},null,{"$error":"#N/A"},null,{"$error":"#N/A"},null,{"$error":"#N/A"},{"$error":"#VALUE!"},"  "]
[null,null,null,null,null,null,"",null,null,null,null,"","",null,{"$error":"#REF!"},null,{"$error":"#N/A"},null,{"$error":"#N/A"},null,{"$error":"#N/A"},null,{"$error":"#N/A"},null,{"$error":"#N/A"},null,{"$error":"#N/A"},null,{"$error":"#N/A"},{"$error":"#VALUE!"},"  "]
[null,null,null,null,null,null,"",null,null,null,null,"","",null,{"$error":"#REF!"},null,{"$error":"#N/A"},null,{"$error":"#N/A"},null,{"$error":"#N/A"},null,{"$error":"#N/A"},null,{"$error":"#N/A"},null,{"$error":"#N/A"},null,{"$error":"#N/A"},{"$error":"#VALUE!"},"  "]
[null,null,null,null,null,null,"",null,null,null,null,"","",null,{"$error":"#REF!"},null,{"$error":"#N/A"},null,{"$error":"#N/A"},null,{"$error":"#N/A"},null,{"$error":"#N/A"},null,{"$error":"#N/A"},null,{"$error":"#N/A"},null,{"$error":"#N/A"},{"$error":"#VALUE!"},"  "]
[null,null,null,null,null,null,"",null,null,null,null,"","",null,{"$error":"#REF!"},null,{"$error":"#N/A"},null,{"$error":"#N/A"},null,{"$error":"#N/A"},null,{"$error":"#N/A"},null,{"$error":"#N/A"},null,{"$error":"#N/A"},null,{"$error":"#N/A"},{"$error":"#VALUE!"},"  "]
[null,null,null,null,null,null,"",null,null,null,null,"","",null,{"$error":"#REF!"},null,{"$error":"#N/A"},null,{"$error":"#N/A"},null,{"$error":"#N/A"},null,{"$error":"#N/A"},null,{"$error":"#N/A"},null,{"$error":"#N/A"},null,{"$error":"#N/A"},{"$error":"#VALUE!"},"  "]
[null,null,null,null,null,null,"",null,null,null,null,"","",null,{"$error":"#REF!"},null,{"$error":"#N/A"},null,{"$error":"#N/A"},null,{"$error":"#N/A"},null,{"$error":"#N/A"},null,{"$error":"#N/A"},null,{"$error":"#N/A"},null,{"$error":"#N/A"},{"$error":"#VALUE!"},"  "]
[null,null,null,null,null,null,"",null,null,null,null,"","",null,{"$error":"#REF!"},null,{"$error":"#N/A"},null,{"$error":"#N/A"},null,{"$error":"#N/A"},null,{"$error":"#N/A"},null,{"$error":"#N/A"},null,{"$error":"#N/A"},null,{"$error":"#N/A"},{"$error":"#VALUE!"},"  "]
[null,null,null,null,null,null,"",null,null,null,null,"","",null,{"$error":"#REF!"},null,{"$error":"#N/A"},null,{"$error":"#N/A"},null,{"$error":"#N/A"},null,{"$error":"#N/A"},null,{"$error":"#N/A"},null,{"$error":"#N/A"},null,{"$error":"#N/A"},{"$error":"#VALUE!"},"  "]
[null,null,null,null,null,null,"",null,null,null,null,"","",null,{"$error":"#REF!"},null,{"$error":"#N/A"},null,{"$error":"#N/A"},null,{"$error":"#N/A"},null,{"$error":"#N/A"},null,{"$error":"#N/A"},null,{"$error":"#N/A"},null,{"$error":"#N/A"},{"$error":"#VALUE!"},"  "]
[null,null,null,null,null,null,"",null,null,null,null,"","",null,{"$error":"#REF!"},null,{"$error":"#N/A"},null,{"$error":"#N/A"},null,{"$error":"#N/A"},null,{"$error":"#N/A"},null,{"$error":"#N/A"},null,{"$error":"#N/A"},null,{"$error":"#N/A"},{"$error":"#VALUE!"},"  "]
[null,null,null,null,null,null,"",null,null,null,null,"","",null,{"$error":"#REF!"},null,{"$error":"#N/A"},null,{"$error":"#N/A"},null,{"$error":"#N/A"},null,{"$error":"#N/A"},null,{"$error":"#N/A"},null,{"$error":"#N/A"},null,{"$error":"#N/A"},{"$error":"#VALUE!"},"  "]
[null,null,null,null,null,null,"",null,null,null,null,"","",null,{"$error":"#REF!"},null,{"$error":"#N/A"},null,{"$error":"#N/A"},null,{"$error":"#N/A"},null,{"$error":"#N/A"},null,{"$error":"#N/A"},null,{"$error":"#N/A"},null,{"$error":"#N/A"},{"$error":"#VALUE!"},"  "]
[null,null,null,null,null,null,"",null,null,null,null,"","",null,{"$error":"#REF!"},null,{"$error":"#N/A"},null,{"$error":"#N/A"},null,{"$error":"#N/A"},null,{"$error":"#N/A"},null,{"$error":"#N/A"},null,{"$error":"#N/A"},null,{"$error":"#N/A"},{"$error":"#VALUE!"},"  "]
[null,null,null,null,null,null,"",null,null,null,null,"","",null,{"$error":"#REF!"},null,{"$error":"#N/A"},null,{"$error":"#N/A"},null,{"$error":"#N/A"},null,{"$error":"#N/A"},null,{"$error":"#N/A"},null,{"$error":"#N/A"},null,{"$error":"#N/A"},{"$error":"#VALUE!"},"  "]
[null,null,null,null,null,null,"",null,null,null,null,"","",null,{"$error":"#REF!"},null,{"$error":"#N/A"},null,{"$error":"#N/A"},null,{"$error":"#N/A"},null,{"$error":"#N/A"},null,{"$error":"#N/A"},null,{"$error":"#N/A"},null,{"$error":"#N/A"},{"$error":"#VALUE!"},"  "]
[null,null,null,null,null,null,"",null,null,null,null,"","",null,{"$error":"#REF!"},null,{"$error":"#N/A"},null,{"$error":"#N/A"},null,{"$error":"#N/A"},null,{"$error":"#N/A"},null,{"$error":"#N/A"},null,{"$error":"#N/A"},null,{"$error":"#N/A"},{"$error":"#VALUE!"},"  "]
[null,null,null,null,null,null,"",null,null,null,null,"","",null,{"$error":"#REF!"},null,{"$error":"#N/A"},null,{"$error":"#N/A"},null,{"$error":"#N/A"},null,{"$error":"#N/A"},null,{"$error":"#N/A"},null,{"$error":"#N/A"},null,{"$error":"#N/A"},{"$error":"#VALUE!"},"  "]
[null,null,null,null,null,null,"",null,null,null,null,"","",null,{"$error":"#REF!"},null,{"$error":"#N/A"},null,{"$error":"#N/A"},null,{"$error":"#N/A"},null,{"$error":"#N/A"},null,{"$error":"#N/A"},null,{"$error":"#N/A"},null,{"$error":"#N/A"},{"$error":"#VALUE!"},"  "]
[null,null,null,null,null,null,"",null,null,null,null,"","",null,{"$error":"#REF!"},null,{"$error":"#N/A"},null,{"$error":"#N/A"},null,{"$error":"#N/A"},null,{"$error":"#N/A"},null,{"$error":"#N/A"},null,{"$error":"#N/A"},null,{"$error":"#N/A"},{"$error":"#VALUE!"},"  "]
[null,null,null,null,null,null,"",null,null,null,null,"","",null,{"$error":"#REF!"},null,{"$error":"#N/A"},null,{"$error":"#N/A"},null,{"$error":"#N/A"},null,{"$error":"#N/A"},null,{"$error":"#N/A"},null,{"$error":"#N/A"},null,{"$error":"#N/A"},{"$error":"#VALUE!"},"  "]
[null,null,null,null,null,null,"",null,null,null,null,"","",null,{"$error":"#REF!"},null,{"$error":"#N/A"},null,{"$error":"#N/A"},null,{"$error":"#N/A"},null,{"$error":"#N/A"},null,{"$error":"#N/A"},null,{"$error":"#N/A"},null,{"$error":"#N/A"},{"$error":"#VALUE!"},"  "]
[null,null,null,null,null,null,"",null,null,null,null,"","",null,{"$error":"#REF!"},null,{"$error":"#N/A"},null,{"$error":"#N/A"},null,{"$error":"#N/A"},null,{"$error":"#N/A"},null,{"$error":"#N/A"},null,{"$error":"#N/A"},null,{"$error":"#N/A"},{"$error":"#VALUE!"},"  "]
[null,null,null,null,null,null,"",null,null,null,null,"","",null,{"$error":"#REF!"},null,{"$error":"#N/A"},null,{"$error":"#N/A"},null,{"$error":"#N/A"},null,{"$error":"#N/A"},null,{"$error":"#N/A"},null,{"$error":"#N/A"},null,{"$error":"#N/A"},{"$error":"#VALUE!"},"  "]
[null,null,null,null,null,null,"",null,null,null,null,"","",null,{"$error":"#REF!"},null,{"$error":"#N/A"},null,{"$error":"#N/A"},null,{"$error":"#N/A"},null,{"$error":"#N/A"},null,{"$error":"#N/A"},null,{"$error":"#N/A"},null,{"$error":"#N/A"},{"$error":"#VALUE!"},"  "]
[null,null,null,null,null,null,{"$f":"IF(C700=\"\",\"\",VLOOKUP(F700,REF_AGE,2))","v":""},null,null,null,null,{"$f":"IF(I700=\"\",\"\",(H700/(I700*I700))*10000)","v":""},{"$f":"IF(I700=\"\",\"\",VLOOKUP(L700,PT_IMC,2))","v":""},null,{"$f":"VLOOKUP(N700,INDIRECT(\"T1C\"&$E700&G700),2)","v":{"$error":"#REF!"}},null,{"$f":"VLOOKUP(P700,INDIRECT(Q$2&$E700&$G700),2)","v":{"$error":"#N/A"}},null,{"$f":"VLOOKUP(R700,INDIRECT(S$2&$E700&$G700),2)","v":{"$error":"#N/A"}},null,{"$f":"VLOOKUP(T700,INDIRECT(U$2&$E700&$G700),2)","v":{"$error":"#N/A"}},null,{"$f":"VLOOKUP(V700,INDIRECT(W$2&$E700&$G700),2)","v":{"$error":"#N/A"}},null,{"$f":"VLOOKUP(X700,INDIRECT(Y$2&$E700&$G700),2)","v":{"$error":"#N/A"}},null,{"$f":"VLOOKUP(Z700,INDIRECT(AA$2&$E700&$G700),2)","v":{"$error":"#N/A"}},null,{"$f":"VLOOKUP(AB700,INDIRECT(AC$2&$E700&$G700),2)","v":{"$error":"#N/A"}},{"$f":"M700+O700+Q700+S700+U700+W700+Y700+AA700+AC700","v":{"$error":"#VALUE!"}},{"$f":"K700&\" \"&C700&\" \"&D700","v":"  "}]
[null,null,null,null,null,null,"",null,null,null,null,"","",null,{"$error":"#REF!"},null,{"$error":"#N/A"},null,{"$error":"#N/A"},null,{"$error":"#N/A"},null,{"$error":"#N/A"},null,{"$error":"#N/A"},null,{"$error":"#N/A"},null,{"$error":"#N/A"},{"$error":"#VALUE!"},"  "]
[null,null,null,null,null,null,"",null,null,null,null,"","",null,{"$error":"#REF!"},null,{"$error":"#N/A"},null,{"$error":"#N/A"},null,{"$error":"#N/A"},null,{"$error":"#N/A"},null,{"$error":"#N/A"},null,{"$error":"#N/A"},null,{"$error":"#N/A"},{"$error":"#VALUE!"},"  "]
[null,null,null,null,null,null,"",null,null,null,null,"","",null,{"$error":"#REF!"},null,{"$error":"#N/A"},null,{"$error":"#N/A"},null,{"$error":"#N/A"},null,{"$error":"#N/A"},null,{"$error":"#N/A"},null,{"$error":"#N/A"},null,{"$error":"#N/A"},{"$error":"#VALUE!"},"  "]
[null,null,null,null,null,null,"",null,null,null,null,"","",null,{"$error":"#REF!"},null,{"$error":"#N/A"},null,{"$error":"#N/A"},null,{"$error":"#N/A"},null,{"$error":"#N/A"},null,{"$error":"#N/A"},null,{"$error":"#N/A"},null,{"$error":"#N/A"},{"$error":"#VALUE!"},"  "]
[null,null,null,null,null,null,"",null,null,null,null,"","",null,{"$error":"#REF!"},null,{"$error":"#N/A"},null,{"$error":"#N/A"},null,{"$error":"#N/A"},null,{"$error":"#N/A"},null,{"$error":"#N/A"},null,{"$error":"#N/A"},null,{"$error":"#N/A"},{"$error":"#VALUE!"},"  "]
[null,null,null,null,null,null,"",null,null,null,null,"","",null,{"$error":"#REF!"},null,{"$error":"#N/A"},null,{"$error":"#N/A"},null,{"$error":"#N/A"},null,{"$error":"#N/A"},null,{"$error":"#N/A"},null,{"$error":"#N/A"},null,{"$error":"#N/A"},{"$error":"#VALUE!"},"  "]
[null,null,null,null,null,null,"",null,null,null,null,"","",null,{"$error":"#REF!"},null,{"$error":"#N/A"},null,{"$error":"#N/A"},null,{"$error":"#N/A"},null,{"$error":"#N/A"},null,{"$error":"#N/A"},null,{"$error":"#N/A"},null,{"$error":"#N/A"},{"$error":"#VALUE!"},"  "]
[null,null,null,null,null,null,"",null,null,null,null,"","",null,{"$error":"#REF!"},null,{"$error":"#N/A"},null,{"$error":"#N/A"},null,{"$error":"#N/A"},null,{"$error":"#N/A"},null,{"$error":"#N/A"},null,{"$error":"#N/A"},null,{"$error":"#N/A"},{"$error":"#VALUE!"},"  "]
[null,null,null,null,null,null,"",null,null,null,null,"","",null,{"$error":"#REF!"},null,{"$error":"#N/A"},null,{"$error":"#N/A"},null,{"$error":"#N/A"},null,{"$error":"#N/A"},null,{"$error":"#N/A"},null,{"$error":"#N/A"},null,{"$error":"#N/A"},{"$error":"#VALUE!"},"  "]
[null,null,null,null,null,null,"",null,null,null,null,"","",null,{"$error":"#REF!"},null,{"$error":"#N/A"},null,{"$error":"#N/A"},null,{"$error":"#N/A"},null,{"$error":"#N/A"},null,{"$error":"#N/A"},null,{"$error":"#N/A"},null,{"$error":"#N/A"},{"$error":"#VALUE!"},"  "]
[null,null,null,null,null,null,"",null,null,null,null,"","",null,{"$error":"#REF!"},null,{"$error":"#N/A"},null,{"$error":"#N/A"},null,{"$error":"#N/A"},null,{"$error":"#N/A"},null,{"$error":"#N/A"},null,{"$error":"#N/A"},null,{"$error":"#N/A"},{"$error":"#VALUE!"},"  "]
[null,null,null,null,null,null,"",null,null,null,null,"","",null,{"$error":"#REF!"},null,{"$error":"#N/A"},null,{"$error":"#N/A"},null,{"$error":"#N/A"},null,{"$error":"#N/A"},null,{"$error":"#N/A"},null,{"$error":"#N/A"},null,{"$error":"#N/A"},{"$error":"#VALUE!"},"  "]
[null,null,null,null,null,null,"",null,null,null,null,"","",null,{"$error":"#REF!"},null,{"$error":"#N/A"},null,{"$error":"#N/A"},null,{"$error":"#N/A"},null,{"$error":"#N/A"},null,{"$error":"#N/A"},null,{"$error":"#N/A"},null,{"$error":"#N/A"},{"$error":"#VALUE!"},"  "]
[null,null,null,null,null,null,"",null,null,null,null,"","",null,{"$error":"#REF!"},null,{"$error":"#N/A"},null,{"$error":"#N/A"},null,{"$error":"#N/A"},null,{"$error":"#N/A"},null,{"$error":"#N/A"},null,{"$error":"#N/A"},null,{"$error":"#N/A"},{"$error":"#VALUE!"},"  "]
[null,null,null,null,null,null,"",null,null,null,null,"","",null,{"$error":"#REF!"},null,{"$error":"#N/A"},null,{"$error":"#N/A"},null,{"$error":"#N/A"},null,{"$error":"#N/A"},null,{"$error":"#N/A"},null,{"$error":"#N/A"},null,{"$error":"#N/A"},{"$error":"#VALUE!"},"  "]
[null,null,null,null,null,null,"",null,null,null,null,"","",null,{"$error":"#REF!"},null,{"$error":"#N/A"},null,{"$error":"#N/A"},null,{"$error":"#N/A"},null,{"$error":"#N/A"},null,{"$error":"#N/A"},null,{"$error":"#N/A"},null,{"$error":"#N/A"},{"$error":"#VALUE!"},"  "]
[null,null,null,null,null,null,"",null,null,null,null,"","",null,{"$error":"#REF!"},null,{"$error":"#N/A"},null,{"$error":"#N/A"},null,{"$error":"#N/A"},null,{"$error":"#N/A"},null,{"$error":"#N/A"},null,{"$error":"#N/A"},null,{"$error":"#N/A"},{"$error":"#VALUE!"},"  "]
[null,null,null,null,null,null,"",null,null,null,null,"","",null,{"$error":"#REF!"},null,{"$error":"#N/A"},null,{"$error":"#N/A"},null,{"$error":"#N/A"},null,{"$error":"#N/A"},null,{"$error":"#N/A"},null,{"$error":"#N/A"},null,{"$error":"#N/A"},{"$error":"#VALUE!"},"  "]
[null,null,null,null,null,null,"",null,null,null,null,"","",null,{"$error":"#REF!"},null,{"$error":"#N/A"},null,{"$error":"#N/A"},null,{"$error":"#N/A"},null,{"$error":"#N/A"},null,{"$error":"#N/A"},null,{"$error":"#N/A"},null,{"$error":"#N/A"},{"$error":"#VALUE!"},"  "]
[null,null,null,null,null,null,"",null,null,null,null,"","",null,{"$error":"#REF!"},null,{"$error":"#N/A"},null,{"$error":"#N/A"},null,{"$error":"#N/A"},null,{"$error":"#N/A"},null,{"$error":"#N/A"},null,{"$error":"#N/A"},null,{"$error":"#N/A"},{"$error":"#VALUE!"},"  "]
[null,null,null,null,null,null,"",null,null,null,null,"","",null,{"$error":"#REF!"},null,{"$error":"#N/A"},null,{"$error":"#N/A"},null,{"$error":"#N/A"},null,{"$error":"#N/A"},null,{"$error":"#N/A"},null,{"$error":"#N/A"},null,{"$error":"#N/A"},{"$error":"#VALUE!"},"  "]
[null,null,null,null,null,null,"",null,null,null,null,"","",null,{"$error":"#REF!"},null,{"$error":"#N/A"},null,{"$error":"#N/A"},null,{"$error":"#N/A"},null,{"$error":"#N/A"},null,{"$error":"#N/A"},null,{"$error":"#N/A"},null,{"$error":"#N/A"},{"$error":"#VALUE!"},"  "]
[null,null,null,null,null,null,"",null,null,null,null,"","",null,{"$error":"#REF!"},null,{"$error":"#N/A"},null,{"$error":"#N/A"},null,{"$error":"#N/A"},null,{"$error":"#N/A"},null,{"$error":"#N/A"},null,{"$error":"#N/A"},null,{"$error":"#N/A"},{"$error":"#VALUE!"},"  "]
[null,null,null,null,null,null,"",null,null,null,null,"","",null,{"$error":"#REF!"},null,{"$error":"#N/A"},null,{"$error":"#N/A"},null,{"$error":"#N/A"},null,{"$error":"#N/A"},null,{"$error":"#N/A"},null,{"$error":"#N/A"},null,{"$error":"#N/A"},{"$error":"#VALUE!"},"  "]
[null,null,null,null,null,null,"",null,null,null,null,"","",null,{"$error":"#REF!"},null,{"$error":"#N/A"},null,{"$error":"#N/A"},null,{"$error":"#N/A"},null,{"$error":"#N/A"},null,{"$error":"#N/A"},null,{"$error":"#N/A"},null,{"$error":"#N/A"},{"$error":"#VALUE!"},"  "]
[null,null,null,null,null,null,"",null,null,null,null,"","",null,{"$error":"#REF!"},null,{"$error":"#N/A"},null,{"$error":"#N/A"},null,{"$error":"#N/A"},null,{"$error":"#N/A"},null,{"$error":"#N/A"},null,{"$error":"#N/A"},null,{"$error":"#N/A"},{"$error":"#VALUE!"},"  "]
[null,null,null,null,null,null,"",null,null,null,null,"","",null,{"$error":"#REF!"},null,{"$error":"#N/A"},null,{"$error":"#N/A"},null,{"$error":"#N/A"},null,{"$error":"#N/A"},null,{"$error":"#N/A"},null,{"$error":"#N/A"},null,{"$error":"#N/A"},{"$error":"#VALUE!"},"  "]
[null,null,null,null,null,null,"",null,null,null,null,"","",null,{"$error":"#REF!"},null,{"$error":"#N/A"},null,{"$error":"#N/A"},null,{"$error":"#N/A"},null,{"$error":"#N/A"},null,{"$error":"#N/A"},null,{"$error":"#N/A"},null,{"$error":"#N/A"},{"$error":"#VALUE!"},"  "]
[null,null,null,null,null,null,"",null,null,null,null,"","",null,{"$error":"#REF!"},null,{"$error":"#N/A"},null,{"$error":"#N/A"},null,{"$error":"#N/A"},null,{"$error":"#N/A"},null,{"$error":"#N/A"},null,{"$error":"#N/A"},null,{"$error":"#N/A"},{"$error":"#VALUE!"},"  "]
[null,null,null,null,null,null,"",null,null,null,null,"","",null,{"$error":"#REF!"},null,{"$error":"#N/A"},null,{"$error":"#N/A"},null,{"$error":"#N/A"},null,{"$error":"#N/A"},null,{"$error":"#N/A"},null,{"$error":"#N/A"},null,{"$error":"#N/A"},{"$error":"#VALUE!"},"  "]
[null,null,null,null,null,null,"",null,null,null,null,"","",null,{"$error":"#REF!"},null,{"$error":"#N/A"},null,{"$error":"#N/A"},null,{"$error":"#N/A"},null,{"$error":"#N/A"},null,{"$error":"#N/A"},null,{"$error":"#N/A"},null,{"$error":"#N/A"},{"$error":"#VALUE!"},"  "]
[null,null,null,null,null,null,"",null,null,null,null,"","",null,{"$error":"#REF!"},null,{"$error":"#N/A"},null,{"$error":"#N/A"},null,{"$error":"#N/A"},null,{"$error":"#N/A"},null,{"$error":"#N/A"},null,{"$error":"#N/A"},null,{"$error":"#N/A"},{"$error":"#VALUE!"},"  "]
[null,null,null,null,null,null,"",null,null,null,null,"","",null,{"$error":"#REF!"},null,{"$error":"#N/A"},null,{"$error":"#N/A"},null,{"$error":"#N/A"},null,{"$error":"#N/A"},null,{"$error":"#N/A"},null,{"$error":"#N/A"},null,{"$error":"#N/A"},{"$error":"#VALUE!"},"  "]
[null,null,null,null,null,null,"",null,null,null,null,"","",null,{"$error":"#REF!"},null,{"$error":"#N/A"},null,{"$error":"#N/A"},null,{"$error":"#N/A"},null,{"$error":"#N/A"},null,{"$error":"#N/A"},null,{"$error":"#N/A"},null,{"$error":"#N/A"},{"$error":"#VALUE!"},"  "]
[null,null,null,null,null,null,"",null,null,null,null,"","",null,{"$error":"#REF!"},null,{"$error":"#N/A"},null,{"$error":"#N/A"},null,{"$error":"#N/A"},null,{"$error":"#N/A"},null,{"$error":"#N/A"},null,{"$error":"#N/A"},null,{"$error":"#N/A"},{"$error":"#VALUE!"},"  "]
[null,null,null,null,null,null,"",null,null,null,null,"","",null,{"$error":"#REF!"},null,{"$error":"#N/A"},null,{"$error":"#N/A"},null,{"$error":"#N/A"},null,{"$error":"#N/A"},null,{"$error":"#N/A"},null,{"$error":"#N/A"},null,{"$error":"#N/A"},{"$error":"#VALUE!"},"  "]
[null,null,null,null,null,null,"",null,null,null,null,"","",null,{"$error":"#REF!"},null,{"$error":"#N/A"},null,{"$error":"#N/A"},null,{"$error":"#N/A"},null,{"$error":"#N/A"},null,{"$error":"#N/A"},null,{"$error":"#N/A"},null,{"$error":"#N/A"},{"$error":"#VALUE!"},"  "]
[null,null,null,null,null,null,"",null,null,null,null,"","",null,{"$error":"#REF!"},null,{"$error":"#N/A"},null,{"$error":"#N/A"},null,{"$error":"#N/A"},null,{"$error":"#N/A"},null,{"$error":"#N/A"},null,{"$error":"#N/A"},null,{"$error":"#N/A"},{"$error":"#VALUE!"},"  "]
[null,null,null,null,null,null,"",null,null,null,null,"","",null,{"$error":"#REF!"},null,{"$error":"#N/A"},null,{"$error":"#N/A"},null,{"$error":"#N/A"},null,{"$error":"#N/A"},null,{"$error":"#N/A"},null,{"$error":"#N/A"},null,{"$error":"#N/A"},{"$error":"#VALUE!"},"  "]
[null,null,null,null,null,null,"",null,null,null,null,"","",null,{"$error":"#REF!"},null,{"$error":"#N/A"},null,{"$error":"#N/A"},null,{"$error":"#N/A"},null,{"$error":"#N/A"},null,{"$error":"#N/A"},null,{"$error":"#N/A"},null,{"$error":"#N/A"},{"$error":"#VALUE!"},"  "]
[null,null,null,null,null,null,"",null,null,null,null,"","",null,{"$error":"#REF!"},null,{"$error":"#N/A"},null,{"$error":"#N/A"},null,{"$error":"#N/A"},null,{"$error":"#N/A"},null,{"$error":"#N/A"},null,{"$error":"#N/A"},null,{"$error":"#N/A"},{"$error":"#VALUE!"},"  "]
[null,null,null,null,null,null,"",null,null,null,null,"","",null,{"$error":"#REF!"},null,{"$error":"#N/A"},null,{"$error":"#N/A"},null,{"$error":"#N/A"},null,{"$error":"#N/A"},null,{"$error":"#N/A"},null,{"$error":"#N/A"},null,{"$error":"#N/A"},{"$error":"#VALUE!"},"  "]
[null,null,null,null,null,null,"",null,null,null,null,"","",null,{"$error":"#REF!"},null,{"$error":"#N/A"},null,{"$error":"#N/A"},null,{"$error":"#N/A"},null,{"$error":"#N/A"},null,{"$error":"#N/A"},null,{"$error":"#N/A"},null,{"$error":"#N/A"},{"$error":"#VALUE!"},"  "]
[null,null,null,null,null,null,"",null,null,null,null,"","",null,{"$error":"#REF!"},null,{"$error":"#N/A"},null,{"$error":"#N/A"},null,{"$error":"#N/A"},null,{"$error":"#N/A"},null,{"$error":"#N/A"},null,{"$error":"#N/A"},null,{"$error":"#N/A"},{"$error":"#VALUE!"},"  "]
[null,null,null,null,null,null,"",null,null,null,null,"","",null,{"$error":"#REF!"},null,{"$error":"#N/A"},null,{"$error":"#N/A"},null,{"$error":"#N/A"},null,{"$error":"#N/A"},null,{"$error":"#N/A"},null,{"$error":"#N/A"},null,{"$error":"#N/A"},{"$error":"#VALUE!"},"  "]
[null,null,null,null,null,null,"",null,null,null,null,"","",null,{"$error":"#REF!"},null,{"$error":"#N/A"},null,{"$error":"#N/A"},null,{"$error":"#N/A"},null,{"$error":"#N/A"},null,{"$error":"#N/A"},null,{"$error":"#N/A"},null,{"$error":"#N/A"},{"$error":"#VALUE!"},"  "]
[null,null,null,null,null,null,"",null,null,null,null,"","",null,{"$error":"#REF!"},null,{"$error":"#N/A"},null,{"$error":"#N/A"},null,{"$error":"#N/A"},null,{"$error":"#N/A"},null,{"$error":"#N/A"},null,{"$error":"#N/A"},null,{"$error":"#N/A"},{"$error":"#VALUE!"},"  "]
[null,null,null,null,null,null,"",null,null,null,null,"","",null,{"$error":"#REF!"},null,{"$error":"#N/A"},null,{"$error":"#N/A"},null,{"$error":"#N/A"},null,{"$error":"#N/A"},null,{"$error":"#N/A"},null,{"$error":"#N/A"},null,{"$error":"#N/A"},{"$error":"#VALUE!"},"  "]
[null,null,null,null,null,null,"",null,null,null,null,"","",null,{"$error":"#REF!"},null,{"$error":"#N/A"},null,{"$error":"#N/A"},null,{"$error":"#N/A"},null,{"$error":"#N/A"},null,{"$error":"#N/A"},null,{"$error":"#N/A"},null,{"$error":"#N/A"},{"$error":"#VALUE!"},"  "]
[null,null,null,null,null,null,"",null,null,null,null,"","",null,{"$error":"#REF!"},null,{"$error":"#N/A"},null,{"$error":"#N/A"},null,{"$error":"#N/A"},null,{"$error":"#N/A"},null,{"$error":"#N/A"},null,{"$error":"#N/A"},null,{"$error":"#N/A"},{"$error":"#VALUE!"},"  "]
[null,null,null,null,null,null,"",null,null,null,null,"","",null,{"$error":"#REF!"},null,{"$error":"#N/A"},null,{"$error":"#N/A"},null,{"$error":"#N/A"},null,{"$error":"#N/A"},null,{"$error":"#N/A"},null,{"$error":"#N/A"},null,{"$error":"#N/A"},{"$error":"#VALUE!"},"  "]
[null,null,null,null,null,null,"",null,null,null,null,"","",null,{"$error":"#REF!"},null,{"$error":"#N/A"},null,{"$error":"#N/A"},null,{"$error":"#N/A"},null,{"$error":"#N/A"},null,{"$error":"#N/A"},null,{"$error":"#N/A"},null,{"$error":"#N/A"},{"$error":"#VALUE!"},"  "]
[null,null,null,null,null,null,"",null,null,null,null,"","",null,{"$error":"#REF!"},null,{"$error":"#N/A"},null,{"$error":"#N/A"},null,{"$error":"#N/A"},null,{"$error":"#N/A"},null,{"$error":"#N/A"},null,{"$error":"#N/A"},null,{"$error":"#N/A"},{"$error":"#VALUE!"},"  "]
[null,null,null,null,null,null,"",null,null,null,null,"","",null,{"$error":"#REF!"},null,{"$error":"#N/A"},null,{"$error":"#N/A"},null,{"$error":"#N/A"},null,{"$error":"#N/A"},null,{"$error":"#N/A"},null,{"$error":"#N/A"},null,{"$error":"#N/A"},{"$error":"#VALUE!"},"  "]
[null,null,null,null,null,null,"",null,null,null,null,"","",null,{"$error":"#REF!"},null,{"$error":"#N/A"},null,{"$error":"#N/A"},null,{"$error":"#N/A"},null,{"$error":"#N/A"},null,{"$error":"#N/A"},null,{"$error":"#N/A"},null,{"$error":"#N/A"},{"$error":"#VALUE!"},"  "]
[null,null,null,null,null,null,"",null,null,null,null,"","",null,{"$error":"#REF!"},null,{"$error":"#N/A"},null,{"$error":"#N/A"},null,{"$error":"#N/A"},null,{"$error":"#N/A"},null,{"$error":"#N/A"},null,{"$error":"#N/A"},null,{"$error":"#N/A"},{"$error":"#VALUE!"},"  "]
[null,null,null,null,null,null,"",null,null,null,null,"","",null,{"$error":"#REF!"},null,{"$error":"#N/A"},null,{"$error":"#N/A"},null,{"$error":"#N/A"},null,{"$error":"#N/A"},null,{"$error":"#N/A"},null,{"$error":"#N/A"},null,{"$error":"#N/A"},{"$error":"#VALUE!"},"  "]
[null,null,null,null,null,null,"",null,null,null,null,"","",null,{"$error":"#REF!"},null,{"$error":"#N/A"},null,{"$error":"#N/A"},null,{"$error":"#N/A"},null,{"$error":"#N/A"},null,{"$error":"#N/A"},null,{"$error":"#N/A"},null,{"$error":"#N/A"},{"$error":"#VALUE!"},"  "]
[null,null,null,null,null,null,"",null,null,null,null,"","",null,{"$error":"#REF!"},null,{"$error":"#N/A"},null,{"$error":"#N/A"},null,{"$error":"#N/A"},null,{"$error":"#N/A"},null,{"$error":"#N/A"},null,{"$error":"#N/A"},null,{"$error":"#N/A"},{"$error":"#VALUE!"},"  "]
[null,null,null,null,null,null,"",null,null,null,null,"","",null,{"$error":"#REF!"},null,{"$error":"#N/A"},null,{"$error":"#N/A"},null,{"$error":"#N/A"},null,{"$error":"#N/A"},null,{"$error":"#N/A"},null,{"$error":"#N/A"},null,{"$error":"#N/A"},{"$error":"#VALUE!"},"  "]
[null,null,null,null,null,null,"",null,null,null,null,"","",null,{"$error":"#REF!"},null,{"$error":"#N/A"},null,{"$error":"#N/A"},null,{"$error":"#N/A"},null,{"$error":"#N/A"},null,{"$error":"#N/A"},null,{"$error":"#N/A"},null,{"$error":"#N/A"},{"$error":"#VALUE!"},"  "]
[null,null,null,null,null,null,"",null,null,null,null,"","",null,{"$error":"#REF!"},null,{"$error":"#N/A"},null,{"$error":"#N/A"},null,{"$error":"#N/A"},null,{"$error":"#N/A"},null,{"$error":"#N/A"},null,{"$error":"#N/A"},null,{"$error":"#N/A"},{"$error":"#VALUE!"},"  "]
[null,null,null,null,null,null,"",null,null,null,null,"","",null,{"$error":"#REF!"},null,{"$error":"#N/A"},null,{"$error":"#N/A"},null,{"$error":"#N/A"},null,{"$error":"#N/A"},null,{"$error":"#N/A"},null,{"$error":"#N/A"},null,{"$error":"#N/A"},{"$error":"#VALUE!"},"  "]
[null,null,null,null,null,null,{"$f":"IF(C764=\"\",\"\",VLOOKUP(F764,REF_AGE,2))","v":""},null,null,null,null,{"$f":"IF(I764=\"\",\"\",(H764/(I764*I764))*10000)","v":""},{"$f":"IF(I764=\"\",\"\",VLOOKUP(L764,PT_IMC,2))","v":""},null,{"$f":"VLOOKUP(N764,INDIRECT(\"T1C\"&$E764&G764),2)","v":{"$error":"#REF!"}},null,{"$f":"VLOOKUP(P764,INDIRECT(Q$2&$E764&$G764),2)","v":{"$error":"#N/A"}},null,{"$f":"VLOOKUP(R764,INDIRECT(S$2&$E764&$G764),2)","v":{"$error":"#N/A"}},null,{"$f":"VLOOKUP(T764,INDIRECT(U$2&$E764&$G764),2)","v":{"$error":"#N/A"}},null,{"$f":"VLOOKUP(V764,INDIRECT(W$2&$E764&$G764),2)","v":{"$error":"#N/A"}},null,{"$f":"VLOOKUP(X764,INDIRECT(Y$2&$E764&$G764),2)","v":{"$error":"#N/A"}},null,{"$f":"VLOOKUP(Z764,INDIRECT(AA$2&$E764&$G764),2)","v":{"$error":"#N/A"}},null,{"$f":"VLOOKUP(AB764,INDIRECT(AC$2&$E764&$G764),2)","v":{"$error":"#N/A"}},{"$f":"M764+O764+Q764+S764+U764+W764+Y764+AA764+AC764","v":{"$error":"#VALUE!"}},{"$f":"K764&\" \"&C764&\" \"&D764","v":"  "}]
[null,null,null,null,null,null,"",null,null,null,null,"","",null,{"$error":"#REF!"},null,{"$error":"#N/A"},null,{"$error":"#N/A"},null,{"$error":"#N/A"},null,{"$error":"#N/A"},null,{"$error":"#N/A"},null,{"$error":"#N/A"},null,{"$error":"#N/A"},{"$error":"#VALUE!"},"  "]
[null,null,null,null,null,null,"",null,null,null,null,"","",null,{"$error":"#REF!"},null,{"$error":"#N/A"},null,{"$error":"#N/A"},null,{"$error":"#N/A"},null,{"$error":"#N/A"},null,{"$error":"#N/A"},null,{"$error":"#N/A"},null,{"$error":"#N/A"},{"$error":"#VALUE!"},"  "]
[null,null,null,null,null,null,"",null,null,null,null,"","",null,{"$error":"#REF!"},null,{"$error":"#N/A"},null,{"$error":"#N/A"},null,{"$error":"#N/A"},null,{"$error":"#N/A"},null,{"$error":"#N/A"},null,{"$error":"#N/A"},null,{"$error":"#N/A"},{"$error":"#VALUE!"},"  "]
[null,null,null,null,null,null,"",null,null,null,null,"","",null,{"$error":"#REF!"},null,{"$error":"#N/A"},null,{"$error":"#N/A"},null,{"$error":"#N/A"},null,{"$error":"#N/A"},null,{"$error":"#N/A"},null,{"$error":"#N/A"},null,{"$error":"#N/A"},{"$error":"#VALUE!"},"  "]
[null,null,null,null,null,null,"",null,null,null,null,"","",null,{"$error":"#REF!"},null,{"$error":"#N/A"},null,{"$error":"#N/A"},null,{"$error":"#N/A"},null,{"$error":"#N/A"},null,{"$error":"#N/A"},null,{"$error":"#N/A"},null,{"$error":"#N/A"},{"$error":"#VALUE!"},"  "]
[null,null,null,null,null,null,"",null,null,null,null,"","",null,{"$error":"#REF!"},null,{"$error":"#N/A"},null,{"$error":"#N/A"},null,{"$error":"#N/A"},null,{"$error":"#N/A"},null,{"$error":"#N/A"},null,{"$error":"#N/A"},null,{"$error":"#N/A"},{"$error":"#VALUE!"},"  "]
[null,null,null,null,null,null,"",null,null,null,null,"","",null,{"$error":"#REF!"},null,{"$error":"#N/A"},null,{"$error":"#N/A"},null,{"$error":"#N/A"},null,{"$error":"#N/A"},null,{"$error":"#N/A"},null,{"$error":"#N/A"},null,{"$error":"#N/A"},{"$error":"#VALUE!"},"  "]
[null,null,null,null,null,null,"",null,null,null,null,"","",null,{"$error":"#REF!"},null,{"$error":"#N/A"},null,{"$error":"#N/A"},null,{"$error":"#N/A"},null,{"$error":"#N/A"},null,{"$error":"#N/A"},null,{"$error":"#N/A"},null,{"$error":"#N/A"},{"$error":"#VALUE!"},"  "]
[null,null,null,null,null,null,"",null,null,null,null,"","",null,{"$error":"#REF!"},null,{"$error":"#N/A"},null,{"$error":"#N/A"},null,{"$error":"#N/A"},null,{"$error":"#N/A"},null,{"$error":"#N/A"},null,{"$error":"#N/A"},null,{"$error":"#N/A"},{"$error":"#VALUE!"},"  "]
[null,null,null,null,null,null,"",null,null,null,null,"","",null,{"$error":"#REF!"},null,{"$error":"#N/A"},null,{"$error":"#N/A"},null,{"$error":"#N/A"},null,{"$error":"#N/A"},null,{"$error":"#N/A"},null,{"$error":"#N/A"},null,{"$error":"#N/A"},{"$error":"#VALUE!"},"  "]
[null,null,null,null,null,null,"",null,null,null,null,"","",null,{"$error":"#REF!"},null,{"$error":"#N/A"},null,{"$error":"#N/A"},null,{"$error":"#N/A"},null,{"$error":"#N/A"},null,{"$error":"#N/A"},null,{"$error":"#N/A"},null,{"$error":"#N/A"},{"$error":"#VALUE!"},"  "]
[null,null,null,null,null,null,"",null,null,null,null,"","",null,{"$error":"#REF!"},null,{"$error":"#N/A"},null,{"$error":"#N/A"},null,{"$error":"#N/A"},null,{"$error":"#N/A"},null,{"$error":"#N/A"},null,{"$error":"#N/A"},null,{"$error":"#N/A"},{"$error":"#VALUE!"},"  "]
[null,null,null,null,null,null,"",null,null,null,null,"","",null,{"$error":"#REF!"},null,{"$error":"#N/A"},null,{"$error":"#N/A"},null,{"$error":"#N/A"},null,{"$error":"#N/A"},null,{"$error":"#N/A"},null,{"$error":"#N/A"},null,{"$error":"#N/A"},{"$error":"#VALUE!"},"  "]
[null,null,null,null,null,null,"",null,null,null,null,"","",null,{"$error":"#REF!"},null,{"$error":"#N/A"},null,{"$error":"#N/A"},null,{"$error":"#N/A"},null,{"$error":"#N/A"},null,{"$error":"#N/A"},null,{"$error":"#N/A"},null,{"$error":"#N/A"},{"$error":"#VALUE!"},"  "]
[null,null,null,null,null,null,"",null,null,null,null,"","",null,{"$error":"#REF!"},null,{"$error":"#N/A"},null,{"$error":"#N/A"},null,{"$error":"#N/A"},null,{"$error":"#N/A"},null,{"$error":"#N/A"},null,{"$error":"#N/A"},null,{"$error":"#N/A"},{"$error":"#VALUE!"},"  "]
[null,null,null,null,null,null,"",null,null,null,null,"","",null,{"$error":"#REF!"},null,{"$error":"#N/A"},null,{"$error":"#N/A"},null,{"$error":"#N/A"},null,{"$error":"#N/A"},null,{"$error":"#N/A"},null,{"$error":"#N/A"},null,{"$error":"#N/A"},{"$error":"#VALUE!"},"  "]
[null,null,null,null,null,null,"",null,null,null,null,"","",null,{"$error":"#REF!"},null,{"$error":"#N/A"},null,{"$error":"#N/A"},null,{"$error":"#N/A"},null,{"$error":"#N/A"},null,{"$error":"#N/A"},null,{"$error":"#N/A"},null,{"$error":"#N/A"},{"$error":"#VALUE!"},"  "]
[null,null,null,null,null,null,"",null,null,null,null,"","",null,{"$error":"#REF!"},null,{"$error":"#N/A"},null,{"$error":"#N/A"},null,{"$error":"#N/A"},null,{"$error":"#N/A"},null,{"$error":"#N/A"},null,{"$error":"#N/A"},null,{"$error":"#N/A"},{"$error":"#VALUE!"},"  "]
[null,null,null,null,null,null,"",null,null,null,null,"","",null,{"$error":"#REF!"},null,{"$error":"#N/A"},null,{"$error":"#N/A"},null,{"$error":"#N/A"},null,{"$error":"#N/A"},null,{"$error":"#N/A"},null,{"$error":"#N/A"},null,{"$error":"#N/A"},{"$error":"#VALUE!"},"  "]
[null,null,null,null,null,null,"",null,null,null,null,"","",null,{"$error":"#REF!"},null,{"$error":"#N/A"},null,{"$error":"#N/A"},null,{"$error":"#N/A"},null,{"$error":"#N/A"},null,{"$error":"#N/A"},null,{"$error":"#N/A"},null,{"$error":"#N/A"},{"$error":"#VALUE!"},"  "]
[null,null,null,null,null,null,"",null,null,null,null,"","",null,{"$error":"#REF!"},null,{"$error":"#N/A"},null,{"$error":"#N/A"},null,{"$error":"#N/A"},null,{"$error":"#N/A"},null,{"$error":"#N/A"},null,{"$error":"#N/A"},null,{"$error":"#N/A"},{"$error":"#VALUE!"},"  "]
[null,null,null,null,null,null,"",null,null,null,null,"","",null,{"$error":"#REF!"},null,{"$error":"#N/A"},null,{"$error":"#N/A"},null,{"$error":"#N/A"},null,{"$error":"#N/A"},null,{"$error":"#N/A"},null,{"$error":"#N/A"},null,{"$error":"#N/A"},{"$error":"#VALUE!"},"  "]
[null,null,null,null,null,null,"",null,null,null,null,"","",null,{"$error":"#REF!"},null,{"$error":"#N/A"},null,{"$error":"#N/A"},null,{"$error":"#N/A"},null,{"$error":"#N/A"},null,{"$error":"#N/A"},null,{"$error":"#N/A"},null,{"$error":"#N/A"},{"$error":"#VALUE!"},"  "]
[null,null,null,null,null,null,"",null,null,null,null,"","",null,{"$error":"#REF!"},null,{"$error":"#N/A"},null,{"$error":"#N/A"},null,{"$error":"#N/A"},null,{"$error":"#N/A"},null,{"$error":"#N/A"},null,{"$error":"#N/A"},null,{"$error":"#N/A"},{"$error":"#VALUE!"},"  "]
[null,null,null,null,null,null,"",null,null,null,null,"","",null,{"$error":"#REF!"},null,{"$error":"#N/A"},null,{"$error":"#N/A"},null,{"$error":"#N/A"},null,{"$error":"#N/A"},null,{"$error":"#N/A"},null,{"$error":"#N/A"},null,{"$error":"#N/A"},{"$error":"#VALUE!"},"  "]
[null,null,null,null,null,null,"",null,null,null,null,"","",null,{"$error":"#REF!"},null,{"$error":"#N/A"},null,{"$error":"#N/A"},null,{"$error":"#N/A"},null,{"$error":"#N/A"},null,{"$error":"#N/A"},null,{"$error":"#N/A"},null,{"$error":"#N/A"},{"$error":"#VALUE!"},"  "]
[null,null,null,null,null,null,"",null,null,null,null,"","",null,{"$error":"#REF!"},null,{"$error":"#N/A"},null,{"$error":"#N/A"},null,{"$error":"#N/A"},null,{"$error":"#N/A"},null,{"$error":"#N/A"},null,{"$error":"#N/A"},null,{"$error":"#N/A"},{"$error":"#VALUE!"},"  "]
[null,null,null,null,null,null,"",null,null,null,null,"","",null,{"$error":"#REF!"},null,{"$error":"#N/A"},null,{"$error":"#N/A"},null,{"$error":"#N/A"},null,{"$error":"#N/A"},null,{"$error":"#N/A"},null,{"$error":"#N/A"},null,{"$error":"#N/A"},{"$error":"#VALUE!"},"  "]
[null,null,null,null,null,null,"",null,null,null,null,"","",null,{"$error":"#REF!"},null,{"$error":"#N/A"},null,{"$error":"#N/A"},null,{"$error":"#N/A"},null,{"$error":"#N/A"},null,{"$error":"#N/A"},null,{"$error":"#N/A"},null,{"$error":"#N/A"},{"$error":"#VALUE!"},"  "]
[null,null,null,null,null,null,"",null,null,null,null,"","",null,{"$error":"#REF!"},null,{"$error":"#N/A"},null,{"$error":"#N/A"},null,{"$error":"#N/A"},null,{"$error":"#N/A"},null,{"$error":"#N/A"},null,{"$error":"#N/A"},null,{"$error":"#N/A"},{"$error":"#VALUE!"},"  "]
[null,null,null,null,null,null,"",null,null,null,null,"","",null,{"$error":"#REF!"},null,{"$error":"#N/A"},null,{"$error":"#N/A"},null,{"$error":"#N/A"},null,{"$error":"#N/A"},null,{"$error":"#N/A"},null,{"$error":"#N/A"},null,{"$error":"#N/A"},{"$error":"#VALUE!"},"  "]
[null,null,null,null,null,null,"",null,null,null,null,"","",null,{"$error":"#REF!"},null,{"$error":"#N/A"},null,{"$error":"#N/A"},null,{"$error":"#N/A"},null,{"$error":"#N/A"},null,{"$error":"#N/A"},null,{"$error":"#N/A"},null,{"$error":"#N/A"},{"$error":"#VALUE!"},"  "]
[null,null,null,null,null,null,"",null,null,null,null,"","",null,{"$error":"#REF!"},null,{"$error":"#N/A"},null,{"$error":"#N/A"},null,{"$error":"#N/A"},null,{"$error":"#N/A"},null,{"$error":"#N/A"},null,{"$error":"#N/A"},null,{"$error":"#N/A"},{"$error":"#VALUE!"},"  "]
[null,null,null,null,null,null,"",null,null,null,null,"","",null,{"$error":"#REF!"},null,{"$error":"#N/A"},null,{"$error":"#N/A"},null,{"$error":"#N/A"},null,{"$error":"#N/A"},null,{"$error":"#N/A"},null,{"$error":"#N/A"},null,{"$error":"#N/A"},{"$error":"#VALUE!"},"  "]
[null,null,null,null,null,null,"",null,null,null,null,"","",null,{"$error":"#REF!"},null,{"$error":"#N/A"},null,{"$error":"#N/A"},null,{"$error":"#N/A"},null,{"$error":"#N/A"},null,{"$error":"#N/A"},null,{"$error":"#N/A"},null,{"$error":"#N/A"},{"$error":"#VALUE!"},"  "]
[null,null,null,null,null,null,"",null,null,null,null,"","",null,{"$error":"#REF!"},null,{"$error":"#N/A"},null,{"$error":"#N/A"},null,{"$error":"#N/A"},null,{"$error":"#N/A"},null,{"$error":"#N/A"},null,{"$error":"#N/A"},null,{"$error":"#N/A"},{"$error":"#VALUE!"},"  "]
[null,null,null,null,null,null,"",null,null,null,null,"","",null,{"$error":"#REF!"},null,{"$error":"#N/A"},null,{"$error":"#N/A"},null,{"$error":"#N/A"},null,{"$error":"#N/A"},null,{"$error":"#N/A"},null,{"$error":"#N/A"},null,{"$error":"#N/A"},{"$error":"#VALUE!"},"  "]
[null,null,null,null,null,null,"",null,null,null,null,"","",null,{"$error":"#REF!"},null,{"$error":"#N/A"},null,{"$error":"#N/A"},null,{"$error":"#N/A"},null,{"$error":"#N/A"},null,{"$error":"#N/A"},null,{"$error":"#N/A"},null,{"$error":"#N/A"},{"$error":"#VALUE!"},"  "]
[null,null,null,null,null,null,"",null,null,null,null,"","",null,{"$error":"#REF!"},null,{"$error":"#N/A"},null,{"$error":"#N/A"},null,{"$error":"#N/A"},null,{"$error":"#N/A"},null,{"$error":"#N/A"},null,{"$error":"#N/A"},null,{"$error":"#N/A"},{"$error":"#VALUE!"},"  "]
[null,null,null,null,null,null,"",null,null,null,null,"","",null,{"$error":"#REF!"},null,{"$error":"#N/A"},null,{"$error":"#N/A"},null,{"$error":"#N/A"},null,{"$error":"#N/A"},null,{"$error":"#N/A"},null,{"$error":"#N/A"},null,{"$error":"#N/A"},{"$error":"#VALUE!"},"  "]
[null,null,null,null,null,null,"",null,null,null,null,"","",null,{"$error":"#REF!"},null,{"$error":"#N/A"},null,{"$error":"#N/A"},null,{"$error":"#N/A"},null,{"$error":"#N/A"},null,{"$error":"#N/A"},null,{"$error":"#N/A"},null,{"$error":"#N/A"},{"$error":"#VALUE!"},"  "]
[null,null,null,null,null,null,"",null,null,null,null,"","",null,{"$error":"#REF!"},null,{"$error":"#N/A"},null,{"$error":"#N/A"},null,{"$error":"#N/A"},null,{"$error":"#N/A"},null,{"$error":"#N/A"},null,{"$error":"#N/A"},null,{"$error":"#N/A"},{"$error":"#VALUE!"},"  "]
[null,null,null,null,null,null,"",null,null,null,null,"","",null,{"$error":"#REF!"},null,{"$error":"#N/A"},null,{"$error":"#N/A"},null,{"$error":"#N/A"},null,{"$error":"#N/A"},null,{"$error":"#N/A"},null,{"$error":"#N/A"},null,{"$error":"#N/A"},{"$error":"#VALUE!"},"  "]
[null,null,null,null,null,null,"",null,null,null,null,"","",null,{"$error":"#REF!"},null,{"$error":"#N/A"},null,{"$error":"#N/A"},null,{"$error":"#N/A"},null,{"$error":"#N/A"},null,{"$error":"#N/A"},null,{"$error":"#N/A"},null,{"$error":"#N/A"},{"$error":"#VALUE!"},"  "]
[null,null,null,null,null,null,"",null,null,null,null,"","",null,{"$error":"#REF!"},null,{"$error":"#N/A"},null,{"$error":"#N/A"},null,{"$error":"#N/A"},null,{"$error":"#N/A"},null,{"$error":"#N/A"},null,{"$error":"#N/A"},null,{"$error":"#N/A"},{"$error":"#VALUE!"},"  "]
[null,null,null,null,null,null,"",null,null,null,null,"","",null,{"$error":"#REF!"},null,{"$error":"#N/A"},null,{"$error":"#N/A"},null,{"$error":"#N/A"},null,{"$error":"#N/A"},null,{"$error":"#N/A"},null,{"$error":"#N/A"},null,{"$error":"#N/A"},{"$error":"#VALUE!"},"  "]
[null,null,null,null,null,null,"",null,null,null,null,"","",null,{"$error":"#REF!"},null,{"$error":"#N/A"},null,{"$error":"#N/A"},null,{"$error":"#N/A"},null,{"$error":"#N/A"},null,{"$error":"#N/A"},null,{"$error":"#N/A"},null,{"$error":"#N/A"},{"$error":"#VALUE!"},"  "]
[null,null,null,null,null,null,"",null,null,null,null,"","",null,{"$error":"#REF!"},null,{"$error":"#N/A"},null,{"$error":"#N/A"},null,{"$error":"#N/A"},null,{"$error":"#N/A"},null,{"$error":"#N/A"},null,{"$error":"#N/A"},null,{"$error":"#N/A"},{"$error":"#VALUE!"},"  "]
[null,null,null,null,null,null,"",null,null,null,null,"","",null,{"$error":"#REF!"},null,{"$error":"#N/A"},null,{"$error":"#N/A"},null,{"$error":"#N/A"},null,{"$error":"#N/A"},null,{"$error":"#N/A"},null,{"$error":"#N/A"},null,{"$error":"#N/A"},{"$error":"#VALUE!"},"  "]
[null,null,null,null,null,null,"",null,null,null,null,"","",null,{"$error":"#REF!"},null,{"$error":"#N/A"},null,{"$error":"#N/A"},null,{"$error":"#N/A"},null,{"$error":"#N/A"},null,{"$error":"#N/A"},null,{"$error":"#N/A"},null,{"$error":"#N/A"},{"$error":"#VALUE!"},"  "]
[null,null,null,null,null,null,"",null,null,null,null,"","",null,{"$error":"#REF!"},null,{"$error":"#N/A"},null,{"$error":"#N/A"},null,{"$error":"#N/A"},null,{"$error":"#N/A"},null,{"$error":"#N/A"},null,{"$error":"#N/A"},null,{"$error":"#N/A"},{"$error":"#VALUE!"},"  "]
[null,null,null,null,null,null,"",null,null,null,null,"","",null,{"$error":"#REF!"},null,{"$error":"#N/A"},null,{"$error":"#N/A"},null,{"$error":"#N/A"},null,{"$error":"#N/A"},null,{"$error":"#N/A"},null,{"$error":"#N/A"},null,{"$error":"#N/A"},{"$error":"#VALUE!"},"  "]
[null,null,null,null,null,null,"",null,null,null,null,"","",null,{"$error":"#REF!"},null,{"$error":"#N/A"},null,{"$error":"#N/A"},null,{"$error":"#N/A"},null,{"$error":"#N/A"},null,{"$error":"#N/A"},null,{"$error":"#N/A"},null,{"$error":"#N/A"},{"$error":"#VALUE!"},"  "]
[null,null,null,null,null,null,"",null,null,null,null,"","",null,{"$error":"#REF!"},null,{"$error":"#N/A"},null,{"$error":"#N/A"},null,{"$error":"#N/A"},null,{"$error":"#N/A"},null,{"$error":"#N/A"},null,{"$error":"#N/A"},null,{"$error":"#N/A"},{"$error":"#VALUE!"},"  "]
[null,null,null,null,null,null,"",null,null,null,null,"","",null,{"$error":"#REF!"},null,{"$error":"#N/A"},null,{"$error":"#N/A"},null,{"$error":"#N/A"},null,{"$error":"#N/A"},null,{"$error":"#N/A"},null,{"$error":"#N/A"},null,{"$error":"#N/A"},{"$error":"#VALUE!"},"  "]
[null,null,null,null,null,null,"",null,null,null,null,"","",null,{"$error":"#REF!"},null,{"$error":"#N/A"},null,{"$error":"#N/A"},null,{"$error":"#N/A"},null,{"$error":"#N/A"},null,{"$error":"#N/A"},null,{"$error":"#N/A"},null,{"$error":"#N/A"},{"$error":"#VALUE!"},"  "]
[null,null,null,null,null,null,"",null,null,null,null,"","",null,{"$error":"#REF!"},null,{"$error":"#N/A"},null,{"$error":"#N/A"},null,{"$error":"#N/A"},null,{"$error":"#N/A"},null,{"$error":"#N/A"},null,{"$error":"#N/A"},null,{"$error":"#N/A"},{"$error":"#VALUE!"},"  "]
[null,null,null,null,null,null,"",null,null,null,null,"","",null,{"$error":"#REF!"},null,{"$error":"#N/A"},null,{"$error":"#N/A"},null,{"$error":"#N/A"},null,{"$error":"#N/A"},null,{"$error":"#N/A"},null,{"$error":"#N/A"},null,{"$error":"#N/A"},{"$error":"#VALUE!"},"  "]
[null,null,null,null,null,null,"",null,null,null,null,"","",null,{"$error":"#REF!"},null,{"$error":"#N/A"},null,{"$error":"#N/A"},null,{"$error":"#N/A"},null,{"$error":"#N/A"},null,{"$error":"#N/A"},null,{"$error":"#N/A"},null,{"$error":"#N/A"},{"$error":"#VALUE!"},"  "]
[null,null,null,null,null,null,"",null,null,null,null,"","",null,{"$error":"#REF!"},null,{"$error":"#N/A"},null,{"$error":"#N/A"},null,{"$error":"#N/A"},null,{"$error":"#N/A"},null,{"$error":"#N/A"},null,{"$error":"#N/A"},null,{"$error":"#N/A"},{"$error":"#VALUE!"},"  "]
[null,null,null,null,null,null,"",null,null,null,null,"","",null,{"$error":"#REF!"},null,{"$error":"#N/A"},null,{"$error":"#N/A"},null,{"$error":"#N/A"},null,{"$error":"#N/A"},null,{"$error":"#N/A"},null,{"$error":"#N/A"},null,{"$error":"#N/A"},{"$error":"#VALUE!"},"  "]
[null,null,null,null,null,null,"",null,null,null,null,"","",null,{"$error":"#REF!"},null,{"$error":"#N/A"},null,{"$error":"#N/A"},null,{"$error":"#N/A"},null,{"$error":"#N/A"},null,{"$error":"#N/A"},null,{"$error":"#N/A"},null,{"$error":"#N/A"},{"$error":"#VALUE!"},"  "]
[null,null,null,null,null,null,"",null,null,null,null,"","",null,{"$error":"#REF!"},null,{"$error":"#N/A"},null,{"$error":"#N/A"},null,{"$error":"#N/A"},null,{"$error":"#N/A"},null,{"$error":"#N/A"},null,{"$error":"#N/A"},null,{"$error":"#N/A"},{"$error":"#VALUE!"},"  "]
[null,null,null,null,null,null,{"$f":"IF(C828=\"\",\"\",VLOOKUP(F828,REF_AGE,2))","v":""},null,null,null,null,{"$f":"IF(I828=\"\",\"\",(H828/(I828*I828))*10000)","v":""},{"$f":"IF(I828=\"\",\"\",VLOOKUP(L828,PT_IMC,2))","v":""},null,{"$f":"VLOOKUP(N828,INDIRECT(\"T1C\"&$E828&G828),2)","v":{"$error":"#REF!"}},null,{"$f":"VLOOKUP(P828,INDIRECT(Q$2&$E828&$G828),2)","v":{"$error":"#N/A"}},null,{"$f":"VLOOKUP(R828,INDIRECT(S$2&$E828&$G828),2)","v":{"$error":"#N/A"}},null,{"$f":"VLOOKUP(T828,INDIRECT(U$2&$E828&$G828),2)","v":{"$error":"#N/A"}},null,{"$f":"VLOOKUP(V828,INDIRECT(W$2&$E828&$G828),2)","v":{"$error":"#N/A"}},null,{"$f":"VLOOKUP(X828,INDIRECT(Y$2&$E828&$G828),2)","v":{"$error":"#N/A"}},null,{"$f":"VLOOKUP(Z828,INDIRECT(AA$2&$E828&$G828),2)","v":{"$error":"#N/A"}},null,{"$f":"VLOOKUP(AB828,INDIRECT(AC$2&$E828&$G828),2)","v":{"$error":"#N/A"}},{"$f":"M828+O828+Q828+S828+U828+W828+Y828+AA828+AC828","v":{"$error":"#VALUE!"}},{"$f":"K828&\" \"&C828&\" \"&D828","v":"  "}]
[null,null,null,null,null,null,"",null,null,null,null,"","",null,{"$error":"#REF!"},null,{"$error":"#N/A"},null,{"$error":"#N/A"},null,{"$error":"#N/A"},null,{"$error":"#N/A"},null,{"$error":"#N/A"},null,{"$error":"#N/A"},null,{"$error":"#N/A"},{"$error":"#VALUE!"},"  "]
[null,null,null,null,null,null,"",null,null,null,null,"","",null,{"$error":"#REF!"},null,{"$error":"#N/A"},null,{"$error":"#N/A"},null,{"$error":"#N/A"},null,{"$error":"#N/A"},null,{"$error":"#N/A"},null,{"$error":"#N/A"},null,{"$error":"#N/A"},{"$error":"#VALUE!"},"  "]
[null,null,null,null,null,null,"",null,null,null,null,"","",null,{"$error":"#REF!"},null,{"$error":"#N/A"},null,{"$error":"#N/A"},null,{"$error":"#N/A"},null,{"$error":"#N/A"},null,{"$error":"#N/A"},null,{"$error":"#N/A"},null,{"$error":"#N/A"},{"$error":"#VALUE!"},"  "]
[null,null,null,null,null,null,"",null,null,null,null,"","",null,{"$error":"#REF!"},null,{"$error":"#N/A"},null,{"$error":"#N/A"},null,{"$error":"#N/A"},null,{"$error":"#N/A"},null,{"$error":"#N/A"},null,{"$error":"#N/A"},null,{"$error":"#N/A"},{"$error":"#VALUE!"},"  "]
[null,null,null,null,null,null,"",null,null,null,null,"","",null,{"$error":"#REF!"},null,{"$error":"#N/A"},null,{"$error":"#N/A"},null,{"$error":"#N/A"},null,{"$error":"#N/A"},null,{"$error":"#N/A"},null,{"$error":"#N/A"},null,{"$error":"#N/A"},{"$error":"#VALUE!"},"  "]
[null,null,null,null,null,null,"",null,null,null,null,"","",null,{"$error":"#REF!"},null,{"$error":"#N/A"},null,{"$error":"#N/A"},null,{"$error":"#N/A"},null,{"$error":"#N/A"},null,{"$error":"#N/A"},null,{"$error":"#N/A"},null,{"$error":"#N/A"},{"$error":"#VALUE!"},"  "]
[null,null,null,null,null,null,"",null,null,null,null,"","",null,{"$error":"#REF!"},null,{"$error":"#N/A"},null,{"$error":"#N/A"},null,{"$error":"#N/A"},null,{"$error":"#N/A"},null,{"$error":"#N/A"},null,{"$error":"#N/A"},null,{"$error":"#N/A"},{"$error":"#VALUE!"},"  "]
[null,null,null,null,null,null,"",null,null,null,null,"","",null,{"$error":"#REF!"},null,{"$error":"#N/A"},null,{"$error":"#N/A"},null,{"$error":"#N/A"},null,{"$error":"#N/A"},null,{"$error":"#N/A"},null,{"$error":"#N/A"},null,{"$error":"#N/A"},{"$error":"#VALUE!"},"  "]
[null,null,null,null,null,null,"",null,null,null,null,"","",null,{"$error":"#REF!"},null,{"$error":"#N/A"},null,{"$error":"#N/A"},null,{"$error":"#N/A"},null,{"$error":"#N/A"},null,{"$error":"#N/A"},null,{"$error":"#N/A"},null,{"$error":"#N/A"},{"$error":"#VALUE!"},"  "]
[null,null,null,null,null,null,"",null,null,null,null,"","",null,{"$error":"#REF!"},null,{"$error":"#N/A"},null,{"$error":"#N/A"},null,{"$error":"#N/A"},null,{"$error":"#N/A"},null,{"$error":"#N/A"},null,{"$error":"#N/A"},null,{"$error":"#N/A"},{"$error":"#VALUE!"},"  "]
[null,null,null,null,null,null,"",null,null,null,null,"","",null,{"$error":"#REF!"},null,{"$error":"#N/A"},null,{"$error":"#N/A"},null,{"$error":"#N/A"},null,{"$error":"#N/A"},null,{"$error":"#N/A"},null,{"$error":"#N/A"},null,{"$error":"#N/A"},{"$error":"#VALUE!"},"  "]
[null,null,null,null,null,null,"",null,null,null,null,"","",null,{"$error":"#REF!"},null,{"$error":"#N/A"},null,{"$error":"#N/A"},null,{"$error":"#N/A"},null,{"$error":"#N/A"},null,{"$error":"#N/A"},null,{"$error":"#N/A"},null,{"$error":"#N/A"},{"$error":"#VALUE!"},"  "]
[null,null,null,null,null,null,"",null,null,null,null,"","",null,{"$error":"#REF!"},null,{"$error":"#N/A"},null,{"$error":"#N/A"},null,{"$error":"#N/A"},null,{"$error":"#N/A"},null,{"$error":"#N/A"},null,{"$error":"#N/A"},null,{"$error":"#N/A"},{"$error":"#VALUE!"},"  "]
[null,null,null,null,null,null,"",null,null,null,null,"","",null,{"$error":"#REF!"},null,{"$error":"#N/A"},null,{"$error":"#N/A"},null,{"$error":"#N/A"},null,{"$error":"#N/A"},null,{"$error":"#N/A"},null,{"$error":"#N/A"},null,{"$error":"#N/A"},{"$error":"#VALUE!"},"  "]
[null,null,null,null,null,null,"",null,null,null,null,"","",null,{"$error":"#REF!"},null,{"$error":"#N/A"},null,{"$error":"#N/A"},null,{"$error":"#N/A"},null,{"$error":"#N/A"},null,{"$error":"#N/A"},null,{"$error":"#N/A"},null,{"$error":"#N/A"},{"$error":"#VALUE!"},"  "]
[null,null,null,null,null,null,"",null,null,null,null,"","",null,{"$error":"#REF!"},null,{"$error":"#N/A"},null,{"$error":"#N/A"},null,{"$error":"#N/A"},null,{"$error":"#N/A"},null,{"$error":"#N/A"},null,{"$error":"#N/A"},null,{"$error":"#N/A"},{"$error":"#VALUE!"},"  "]
[null,null,null,null,null,null,"",null,null,null,null,"","",null,{"$error":"#REF!"},null,{"$error":"#N/A"},null,{"$error":"#N/A"},null,{"$error":"#N/A"},null,{"$error":"#N/A"},null,{"$error":"#N/A"},null,{"$error":"#N/A"},null,{"$error":"#N/A"},{"$error":"#VALUE!"},"  "]
[null,null,null,null,null,null,"",null,null,null,null,"","",null,{"$error":"#REF!"},null,{"$error":"#N/A"},null,{"$error":"#N/A"},null,{"$error":"#N/A"},null,{"$error":"#N/A"},null,{"$error":"#N/A"},null,{"$error":"#N/A"},null,{"$error":"#N/A"},{"$error":"#VALUE!"},"  "]
[null,null,null,null,null,null,"",null,null,null,null,"","",null,{"$error":"#REF!"},null,{"$error":"#N/A"},null,{"$error":"#N/A"},null,{"$error":"#N/A"},null,{"$error":"#N/A"},null,{"$error":"#N/A"},null,{"$error":"#N/A"},null,{"$error":"#N/A"},{"$error":"#VALUE!"},"  "]
[null,null,null,null,null,null,"",null,null,null,null,"","",null,{"$error":"#REF!"},null,{"$error":"#N/A"},null,{"$error":"#N/A"},null,{"$error":"#N/A"},null,{"$error":"#N/A"},null,{"$error":"#N/A"},null,{"$error":"#N/A"},null,{"$error":"#N/A"},{"$error":"#VALUE!"},"  "]
[null,null,null,null,null,null,"",null,null,null,null,"","",null,{"$error":"#REF!"},null,{"$error":"#N/A"},null,{"$error":"#N/A"},null,{"$error":"#N/A"},null,{"$error":"#N/A"},null,{"$error":"#N/A"},null,{"$error":"#N/A"},null,{"$error":"#N/A"},{"$error":"#VALUE!"},"  "]
[null,null,null,null,null,null,"",null,null,null,null,"","",null,{"$error":"#REF!"},null,{"$error":"#N/A"},null,{"$error":"#N/A"},null,{"$error":"#N/A"},null,{"$error":"#N/A"},null,{"$error":"#N/A"},null,{"$error":"#N/A"},null,{"$error":"#N/A"},{"$error":"#VALUE!"},"  "]
[null,null,null,null,null,null,"",null,null,null,null,"","",null,{"$error":"#REF!"},null,{"$error":"#N/A"},null,{"$error":"#N/A"},null,{"$error":"#N/A"},null,{"$error":"#N/A"},null,{"$error":"#N/A"},null,{"$error":"#N/A"},null,{"$error":"#N/A"},{"$error":"#VALUE!"},"  "]
[null,null,null,null,null,null,"",null,null,null,null,"","",null,{"$error":"#REF!"},null,{"$error":"#N/A"},null,{"$error":"#N/A"},null,{"$error":"#N/A"},null,{"$error":"#N/A"},null,{"$error":"#N/A"},null,{"$error":"#N/A"},null,{"$error":"#N/A"},{"$error":"#VALUE!"},"  "]
[null,null,null,null,null,null,"",null,null,null,null,"","",null,{"$error":"#REF!"},null,{"$error":"#N/A"},null,{"$error":"#N/A"},null,{"$error":"#N/A"},null,{"$error":"#N/A"},null,{"$error":"#N/A"},null,{"$error":"#N/A"},null,{"$error":"#N/A"},{"$error":"#VALUE!"},"  "]
[null,null,null,null,null,null,"",null,null,null,null,"","",null,{"$error":"#REF!"},null,{"$error":"#N/A"},null,{"$error":"#N/A"},null,{"$error":"#N/A"},null,{"$error":"#N/A"},null,{"$error":"#N/A"},null,{"$error":"#N/A"},null,{"$error":"#N/A"},{"$error":"#VALUE!"},"  "]
[null,null,null,null,null,null,"",null,null,null,null,"","",null,{"$error":"#REF!"},null,{"$error":"#N/A"},null,{"$error":"#N/A"},null,{"$error":"#N/A"},null,{"$error":"#N/A"},null,{"$error":"#N/A"},null,{"$error":"#N/A"},null,{"$error":"#N/A"},{"$error":"#VALUE!"},"  "]
[null,null,null,null,null,null,"",null,null,null,null,"","",null,{"$error":"#REF!"},null,{"$error":"#N/A"},null,{"$error":"#N/A"},null,{"$error":"#N/A"},null,{"$error":"#N/A"},null,{"$error":"#N/A"},null,{"$error":"#N/A"},null,{"$error":"#N/A"},{"$error":"#VALUE!"},"  "]
[null,null,null,null,null,null,"",null,null,null,null,"","",null,{"$error":"#REF!"},null,{"$error":"#N/A"},null,{"$error":"#N/A"},null,{"$error":"#N/A"},null,{"$error":"#N/A"},null,{"$error":"#N/A"},null,{"$error":"#N/A"},null,{"$error":"#N/A"},{"$error":"#VALUE!"},"  "]
[null,null,null,null,null,null,"",null,null,null,null,"","",null,{"$error":"#REF!"},null,{"$error":"#N/A"},null,{"$error":"#N/A"},null,{"$error":"#N/A"},null,{"$error":"#N/A"},null,{"$error":"#N/A"},null,{"$error":"#N/A"},null,{"$error":"#N/A"},{"$error":"#VALUE!"},"  "]
[null,null,null,null,null,null,"",null,null,null,null,"","",null,{"$error":"#REF!"},null,{"$error":"#N/A"},null,{"$error":"#N/A"},null,{"$error":"#N/A"},null,{"$error":"#N/A"},null,{"$error":"#N/A"},null,{"$error":"#N/A"},null,{"$error":"#N/A"},{"$error":"#VALUE!"},"  "]
[null,null,null,null,null,null,"",null,null,null,null,"","",null,{"$error":"#REF!"},null,{"$error":"#N/A"},null,{"$error":"#N/A"},null,{"$error":"#N/A"},null,{"$error":"#N/A"},null,{"$error":"#N/A"},null,{"$error":"#N/A"},null,{"$error":"#N/A"},{"$error":"#VALUE!"},"  "]
[null,null,null,null,null,null,"",null,null,null,null,"","",null,{"$error":"#REF!"},null,{"$error":"#N/A"},null,{"$error":"#N/A"},null,{"$error":"#N/A"},null,{"$error":"#N/A"},null,{"$error":"#N/A"},null,{"$error":"#N/A"},null,{"$error":"#N/A"},{"$error":"#VALUE!"},"  "]
[null,null,null,null,null,null,"",null,null,null,null,"","",null,{"$error":"#REF!"},null,{"$error":"#N/A"},null,{"$error":"#N/A"},null,{"$error":"#N/A"},null,{"$error":"#N/A"},null,{"$error":"#N/A"},null,{"$error":"#N/A"},null,{"$error":"#N/A"},{"$error":"#VALUE!"},"  "]
[null,null,null,null,null,null,"",null,null,null,null,"","",null,{"$error":"#REF!"},null,{"$error":"#N/A"},null,{"$error":"#N/A"},null,{"$error":"#N/A"},null,{"$error":"#N/A"},null,{"$error":"#N/A"},null,{"$error":"#N/A"},null,{"$error":"#N/A"},{"$error":"#VALUE!"},"  "]
[null,null,null,null,null,null,"",null,null,null,null,"","",null,{"$error":"#REF!"},null,{"$error":"#N/A"},null,{"$error":"#N/A"},null,{"$error":"#N/A"},null,{"$error":"#N/A"},null,{"$error":"#N/A"},null,{"$error":"#N/A"},null,{"$error":"#N/A"},{"$error":"#VALUE!"},"  "]
[null,null,null,null,null,null,"",null,null,null,null,"","",null,{"$error":"#REF!"},null,{"$error":"#N/A"},null,{"$error":"#N/A"},null,{"$error":"#N/A"},null,{"$error":"#N/A"},null,{"$error":"#N/A"},null,{"$error":"#N/A"},null,{"$error":"#N/A"},{"$error":"#VALUE!"},"  "]
[null,null,null,null,null,null,"",null,null,null,null,"","",null,{"$error":"#REF!"},null,{"$error":"#N/A"},null,{"$error":"#N/A"},null,{"$error":"#N/A"},null,{"$error":"#N/A"},null,{"$error":"#N/A"},null,{"$error":"#N/A"},null,{"$error":"#N/A"},{"$error":"#VALUE!"},"  "]
[null,null,null,null,null,null,"",null,null,null,null,"","",null,{"$error":"#REF!"},null,{"$error":"#N/A"},null,{"$error":"#N/A"},null,{"$error":"#N/A"},null,{"$error":"#N/A"},null,{"$error":"#N/A"},null,{"$error":"#N/A"},null,{"$error":"#N/A"},{"$error":"#VALUE!"},"  "]
[null,null,null,null,null,null,"",null,null,null,null,"","",null,{"$error":"#REF!"},null,{"$error":"#N/A"},null,{"$error":"#N/A"},null,{"$error":"#N/A"},null,{"$error":"#N/A"},null,{"$error":"#N/A"},null,{"$error":"#N/A"},null,{"$error":"#N/A"},{"$error":"#VALUE!"},"  "]
[null,null,null,null,null,null,"",null,null,null,null,"","",null,{"$error":"#REF!"},null,{"$error":"#N/A"},null,{"$error":"#N/A"},null,{"$error":"#N/A"},null,{"$error":"#N/A"},null,{"$error":"#N/A"},null,{"$error":"#N/A"},null,{"$error":"#N/A"},{"$error":"#VALUE!"},"  "]
[null,null,null,null,null,null,"",null,null,null,null,"","",null,{"$error":"#REF!"},null,{"$error":"#N/A"},null,{"$error":"#N/A"},null,{"$error":"#N/A"},null,{"$error":"#N/A"},null,{"$error":"#N/A"},null,{"$error":"#N/A"},null,{"$error":"#N/A"},{"$error":"#VALUE!"},"  "]
[null,null,null,null,null,null,"",null,null,null,null,"","",null,{"$error":"#REF!"},null,{"$error":"#N/A"},null,{"$error":"#N/A"},null,{"$error":"#N/A"},null,{"$error":"#N/A"},null,{"$error":"#N/A"},null,{"$error":"#N/A"},null,{"$error":"#N/A"},{"$error":"#VALUE!"},"  "]
[null,null,null,null,null,null,"",null,null,null,null,"","",null,{"$error":"#REF!"},null,{"$error":"#N/A"},null,{"$error":"#N/A"},null,{"$error":"#N/A"},null,{"$error":"#N/A"},null,{"$error":"#N/A"},null,{"$error":"#N/A"},null,{"$error":"#N/A"},{"$error":"#VALUE!"},"  "]
[null,null,null,null,null,null,"",null,null,null,null,"","",null,{"$error":"#REF!"},null,{"$error":"#N/A"},null,{"$error":"#N/A"},null,{"$error":"#N/A"},null,{"$error":"#N/A"},null,{"$error":"#N/A"},null,{"$error":"#N/A"},null,{"$error":"#N/A"},{"$error":"#VALUE!"},"  "]
[null,null,null,null,null,null,"",null,null,null,null,"","",null,{"$error":"#REF!"},null,{"$error":"#N/A"},null,{"$error":"#N/A"},null,{"$error":"#N/A"},null,{"$error":"#N/A"},null,{"$error":"#N/A"},null,{"$error":"#N/A"},null,{"$error":"#N/A"},{"$error":"#VALUE!"},"  "]
[null,null,null,null,null,null,"",null,null,null,null,"","",null,{"$error":"#REF!"},null,{"$error":"#N/A"},null,{"$error":"#N/A"},null,{"$error":"#N/A"},null,{"$error":"#N/A"},null,{"$error":"#N/A"},null,{"$error":"#N/A"},null,{"$error":"#N/A"},{"$error":"#VALUE!"},"  "]
[null,null,null,null,null,null,"",null,null,null,null,"","",null,{"$error":"#REF!"},null,{"$error":"#N/A"},null,{"$error":"#N/A"},null,{"$error":"#N/A"},null,{"$error":"#N/A"},null,{"$error":"#N/A"},null,{"$error":"#N/A"},null,{"$error":"#N/A"},{"$error":"#VALUE!"},"  "]
[null,null,null,null,null,null,"",null,null,null,null,"","",null,{"$error":"#REF!"},null,{"$error":"#N/A"},null,{"$error":"#N/A"},null,{"$error":"#N/A"},null,{"$error":"#N/A"},null,{"$error":"#N/A"},null,{"$error":"#N/A"},null,{"$error":"#N/A"},{"$error":"#VALUE!"},"  "]
[null,null,null,null,null,null,"",null,null,null,null,"","",null,{"$error":"#REF!"},null,{"$error":"#N/A"},null,{"$error":"#N/A"},null,{"$error":"#N/A"},null,{"$error":"#N/A"},null,{"$error":"#N/A"},null,{"$error":"#N/A"},null,{"$error":"#N/A"},{"$error":"#VALUE!"},"  "]
[null,null,null,null,null,null,"",null,null,null,null,"","",null,{"$error":"#REF!"},null,{"$error":"#N/A"},null,{"$error":"#N/A"},null,{"$error":"#N/A"},null,{"$error":"#N/A"},null,{"$error":"#N/A"},null,{"$error":"#N/A"},null,{"$error":"#N/A"},{"$error":"#VALUE!"},"  "]
[null,null,null,null,null,null,"",null,null,null,null,"","",null,{"$error":"#REF!"},null,{"$error":"#N/A"},null,{"$error":"#N/A"},null,{"$error":"#N/A"},null,{"$error":"#N/A"},null,{"$error":"#N/A"},null,{"$error":"#N/A"},null,{"$error":"#N/A"},{"$error":"#VALUE!"},"  "]
[null,null,null,null,null,null,"",null,null,null,null,"","",null,{"$error":"#REF!"},null,{"$error":"#N/A"},null,{"$error":"#N/A"},null,{"$error":"#N/A"},null,{"$error":"#N/A"},null,{"$error":"#N/A"},null,{"$error":"#N/A"},null,{"$error":"#N/A"},{"$error":"#VALUE!"},"  "]
[null,null,null,null,null,null,"",null,null,null,null,"","",null,{"$error":"#REF!"},null,{"$error":"#N/A"},null,{"$error":"#N/A"},null,{"$error":"#N/A"},null,{"$error":"#N/A"},null,{"$error":"#N/A"},null,{"$error":"#N/A"},null,{"$error":"#N/A"},{"$error":"#VALUE!"},"  "]
[null,null,null,null,null,null,"",null,null,null,null,"","",null,{"$error":"#REF!"},null,{"$error":"#N/A"},null,{"$error":"#N/A"},null,{"$error":"#N/A"},null,{"$error":"#N/A"},null,{"$error":"#N/A"},null,{"$error":"#N/A"},null,{"$error":"#N/A"},{"$error":"#VALUE!"},"  "]
[null,null,null,null,null,null,"",null,null,null,null,"","",null,{"$error":"#REF!"},null,{"$error":"#N/A"},null,{"$error":"#N/A"},null,{"$error":"#N/A"},null,{"$error":"#N/A"},null,{"$error":"#N/A"},null,{"$error":"#N/A"},null,{"$error":"#N/A"},{"$error":"#VALUE!"},"  "]
[null,null,null,null,null,null,"",null,null,null,null,"","",null,{"$error":"#REF!"},null,{"$error":"#N/A"},null,{"$error":"#N/A"},null,{"$error":"#N/A"},null,{"$error":"#N/A"},null,{"$error":"#N/A"},null,{"$error":"#N/A"},null,{"$error":"#N/A"},{"$error":"#VALUE!"},"  "]
[null,null,null,null,null,null,"",null,null,null,null,"","",null,{"$error":"#REF!"},null,{"$error":"#N/A"},null,{"$error":"#N/A"},null,{"$error":"#N/A"},null,{"$error":"#N/A"},null,{"$error":"#N/A"},null,{"$error":"#N/A"},null,{"$error":"#N/A"},{"$error":"#VALUE!"},"  "]
[null,null,null,null,null,null,"",null,null,null,null,"","",null,{"$error":"#REF!"},null,{"$error":"#N/A"},null,{"$error":"#N/A"},null,{"$error":"#N/A"},null,{"$error":"#N/A"},null,{"$error":"#N/A"},null,{"$error":"#N/A"},null,{"$error":"#N/A"},{"$error":"#VALUE!"},"  "]
[null,null,null,null,null,null,"",null,null,null,null,"","",null,{"$error":"#REF!"},null,{"$error":"#N/A"},null,{"$error":"#N/A"},null,{"$error":"#N/A"},null,{"$error":"#N/A"},null,{"$error":"#N/A"},null,{"$error":"#N/A"},null,{"$error":"#N/A"},{"$error":"#VALUE!"},"  "]
[null,null,null,null,null,null,"",null,null,null,null,"","",null,{"$error":"#REF!"},null,{"$error":"#N/A"},null,{"$error":"#N/A"},null,{"$error":"#N/A"},null,{"$error":"#N/A"},null,{"$error":"#N/A"},null,{"$error":"#N/A"},null,{"$error":"#N/A"},{"$error":"#VALUE!"},"  "]
[null,null,null,null,null,null,"",null,null,null,null,"","",null,{"$error":"#REF!"},null,{"$error":"#N/A"},null,{"$error":"#N/A"},null,{"$error":"#N/A"},null,{"$error":"#N/A"},null,{"$error":"#N/A"},null,{"$error":"#N/A"},null,{"$error":"#N/A"},{"$error":"#VALUE!"},"  "]
[null,null,null,null,null,null,"",null,null,null,null,"","",null,{"$error":"#REF!"},null,{"$error":"#N/A"},null,{"$error":"#N/A"},null,{"$error":"#N/A"},null,{"$error":"#N/A"},null,{"$error":"#N/A"},null,{"$error":"#N/A"},null,{"$error":"#N/A"},{"$error":"#VALUE!"},"  "]
[null,null,null,null,null,null,{"$f":"IF(C892=\"\",\"\",VLOOKUP(F892,REF_AGE,2))","v":""},null,null,null,null,{"$f":"IF(I892=\"\",\"\",(H892/(I892*I892))*10000)","v":""},{"$f":"IF(I892=\"\",\"\",VLOOKUP(L892,PT_IMC,2))","v":""},null,{"$f":"VLOOKUP(N892,INDIRECT(\"T1C\"&$E892&G892),2)","v":{"$error":"#REF!"}},null,{"$f":"VLOOKUP(P892,INDIRECT(Q$2&$E892&$G892),2)","v":{"$error":"#N/A"}},null,{"$f":"VLOOKUP(R892,INDIRECT(S$2&$E892&$G892),2)","v":{"$error":"#N/A"}},null,{"$f":"VLOOKUP(T892,INDIRECT(U$2&$E892&$G892),2)","v":{"$error":"#N/A"}},null,{"$f":"VLOOKUP(V892,INDIRECT(W$2&$E892&$G892),2)","v":{"$error":"#N/A"}},null,{"$f":"VLOOKUP(X892,INDIRECT(Y$2&$E892&$G892),2)","v":{"$error":"#N/A"}},null,{"$f":"VLOOKUP(Z892,INDIRECT(AA$2&$E892&$G892),2)","v":{"$error":"#N/A"}},null,{"$f":"VLOOKUP(AB892,INDIRECT(AC$2&$E892&$G892),2)","v":{"$error":"#N/A"}},{"$f":"M892+O892+Q892+S892+U892+W892+Y892+AA892+AC892","v":{"$error":"#VALUE!"}},{"$f":"K892&\" \"&C892&\" \"&D892","v":"  "}]
[null,null,null,null,null,null,"",null,null,null,null,"","",null,{"$error":"#REF!"},null,{"$error":"#N/A"},null,{"$error":"#N/A"},null,{"$error":"#N/A"},null,{"$error":"#N/A"},null,{"$error":"#N/A"},null,{"$error":"#N/A"},null,{"$error":"#N/A"},{"$error":"#VALUE!"},"  "]
[null,null,null,null,null,null,"",null,null,null,null,"","",null,{"$error":"#REF!"},null,{"$error":"#N/A"},null,{"$error":"#N/A"},null,{"$error":"#N/A"},null,{"$error":"#N/A"},null,{"$error":"#N/A"},null,{"$error":"#N/A"},null,{"$error":"#N/A"},{"$error":"#VALUE!"},"  "]
[null,null,null,null,null,null,"",null,null,null,null,"","",null,{"$error":"#REF!"},null,{"$error":"#N/A"},null,{"$error":"#N/A"},null,{"$error":"#N/A"},null,{"$error":"#N/A"},null,{"$error":"#N/A"},null,{"$error":"#N/A"},null,{"$error":"#N/A"},{"$error":"#VALUE!"},"  "]
[null,null,null,null,null,null,"",null,null,null,null,"","",null,{"$error":"#REF!"},null,{"$error":"#N/A"},null,{"$error":"#N/A"},null,{"$error":"#N/A"},null,{"$error":"#N/A"},null,{"$error":"#N/A"},null,{"$error":"#N/A"},null,{"$error":"#N/A"},{"$error":"#VALUE!"},"  "]
[null,null,null,null,null,null,"",null,null,null,null,"","",null,{"$error":"#REF!"},null,{"$error":"#N/A"},null,{"$error":"#N/A"},null,{"$error":"#N/A"},null,{"$error":"#N/A"},null,{"$error":"#N/A"},null,{"$error":"#N/A"},null,{"$error":"#N/A"},{"$error":"#VALUE!"},"  "]
[null,null,null,null,null,null,"",null,null,null,null,"","",null,{"$error":"#REF!"},null,{"$error":"#N/A"},null,{"$error":"#N/A"},null,{"$error":"#N/A"},null,{"$error":"#N/A"},null,{"$error":"#N/A"},null,{"$error":"#N/A"},null,{"$error":"#N/A"},{"$error":"#VALUE!"},"  "]
[null,null,null,null,null,null,"",null,null,null,null,"","",null,{"$error":"#REF!"},null,{"$error":"#N/A"},null,{"$error":"#N/A"},null,{"$error":"#N/A"},null,{"$error":"#N/A"},null,{"$error":"#N/A"},null,{"$error":"#N/A"},null,{"$error":"#N/A"},{"$error":"#VALUE!"},"  "]
[null,null,null,null,null,null,"",null,null,null,null,"","",null,{"$error":"#REF!"},null,{"$error":"#N/A"},null,{"$error":"#N/A"},null,{"$error":"#N/A"},null,{"$error":"#N/A"},null,{"$error":"#N/A"},null,{"$error":"#N/A"},null,{"$error":"#N/A"},{"$error":"#VALUE!"},"  "]
[null,null,null,null,null,null,"",null,null,null,null,"","",null,{"$error":"#REF!"},null,{"$error":"#N/A"},null,{"$error":"#N/A"},null,{"$error":"#N/A"},null,{"$error":"#N/A"},null,{"$error":"#N/A"},null,{"$error":"#N/A"},null,{"$error":"#N/A"},{"$error":"#VALUE!"},"  "]
[null,null,null,null,null,null,"",null,null,null,null,"","",null,{"$error":"#REF!"},null,{"$error":"#N/A"},null,{"$error":"#N/A"},null,{"$error":"#N/A"},null,{"$error":"#N/A"},null,{"$error":"#N/A"},null,{"$error":"#N/A"},null,{"$error":"#N/A"},{"$error":"#VALUE!"},"  "]
[null,null,null,null,null,null,"",null,null,null,null,"","",null,{"$error":"#REF!"},null,{"$error":"#N/A"},null,{"$error":"#N/A"},null,{"$error":"#N/A"},null,{"$error":"#N/A"},null,{"$error":"#N/A"},null,{"$error":"#N/A"},null,{"$error":"#N/A"},{"$error":"#VALUE!"},"  "]
[null,null,null,null,null,null,"",null,null,null,null,"","",null,{"$error":"#REF!"},null,{"$error":"#N/A"},null,{"$error":"#N/A"},null,{"$error":"#N/A"},null,{"$error":"#N/A"},null,{"$error":"#N/A"},null,{"$error":"#N/A"},null,{"$error":"#N/A"},{"$error":"#VALUE!"},"  "]
[null,null,null,null,null,null,"",null,null,null,null,"","",null,{"$error":"#REF!"},null,{"$error":"#N/A"},null,{"$error":"#N/A"},null,{"$error":"#N/A"},null,{"$error":"#N/A"},null,{"$error":"#N/A"},null,{"$error":"#N/A"},null,{"$error":"#N/A"},{"$error":"#VALUE!"},"  "]
[null,null,null,null,null,null,"",null,null,null,null,"","",null,{"$error":"#REF!"},null,{"$error":"#N/A"},null,{"$error":"#N/A"},null,{"$error":"#N/A"},null,{"$error":"#N/A"},null,{"$error":"#N/A"},null,{"$error":"#N/A"},null,{"$error":"#N/A"},{"$error":"#VALUE!"},"  "]
[null,null,null,null,null,null,"",null,null,null,null,"","",null,{"$error":"#REF!"},null,{"$error":"#N/A"},null,{"$error":"#N/A"},null,{"$error":"#N/A"},null,{"$error":"#N/A"},null,{"$error":"#N/A"},null,{"$error":"#N/A"},null,{"$error":"#N/A"},{"$error":"#VALUE!"},"  "]
[null,null,null,null,null,null,"",null,null,null,null,"","",null,{"$error":"#REF!"},null,{"$error":"#N/A"},null,{"$error":"#N/A"},null,{"$error":"#N/A"},null,{"$error":"#N/A"},null,{"$error":"#N/A"},null,{"$error":"#N/A"},null,{"$error":"#N/A"},{"$error":"#VALUE!"},"  "]
[null,null,null,null,null,null,"",null,null,null,null,"","",null,{"$error":"#REF!"},null,{"$error":"#N/A"},null,{"$error":"#N/A"},null,{"$error":"#N/A"},null,{"$error":"#N/A"},null,{"$error":"#N/A"},null,{"$error":"#N/A"},null,{"$error":"#N/A"},{"$error":"#VALUE!"},"  "]
[null,null,null,null,null,null,"",null,null,null,null,"","",null,{"$error":"#REF!"},null,{"$error":"#N/A"},null,{"$error":"#N/A"},null,{"$error":"#N/A"},null,{"$error":"#N/A"},null,{"$error":"#N/A"},null,{"$error":"#N/A"},null,{"$error":"#N/A"},{"$error":"#VALUE!"},"  "]
[null,null,null,null,null,null,"",null,null,null,null,"","",null,{"$error":"#REF!"},null,{"$error":"#N/A"},null,{"$error":"#N/A"},null,{"$error":"#N/A"},null,{"$error":"#N/A"},null,{"$error":"#N/A"},null,{"$error":"#N/A"},null,{"$error":"#N/A"},{"$error":"#VALUE!"},"  "]
[null,null,null,null,null,null,"",null,null,null,null,"","",null,{"$error":"#REF!"},null,{"$error":"#N/A"},null,{"$error":"#N/A"},null,{"$error":"#N/A"},null,{"$error":"#N/A"},null,{"$error":"#N/A"},null,{"$error":"#N/A"},null,{"$error":"#N/A"},{"$error":"#VALUE!"},"  "]
[null,null,null,null,null,null,"",null,null,null,null,"","",null,{"$error":"#REF!"},null,{"$error":"#N/A"},null,{"$error":"#N/A"},null,{"$error":"#N/A"},null,{"$error":"#N/A"},null,{"$error":"#N/A"},null,{"$error":"#N/A"},null,{"$error":"#N/A"},{"$error":"#VALUE!"},"  "]
[null,null,null,null,null,null,"",null,null,null,null,"","",null,{"$error":"#REF!"},null,{"$error":"#N/A"},null,{"$error":"#N/A"},null,{"$error":"#N/A"},null,{"$error":"#N/A"},null,{"$error":"#N/A"},null,{"$error":"#N/A"},null,{"$error":"#N/A"},{"$error":"#VALUE!"},"  "]
[null,null,null,null,null,null,"",null,null,null,null,"","",null,{"$error":"#REF!"},null,{"$error":"#N/A"},null,{"$error":"#N/A"},null,{"$error":"#N/A"},null,{"$error":"#N/A"},null,{"$error":"#N/A"},null,{"$error":"#N/A"},null,{"$error":"#N/A"},{"$error":"#VALUE!"},"  "]
[null,null,null,null,null,null,"",null,null,null,null,"","",null,{"$error":"#REF!"},null,{"$error":"#N/A"},null,{"$error":"#N/A"},null,{"$error":"#N/A"},null,{"$error":"#N/A"},null,{"$error":"#N/A"},null,{"$error":"#N/A"},null,{"$error":"#N/A"},{"$error":"#VALUE!"},"  "]
[null,null,null,null,null,null,"",null,null,null,null,"","",null,{"$error":"#REF!"},null,{"$error":"#N/A"},null,{"$error":"#N/A"},null,{"$error":"#N/A"},null,{"$error":"#N/A"},null,{"$error":"#N/A"},null,{"$error":"#N/A"},null,{"$error":"#N/A"},{"$error":"#VALUE!"},"  "]
[null,null,null,null,null,null,"",null,null,null,null,"","",null,{"$error":"#REF!"},null,{"$error":"#N/A"},null,{"$error":"#N/A"},null,{"$error":"#N/A"},null,{"$error":"#N/A"},null,{"$error":"#N/A"},null,{"$error":"#N/A"},null,{"$error":"#N/A"},{"$error":"#VALUE!"},"  "]
[null,null,null,null,null,null,"",null,null,null,null,"","",null,{"$error":"#REF!"},null,{"$error":"#N/A"},null,{"$error":"#N/A"},null,{"$error":"#N/A"},null,{"$error":"#N/A"},null,{"$error":"#N/A"},null,{"$error":"#N/A"},null,{"$error":"#N/A"},{"$error":"#VALUE!"},"  "]
[null,null,null,null,null,null,"",null,null,null,null,"","",null,{"$error":"#REF!"},null,{"$error":"#N/A"},null,{"$error":"#N/A"},null,{"$error":"#N/A"},null,{"$error":"#N/A"},null,{"$error":"#N/A"},null,{"$error":"#N/A"},null,{"$error":"#N/A"},{"$error":"#VALUE!"},"  "]
[null,null,null,null,null,null,"",null,null,null,null,"","",null,{"$error":"#REF!"},null,{"$error":"#N/A"},null,{"$error":"#N/A"},null,{"$error":"#N/A"},null,{"$error":"#N/A"},null,{"$error":"#N/A"},null,{"$error":"#N/A"},null,{"$error":"#N/A"},{"$error":"#VALUE!"},"  "]
[null,null,null,null,null,null,"",null,null,null,null,"","",null,{"$error":"#REF!"},null,{"$error":"#N/A"},null,{"$error":"#N/A"},null,{"$error":"#N/A"},null,{"$error":"#N/A"},null,{"$error":"#N/A"},null,{"$error":"#N/A"},null,{"$error":"#N/A"},{"$error":"#VALUE!"},"  "]
[null,null,null,null,null,null,"",null,null,null,null,"","",null,{"$error":"#REF!"},null,{"$error":"#N/A"},null,{"$error":"#N/A"},null,{"$error":"#N/A"},null,{"$error":"#N/A"},null,{"$error":"#N/A"},null,{"$error":"#N/A"},null,{"$error":"#N/A"},{"$error":"#VALUE!"},"  "]
[null,null,null,null,null,null,"",null,null,null,null,"","",null,{"$error":"#REF!"},null,{"$error":"#N/A"},null,{"$error":"#N/A"},null,{"$error":"#N/A"},null,{"$error":"#N/A"},null,{"$error":"#N/A"},null,{"$error":"#N/A"},null,{"$error":"#N/A"},{"$error":"#VALUE!"},"  "]
[null,null,null,null,null,null,"",null,null,null,null,"","",null,{"$error":"#REF!"},null,{"$error":"#N/A"},null,{"$error":"#N/A"},null,{"$error":"#N/A"},null,{"$error":"#N/A"},null,{"$error":"#N/A"},null,{"$error":"#N/A"},null,{"$error":"#N/A"},{"$error":"#VALUE!"},"  "]
[null,null,null,null,null,null,"",null,null,null,null,"","",null,{"$error":"#REF!"},null,{"$error":"#N/A"},null,{"$error":"#N/A"},null,{"$error":"#N/A"},null,{"$error":"#N/A"},null,{"$error":"#N/A"},null,{"$error":"#N/A"},null,{"$error":"#N/A"},{"$error":"#VALUE!"},"  "]
[null,null,null,null,null,null,"",null,null,null,null,"","",null,{"$error":"#REF!"},null,{"$error":"#N/A"},null,{"$error":"#N/A"},null,{"$error":"#N/A"},null,{"$error":"#N/A"},null,{"$error":"#N/A"},null,{"$error":"#N/A"},null,{"$error":"#N/A"},{"$error":"#VALUE!"},"  "]
[null,null,null,null,null,null,"",null,null,null,null,"","",null,{"$error":"#REF!"},null,{"$error":"#N/A"},null,{"$error":"#N/A"},null,{"$error":"#N/A"},null,{"$error":"#N/A"},null,{"$error":"#N/A"},null,{"$error":"#N/A"},null,{"$error":"#N/A"},{"$error":"#VALUE!"},"  "]
[null,null,null,null,null,null,"",null,null,null,null,"","",null,{"$error":"#REF!"},null,{"$error":"#N/A"},null,{"$error":"#N/A"},null,{"$error":"#N/A"},null,{"$error":"#N/A"},null,{"$error":"#N/A"},null,{"$error":"#N/A"},null,{"$error":"#N/A"},{"$error":"#VALUE!"},"  "]
[null,null,null,null,null,null,"",null,null,null,null,"","",null,{"$error":"#REF!"},null,{"$error":"#N/A"},null,{"$error":"#N/A"},null,{"$error":"#N/A"},null,{"$error":"#N/A"},null,{"$error":"#N/A"},null,{"$error":"#N/A"},null,{"$error":"#N/A"},{"$error":"#VALUE!"},"  "]
[null,null,null,null,null,null,"",null,null,null,null,"","",null,{"$error":"#REF!"},null,{"$error":"#N/A"},null,{"$error":"#N/A"},null,{"$error":"#N/A"},null,{"$error":"#N/A"},null,{"$error":"#N/A"},null,{"$error":"#N/A"},null,{"$error":"#N/A"},{"$error":"#VALUE!"},"  "]
[null,null,null,null,null,null,"",null,null,null,null,"","",null,{"$error":"#REF!"},null,{"$error":"#N/A"},null,{"$error":"#N/A"},null,{"$error":"#N/A"},null,{"$error":"#N/A"},null,{"$error":"#N/A"},null,{"$error":"#N/A"},null,{"$error":"#N/A"},{"$error":"#VALUE!"},"  "]
[null,null,null,null,null,null,"",null,null,null,null,"","",null,{"$error":"#REF!"},null,{"$error":"#N/A"},null,{"$error":"#N/A"},null,{"$error":"#N/A"},null,{"$error":"#N/A"},null,{"$error":"#N/A"},null,{"$error":"#N/A"},null,{"$error":"#N/A"},{"$error":"#VALUE!"},"  "]
[null,null,null,null,null,null,"",null,null,null,null,"","",null,{"$error":"#REF!"},null,{"$error":"#N/A"},null,{"$error":"#N/A"},null,{"$error":"#N/A"},null,{"$error":"#N/A"},null,{"$error":"#N/A"},null,{"$error":"#N/A"},null,{"$error":"#N/A"},{"$error":"#VALUE!"},"  "]
[null,null,null,null,null,null,"",null,null,null,null,"","",null,{"$error":"#REF!"},null,{"$error":"#N/A"},null,{"$error":"#N/A"},null,{"$error":"#N/A"},null,{"$error":"#N/A"},null,{"$error":"#N/A"},null,{"$error":"#N/A"},null,{"$error":"#N/A"},{"$error":"#VALUE!"},"  "]
[null,null,null,null,null,null,"",null,null,null,null,"","",null,{"$error":"#REF!"},null,{"$error":"#N/A"},null,{"$error":"#N/A"},null,{"$error":"#N/A"},null,{"$error":"#N/A"},null,{"$error":"#N/A"},null,{"$error":"#N/A"},null,{"$error":"#N/A"},{"$error":"#VALUE!"},"  "]
[null,null,null,null,null,null,"",null,null,null,null,"","",null,{"$error":"#REF!"},null,{"$error":"#N/A"},null,{"$error":"#N/A"},null,{"$error":"#N/A"},null,{"$error":"#N/A"},null,{"$error":"#N/A"},null,{"$error":"#N/A"},null,{"$error":"#N/A"},{"$error":"#VALUE!"},"  "]
[null,null,null,null,null,null,"",null,null,null,null,"","",null,{"$error":"#REF!"},null,{"$error":"#N/A"},null,{"$error":"#N/A"},null,{"$error":"#N/A"},null,{"$error":"#N/A"},null,{"$error":"#N/A"},null,{"$error":"#N/A"},null,{"$error":"#N/A"},{"$error":"#VALUE!"},"  "]
[null,null,null,null,null,null,"",null,null,null,null,"","",null,{"$error":"#REF!"},null,{"$error":"#N/A"},null,{"$error":"#N/A"},null,{"$error":"#N/A"},null,{"$error":"#N/A"},null,{"$error":"#N/A"},null,{"$error":"#N/A"},null,{"$error":"#N/A"},{"$error":"#VALUE!"},"  "]
[null,null,null,null,null,null,"",null,null,null,null,"","",null,{"$error":"#REF!"},null,{"$error":"#N/A"},null,{"$error":"#N/A"},null,{"$error":"#N/A"},null,{"$error":"#N/A"},null,{"$error":"#N/A"},null,{"$error":"#N/A"},null,{"$error":"#N/A"},{"$error":"#VALUE!"},"  "]
[null,null,null,null,null,null,"",null,null,null,null,"","",null,{"$error":"#REF!"},null,{"$error":"#N/A"},null,{"$error":"#N/A"},null,{"$error":"#N/A"},null,{"$error":"#N/A"},null,{"$error":"#N/A"},null,{"$error":"#N/A"},null,{"$error":"#N/A"},{"$error":"#VALUE!"},"  "]
[null,null,null,null,null,null,"",null,null,null,null,"","",null,{"$error":"#REF!"},null,{"$error":"#N/A"},null,{"$error":"#N/A"},null,{"$error":"#N/A"},null,{"$error":"#N/A"},null,{"$error":"#N/A"},null,{"$error":"#N/A"},null,{"$error":"#N/A"},{"$error":"#VALUE!"},"  "]
[null,null,null,null,null,null,"",null,null,null,null,"","",null,{"$error":"#REF!"},null,{"$error":"#N/A"},null,{"$error":"#N/A"},null,{"$error":"#N/A"},null,{"$error":"#N/A"},null,{"$error":"#N/A"},null,{"$error":"#N/A"},null,{"$error":"#N/A"},{"$error":"#VALUE!"},"  "]
[null,null,null,null,null,null,"",null,null,null,null,"","",null,{"$error":"#REF!"},null,{"$error":"#N/A"},null,{"$error":"#N/A"},null,{"$error":"#N/A"},null,{"$error":"#N/A"},null,{"$error":"#N/A"},null,{"$error":"#N/A"},null,{"$error":"#N/A"},{"$error":"#VALUE!"},"  "]
[null,null,null,null,null,null,"",null,null,null,null,"","",null,{"$error":"#REF!"},null,{"$error":"#N/A"},null,{"$error":"#N/A"},null,{"$error":"#N/A"},null,{"$error":"#N/A"},null,{"$error":"#N/A"},null,{"$error":"#N/A"},null,{"$error":"#N/A"},{"$error":"#VALUE!"},"  "]
[null,null,null,null,null,null,"",null,null,null,null,"","",null,{"$error":"#REF!"},null,{"$error":"#N/A"},null,{"$error":"#N/A"},null,{"$error":"#N/A"},null,{"$error":"#N/A"},null,{"$error":"#N/A"},null,{"$error":"#N/A"},null,{"$error":"#N/A"},{"$error":"#VALUE!"},"  "]
[null,null,null,null,null,null,"",null,null,null,null,"","",null,{"$error":"#REF!"},null,{"$error":"#N/A"},null,{"$error":"#N/A"},null,{"$error":"#N/A"},null,{"$error":"#N/A"},null,{"$error":"#N/A"},null,{"$error":"#N/A"},null,{"$error":"#N/A"},{"$error":"#VALUE!"},"  "]
[null,null,null,null,null,null,"",null,null,null,null,"","",null,{"$error":"#REF!"},null,{"$error":"#N/A"},null,{"$error":"#N/A"},null,{"$error":"#N/A"},null,{"$error":"#N/A"},null,{"$error":"#N/A"},null,{"$error":"#N/A"},null,{"$error":"#N/A"},{"$error":"#VALUE!"},"  "]
[null,null,null,null,null,null,"",null,null,null,null,"","",null,{"$error":"#REF!"},null,{"$error":"#N/A"},null,{"$error":"#N/A"},null,{"$error":"#N/A"},null,{"$error":"#N/A"},null,{"$error":"#N/A"},null,{"$error":"#N/A"},null,{"$error":"#N/A"},{"$error":"#VALUE!"},"  "]
[null,null,null,null,null,null,"",null,null,null,null,"","",null,{"$error":"#REF!"},null,{"$error":"#N/A"},null,{"$error":"#N/A"},null,{"$error":"#N/A"},null,{"$error":"#N/A"},null,{"$error":"#N/A"},null,{"$error":"#N/A"},null,{"$error":"#N/A"},{"$error":"#VALUE!"},"  "]
[null,null,null,null,null,null,"",null,null,null,null,"","",null,{"$error":"#REF!"},null,{"$error":"#N/A"},null,{"$error":"#N/A"},null,{"$error":"#N/A"},null,{"$error":"#N/A"},null,{"$error":"#N/A"},null,{"$error":"#N/A"},null,{"$error":"#N/A"},{"$error":"#VALUE!"},"  "]
[null,null,null,null,null,null,"",null,null,null,null,"","",null,{"$error":"#REF!"},null,{"$error":"#N/A"},null,{"$error":"#N/A"},null,{"$error":"#N/A"},null,{"$error":"#N/A"},null,{"$error":"#N/A"},null,{"$error":"#N/A"},null,{"$error":"#N/A"},{"$error":"#VALUE!"},"  "]
[null,null,null,null,null,null,"",null,null,null,null,"","",null,{"$error":"#REF!"},null,{"$error":"#N/A"},null,{"$error":"#N/A"},null,{"$error":"#N/A"},null,{"$error":"#N/A"},null,{"$error":"#N/A"},null,{"$error":"#N/A"},null,{"$error":"#N/A"},{"$error":"#VALUE!"},"  "]
[null,null,null,null,null,null,"",null,null,null,null,"","",null,{"$error":"#REF!"},null,{"$error":"#N/A"},null,{"$error":"#N/A"},null,{"$error":"#N/A"},null,{"$error":"#N/A"},null,{"$error":"#N/A"},null,{"$error":"#N/A"},null,{"$error":"#N/A"},{"$error":"#VALUE!"},"  "]
[null,null,null,null,null,null,"",null,null,null,null,"","",null,{"$error":"#REF!"},null,{"$error":"#N/A"},null,{"$error":"#N/A"},null,{"$error":"#N/A"},null,{"$error":"#N/A"},null,{"$error":"#N/A"},null,{"$error":"#N/A"},null,{"$error":"#N/A"},{"$error":"#VALUE!"},"  "]
[null,null,null,null,null,null,{"$f":"IF(C956=\"\",\"\",VLOOKUP(F956,REF_AGE,2))","v":""},null,null,null,null,{"$f":"IF(I956=\"\",\"\",(H956/(I956*I956))*10000)","v":""},{"$f":"IF(I956=\"\",\"\",VLOOKUP(L956,PT_IMC,2))","v":""},null,{"$f":"VLOOKUP(N956,INDIRECT(\"T1C\"&$E956&G956),2)","v":{"$error":"#REF!"}},null,{"$f":"VLOOKUP(P956,INDIRECT(Q$2&$E956&$G956),2)","v":{"$error":"#N/A"}},null,{"$f":"VLOOKUP(R956,INDIRECT(S$2&$E956&$G956),2)","v":{"$error":"#N/A"}},null,{"$f":"VLOOKUP(T956,INDIRECT(U$2&$E956&$G956),2)","v":{"$error":"#N/A"}},null,{"$f":"VLOOKUP(V956,INDIRECT(W$2&$E956&$G956),2)","v":{"$error":"#N/A"}},null,{"$f":"VLOOKUP(X956,INDIRECT(Y$2&$E956&$G956),2)","v":{"$error":"#N/A"}},null,{"$f":"VLOOKUP(Z956,INDIRECT(AA$2&$E956&$G956),2)","v":{"$error":"#N/A"}},null,{"$f":"VLOOKUP(AB956,INDIRECT(AC$2&$E956&$G956),2)","v":{"$error":"#N/A"}},{"$f":"M956+O956+Q956+S956+U956+W956+Y956+AA956+AC956","v":{"$error":"#VALUE!"}},{"$f":"K956&\" \"&C956&\" \"&D956","v":"  "}]
[null,null,null,null,null,null,"",null,null,null,null,"","",null,{"$error":"#REF!"},null,{"$error":"#N/A"},null,{"$error":"#N/A"},null,{"$error":"#N/A"},null,{"$error":"#N/A"},null,{"$error":"#N/A"},null,{"$error":"#N/A"},null,{"$error":"#N/A"},{"$error":"#VALUE!"},"  "]
[null,null,null,null,null,null,"",null,null,null,null,"","",null,{"$error":"#REF!"},null,{"$error":"#N/A"},null,{"$error":"#N/A"},null,{"$error":"#N/A"},null,{"$error":"#N/A"},null,{"$error":"#N/A"},null,{"$error":"#N/A"},null,{"$error":"#N/A"},{"$error":"#VALUE!"},"  "]
[null,null,null,null,null,null,"",null,null,null,null,"","",null,{"$error":"#REF!"},null,{"$error":"#N/A"},null,{"$error":"#N/A"},null,{"$error":"#N/A"},null,{"$error":"#N/A"},null,{"$error":"#N/A"},null,{"$error":"#N/A"},null,{"$error":"#N/A"},{"$error":"#VALUE!"},"  "]
[null,null,null,null,null,null,"",null,null,null,null,"","",null,{"$error":"#REF!"},null,{"$error":"#N/A"},null,{"$error":"#N/A"},null,{"$error":"#N/A"},null,{"$error":"#N/A"},null,{"$error":"#N/A"},null,{"$error":"#N/A"},null,{"$error":"#N/A"},{"$error":"#VALUE!"},"  "]
[null,null,null,null,null,null,"",null,null,null,null,"","",null,{"$error":"#REF!"},null,{"$error":"#N/A"},null,{"$error":"#N/A"},null,{"$error":"#N/A"},null,{"$error":"#N/A"},null,{"$error":"#N/A"},null,{"$error":"#N/A"},null,{"$error":"#N/A"},{"$error":"#VALUE!"},"  "]
[null,null,null,null,null,null,"",null,null,null,null,"","",null,{"$error":"#REF!"},null,{"$error":"#N/A"},null,{"$error":"#N/A"},null,{"$error":"#N/A"},null,{"$error":"#N/A"},null,{"$error":"#N/A"},null,{"$error":"#N/A"},null,{"$error":"#N/A"},{"$error":"#VALUE!"},"  "]
[null,null,null,null,null,null,"",null,null,null,null,"","",null,{"$error":"#REF!"},null,{"$error":"#N/A"},null,{"$error":"#N/A"},null,{"$error":"#N/A"},null,{"$error":"#N/A"},null,{"$error":"#N/A"},null,{"$error":"#N/A"},null,{"$error":"#N/A"},{"$error":"#VALUE!"},"  "]
[null,null,null,null,null,null,"",null,null,null,null,"","",null,{"$error":"#REF!"},null,{"$error":"#N/A"},null,{"$error":"#N/A"},null,{"$error":"#N/A"},null,{"$error":"#N/A"},null,{"$error":"#N/A"},null,{"$error":"#N/A"},null,{"$error":"#N/A"},{"$error":"#VALUE!"},"  "]
[null,null,null,null,null,null,"",null,null,null,null,"","",null,{"$error":"#REF!"},null,{"$error":"#N/A"},null,{"$error":"#N/A"},null,{"$error":"#N/A"},null,{"$error":"#N/A"},null,{"$error":"#N/A"},null,{"$error":"#N/A"},null,{"$error":"#N/A"},{"$error":"#VALUE!"},"  "]
[null,null,null,null,null,null,"",null,null,null,null,"","",null,{"$error":"#REF!"},null,{"$error":"#N/A"},null,{"$error":"#N/A"},null,{"$error":"#N/A"},null,{"$error":"#N/A"},null,{"$error":"#N/A"},null,{"$error":"#N/A"},null,{"$error":"#N/A"},{"$error":"#VALUE!"},"  "]
[null,null,null,null,null,null,"",null,null,null,null,"","",null,{"$error":"#REF!"},null,{"$error":"#N/A"},null,{"$error":"#N/A"},null,{"$error":"#N/A"},null,{"$error":"#N/A"},null,{"$error":"#N/A"},null,{"$error":"#N/A"},null,{"$error":"#N/A"},{"$error":"#VALUE!"},"  "]
[null,null,null,null,null,null,"",null,null,null,null,"","",null,{"$error":"#REF!"},null,{"$error":"#N/A"},null,{"$error":"#N/A"},null,{"$error":"#N/A"},null,{"$error":"#N/A"},null,{"$error":"#N/A"},null,{"$error":"#N/A"},null,{"$error":"#N/A"},{"$error":"#VALUE!"},"  "]
[null,null,null,null,null,null,"",null,null,null,null,"","",null,{"$error":"#REF!"},null,{"$error":"#N/A"},null,{"$error":"#N/A"},null,{"$error":"#N/A"},null,{"$error":"#N/A"},null,{"$error":"#N/A"},null,{"$error":"#N/A"},null,{"$error":"#N/A"},{"$error":"#VALUE!"},"  "]
[null,null,null,null,null,null,"",null,null,null,null,"","",null,{"$error":"#REF!"},null,{"$error":"#N/A"},null,{"$error":"#N/A"},null,{"$error":"#N/A"},null,{"$error":"#N/A"},null,{"$error":"#N/A"},null,{"$error":"#N/A"},null,{"$error":"#N/A"},{"$error":"#VALUE!"},"  "]
[null,null,null,null,null,null,"",null,null,null,null,"","",null,{"$error":"#REF!"},null,{"$error":"#N/A"},null,{"$error":"#N/A"},null,{"$error":"#N/A"},null,{"$error":"#N/A"},null,{"$error":"#N/A"},null,{"$error":"#N/A"},null,{"$error":"#N/A"},{"$error":"#VALUE!"},"  "]
[null,null,null,null,null,null,"",null,null,null,null,"","",null,{"$error":"#REF!"},null,{"$error":"#N/A"},null,{"$error":"#N/A"},null,{"$error":"#N/A"},null,{"$error":"#N/A"},null,{"$error":"#N/A"},null,{"$error":"#N/A"},null,{"$error":"#N/A"},{"$error":"#VALUE!"},"  "]
[null,null,null,null,null,null,"",null,null,null,null,"","",null,{"$error":"#REF!"},null,{"$error":"#N/A"},null,{"$error":"#N/A"},null,{"$error":"#N/A"},null,{"$error":"#N/A"},null,{"$error":"#N/A"},null,{"$error":"#N/A"},null,{"$error":"#N/A"},{"$error":"#VALUE!"},"  "]
[null,null,null,null,null,null,"",null,null,null,null,"","",null,{"$error":"#REF!"},null,{"$error":"#N/A"},null,{"$error":"#N/A"},null,{"$error":"#N/A"},null,{"$error":"#N/A"},null,{"$error":"#N/A"},null,{"$error":"#N/A"},null,{"$error":"#N/A"},{"$error":"#VALUE!"},"  "]
[null,null,null,null,null,null,"",null,null,null,null,"","",null,{"$error":"#REF!"},null,{"$error":"#N/A"},null,{"$error":"#N/A"},null,{"$error":"#N/A"},null,{"$error":"#N/A"},null,{"$error":"#N/A"},null,{"$error":"#N/A"},null,{"$error":"#N/A"},{"$error":"#VALUE!"},"  "]
[null,null,null,null,null,null,"",null,null,null,null,"","",null,{"$error":"#REF!"},null,{"$error":"#N/A"},null,{"$error":"#N/A"},null,{"$error":"#N/A"},null,{"$error":"#N/A"},null,{"$error":"#N/A"},null,{"$error":"#N/A"},null,{"$error":"#N/A"},{"$error":"#VALUE!"},"  "]
[null,null,null,null,null,null,"",null,null,null,null,"","",null,{"$error":"#REF!"},null,{"$error":"#N/A"},null,{"$error":"#N/A"},null,{"$error":"#N/A"},null,{"$error":"#N/A"},null,{"$error":"#N/A"},null,{"$error":"#N/A"},null,{"$error":"#N/A"},{"$error":"#VALUE!"},"  "]
[null,null,null,null,null,null,"",null,null,null,null,"","",null,{"$error":"#REF!"},null,{"$error":"#N/A"},null,{"$error":"#N/A"},null,{"$error":"#N/A"},null,{"$error":"#N/A"},null,{"$error":"#N/A"},null,{"$error":"#N/A"},null,{"$error":"#N/A"},{"$error":"#VALUE!"},"  "]
[null,null,null,null,null,null,"",null,null,null,null,"","",null,{"$error":"#REF!"},null,{"$error":"#N/A"},null,{"$error":"#N/A"},null,{"$error":"#N/A"},null,{"$error":"#N/A"},null,{"$error":"#N/A"},null,{"$error":"#N/A"},null,{"$error":"#N/A"},{"$error":"#VALUE!"},"  "]
[null,null,null,null,null,null,"",null,null,null,null,"","",null,{"$error":"#REF!"},null,{"$error":"#N/A"},null,{"$error":"#N/A"},null,{"$error":"#N/A"},null,{"$error":"#N/A"},null,{"$error":"#N/A"},null,{"$error":"#N/A"},null,{"$error":"#N/A"},{"$error":"#VALUE!"},"  "]

{"sheet":"FICHES","index":2,"n_rows":34,"n_cols":14,"rows_kept":34,"cut":false,"hidden":false,"merged":[[8,12,8,13],[2,3,3,3]]}
[{"$f":"+IF(D6=\"\",\"\",RES!AA3)","v":""}]
[]
[null,null,null,{"$f":"+IF(D6=\"\",\"\",D6)","v":""}]
[null,null,null,null,null,null,{"$f":"TITRES!B2","v":"Elève"}]
[]
[null,null,{"$f":"TITRES!E3","v":"Nom: "},null,{"$f":"IF(D6=\"TOUT\",10,IF(D6<>\"\",1,0))","v":0},{"$f":"TITRES!E4","v":"Prénom: "},null,{"$f":"IF(G6<>\"\",2,0)","v":0}]
[]
[null,null,{"$f":"TITRES!E5","v":"Sexe: "},null,"F/H",{"$f":"TITRES!E6","v":"Age: "},null,"ANS"]
[null,null,null,null,null,null,null,null,null,null,null,null,{"$f":"G6&\" \"&D6","v":" "}]
[null,null,{"$f":"TITRES!E8","v":"Poids: "},null,"KG",{"$f":"TITRES!E9","v":"Taille: "},null,"CM",null,null,null,null,"TESTS","SCORE"]
[null,null,null,null,null,null,null,null,null,null,null,null,{"$f":"TITRES!F2","v":"IMC"},{"$f":"+E18","v":{"$error":"#DIV/0!"}}]
[null,null,null,null,null,null,null,null,null,null,null,null,{"$f":"TITRES!F3","v":"T1 Endurance(Cardio)"},{"$f":"+E20","v":""}]
[null,null,null,null,null,null,"Établissement",null,null,null,null,null,{"$f":"TITRES!F4","v":"T2 Equilibre"},{"$f":"E22","v":""}]
[null,null,null,null,null,null,null,null,null,null,null,null,{"$f":"TITRES!F5","v":"T3 Force Statique"},{"$f":"E24","v":""}]
[null,null,{"$f":"TITRES!E10","v":"Etab.:"},null,null,{"$f":"TITRES!E11","v":"Groupe:"},null,null,null,null,null,null,{"$f":"TITRES!F6","v":"T4 Souplesse"},{"$f":"E26","v":""}]
[null,null,null,null,null,null,null,null,null,null,null,null,{"$f":"TITRES!F7","v":"T5 Vitesse haut du corps"},{"$f":"E28","v":""}]
[null,null,null,null,null,null,null,null,null,null,null,null,{"$f":"TITRES!F8","v":"T6 Vitesse bas du corps"},{"$f":"E30","v":""}]
[null,null,{"$f":"TITRES!E12","v":"IMC"},{"$f":"RES!L3","v":{"$error":"#DIV/0!"}},{"$f":"RES!M3","v":{"$error":"#DIV/0!"}},null,null,null,null,null,null,null,{"$f":"TITRES!F9","v":"T7 Force haut du corps"},{"$f":"E32","v":""}]
[null,null,null,null,null,null,null,null,null,null,null,null,{"$f":"TITRES!F10","v":"T8 Explosivité bas du corps"},{"$f":"E34","v":""}]
[null,null,{"$f":"TITRES!E14","v":"T1 1/2 cooper"},null,{"$f":"IF(OR(D20=\"\",D20=\"Test non fait\"),\"\",RES!O$3)","v":""},"M"]
[]
[null,null,{"$f":"TITRES!E16","v":"T2 Flamingo"},null,{"$f":"IF(OR(D22=\"\",D22=\"Test non fait\"),\"\",RES!Q$3)","v":""},"S"]
[]
[null,null,{"$f":"TITRES!E18","v":"T3 Préhension dynamomètre"},null,{"$f":"IF(OR(D24=\"\",D24=\"Test non fait\"),\"\",RES!S$3)","v":""},"KG"]
[]
[null,null,{"$f":"TITRES!E20","v":"T4 Souplesse Dorsale"},null,{"$f":"IF(OR(D26=\"\",D26=\"Test non fait\"),\"\",RES!U$3)","v":""},"CM"]
[]
[null,null,{"$f":"TITRES!E22","v":"T5 Vitesse Plaques"},null,{"$f":"IF(OR(D28=\"\",D28=\"Test non fait\"),\"\",RES!W$3)","v":""},"S"]
[]
[null,null,{"$f":"TITRES!E24","v":"T6 Course Navette"},null,{"$f":"IF(OR(D30=\"\",D30=\"Test non fait\"),\"\",RES!Y$3)","v":""},"S"]
[null,null,null,null,null,null,null,"Test non passé!"]
[null,null,{"$f":"TITRES!E26","v":"T7 Pompes Inclinées"},null,{"$f":"IF(OR(D32=\"\",D32=\"Test non fait\"),\"\",RES!AA$3)","v":""},"Rèp"]
[null,null,null,null,null,null,null,"Test non passé!"]
[null,null,{"$f":"TITRES!E28","v":"T8 Saut Horizontal"},null,{"$f":"IF(OR(D34=\"\",D34=\"Test non fait\"),\"\",RES!AC$3)","v":""},"CM"]

{"sheet":"OUTILS","index":3,"n_rows":1,"n_cols":3,"rows_kept":1,"cut":false,"hidden":true,"merged":[[0,2,0,4]]}
["MENU",null,"BOITE A OUTILS"]

{"sheet":"BAREMES","index":4,"n_rows":111,"n_cols":33,"rows_kept":111,"cut":false,"hidden":true,"merged":[[99,2,99,11],[99,15,99,24],[66,2,66,11],[77,2,77,11],[88,2,88,11],[66,15,66,24],[77,15,77,24],[88,15,88,24],[44,15,44,24],[55,15,55,24],[0,28,0,30],[12,2,12,11],[23,2,23,11],[33,2,33,11],[0,2,0,11],[1,2,1,11],[44,2,44,11],[55,2,55,11],[0,15,0,24],[1,15,1,24],[12,15,12,24],[23,15,23,24],[33,15,33,24]]}
[null,null,"FEMMES",null,null,null,null,null,null,null,null,null,null,null,null,"HOMMES",null,null,null,null,null,null,null,null,null,null,null,null,"REF AGE"]
[null,null,{"$f":"TITRES!E14","v":"T1 1/2 cooper"},null,null,null,null,null,null,null,null,null,null,null,null,{"$f":"C2","v":"T1 1/2 cooper"},null,null,null,null,null,null,null,null,null,null,null,null,"Age","Correspondance","Correspondance 2"]
[null,null,1,"INDICE",2,"INDICE",3,"INDICE",4,"INDICE",5,"INDICE",null,null,null,1,"INDICE",2,"INDICE",3,"INDICE",4,"INDICE",5,"INDICE",null,null,null,0,1,"A"]
[null,null,0,1,0,1,0,1,0,1,0,1,null,null,null,0,1,0,1,0,1,0,1,0,1,null,null,null,4,1,"A"]
[null,null,950,1,900,1,875,1,850,1,800,1,null,null,null,1000,1,950,1,900,1,875,1,850,1,null,null,null,5,1,"A"]
[null,null,1100,2,1000,2,950,2,900,2,850,2,null,null,null,1150,2,1100,2,1050,2,1000,2,950,2,null,null,null,6,1,"A"]
[null,null,1250,3,1200,3,1100,3,1000,3,950,3,null,null,null,1300,3,1200,3,1150,3,1100,3,1000,3,null,null,null,7,1,"A"]
[null,null,1350,4,1250,4,1150,4,1050,4,1000,4,null,null,null,1450,4,1350,4,1250,4,1150,4,1050,4,null,null,null,8,1,"A"]
[null,null,1500,5,1400,5,1350,5,1250,5,1150,5,null,null,null,1600,5,1500,5,1400,5,1300,5,1200,5,null,null,null,9,1,"A"]
[null,null,2000,5,2000,5,2000,5,2000,5,2000,5,null,null,null,2000,5,2000,5,2000,5,2000,5,2000,5,null,null,null,10,1,"A"]
[null,null,null,null,null,null,null,null,null,null,null,null,null,null,null,null,null,null,null,null,null,null,null,null,null,null,null,null,11,1,"A"]
[null,null,null,null,null,null,null,null,null,null,null,null,null,null,null,null,null,null,null,null,null,null,null,null,null,null,null,null,12,1,"A"]
[null,null,"TEST 1M [6 min marche]",null,null,null,null,null,null,null,null,null,null,null,null,"TEST 1M [6 min marche]",null,null,null,null,null,null,null,null,null,null,null,null,13,1,"A"]
[null,null,1,"INDICE",2,"INDICE",3,"INDICE",4,"INDICE",5,"INDICE",null,null,null,1,"INDICE",2,"INDICE",3,"INDICE",4,"INDICE",5,"INDICE",null,null,null,14,1,"A"]
[null,null,0,1,0,1,0,1,0,1,0,1,null,null,null,0,1,0,1,0,1,0,1,0,1,null,null,null,19,1,"A"]
[null,null,638,1,580,1,522,1,464,1,407,1,null,null,null,686,1,636,1,585,1,535,1,485,1,null,null,null,20,1,"A"]
[null,null,672,2,614,2,556,2,498,2,441,2,null,null,null,725,2,675,2,624,2,575,2,524,2,null,null,null,21,1,"A"]
[null,null,707,3,649,3,591,3,533,3,476,3,null,null,null,763,3,713,3,662,3,613,3,562,3,null,null,null,22,1,"A"]
[null,null,742,4,684,4,626,4,568,4,511,4,null,null,null,801,4,751,4,700,4,651,4,600,4,null,null,null,23,1,"A"]
[null,null,777,5,719,5,661,5,603,5,546,5,null,null,null,839,5,789,5,738,5,689,5,638,5,null,null,null,24,1,"A"]
[null,null,2000,5,2000,5,2000,5,2000,5,2000,5,null,null,null,2000,5,2000,5,2000,5,2000,5,2000,5,null,null,null,25,1,"A"]
[null,null,null,null,null,null,null,null,null,null,null,null,null,null,null,null,null,null,null,null,null,null,null,null,null,null,null,null,26,1,"A"]
[null,null,null,null,null,null,null,null,null,null,null,null,null,null,null,null,null,null,null,null,null,null,null,null,null,null,null,null,27,1,"A"]
[null,null,{"$f":"TITRES!E16","v":"T2 Flamingo"},null,null,null,null,null,null,null,null,null,null,null,null,{"$f":"C24","v":"T2 Flamingo"},null,null,null,null,null,null,null,null,null,null,null,null,28,1,"A"]
[null,null,1,"INDICE",2,"INDICE",3,"INDICE",4,"INDICE",5,"INDICE",null,null,null,1,"INDICE",2,"INDICE",3,"INDICE",4,"INDICE",5,"INDICE",null,null,null,29,1,"A"]
[null,null,0,1,0,1,0,1,0,1,0,1,null,null,null,0,1,0,1,0,1,0,1,0,1,null,null,null,30,1,"A"]
[null,null,30,1,25,1,20,1,10,1,5,1,null,null,null,30,1,25,1,20,1,10,1,5,1,null,null,null,31,2,"B"]
[null,null,40,2,35,2,25,2,15,2,10,2,null,null,null,40,2,35,2,25,2,15,2,10,2,null,null,null,32,2,"B"]
[null,null,50,3,40,3,30,3,20,3,15,3,null,null,null,50,3,40,3,30,3,20,3,15,3,null,null,null,33,2,"B"]
[null,null,60,4,45,4,35,4,25,4,20,4,null,null,null,60,4,45,4,35,4,25,4,20,4,null,null,null,34,2,"B"]
[null,null,200,5,200,5,200,5,200,5,200,5,null,null,null,200,5,200,5,200,5,200,5,200,5,null,null,null,35,2,"B"]
[null,null,null,null,null,null,null,null,null,null,null,null,null,null,null,null,null,null,null,null,null,null,null,null,null,null,null,null,36,2,"B"]
[null,null,null,null,null,null,null,null,null,null,null,null,null,null,null,null,null,null,null,null,null,null,null,null,null,null,null,null,37,2,"B"]
[null,null,{"$f":"TITRES!E18","v":"T3 Préhension dynamomètre"},null,null,null,null,null,null,null,null,null,null,null,null,{"$f":"C34","v":"T3 Préhension dynamomètre"},null,null,null,null,null,null,null,null,null,null,null,null,38,2,"B"]
[null,null,1,"INDICE",2,"INDICE",3,"INDICE",4,"INDICE",5,"INDICE",null,null,null,1,"INDICE",2,"INDICE",3,"INDICE",4,"INDICE",5,"INDICE",null,null,null,39,2,"B"]
[null,null,0,1,0,1,0,1,0,1,0,1,null,null,null,0,1,0,1,0,1,0,1,0,1,null,null,null,40,3,"C"]
[null,null,19.2,1,20.3,1,18.100000000000001,1,17.7,1,17.2,1,null,null,null,35.700000000000003,1,35.799999999999997,1,34.700000000000003,1,30.7,1,32,1,null,null,null,41,3,"C"]
[null,null,24.8,2,24.1,2,21.7,2,21.2,2,20.7,2,null,null,null,41.2,2,40.700000000000003,2,39.9,2,35.700000000000003,2,36,2,null,null,null,42,3,"C"]
[null,null,30.4,3,27.9,3,25.4,3,24.7,3,24.2,3,null,null,null,46.7,3,41.1,3,44.8,3,40.700000000000003,3,40,3,null,null,null,43,3,"C"]
[null,null,35.9,4,31.7,4,29,4,28.2,4,27.4,4,null,null,null,51.2,4,46.5,4,50.2,4,45.7,4,44,4,null,null,null,45,3,"C"]
[null,null,41.4,5,35.299999999999997,5,32.700000000000003,5,31.9,5,31,5,null,null,null,57.5,5,55.6,5,55.3,5,50.7,5,48,5,null,null,null,46,3,"C"]
[null,null,200,5,200,5,200,5,200,5,200,5,null,null,null,200,5,200,5,200,5,200,5,200,5,null,null,null,47,3,"C"]
[null,null,null,null,null,null,null,null,null,null,null,null,null,null,null,null,null,null,null,null,null,null,null,null,null,null,null,null,48,3,"C"]
[null,null,null,null,null,null,null,null,null,null,null,null,null,null,null,null,null,null,null,null,null,null,null,null,null,null,null,null,49,3,"C"]
[null,null,{"$f":"TITRES!E20","v":"T4 Souplesse Dorsale"},null,null,null,null,null,null,null,null,null,null,null,null,{"$f":"C45","v":"T4 Souplesse Dorsale"},null,null,null,null,null,null,null,null,null,null,null,null,50,3,"C"]
[null,null,1,"INDICE",2,"INDICE",3,"INDICE",4,"INDICE",5,"INDICE",null,null,null,1,"INDICE",2,"INDICE",3,"INDICE",4,"INDICE",5,"INDICE",null,null,null,51,4,"D"]
[null,null,-500,5,-500,5,-500,5,-500,5,-500,5,null,null,null,-500,5,-500,5,-500,5,-500,5,-500,5,null,null,null,52,4,"D"]
[null,null,-25,5,-20,5,-10,5,-5,5,0,5,null,null,null,-20,5,-15,5,-5,5,0,5,5,5,null,null,null,53,4,"D"]
[null,null,-15,4,-10,4,-5,4,0,4,5,4,null,null,null,-10,4,-5,4,0,4,5,4,10,4,null,null,null,54,4,"D"]
[null,null,0,3,0,3,5,3,10,3,15,3,null,null,null,0,3,5,3,10,3,15,3,20,3,null,null,null,55,4,"D"]
[null,null,10,2,10,2,15,2,15,2,20,2,null,null,null,10,2,15,2,20,2,20,2,25,2,null,null,null,56,4,"D"]
[null,null,20,1,25,1,25,1,25,1,30,1,null,null,null,20,1,20,1,30,1,30,1,35,1,null,null,null,57,4,"D"]
[null,null,200,1,200,1,200,1,200,1,200,1,null,null,null,200,1,200,1,200,1,200,1,200,1,null,null,null,58,4,"D"]
[null,null,null,null,null,null,null,null,null,null,null,null,null,null,null,null,null,null,null,null,null,null,null,null,null,null,null,null,59,4,"D"]
[null,null,null,null,null,null,null,null,null,null,null,null,null,null,null,null,null,null,null,null,null,null,null,null,null,null,null,null,60,4,"D"]
[null,null,{"$f":"TITRES!E22","v":"T5 Vitesse Plaques"},null,null,null,null,null,null,null,null,null,null,null,null,{"$f":"C56","v":"T5 Vitesse Plaques"},null,null,null,null,null,null,null,null,null,null,null,null,61,5,"E"]
[null,null,1,"INDICE",2,"INDICE",3,"INDICE",4,"INDICE",5,"INDICE",null,null,null,1,"INDICE",2,"INDICE",3,"INDICE",4,"INDICE",5,"INDICE",null,null,null,62,5,"E"]
[null,null,0,5,0,5,0,5,0,5,0,5,null,null,null,0,5,0,5,0,5,0,5,0,5,null,null,null,63,5,"E"]
[null,null,11,5,11.5,5,12,5,12.5,5,13,5,null,null,null,10,5,10.5,5,11,5,11.5,5,12,5,null,null,null,64,5,"E"]
[null,null,11.5,4,12,4,12.5,4,13,4,13.5,4,null,null,null,11,4,11.5,4,12,4,12.5,4,13,4,null,null,null,65,5,"E"]
[null,null,12,3,12.5,3,13,3,13.5,3,14,3,null,null,null,11.5,3,12,3,12.5,3,13,3,13.5,3,null,null,null,66,5,"E"]
[null,null,13,2,13.5,2,14,2,14.5,2,15,2,null,null,null,12.5,2,13,2,13.5,2,14,2,14.5,2,null,null,null,67,5,"E"]
[null,null,14,1,14.5,1,15,1,16,1,17,1,null,null,null,13,1,13.5,1,14,1,14.5,1,15,1,null,null,null,68,5,"E"]
[null,null,50,1,50,1,50,1,50,1,50,1,null,null,null,50,1,50,1,50,1,50,1,50,1,null,null,null,69,5,"E"]
[null,null,null,null,null,null,null,null,null,null,null,null,null,null,null,null,null,null,null,null,null,null,null,null,null,null,null,null,70,5,"E"]
[null,null,null,null,null,null,null,null,null,null,null,null,null,null,null,null,null,null,null,null,null,null,null,null,null,null,null,null,71,5,"E"]
[null,null,{"$f":"TITRES!E24","v":"T6 Course Navette"},null,null,null,null,null,null,null,null,null,null,null,null,{"$f":"C67","v":"T6 Course Navette"},null,null,null,null,null,null,null,null,null,null,null,null,72,5,"E"]
[null,null,1,"INDICE",2,"INDICE",3,"INDICE",4,"INDICE",5,"INDICE",null,null,null,1,"INDICE",2,"INDICE",3,"INDICE",4,"INDICE",5,"INDICE",null,null,null,73,5,"E"]
[null,null,0,5,0,5,0,5,0,5,0,5,null,null,null,0,5,0,5,0,5,0,5,0,5,null,null,null,74,5,"E"]
[null,null,16,5,17,5,18,5,20,5,22,5,null,null,null,14,5,15,5,16,5,18,5,20,5]
[null,null,19,4,20,4,21,4,23,4,25,4,null,null,null,17,4,18,4,19,4,21,4,23,4]
[null,null,21,3,22,3,23,3,25,3,27,3,null,null,null,19,3,20,3,21,3,23,3,25,3]
[null,null,23,2,24,2,25,2,27,2,29,2,null,null,null,21,2,22,2,23,2,25,2,27,2]
[null,null,25,1,26,1,27,1,29,1,31,1,null,null,null,23,1,24,1,25,1,27,1,29,1]
[null,null,50,1,50,1,50,1,50,1,50,1,null,null,null,50,1,50,1,50,1,50,1,50,1]
[]
[]
[null,null,{"$f":"TITRES!E26","v":"T7 Pompes Inclinées"},null,null,null,null,null,null,null,null,null,null,null,null,{"$f":"C78","v":"T7 Pompes Inclinées"}]
[null,null,1,"INDICE",2,"INDICE",3,"INDICE",4,"INDICE",5,"INDICE",null,null,null,1,"INDICE",2,"INDICE",3,"INDICE",4,"INDICE",5,"INDICE"]
[null,null,0,1,0,1,0,1,0,1,0,1,null,null,null,0,1,0,1,0,1,0,1,0,1]
[null,null,15,1,15,1,10,1,5,1,5,1,null,null,null,20,1,15,1,10,1,10,1,8,1]
[null,null,20,2,15,2,10,2,10,2,8,2,null,null,null,25,2,20,2,15,2,12,2,10,2]
[null,null,25,3,20,3,15,3,12,3,10,3,null,null,null,30,3,25,3,20,3,15,3,12,3]
[null,null,30,4,25,4,20,4,15,4,12,4,null,null,null,35,4,30,4,25,4,20,4,15,4]
[null,null,40,5,35,5,30,5,25,5,20,5,null,null,null,50,5,40,5,35,5,30,5,25,5]
[null,null,100,5,100,5,100,5,100,5,100,5,null,null,null,100,5,100,5,100,5,100,5,100,5]
[]
[]
[null,null,{"$f":"TITRES!E28","v":"T8 Saut Horizontal"},null,null,null,null,null,null,null,null,null,null,null,null,{"$f":"C89","v":"T8 Saut Horizontal"}]
[null,null,1,"INDICE",2,"INDICE",3,"INDICE",4,"INDICE",5,"INDICE",null,null,null,1,"INDICE",2,"INDICE",3,"INDICE",4,"INDICE",5,"INDICE"]
[null,null,0,1,0,1,0,1,0,1,0,1,null,null,null,0,1,0,1,0,1,0,1,0,1,null,null,null,200,1.9,1.8,1.7,80]
[null,null,120,1,110,1,100,1,90,1,80,1,null,null,null,140,1,120,1,110,1,100,1,90,1,null,null,null,180,1.7,1.6,1.5,100]
[null,null,140,2,130,2,120,2,110,2,100,2,null,null,null,160,2,140,2,130,2,120,2,110,2,null,null,null,160,1.5,1.4,1.3,120]
[null,null,160,3,150,3,140,3,130,3,120,3,null,null,null,180,3,160,3,150,3,140,3,130,3,null,null,null,140,1.3,1.2,1.1000000000000001,130]
[null,null,180,4,170,4,160,4,150,4,130,4,null,null,null,200,4,180,4,170,4,160,4,150,4,null,null,null,120,1.1000000000000001,1,0.9,150]
[null,null,200,5,190,5,180,5,170,5,150,5,null,null,null,220,5,200,5,190,5,180,5,170,5]
[null,null,1000,5,1000,5,1000,5,1000,5,1000,5,null,null,null,1000,5,1000,5,1000,5,1000,5,1000,5]
[]
[]
[null,null,"IMC",null,null,null,null,null,null,null,null,null,null,null,null,"IMC"]
[null,null,1,"INDICE",2,"INDICE",3,"INDICE",4,"INDICE",5,"INDICE",null,null,null,1,"INDICE",2,"INDICE",3,"INDICE",4,"INDICE",5,"INDICE"]
[null,null,0,1,0,1,0,1,0,1,0,1,null,null,null,0,1,0,1,0,1,0,1,0,1]
[null,null,14,1,14,1,14,1,14,1,14,1,null,null,null,14,1,14,1,14,1,14,1,14,1]
[null,null,16.5,3,16.5,3,16.5,3,16.5,3,16.5,3,null,null,null,16.5,3,16.5,3,16.5,3,16.5,3,16.5,3]
[null,null,17,4,17,4,17,4,17,4,17,4,null,null,null,17,4,17,4,17,4,17,4,17,4]
[null,null,18.5,5,18.5,5,18.5,5,18.5,5,18.5,5,null,null,null,18.5,5,18.5,5,18.5,5,18.5,5,18.5,5]
[null,null,22,4,22,4,22,4,22,4,22,4,null,null,null,22,4,22,4,22,4,22,4,22,4]
[null,null,25,3,25,3,25,3,25,3,25,3,null,null,null,25,3,25,3,25,3,25,3,25,3]
[null,null,28,2,28,2,28,2,28,2,28,2,null,null,null,28,2,28,2,28,2,28,2,28,2]
[null,null,30,1,30,1,30,1,30,1,30,1,null,null,null,30,1,30,1,30,1,30,1,30,1]
[null,null,100,1,100,1,100,1,100,1,100,1,null,null,null,100,1,100,1,100,1,100,1,100,1]

{"sheet":"PARAMETRES","index":5,"n_rows":19,"n_cols":12,"rows_kept":19,"cut":false,"hidden":true,"merged":[]}
[null,null,"PARAMÉTRAGES"]
[]
[null,null,null,"FENÊTRE BIENVENUE",null,"FENÊTRE IMPRESSION",null,"FENÊTRE AIDE",null,"FENÊTRE AIDE FICHE",null,"FENÊTRE AIDE BASE"]
[]
[null,null,null,"Bienvenue sur le programme de gestion",null,"Fichier PDF enregistré",null,"Pour la saisie, vous avez 2 méthodes:",null,"Vous pouvez faire une recherche soit en:",null,"Si la Base est filtrée utilisez le bouton \"Tout voir\" cela libère les filtres."]
[null,null,null,"parcours sport santé"]
[null,null,null,null,null,null,null,"1 en utilisant la BASE",null,"1 en saisissant le NOM  "]
[null,null,null,"Raccoucis",null,null,null,"Plus facile pour une saisie filtrée ou par paquet",null,"(vous pouvez choisir dans le menu déroulant)"]
[null,null,null,"Ctrl + M Accés Menu"]
[null,null,null,"Ctrl + B Accés Base",null,null,null,"2 en utilisant une FICHE formulaire",null,"2 en saisissant le NOM  et PRENOM"]
[null,null,null,"Ctrl + F Accés Fiche",null,"Copyright © PC35135",null,"Idéale pour une saisie cas par cas",null,"(vous pouvez choisir dans le menu déroulant)"]
[]
[null,null,null,"Pour utiliser code barres",null,"ATTENTION",null,"Copyright © PC35135",null,"Copyright © PC35135",null,"Copyright © PC35135"]
[null,null,null,"Charger la police MRV",null,"Enregistrement au format PDF"]
[null,null,null,null,null,"Ne fonctionne que sur Excel 2007 et sup"]
[null,null,null,"Contact: pascal.combettes@laposte.net"]
[null,null,null,"Copyright © PC35135",null,"Autres versions voir \"Boite à outils\""]
[]
[null,null,null,null,null,"Copyright © PC35135"]

{"sheet":"TITRES","index":6,"n_rows":30,"n_cols":6,"rows_kept":30,"cut":false,"hidden":true,"merged":[]}
[null,null,"B3","CHAMPS1","Dossard:","graphe"]
["TITRE1","Elève","D4","CHAMPS2","Niveau:","IMC"]
["TITRE2","Etablissement","D6","CHAMPS3","Nom: ","T1 Endurance(Cardio)"]
["TITRE3",null,"G6","CHAMPS4","Prénom: ","T2 Equilibre"]
["TITRE4",null,"D8","CHAMPS5","Sexe: ","T3 Force Statique"]
["TITRE5",null,"G8","CHAMPS6","Age: ","T4 Souplesse"]
["TITRE6",null,"H8","CHAMPS7","PT_Age","T5 Vitesse haut du corps"]
["TITRE7",null,"D10","CHAMPS8","Poids: ","T6 Vitesse bas du corps"]
["TITRE8",null,"G10","CHAMPS9","Taille: ","T7 Force haut du corps"]
["TITRE9",null,"D15","CHAMPS10","Etab.:","T8 Explosivité bas du corps"]
["TITRE10",null,"G15","CHAMPS11","Groupe:"]
[null,null,"D18","CHAMPS12","IMC"]
[null,null,"E18","CHAMPS13","PT_IMC"]
[null,null,"D20","CHAMPS14","T1 1/2 cooper"]
[null,null,"E20","CHAMPS15","T1"]
[null,null,"D22","CHAMPS16","T2 Flamingo"]
[null,null,"E22","CHAMPS17","T2"]
[null,null,"D24","CHAMPS18","T3 Préhension dynamomètre"]
[null,null,"E24","CHAMPS19","T3"]
[null,null,"D26","CHAMPS20","T4 Souplesse Dorsale"]
[null,null,"E26","CHAMPS21","T4"]
[null,null,"D28","CHAMPS22","T5 Vitesse Plaques"]
[null,null,"E28","CHAMPS23","T5"]
[null,null,"D30","CHAMPS24","T6 Course Navette"]
[null,null,"E30","CHAMPS25","T6"]
[null,null,"D32","CHAMPS26","T7 Pompes Inclinées"]
[null,null,"E32","CHAMPS27","T7"]
[null,null,"D34","CHAMPS28","T8 Saut Horizontal"]
[null,null,"E34","CHAMPS29","T8"]
[null,null,"E36","CHAMPS30","Résultats"]

{"sheet":"RES","index":7,"n_rows":4,"n_cols":31,"rows_kept":4,"cut":false,"hidden":true,"merged":[[0,3,0,8],[0,14,0,21],[0,10,0,13],[0,22,0,27]]}
[null,null,null,"données personnelles",null,null,null,null,null,null,"evaluation card-vasculaire",null,null,null,"évaluation neuro-musculaire équilibre-force-souplesse",null,null,null,null,null,null,null,"évaluation neuromusculaire vitesse fréquence gestuelle-puissance",null,null,null,null,null,null,null,"mrv code"]
["Dossard","Niveau",{"$f":"TITRES!$E3","v":"Nom: "},{"$f":"TITRES!$E4","v":"Prénom: "},{"$f":"TITRES!$E5","v":"Sexe: "},{"$f":"TITRES!$E6","v":"Age: "},{"$f":"TITRES!$E7","v":"PT_Age"},{"$f":"TITRES!$E8","v":"Poids: "},{"$f":"TITRES!$E9","v":"Taille: "},{"$f":"TITRES!$E10","v":"Etab.:"},{"$f":"TITRES!$E11","v":"Groupe:"},{"$f":"TITRES!$E12","v":"IMC"},{"$f":"TITRES!$E13","v":"PT_IMC"},{"$f":"TITRES!$E14","v":"T1 1/2 cooper"},{"$f":"TITRES!$E15","v":"T1"},{"$f":"TITRES!$E16","v":"T2 Flamingo"},{"$f":"TITRES!$E17","v":"T2"},{"$f":"TITRES!$E18","v":"T3 Préhension dynamomètre"},{"$f":"TITRES!$E19","v":"T3"},{"$f":"TITRES!$E20","v":"T4 Souplesse Dorsale"},{"$f":"TITRES!$E21","v":"T4"},{"$f":"TITRES!$E22","v":"T5 Vitesse Plaques"},{"$f":"TITRES!$E23","v":"T5"},{"$f":"TITRES!$E24","v":"T6 Course Navette"},{"$f":"TITRES!$E25","v":"T6"},{"$f":"TITRES!$E26","v":"T7 Pompes Inclinées"},{"$f":"TITRES!$E27","v":"T7"},{"$f":"TITRES!$E28","v":"T8 Saut Horizontal"},{"$f":"TITRES!$E29","v":"T8"},"Nom Prenom","Code Barre"]
[{"$f":"FICHES!D3","v":""},null,{"$f":"FICHES!D6","v":0},{"$f":"FICHES!G6","v":0},{"$f":"FICHES!D8","v":0},{"$f":"FICHES!G8","v":0},{"$f":"IF(C3=\"\",\"\",VLOOKUP(F3,REF_AGE,2))","v":1},{"$f":"FICHES!D10","v":0},{"$f":"FICHES!G10","v":0},{"$f":"FICHES!D15","v":0},{"$f":"FICHES!G15","v":0},{"$f":"IF(I3=\"\",\"\",(H3/(I3*I3))*10000)","v":{"$error":"#DIV/0!"}},{"$f":"IF(I3=\"\",\"\",VLOOKUP(L3,PT_IMC,2))","v":{"$error":"#DIV/0!"}},{"$f":"FICHES!D20","v":0},{"$f":"VLOOKUP(N3,INDIRECT(\"T1C\"&$E3&G3),2)","v":{"$error":"#REF!"}},{"$f":"FICHES!D22","v":0},{"$f":"VLOOKUP(P3,INDIRECT(Q$2&$E3&$G3),2)","v":{"$error":"#N/A"}},{"$f":"FICHES!D24","v":0},{"$f":"VLOOKUP(R3,INDIRECT(S$2&$E3&$G3),2)","v":{"$error":"#N/A"}},{"$f":"FICHES!D26","v":0},{"$f":"VLOOKUP(T3,INDIRECT(U$2&$E3&$G3),2)","v":{"$error":"#N/A"}},{"$f":"FICHES!D28","v":0},{"$f":"VLOOKUP(V3,INDIRECT(W$2&$E3&$G3),2)","v":{"$error":"#N/A"}},{"$f":"FICHES!D30","v":0},{"$f":"VLOOKUP(X3,INDIRECT(Y$2&$E3&$G3),2)","v":{"$error":"#N/A"}},{"$f":"FICHES!D32","v":0},{"$f":"VLOOKUP(Z3,INDIRECT(AA$2&$E3&$G3),2)","v":{"$error":"#N/A"}},{"$f":"FICHES!D34","v":0},{"$f":"VLOOKUP(AB3,INDIRECT(AC$2&$E3&$G3),2)","v":{"$error":"#N/A"}},{"$f":"+C3 & \" \" & D3","v":"0 0"},{"$f":"C3","v":0}]
[1,2,3,4,5,6,7,8,9,10,11,12,13,14,15,16,17,18,19,20,21,22,23,24,25,26,27,28,29,30]

{"sheet":"TESTS","index":8,"n_rows":315,"n_cols":9,"rows_kept":315,"cut":false,"hidden":true,"merged":[[0,1,0,8],[9,1,23,1],[26,2,26,8],[3,2,3,8],[18,8,19,8],[8,2,8,8],[9,2,9,8],[10,2,10,8],[29,2,29,8],[30,2,30,8],[20,8,21,8],[63,2,63,8],[64,2,64,8],[66,2,66,8],[67,2,67,8],[65,2,65,8],[61,2,61,8],[47,2,49,2],[47,3,47,7],[48,3,48,7],[47,8,49,8],[107,2,107,8],[108,2,108,8],[109,2,109,8],[110,2,110,8],[111,2,111,8],[112,2,112,8],[103,2,103,8],[104,2,104,8],[106,2,106,8],[105,2,105,8],[44,1,45,1],[45,2,45,8],[46,1,61,1],[60,2,60,8],[3,1,4,1],[4,2,4,8],[5,1,8,1],[5,2,5,8],[6,2,6,8],[7,2,7,8],[11,2,13,2],[11,3,11,7],[12,3,12,7],[11,8,13,8],[14,8,15,8],[16,8,17,8],[43,2,43,8],[44,2,44,8],[46,2,46,8],[24,2,24,8],[25,2,25,8],[27,2,27,8],[28,2,28,8],[22,8,23,8],[93,8,94,8],[95,8,96,8],[97,8,98,8],[99,8,100,8],[101,8,102,8],[84,1,87,1],[85,2,85,8],[88,1,102,1],[50,8,51,8],[52,8,53,8],[54,8,55,8],[56,8,57,8],[58,8,59,8],[90,2,92,2],[90,3,90,7],[91,3,91,7],[90,8,92,8],[86,2,86,8],[87,2,87,8],[88,2,88,8],[89,2,89,8],[83,2,83,8],[84,2,84,8],[62,2,62,8],[134,8,135,8],[136,8,137,8],[138,8,139,8],[140,8,141,8],[124,1,126,1],[125,2,125,8],[127,1,141,1],[110,1,112,1],[129,2,130,2],[129,3,129,7],[130,3,130,7],[129,8,131,8],[132,8,133,8],[128,2,128,8],[123,2,123,8],[124,2,124,8],[126,2,126,8],[127,2,127,8],[148,2,148,8],[149,1,152,1],[149,2,149,8],[150,2,150,8],[151,2,151,8],[152,2,152,8],[142,2,142,8],[143,2,143,8],[144,2,144,8],[145,2,145,8],[146,2,146,8],[147,2,147,8],[163,2,163,8],[164,1,167,1],[164,2,164,8],[165,2,165,8],[166,2,166,8],[167,2,167,8],[168,1,182,1],[170,2,172,2],[170,3,170,7],[171,3,171,7],[170,8,172,8],[173,8,174,8],[175,8,176,8],[190,2,190,8],[191,2,191,8],[192,2,192,8],[193,1,196,1],[193,2,193,8],[194,2,194,8],[195,2,195,8],[196,2,196,8],[168,2,168,8],[169,2,169,8],[183,1,192,1],[183,2,183,8],[184,2,184,8],[185,2,185,8],[186,2,186,8],[187,2,187,8],[188,2,188,8],[189,2,189,8],[177,8,178,8],[179,8,180,8],[181,8,182,8],[203,1,204,1],[203,2,203,8],[204,2,204,8],[205,1,207,1],[205,2,205,8],[206,2,206,8],[207,2,207,8],[210,2,212,2],[210,3,210,7],[211,3,211,7],[210,8,212,8],[226,2,226,8],[227,2,227,8],[228,1,230,1],[228,2,228,8],[229,2,229,8],[230,2,230,8],[208,1,222,1],[208,2,208,8],[209,2,209,8],[223,2,223,8],[224,2,224,8],[225,2,225,8],[217,8,218,8],[219,8,220,8],[221,8,222,8],[213,8,214,8],[215,8,216,8],[243,2,243,8],[244,1,246,1],[244,2,244,8],[245,2,245,8],[246,2,246,8],[247,1,261,1],[247,2,247,8],[249,2,251,2],[249,3,249,7],[250,3,250,7],[249,8,251,8],[252,8,253,8],[254,8,255,8],[267,1,269,1],[267,2,267,8],[268,2,268,8],[269,2,269,8],[288,2,288,7],[289,2,289,7],[248,2,248,8],[262,2,262,8],[263,2,263,8],[264,2,264,8],[265,2,265,8],[266,2,266,8],[256,8,257,8],[258,8,259,8],[260,8,261,8],[296,2,296,7],[297,2,297,7],[283,2,283,8],[284,1,286,1],[284,2,284,8],[285,2,285,8],[286,2,286,8],[287,1,303,1],[287,2,287,8],[308,2,308,8],[309,2,309,8],[310,2,310,8],[311,2,311,8],[312,1,314,1],[312,2,312,8],[313,2,313,8],[314,2,314,8],[304,2,304,8],[305,2,305,8],[306,2,306,8],[307,2,307,8]]}
[null,"DESCRIPTION DES DIFFÉRENTS TESTS"]
[null,"T1 1/2 Cooper","T2 Flamingo","T3 Préhension dynamomètre","T4 Souplesse Dorsale","T5 Vitesse Plaques","T6 Course Navette","T7 Pompes Inclinées","T8 Saut Horizontal"]
[]
[null,"Test 1","Testez votre souffle et vos jambes"]
[null,null,"Course"]
[null,null,"Description du test :"]
[null,null,"A partir du top départ, parcourir la plus grande distance possible en 6’."]
[null,null,"Compter le nombre de plots (ou de tours sur Vannes) que vous allez dépasser."]
[null,null,"Noter votre résultat sur la fiche de test."]
[null,"RESULTATS","Grille de lecture des résultats :"]
[]
[null,null,null,"BORNAGES DES VALEURS TEST 1",null,null,null,null,"INDICE"]
[null,null,null,"[6 min course]"]
[null,null,null,"18-30","30-39","40-49","50-59","60 et+"]
[null,null,"HOMMES","1600 m","1500 m","1400 m","1300 m","1200 m",5]
[null,null,"FEMMES",1500,1400,1350,1250,1150]
[null,null,"HOMMES",1450,1350,1250,1150,1050,4]
[null,null,"FEMMES",1350,1250,1150,1050,1000]
[null,null,"HOMMES",1300,1200,1150,1100,1000,3]
[null,null,"FEMMES",1250,1200,1100,1000,950]
[null,null,"HOMMES",1150,1100,1050,1000,950,2]
[null,null,"FEMMES",1100,1000,950,900,850]
[null,null,"HOMMES",1000,950,900,875,850,1]
[null,null,"FEMMES",950,900,875,850,800]
[null,"FICHE DE POSTE","Descriptif des actions à mener :"]
[null,"Nombre de Personnes sur le TEST","2 personnes"]
[null,null,"Présenter l’épreuve."]
[null,null,"Rappeler les consignes concernant le comptage des plots ou tours (Vannes)."]
[null,null,"Leur rappeler qu’ils notent leur score sur leur fiche."]
[null,null,"Leur demander de gérer l’effort."]
[null,null,"Indiquer le temps à mi-parcours et 1’ avant la fin."]
[]
[]
[]
[]
[]
[]
[]
[]
[]
[]
[null,"T1 1/2 Cooper","T2 Flamingo","T3 Préhension dynamomètre","T4 Souplesse Dorsale","T5 Vitesse Plaques","T6 Course Navette","T7 Pompes Inclinées","T8 Saut Horizontal"]
[]
[null,"Test 2","Équilibre général Flamingo (EFL)"]
[null,null,"Description du test :"]
[null,null,"Debout sur votre pied de prédilection, essayez de garder l’équilibre sur une poutre aussi longtemps que possible. Fléchissez la jambe libre en imitant la position du flamant rose. Servez-vous éventuellement des bras pour garder l’équilibre. L’objectif est d’essayer de garder l’équilibre dans cette position."]
[null,"RESULTATS","Grille de lecture des résultats :"]
[null,null,null,"BORNAGES DES VALEURS TEST 2",null,null,null,null,"INDICE"]
[null,null,null,"[Equilibre bras équilibrateur ]"]
[null,null,null,"18-30","31-40","41-50","51-60","61 et+"]
[null,null,"HOMMES","Sup à 80 s","Sup à 70 s","Sup à 60 s","Sup à 40 s","Sup à 30 s",5]
[null,null,"FEMMES","Sup à 80 s","Sup à 70 s","Sup à 60 s","Sup à 40 s","Sup à 30 s"]
[null,null,"HOMMES","65 à 79 s","60 à 69 s","50 à 59 s","35 à 39 s","25 à 30 s",4]
[null,null,"FEMMES","65 à 79 s","60 à 69 s","50 à 59 s","35 à 39 s","25 à 30 s"]
[null,null,"HOMMES","55 à 64 s","50 à 59 s","40 à 49 s","30 à 34 s","20 à 24 s",3]
[null,null,"FEMMES","55 à 64 s","50 à 59 s","40 à 49 s","30 à 34 s","20 à 24 s"]
[null,null,"HOMMES","45 à 54 s","40 à 49 s","30 à 39 s","20 à 29 s","15 à 19 s",2]
[null,null,"FEMMES","45 à 54 s","40 à 49 s","30 à 39 s","20 à 29 s","15 à 19 s"]
[null,null,"HOMMES","inf à 45 s","inf à 40 s","inf à 30 s","inf à 20 s","inf à 15 s",1]
[null,null,"FEMMES","inf à 45 s","inf à 40 s","inf à 30 s","inf à 20 s","inf à 15 s"]
[]
[]
[null,"FICHE DE POSTE","Descriptif des actions à mener :"]
[null,"Nombre de Personnes sur le TEST","Le test débute avec l’équilibre sur la poutre "]
[null,null,"Pour vous placer dans la position correcte, appuyez-vous sur l’avant-bras de l’examinateur. Le test commence lorsque cet appui cesse."]
[]
[null,null,"Le test s’arrête quand ; il y a un déséquilibre important, le pied se détache."]
[]
[]
[]
[]
[]
[]
[]
[]
[]
[]
[]
[]
[]
[]
[null,"T1 1/2 Cooper","T2 Flamingo","T3 Préhension dynamomètre","T4 Souplesse Dorsale","T5 Vitesse Plaques","T6 Course Navette","T7 Pompes Inclinées","T8 Saut Horizontal"]
[]
[null,"Test 3","Dynamomètre – Force avant-bras"]
[null,null,"Description du test :"]
[null,null,"Test : dynamométrie manuelle (DYM)"]
[null,null,"Prenez le dynamomètre dans la main la plus forte (la main habituelle). Serrez le plus énergiquement possible tout en tenant le dynamomètre éloigné du corps. Le dynamomètre ne doit pas toucher votre corps pendant l'épreuve. Exercez la pression de façon progressive et continue en la maintenant pendant 2 secondes au moins."]
[null,null,"Objectif : effectuer le test deux fois. Le meilleur des deux résultats obtenus est enregistré en kilos (degré de précision : 1 kg)."]
[null,"RESULTATS","Grille de lecture des résultats :"]
[]
[null,null,null,"BORNAGES DES VALEURS TEST 3",null,null,null,null,"INDICE"]
[null,null,null,"[DYNAMOMETRE BRAS]"]
[null,null,null,"18-30 ANS","31-40","41-50","51-60","61 et+"]
[null,null,"HOMMES",">57.5",">55.6",">55.3",">50.7",">48",5]
[null,null,"FEMMES",">41.4",">35.3",">32.7",">31.9",">31"]
[null,null,"HOMMES","<51.2","<46.5","<50.2","<45.7","<44",4]
[null,null,"FEMMES","<35.9","<31.7","<29","<28.2","<27.4"]
[null,null,"HOMMES","<46.7","<41.1","<44.8","<40.7","<40",3]
[null,null,"FEMMES","<30.4","<27.9","<25.4","<24.7","<24.2"]
[null,null,"HOMMES","<41.2","<40.7","<39.9","<35.7","<36",2]
[null,null,"FEMMES","<24.8","<24.1","<21.7","<21.2","<20.7"]
[null,null,"HOMMES","<35.7","<35.8","<34.7","<30.7","<32",1]
[null,null,"FEMMES","<19.2","<20.3","<18.1","<17.7","<17.2"]
[null,"FICHE DE POSTE","Descriptif des actions à mener :"]
[null,"Nombre de Personnes sur le TEST","1 personne"]
[null,null,"Expliquer au participant l’utilisation du dynamomètre manuel :"]
[null,null,"Prendre la poignée avec sa main la plus forte, le bras est le long du corps et la main légèrement éloignée du corps."]
[null,null,"Presser progressivement et sans arrêt jusqu’au maximum pendant 2’’à 3’’."]
[null,null,"2 essais. Faire noter le meilleur résultat."]
[null,null,"Réinitialiser l’appareil pour le suivant."]
[null,"MATERIEL","Liste du matériel à prévoir :"]
[null,null,"2 ou 3 dynamomètres ?"]
[null,null,"1 table + crayons"]
[]
[]
[]
[]
[]
[]
[]
[]
[null,"T1 1/2 Cooper","T2 Flamingo","T3 Préhension dynamomètre","T4 Souplesse Dorsale","T5 Vitesse Plaques","T6 Course Navette","T7 Pompes Inclinées","T8 Saut Horizontal"]
[]
[null,"Test 4","Indice de souplesse"]
[null,null,"Description du test :"]
[null,null,"L'objectif est de mesurer la flexibilité tronc-jambes."]
[null,null,"A partir de la position assis, amener, lentement et ensemble, les mains le long des jambes, vers l’avant, le plus loin possible en gardant les jambes tendues. Mesurer l’écart en positif et en négatif par rapport à la pointe des pieds."]
[null,"RESULTATS","Grille de lecture des résultats : en centimètre"]
[]
[null,null,null,"BORNAGES DES VALEURS TEST 4",null,null,null,null,"INDICE"]
[null,null,null,"[Souplesse]"]
[null,null,"Ages","18-30","30-39","40-49","50-59","60 et+"]
[null,null,"HOMMES",-20,-15,-5,0,5,5]
[null,null,"FEMMES",-25,-20,-10,-5,0]
[null,null,"HOMMES",-10,-5,0,5,10,4]
[null,null,"FEMMES",-15,-10,-5,0,5]
[null,null,"HOMMES",0,5,10,15,20,3]
[null,null,"FEMMES",0,0,5,10,15]
[null,null,"HOMMES",10,15,20,20,25,2]
[null,null,"FEMMES",10,10,15,15,20]
[null,null,"HOMMES","20 ET +",20,30,30,35,1]
[null,null,"FEMMES","20 ET +",25,25,25,30]
[null,"FICHE DE POSTE","Descriptif des actions à mener :"]
[null,"Nombre de Personnes sur le TEST","Placer le participant en position assise, les jambes tendues, et la plante des pieds en contact avec la boite."]
[null,null,"Vérifier que les jambes restent tendues."]
[null,null,"Demander au participant de fléchir le buste pour amener les mains le plus loin possible en avant."]
[null,null,"Avec l’aide d’une règle relever la mesure de la souplesse en cm."]
[null,null,"Mesure négative avant d’atteindre les pieds et positive si les mains vont au-delà des pieds."]
[null,null,"Communiquer le résultat au participant."]
[null,"MATERIEL","Liste du matériel à prévoir :"]
[null,null,"Crayons"]
[null,null,"1 règle"]
[null,null,"La boite munie de la toise"]
[]
[]
[]
[]
[]
[]
[]
[]
[null,"T1 1/2 Cooper","T2 Flamingo","T3 Préhension dynamomètre","T4 Souplesse Dorsale","T5 Vitesse Plaques","T6 Course Navette","T7 Pompes Inclinées","T8 Saut Horizontal"]
[]
[null,"Test 5","Testez La Vitesse du haut du corps"]
[null,null,"Description du test :"]
[null,null,"Réaliser 25 cycles avec la main en frappant les plaques le plus vite possible."]
[null,null,"Disques en caoutchouc de 20cm de diamètre fixés horizontalement sur une table avec un écart de 60cm(écart de 80cm aux centres). "]
[null,null,"Placer une main entre les deux disques et effectuer un mouvement de va et vient avec l’autre main en touchant les plaques et en passant au dessus de la main au milieu."]
[null,"RESULTATS","Grille de lecture des résultats :"]
[]
[null,null,null,"BORNAGES DES VALEURS TEST 5",null,null,null,null,"INDICE"]
[null,null,null,"[POMPES]"]
[null,null,null,"18-30 ANS","31-40","41-50","51-60","61 et+"]
[null,null,"HOMMES",10,"10.5",11,"11.5",12,5]
[null,null,"FEMMES",11,"11.5",12,"12.5",13]
[null,null,"HOMMES",11,"11.5",12,"12.5",13,4]
[null,null,"FEMMES","11.5",12,"12.5",13,"13.5"]
[null,null,"HOMMES","11.5",12,"13.5",14,"14.5",3]
[null,null,"FEMMES",12,"12.5",13,"13.5",14]
[null,null,"HOMMES","12.5",13,"13.5",14,"14.5",2]
[null,null,"FEMMES",13,"13.5",14,"14.5",15]
[null,null,"HOMMES",13,"13.5",14,"14.5",15,1]
[null,null,"FEMMES",14,"14.5",15,"15.5",16]
[null,"FICHE DE POSTE","Descriptif des actions à mener :"]
[null,null,"2 personnes."]
[null,null,"Présenter l’épreuve."]
[null,null,"Rappeler les consignes de réalisation."]
[null,null,"L’examinateur donne le top et le stop de l’épreuve"]
[]
[null,null,"Le test est fait deux fois."]
[null,null,"Si un disque n’a pas été touché, on ajoute une frappe supplémentaire."]
[]
[]
[null,"MATERIEL","Liste du matériel à prévoir :"]
[null,null,"- 2 plaques en caoutchouc"]
[null,null,"- Une table"]
[null,null,"- un chronomètre"]
[]
[]
[]
[]
[null,"T1 1/2 Cooper","T2 Flamingo","T3 Préhension dynamomètre","T4 Souplesse Dorsale","T5 Vitesse Plaques","T6 Course Navette","T7 Pompes Inclinées","T8 Saut Horizontal"]
[]
[null,"Test 6","Testez votre Vitesse et coordination"]
[null,null,"Course navette 10*5 mètres"]
[null,null,"Description du test :"]
[null,null,"Mettez-vous en position derrière la ligne de départ, en plaçant un pied juste derrière celle-ci. Au signal, courez le plus vite possible jusqu'à l'autre ligne, située à 5 mètres, franchissez-la des deux pieds et revenez le plus rapidement possible à la ligne de départ. Ceci constitue un cycle. Effectuez 5 cycles. La 5ème fois, ne ralentissez pas en arrivant à la ligne terminale, mais continuez à courir."]
[null,null,"Objectif : ce test est effectué une seule fois. Le temps enregistré est celui mis pour parcourir 5 cycles, exprimé en dixièmes de seconde…."]
[null,"RESULTATS","Grille de lecture des résultats : en seconde"]
[]
[null,null,null,"BORNAGES DES VALEURS TEST 6",null,null,null,null,"INDICE"]
[null,null,null,"[NAVETTE 10*5M]"]
[null,null,null,"18-30 ANS","31-40","41-50","51-60","61 et+"]
[null,null,"HOMMES",">14 sec",">15 sec","> 16 sec","> 18  sec",">20 sec",5]
[null,null,"FEMMES",">16 sec","> 17 sec","> 18 sec","> 20 sec","> 22 sec"]
[null,null,"HOMMES","<17 sec","<18 sec","< 19 sec","< 21 sec","< 23sec",4]
[null,null,"FEMMES","<19 sec","<20 sec","<21 sec","< 23 sec","< 25 sec"]
[null,null,"HOMMES","<19 sec","<20 sec","< 21 sec","< 23 sec","< 25 sec",3]
[null,null,"FEMMES","<21 sec","< 22 sec","<23 sec","< 25 sec","< 27sec"]
[null,null,"HOMMES","<21 sec","<22 sec","< 23 sec","< 25 sec","< 27 sec",2]
[null,null,"FEMMES","< 23 sec","< 24 sec","< 25 sec","<27 sec","<29 sec"]
[null,null,"HOMMES","<23 sec","<24 sec","< 25 sec","< 27 sec","< 29 sec",1]
[null,null,"FEMMES","< 25 sec","< 26 sec ","< 27 sec","< 29 sec","< 31 sec"]
[null,"FICHE DE POSTE","Descriptif des actions à mener :"]
[null,"Nombre de Personnes sur le TEST","2 personnes."]
[null,null,"Présenter l’épreuve : les concurrents essaient de passer par deux."]
[null,null,"Rappeler les consignes concernant la navette : les deux pieds franchissent la ligne avant de partir vers l’autre ligne."]
[null,null,"Leur rappeler qu’ils notent leur score sur leur fiche."]
[null,"MATERIEL","Liste du matériel à prévoir :"]
[null,null,"- Craies pour matérialiser au sol les deux zones de navette."]
[null,null,"- Plots."]
[]
[]
[]
[]
[]
[]
[]
[]
[]
[]
[null,"T1 1/2 Cooper","T2 Flamingo","T3 Préhension dynamomètre","T4 Souplesse Dorsale","T5 Vitesse Plaques","T6 Course Navette","T7 Pompes Inclinées","T8 Saut Horizontal"]
[]
[null,"Test 7","Testez La Force du haut du corps"]
[null,null,"Description du test :"]
[null,null,"Réaliser le plus de pompes possibles (contact poitrine au banc). La performance correspond au nombre de répétitions enchaînées sans arrêt possible."]
[null,null,"Attention le corps doit être en bloc. Arrêter l’exercice lorsque la personne testée cambre le dos pour remonter par exemple."]
[null,"RESULTATS","Grille de lecture des résultats :"]
[]
[null,null,null,"BORNAGES DES VALEURS TEST 7",null,null,null,null,"INDICE"]
[null,null,null,"[POMPES]"]
[null,null,null,"18-30 ANS","31-40","41-50","51-60","61 et+"]
[null,null,"HOMMES",50,40,35,30,25,5]
[null,null,"FEMMES",40,35,30,25,20]
[null,null,"HOMMES",35,30,25,20,15,4]
[null,null,"FEMMES",30,25,20,15,12]
[null,null,"HOMMES",30,25,20,15,12,3]
[null,null,"FEMMES",25,20,15,12,10]
[null,null,"HOMMES",25,20,15,12,10,2]
[null,null,"FEMMES",20,15,10,10,8]
[null,null,"HOMMES",20,15,10,10,8,1]
[null,null,"FEMMES",15,15,10,5,5]
[null,"FICHE DE POSTE","Descriptif des actions à mener :"]
[null,"Nombre de Personnes sur le TEST","2 personnes."]
[null,null,"Présenter l’épreuve."]
[null,null,"Rappeler les consignes de réalisation."]
[null,null,"Leur rappeler qu’ils notent leur score sur leur fiche."]
[null,"MATERIEL","Liste du matériel à prévoir :"]
[null,null,"- 2 Tapis type « Sarneige »"]
[null,null,"- Un plinth 80 cm"]
[]
[]
[]
[]
[]
[]
[]
[]
[]
[]
[]
[null,"T1 1/2 Cooper","T2 Flamingo","T3 Préhension dynamomètre","T4 Souplesse Dorsale","T5 Vitesse Plaques","T6 Course Navette","T7 Pompes Inclinées","T8 Saut Horizontal"]
[]
[null,"Test 8","Testez saut en longueur sans élan (SLO)."]
[null,null,"Description du test :"]
[null,null,"Tenez-vous debout, les pieds à la même hauteur, les orteils juste derrière la ligne de départ. Fléchissez les genoux en plaçant les bras vers l’avant, à l’horizontale. D’une détente vigoureuse, accompagnée d’un balancement des bras, sautez le plus loin possible. Réceptionnez-vous, les pieds joints sans perdre l’équilibre."]
[null,null,"Objectif : effectuer le test deux fois. Le meilleur des deux résultats (marqué à la craie) est enregistré et noté en centimètres."]
[null,"RESULTATS","Grille de lecture des résultats : en mètre"]
[null,null,"BORNAGES DES VALEURS TEST 8"]
[null,null,"[DETENTE HORIZONTALE] HOMMES"]
[null,null,"18-30","30-39","40-49","50-59","60 et+","SCORE T9"]
[null,null,2.2000000000000002,2,1.9,1.8,1.7,5]
[null,null,2,1.8,1.7,1.6,1.5,4]
[null,null,1.8,1.6,1.5,1.4,1.3,3]
[null,null,1.6,1.4,1.3,1.2,1.1000000000000001,2]
[null,null,1.4,1.2,1.1000000000000001,1,0.9,1]
[null,null,"BORNAGES DES VALEURS TEST N° 8"]
[null,null,"[FORCE EXPLOSIVE BAS DU CORPS] FEMME"]
[null,null,"18-30","30-39","40-49","50-59","60 et+","INDICE"]
[null,null,2,1.9,1.8,1.7,1.5,5]
[null,null,"1.8",1.7,1.6,1.5,1.3,4]
[null,null,"1.6",1.5,1.4,1.3,1.2,3]
[null,null,"1.4",1.3,1.2,1.1000000000000001,1,2]
[null,null,"1.2",1.1000000000000001,1,0.9,0.8,1]
[null,"FICHE DE POSTE","Descriptif des actions à mener :"]
[null,"Nombre de Personnes sur le TEST","2 personnes."]
[null,null,"Installer le matériel : 2 tapis sol dans le prolongement l’un de l’autre."]
[null,null,"Préparer le marquage des tapis en centimètres pour mesurer la performance plus vite,"]
[null,null,"Matérialiser la ligne de départ."]
[null,null,"Présenter l’épreuve."]
[null,null,"Rappeler les consignes concernant la sécurité de pratique : accepter de fléchir les genoux pour sécuriser la réception."]
[null,null,"Leur rappeler qu’ils notent leur score sur leur fiche : le meilleur des deux bonds, en centimètres."]
[null,"MATERIEL","Liste du matériel à prévoir :"]
[null,null,"- 2 tapis de sol type Sarneige."]
[null,null,"- Craies et décamètre pour procéder au marquage des tapis (aide à la mesure de la performance)."]